Workbook

Sheet Instructions
A1: Payment in Lieu of Taxes Financial Agreement Forecasting Model (PFAF)
A2: Guide to the Payment in Lieu of Taxes Financial Agreement Forecasting Model
A4: Introduction
A6: The PILOT Financial Agreement Forecasting Model (PFAF model) produces 30-year project cash flow, PILOT payment, and municipality net benefit projections based on user-entered assumptions, 2019 Census data, and 2020 tax and budget information.
A7: The Model allows municipalities to forecast and understand the net financial impact of PILOT payments relative to the projected impact of the proposed project on municipal spending.
A8: The Model populates from user inputs on the "Inputs/Assumptions" tab and 2019 property tax and municipal budgeted expenditure data on the Data tab.
A9: Cells that are highlighted in yellow or with blue font are meant for user entry. All other cells are formula cells that should not be changed.
A10: For the Model to perform correctly, it is essential that operating expenses and debt service be entered as negative values.
A12: Inputs & Assumptions Tab
A13: Projection Options
A15: Users have the option to select one of three projection methods, selected from a drop down box at the top of the Inputs & Assumptions Tab
B17: A: % of Actual Gross Revenues
B18: This option calculates PILOT payments as a user-specified percentage of actual gross revenues.
B20: B: % of Taxes
B21: This option calculates PILOT payments as a user-specified percentage of the full tax liability.
B23: C: Manual Entry
B24: This option allows the user to manually enter PILOT payments for each year.
A26: The assumptions for these options are entered in the PILOT Methods Assumptions section.
A28: Project Type
A30: Users select from one of three project types, residential, commercial/industrial, and mixed-use. Each type has an assumptions section which is activated when that type is selected. This section projects the number of persons occupying the development. This number is multiplied by municipal spending per capita (municipal spending divided by daytime population) to estimate the municipal spending stemming from the project. Users can also indicate whether the project has afffordable housing or not, which is strictly for informational purposes.
B32: For Residential Projects, users enter in the number of studio, 1 bedroom, 2 bedroom, and 3 bedroom units. The number of persons occupying the units are calculated based on multipliers from "Who Lives in New Jersey Housing: A Quick Guide to New Jersey Residential Demographic Multipliers,” published by Center for Urban Policy Research at Rutgers University. This also produces a public school children estimate for informational purposes that can be used to separately calculate direct school district impacts.
B34: For Commercial/Industrial Projects, users enter in the projected number of occupants in a commercial or industrial building
B36: For Mixed-Use Projects, users enter in the projected number of housing units for the residential portion and the projected occupancy in the commercial or industrial portion.
A38: Project Assumptions
A40: In this section, users enter projected gross revenue, operating expenses, debt service, equity, and the full property tax liability for the property before and after improvements (i.e. new construction).
B42: Net Rents/Gross Revenue | C42: Projected project gross revenue from net rents (taking into account vacancies) and other forms of revenue.
B43: Operating Expenses | C43: All project operating expenses excluding PILOT payments. Must be entered as negative values.
B44: Property Assessed Value Pre-Improvement | C44: Projected full tax assessment for the development before improvements (i.e. assessed value of vacant land)
B45: Property Assessed Value Post-Improvement | C45: Estimated full tax assessment for the development after improvements (i.e. new construction)
B46: Debt Service | C46: Anticipated annual debt service on debt issued for the project
B47: Equity (In)/Out | C47: Total funds invested in the property (enter as negative values) and projected proceeds from sale of the property (enter as positive values)
A49: Municipal Spending Assumptions
A51: In this section, users enter projected annual growth rates for the municipal budget. These are used to grow the additional municipal spending impact from the project. Users also enter the percentage of spending in ten key budget areas that would be affected by new residents or jobs. These entries flow to the municipal spending per capita calculation. Municipal spending per capita is used to project the additional cost to the municipality from the project. Users can also add the value of additional benefits and costs not captured by the model in the "Additional Net Benefit/Loss to Municipality" section. This may include the value of affordable housing, community facilities, parks and green space, and other public benefits contributed by the project. In addition, users can enter other project-associated costs not accounted for in the core budget areas in the "Additional Municipal Costs Outside Core Budget" section.
A55: Projection Tab
A57: The projection tab calculates the PILOT payments, the municipal, county and school district split, the project net cash flows, the internal rate of return, and the net cost or benefit to the municipality. It is populated by data in the "Data" tab and entries on the "Inputs & Assumptions" tab. Outputs are as follows:
B59: Year | C59: The year of the payment.
B60: Year Number | C60: The sequential year of the payment.
B61: Net Rents/Gross Revenue | C61: Projected gross revenue from net rents (taking into account vacancies) and other forms of project revenue.
B62: Operating Expenses | C62: All project operating expenses excluding PILOT payments.
B63: Property Assessed Value Pre-Improvement | C63: Projected full tax assessment for the development after improvements (i.e. new construction).
B64: Municipal Property Tax Revenue Pre-Improvement | C64: Property tax bill for property before improvements (i.e. vacant land).
B65: Property Assessed Value Post-Improvement | C65: Projected full tax assessment for the development before improvements (i.e. assessed value of vacant land).
B66: Total Property Taxes without PILOT | C66: Total property taxes (county, municipal, school) due on property post-improvement with no abatement or exemption.
B67: Municipal Property Taxes without PILOT | C67: Total municipal property taxes due on property post-improvement with no abatement or exemption.
B68: PILOT Payments | C68: Calculated PILOT payment based on selected projection option.
B69: Municipal PILOT | C69: Calculated municipal portion of PILOT payment, based on the municipal percentage of the total levy.
B70: County PILOT | C70: Calculated county portion of PILOT payment, based on the county percentage of the total levy.
B71: School PILOT | C71: Calculated school district portion of PILOT payment, based on the school district percentage of the total levy.
B72: Project Net Operating Income before Debt Service | C72: Total project net operating income before debt service. Calculated as the net rents/revenue minus operating expenses and the PILOT payment.
B73: Debt Service | C73: Anticipated annual debt service on debt issued for the project.
B74: Project Cash Flow | C74: Project Net Operating Income minus debt service.
B75: Equity (In)/Out | C75: Total funds invested in the property (enter as negative values) and proceeds from sale of the property (enter as positive values).
B76: Net Cash Flow | C76: The sum of Project Cash Flow and Equity In/Out. Used to compute the Internal Rate of Return (IRR).
B77: PILOT % of Annual Gross Revenue | C77: Total PILOT payments divided by total annual gross revenue.
B78: PILOT % of Conventional Taxes | C78: Total PILOT payments divided by total property tax liability without abatements or exemptions.
B79: Additional Municipal Costs | C79: Calculated additional municipal spending due to the project.
B80: Net Benefit (Loss) to Municipality | C80: Calculated net financial benefit or loss to the municipality. Calculated as the municipal PILOT payment less pre-improvement property taxes and additional municipal costs.
B81: Adjust PILOT to IRR Target Button | C81: Adjusts PILOT payments to produce the IRR entered in cell Y6.
B82: Adjust PILOT to Hold Municipality Harmless Button | C82: Adjusts PILOT payments to produce no net financial impact to the municipality over the life of the project.
B83: Remove PILOT Adjustment Button | C83: Removes PILOT adjustments and reverts back to original calculation.
A85: Data Tab
A87: This tab contains the raw source data used to calculate property tax liabilities and municipal spending. The data are based on the US Census Bureau's 2015-19 American Community Survey 5-Year Estimates (daytime population), DCA's 2020 Property Tax Information release, and the 2020 municipal User Friendly Budget submissions. Users have the option to enter in more recent tax and spending data on this tab, if desired
A90: The following 22 municipalities do not have 2020 User Friendly Budget data available to perform the Net Benefit/Loss calculation:
B91: Avalon Borough, Cape May County
B92: Bernardsville Borough, Somerset County
B93: Camden City, Camden County
B94: Chatham Borough, Morris County
B95: Dumont Borough, Bergen County
B96: East Newark Borough, Hudson County
B97: East Orange City, Essex County
B98: Fanwood Borough, Union County
B99: Franklin Township, Gloucester County
B100: Hillside Township, Union County
B101: Irvington Township, Essex County
B102: Mine Hill Township, Morris County
B103: North Brunswick Township, Middlesex County
B104: Penns Grove Borough, Salem County
B105: Pennsville Township, Salem County
B106: Ramsey Borough, Bergen County
B107: South Orange Village Township, Essex County
B108: Totowa Borough, Passaic County
B109: Washington Township, Gloucester County
B110: Washington Township, Morris County
B111: Weehawken Township, Hudson County
B112: Woodbridge Township, Middlesex County

Sheet FAQ
A1: =Instructions!A1 -> Payment in Lieu of Taxes Financial Agreement Forecasting Model (PFAF)
A2: Frequently Asked Questions
A4: Can I clear out existing data in the model?
A5: You may clear out or replace any data in blue font or in a yellow-highlighted cell. The data in the Inputs and Assumptions tab are examples and should be replaced with actual project data and user assumptions.
A7: Can I print the model outputs?
A8: Yes, all of the model's tabs have been formatted to print.
A10: I have received a pro forma from the developer. However would I integrate that into the model?
A11: You would find the data corresponding to total operating expenses, debt service, total revenue or net rents, and enter them in the Project Budget & Valuation Assumptions section of the Inputs and Assumptions tab. The model will then calculate the IRR and municipality net benefit based on this data and the user-entered municipal spending, tax assessment, and PILOT method assumptions.
A13: I have received a proposed PILOT schedule from the developer. How do I use the model to determine if this is a net benefit to my town?
A14: You can enter in the PILOT numbers in the Manual Entry column of the PILOT Method Assumptions section on the Inputs and Assumptions tab. Select "Manual Entry" in the PILOT Method drop down menu to activate the scenario. The model will show the projected net benefit/loss on the Model tab.
A16: I would like to add additional costs to my municipality from the project beyond the core budget areas included in the model. How do I do that?
A17: Additional costs can be entered in the "Additional Municipal Costs Outside Core Budget" column in the Municipal Spending Assumptions section of the Inputs and Assumptions tab. These costs are added to the core budget costs projected by the model.
A19: The project provides additional benefits to my municipality beyond the PILOT payment. How do I account for this in the net benefit calculation?
A20: The estimated monetary value of additional benefits (such as affordable housing, parks and green space, or other developer contributions) or losses (i.e. noise pollution, environmental contamination) from the project can be entered in the "Additional Benefit/Loss to Municipality" column in the Municipal Spending Assumptions section of the Inputs and Assumptions tab. These benefits/losses will be added to the existing net benefit calculation.
A22: My projection shows a net loss to my municipality during the latter half of the project. Can I remedy that through the PILOT assumptions? | AN22: `
A23: Yes. You can adjust the % of Taxes, % of Gross Revenues, or Manual Entries on the Inputs & Assumptions tab in those net loss years to produce a net benefit.
A25: I have more recent tax and municipal budget information than is included in the model. How can I incorporate that into the calculation?
A26: You may enter more recent data for your municipality on the Data tab, replacing the data that is already there. Any data in blue font or yellow highlighting may be changed.
A28: I do not want to do a 30 year abatement, I would prefer a shorter timeframe. Does the model accommodate that?
A29: Yes. You may enter in data for any period of time less than 30 years, clearing out any data for years the PILOT would not be in effect on the Inputs and Assumptions tab.
A31: I want to calculate the fiscal impact of the project on the school district. Can I do that through this model? | AJ31: `
A32: The model produces two outputs that are relevant to that calculation, the projected number of new children from new developments (on the Inputs & Assumptions tab) and the School PILOT on the Model tab. However the calculation itself must be done outside the model based on school district data.
A35: I have entered in an IRR Target and clicked "Adjust PILOT to IRR Target" but the Current IRR is not matching. Why does this happen? | AJ35: `
A36: The model produces the IRR closest to the IRR Target that can be achieved through a PILOT. Because the PILOT is only one component of many that determine an IRR, In some cases, the target can only be approximated rather than exactly achieved.
A39: My projection shows nothing in the municipalilty net benefit/loss column despite entering in all the assumptions. How do I fix that?
A40: The lack of a net benefit/loss projection is due to the fact that the Division of Local Government Services does not have 2020 UFB information on file for your municipality. Simply enter in the requisite budget information on the Data tab if this is case and be sure to submit your UFB to the Division.

Sheet Inputs & Assumptions
A1: ="Payment in Lieu of Taxes Financial Agreement Forecasting Model "&"- "&VLOOKUP(Muni,$AL$4:$AM$568,2,FALSE) -> Payment in Lieu of Taxes Financial Agreement Forecasting Model - Aberdeen Township, Monmouth County
A2: Inputs/Assumptions
B4: Select Municipality | L4: Year 1 Municipal PILOT | M4: =-Model!K4 -> 9420.54545 | O4: Municipal Tax Rate (per $100 valuation) | P4: =VLOOKUP(Muni,Data!E4:H568,4,FALSE) -> 0.5602097819 | AL4: =AL3+1 -> 1 | AM4: Aberdeen Township, Monmouth County | AU4: % of Actual Gross Revenue
B5: 1 | F5: First Year | G5: 2021 | L5: Average Municipal PILOT | M5: =-AVERAGE(Model!K4:K33) -> 12737.36848 | O5: Total Tax Rate (per $100 valuation) | P5: =VLOOKUP(Muni,Data!E4:K568,7,FALSE) -> 2.535367424 | AL5: 2 | AM5: Absecon City, Atlantic County | AU5: % of Taxes
L6: IRR (Internal Rate of Return) | M6: =Model!AB4 -> 0.03153672318 | O6: Mun. Spending/Daytime Pop. Ratio | P6: =VLOOKUP(Muni,Data!$E$4:$S$568,15,FALSE) -> 258.5566144 | AL6: 3 | AM6: Alexandria Township, Hunterdon County | AU6: Manual Entry
B7: PILOT Method | F7: Project Type | H7: Includes Affordable Housing? | L7: Avg. Municipal Net Benefit (Loss) | M7: =IFERROR(AVERAGE(Model!Y4:Y33),"No Data") -> -38077.42528 | AL7: 4 | AM7: Allamuchy Township, Warren County
B8: 3 | F8: 1 | I8: 1 | AL8: 5 | AM8: Allendale Borough, Bergen County | AU8: Residential
AL9: 6 | AM9: Allenhurst Borough, Monmouth County | AU9: Commercial/Industrial
B10: Residential Projects | AL10: 7 | AM10: Allentown Borough, Monmouth County | AU10: Mixed Use
B11: Num. of Units | C11: Num. of Units | D11: Persons Multiplier | E11: Total New Persons | F11: Public School Multiplier | G11: Total New Public School Children | AL11: 8 | AM11: Alloway Township, Salem County
B12: Studio | C12: 0 | D12: 1.644 | E12: =ROUND(D12*C12,0) -> 0 | F12: 0.051 | G12: =ROUND(F12*C12,0) -> 0 | AL12: =AL11+1 -> 9 | AM12: Alpha Borough, Warren County | AU12: Yes
B13: 1 Bedroom | C13: 15 | D13: 1.644 | E13: =ROUND(D13*C13,0) -> 25 | F13: 0.051 | G13: =ROUND(F13*C13,0) -> 1 | AL13: 10 | AM13: Alpine Borough, Bergen County | AU13: No
B14: 2 Bedroom | C14: 29 | D14: 2.107 | E14: =ROUND(D14*C14,0) -> 61 | F14: 0.115 | G14: =ROUND(F14*C14,0) -> 3 | AL14: 11 | AM14: Andover Borough, Sussex County
B15: 3 Bedroom | C15: 12 | D15: 3.422 | E15: =ROUND(D15*C15,0) -> 41 | F15: 0.56 | G15: =ROUND(F15*C15,0) -> 7 | AL15: 12 | AM15: Andover Township, Sussex County
B16: TOTAL | C16: =SUM(C12:C15) -> 56 | E16: =SUM(E12:E15) -> 127 | G16: =SUM(G12:G15) -> 11 | AL16: 13 | AM16: Asbury Park City, Monmouth County
AL17: 14 | AM17: Atlantic City, Atlantic County
B18: Commercial/Industrial Projects | AL18: 15 | AM18: Atlantic Highlands Borough, Monmouth County
C19: Num. of Persons | AL19: 16 | AM19: Audubon Borough, Camden County
B20: Estimated Occupancy | C20: 0 | AL20: 17 | AM20: Audubon Park Borough, Camden County
AL21: =AL20+1 -> 18 | AM21: Avalon Borough, Cape May County
B22: Mixed-Use Projects | AL22: 19 | AM22: Avon-by-the-Sea Borough, Monmouth County
B23: Num. of Units | C23: Num. of Units | D23: Persons Multiplier | E23: Total New Persons | F23: Public School Multiplier | G23: Total New Public School Children | AL23: 20 | AM23: Barnegat Light Borough, Ocean County
B24: Residential Component | AL24: 21 | AM24: Barnegat Township, Ocean County
B25: Studio | C25: 0 | D25: 1.644 | E25: =ROUND(D25*C25,0) -> 0 | F25: 0.051 | G25: =ROUND(F25*C25,0) -> 0 | AL25: 22 | AM25: Barrington Borough, Camden County
B26: 1 Bedroom | C26: 0 | D26: 1.644 | E26: =ROUND(D26*C26,0) -> 0 | F26: 0.051 | G26: =ROUND(F26*C26,0) -> 0 | AL26: 23 | AM26: Bass River Township, Burlington County
B27: 2 Bedroom | C27: 0 | D27: 2.107 | E27: =ROUND(D27*C27,0) -> 0 | F27: 0.115 | G27: =ROUND(F27*C27,0) -> 0 | AL27: 24 | AM27: Bay Head Borough, Ocean County
B28: 3 Bedroom | C28: 0 | D28: 3.422 | E28: =ROUND(D28*C28,0) -> 0 | F28: 0.56 | G28: =ROUND(F28*C28,0) -> 0 | AL28: 25 | AM28: Bayonne City, Hudson County
B29: TOTAL | C29: =SUM(C25:C28) -> 0 | E29: =SUM(E25:E28) -> 0 | G29: =SUM(G25:G28) -> 0 | AL29: 26 | AM29: Beach Haven Borough, Ocean County
B30: Commercial/Industrial Component | AL30: 27 | AM30: Beachwood Borough, Ocean County
B31: Estimated Occupancy | C31: 0 | AL31: 28 | AM31: Bedminster Township, Somerset County
AL32: 29 | AM32: Belleville Township, Essex County
B33: TOTAL NEW PERSONS | C33: =C31+SUM(E25:E28) -> 0 | AL33: 30 | AM33: Bellmawr Borough, Camden County
AL34: 31 | AM34: Belmar Borough, Monmouth County
C35: PILOT Method Assumptions | F35: Project Budget & Valuation Assumptions | L35: Municipal Spending Assumptions | AL35: 32 | AM35: Belvidere Town, Warren County
B36: Year | C36: % of Actual Gross Revenue | D36: % of Taxes | E36: Total PILOT Payments (Manual Entry) | F36: Net Rents/Gross Revenue | G36: Operating Expenses (not including PILOT) | H36: Debt Service | I36: Equity (In)/Out | J36: Property Assessed Value Pre-Improvement | K36: Property Assessed Value Post-Improvement | L36: Additional Benefit/Loss to Municipality | M36: Additional Municipal Costs Outside Core Budget | N36: % Growth in Municipal Budget | O36: Spending Area | P36: % of Spending Applied in Municipal Cost Calculation | AL36: =AL35+1 -> 33 | AM36: Bergenfield Borough, Bergen County
B37: 1 | C37: 0.0628 | D37: 0.9 | E37: 42635 | F37: 756406 | G37: -463121 | H37: -208998 | I37: -23968003 | J37: =62500+25800+25000+99200+134700+125000+62500+97700+13300+51800+24100 -> 721600 | K37: =13800000+62500+25800+25000+99200+134700+125000+62500+97700+13300+51800+24100 -> 14521600 | L37: 0 | M37: 0 | N37: -- | O37: General Government | P37: 0.1 | AL37: 34 | AM37: Berkeley Heights Township, Union County
B38: 2 | C38: 0.0628 | D38: 0.9 | E38: 43488 | F38: 771476 | G38: -475810 | H38: -208998 | J38: =J37*1.03 -> 743248 | K38: =K37*1.03 -> 14957248 | L38: 0 | M38: 0 | N38: 0.02 | O38: Land-Use Administration | P38: 0.1 | AL38: 35 | AM38: Berkeley Township, Ocean County
B39: 3 | C39: 0.0628 | D39: 0.9 | E39: 44357 | F39: 786849 | G39: -488868 | H39: -208998 | J39: =J38*1.03 -> 765545.44 | K39: =K38*1.03 -> 15405965.44 | L39: 0 | M39: 0 | N39: 0.02 | O39: Uniform Construction Code | P39: 0.5 | AL39: 36 | AM39: Berlin Borough, Camden County
B40: 4 | C40: 0.0628 | D40: 0.9 | E40: 45244 | F40: 802528 | G40: -502308 | H40: -208998 | J40: 788511.8032 | K40: 15868144.4 | L40: 0 | M40: 0 | N40: 0.02 | O40: Public Safety | P40: 0.5 | AL40: 37 | AM40: Berlin Township, Camden County
B41: 5 | C41: 0.0628 | D41: 0.9 | E41: 46148 | F41: 818520 | G41: -516143 | H41: -208998 | J41: 812167.1573 | K41: 16344188.74 | L41: 0 | M41: 0 | N41: 0.02 | O41: Public Works | P41: 0.1 | AL41: 38 | AM41: Bernards Township, Somerset County | AU41: 505756 | AV41: 519298 | AW41: 533225 | AX41: 547552 | AY41: 562291 | AZ41: 577453 | BA41: 593049 | BB41: 609097 | BC41: 625605 | BD41: 642589 | BE41: 660061 | BF41: 678035 | BG41: 696526 | BH41: 715550 | BI41: 735120 | BJ41: 755256 | BK41: 775972 | BL41: 797286 | BM41: 819215 | BN41: 841777 | BO41: 864991 | BP41: 888875 | BQ41: 913450 | BR41: 938735 | BS41: 964752 | BT41: 991520 | BU41: 1019063 | BV41: 1047403 | BW41: 1076563 | BX41: 1106568
B42: 6 | C42: 0.0628 | D42: 0.9 | E42: 47070 | F42: 834832 | G42: -530383 | H42: -208998 | J42: 836532.172 | K42: 16834514.4 | L42: 0 | M42: 0 | N42: 0.02 | O42: Health and Human Services | P42: 0.1 | AL42: 39 | AM42: Bernardsville Borough, Somerset County | AU42: =-AU41 -> -505756 | AV42: =-AV41 -> -519298 | AW42: -533225 | AX42: -547552 | AY42: -562291 | AZ42: -577453 | BA42: -593049 | BB42: -609097 | BC42: -625605 | BD42: -642589 | BE42: -660061 | BF42: -678035 | BG42: -696526 | BH42: -715550 | BI42: -735120 | BJ42: -755256 | BK42: -775972 | BL42: -797286 | BM42: -819215 | BN42: -841777 | BO42: -864991 | BP42: -888875 | BQ42: -913450 | BR42: -938735 | BS42: -964752 | BT42: -991520 | BU42: -1019063 | BV42: -1047403 | BW42: -1076563 | BX42: -1106568
B43: 7 | C43: 0.0628 | D43: 0.9 | E43: 48011 | F43: 851470 | G43: -545038 | H43: -208998 | J43: 861628.1372 | K43: 17339549.83 | L43: 0 | M43: 0 | N43: 0.02 | O43: Education (including Library) | P43: 0.5 | AL43: 40 | AM43: Bethlehem Township, Hunterdon County
B44: 8 | C44: 0.0628 | D44: 0.9 | E44: 48971 | F44: 868439 | G44: -560126 | H44: -208998 | J44: 887476.9813 | K44: 17859736.32 | L44: 0 | M44: 0 | N44: 0.02 | O44: Landfill / Solid Waste Disposal | P44: 0.5 | AL44: 41 | AM44: Beverly City, Burlington County | AU44: $42,635 $43,488 $44,357 $45,244 $46,148 $47,070 $48,011 $48,971 $49,950 $50,949 $51,967 $53,006 $54,066 $55,147 $56,249 $57,373 $58,520 $59,690 $60,883 $62,100 $63,342 $64,608 $65,900 $67,218 $68,562 $69,933 $71,331 $72,757 $74,212 $75,696
B45: 9 | C45: 0.0628 | D45: 0.9 | E45: 49950 | F45: 885748 | G45: -575655 | H45: -208998 | J45: 914101.2907 | K45: 18395528.41 | L45: 0 | M45: 0 | N45: 0.02 | O45: Statutory Expenditures | P45: 0.5 | AL45: 42 | AM45: Blairstown Township, Warren County
B46: 10 | C46: 0.0628 | D46: 0.8 | E46: 50949 | F46: 903402 | G46: -591640 | H46: -208998 | J46: 941524.3295 | K46: 18947394.27 | L46: 0 | M46: 0 | N46: 0.02 | O46: Court and Public Defender | P46: 0.5 | AL46: 43 | AM46: Bloomfield Township, Essex County | AU46: 42635 | AV46: 43488 | AW46: 44357 | AX46: 45244 | AY46: 46148 | AZ46: 47070 | BA46: 48011 | BB46: 48971 | BC46: 49950 | BD46: 50949 | BE46: 51967 | BF46: 53006 | BG46: 54066 | BH46: 55147 | BI46: 56249 | BJ46: 57373 | BK46: 58520 | BL46: 59690 | BM46: 60883 | BN46: 62100 | BO46: 63342 | BP46: 64608 | BQ46: 65900 | BR46: 67218 | BS46: 68562 | BT46: 69933 | BU46: 71331 | BV46: 72757 | BW46: 74212 | BX46: 75696
B47: 11 | C47: 0.0628 | D47: 0.8 | E47: 51967 | F47: 921409 | G47: -608094 | H47: -208998 | J47: 969770.0593 | K47: 19515816.09 | L47: 0 | M47: 0 | N47: 0.02 | AL47: 44 | AM47: Bloomingdale Borough, Passaic County
B48: 12 | C48: 0.0628 | D48: 0.8 | E48: 53006 | F48: 939775 | G48: -625029 | H48: -208998 | J48: 998863.1611 | K48: 20101290.58 | L48: 0 | M48: 0 | N48: 0.02 | AL48: 45 | AM48: Bloomsbury Borough, Hunterdon County
B49: =B48+1 -> 13 | C49: 0.0628 | D49: 0.8 | E49: 54066 | F49: 958507 | G49: -642460 | H49: -208998 | J49: 1028829.056 | K49: 20704329.29 | L49: 0 | M49: 0 | N49: 0.02 | AL49: 46 | AM49: Bogota Borough, Bergen County
B50: 14 | C50: 0.0628 | D50: 0.8 | E50: 55147 | F50: 977614 | G50: -660403 | H50: -208998 | J50: 1059693.928 | K50: 21325459.17 | L50: 0 | M50: 0 | N50: 0.02 | AL50: 47 | AM50: Boonton Town, Morris County
B51: 15 | C51: 0.0628 | D51: 0.8 | E51: 56249 | F51: 997102 | G51: -678871 | H51: -208998 | J51: 1091484.745 | K51: 21965222.95 | L51: 0 | M51: 0 | N51: 0.02 | AL51: 48 | AM51: Boonton Township, Morris County
B52: 16 | C52: 0.0628 | D52: 0.8 | E52: 57373 | F52: 1016981 | G52: -697883 | H52: -208998 | J52: 1124229.288 | K52: 22624179.64 | L52: 0 | M52: 0 | N52: 0.02 | AL52: 49 | AM52: Bordentown City, Burlington County
B53: 17 | C53: 0.0628 | D53: 0.8 | E53: 58520 | F53: 1037256 | G53: -717452 | H53: -208998 | J53: 1157956.166 | K53: 23302905.03 | L53: 0 | M53: 0 | N53: 0.02 | AL53: =AL52+1 -> 50 | AM53: Bordentown Township, Burlington County
B54: 18 | C54: 0.0628 | D54: 0.8 | E54: 59690 | F54: 1057935 | G54: -737596 | H54: -208998 | J54: 1192694.851 | K54: 24001992.18 | L54: 0 | M54: 0 | N54: 0.02 | AL54: 51 | AM54: Bound Brook Borough, Somerset County
B55: 19 | C55: 0.0628 | D55: 0.8 | E55: 60883 | F55: 1079027 | G55: -758332 | H55: -208998 | J55: 1228475.697 | K55: 24722051.94 | L55: 0 | M55: 0 | N55: 0.02 | AL55: 52 | AM55: Bradley Beach Borough, Monmouth County
B56: 20 | C56: 0.0628 | D56: 0.8 | E56: 62100 | F56: 1100540 | G56: -779677 | H56: -208998 | J56: 1265329.968 | K56: 25463713.5 | L56: 0 | M56: 0 | N56: 0.02 | AL56: 53 | AM56: Branchburg Township, Somerset County
B57: 21 | C57: 0.0628 | D57: 0.8 | E57: 63342 | F57: 1122483 | G57: -801649 | H57: -208998 | J57: 1303289.867 | K57: 26227624.91 | L57: 0 | M57: 0 | N57: 0.02 | AL57: 54 | AM57: Branchville Borough, Sussex County
B58: 22 | C58: 0.0628 | D58: 0.8 | E58: 64608 | F58: 1144865 | G58: -824267 | H58: -208998 | J58: 1342388.563 | K58: 27014453.65 | L58: 0 | M58: 0 | N58: 0.02 | AL58: 55 | AM58: Brick Township, Ocean County
B59: 23 | C59: 0.0628 | D59: 0.8 | E59: 65900 | F59: 1167693 | G59: -847550 | H59: -208998 | J59: 1382660.22 | K59: 27824887.26 | L59: 0 | M59: 0 | N59: 0.02 | AL59: 56 | AM59: Bridgeton City, Cumberland County
B60: 24 | C60: 0.0628 | D60: 0.8 | E60: 67218 | F60: 1190976 | G60: -871517 | H60: -208998 | J60: 1424140.026 | K60: 28659633.88 | L60: 0 | M60: 0 | N60: 0.02 | AL60: 57 | AM60: Bridgewater Township, Somerset County
B61: 25 | C61: 0.0628 | D61: 0.8 | E61: 68562 | F61: 1214725 | G61: -896190 | H61: -208998 | J61: 1466864.227 | K61: 29519422.9 | L61: 0 | M61: 0 | N61: 0.02 | AL61: 58 | AM61: Brielle Borough, Monmouth County
B62: 26 | C62: 0.0628 | D62: 0.8 | E62: 69933 | F62: 1238950 | G62: -921587 | H62: -208998 | J62: 1510870.154 | K62: 30405005.58 | L62: 0 | M62: 0 | N62: 0.02 | AL62: 59 | AM62: Brigantine City, Atlantic County
B63: 27 | C63: 0.0628 | D63: 0.8 | E63: 71331 | F63: 1263657 | G63: -947732 | H63: -208998 | J63: 1556196.259 | K63: 31317155.75 | L63: 0 | M63: 0 | N63: 0.02 | AL63: 60 | AM63: Brooklawn Borough, Camden County
B64: 28 | C64: 0.0628 | D64: 0.8 | E64: 72757 | F64: 1288857 | G64: -974646 | H64: -208998 | J64: 1602882.146 | K64: 32256670.42 | L64: 0 | M64: 0 | N64: 0.02 | AL64: 61 | AM64: Buena Borough, Atlantic County
B65: 29 | C65: 0.0628 | D65: 0.8 | E65: 74212 | F65: 1314560 | G65: -1002351 | H65: -208998 | J65: 1650968.611 | K65: 33224370.54 | L65: 0 | M65: 0 | N65: 0.02 | AL65: 62 | AM65: Buena Vista Township, Atlantic County
B66: 30 | C66: 0.0628 | D66: 0.8 | E66: 75696 | F66: 1340778 | G66: -1030872 | H66: 0 | I66: 56482169.12 | J66: 1700497.669 | K66: 34221101.65 | L66: 0 | M66: 0 | N66: 0.02 | AL66: 63 | AM66: Burlington City, Burlington County
AL67: =AL66+1 -> 64 | AM67: Burlington Township, Burlington County
AL68: 65 | AM68: Butler Borough, Morris County
AL69: 66 | AM69: Byram Township, Sussex County
AL70: 67 | AM70: Caldwell Borough, Essex County
AL71: 68 | AM71: Califon Borough, Hunterdon County
AL72: 69 | AM72: Camden City, Camden County
AL73: 70 | AM73: Cape May City, Cape May County
AL74: 71 | AM74: Cape May Point Borough, Cape May County
AL75: 72 | AM75: Carlstadt Borough, Bergen County
AL76: =AL75+1 -> 73 | AM76: Carneys Point Township, Salem County
AL77: 74 | AM77: Carteret Borough, Middlesex County
AL78: 75 | AM78: Cedar Grove Township, Essex County
AL79: 76 | AM79: Chatham Borough, Morris County
AL80: 77 | AM80: Chatham Township, Morris County
AL81: 78 | AM81: Cherry Hill Township, Camden County
AL82: 79 | AM82: Chesilhurst Borough, Camden County
AL83: 80 | AM83: Chester Borough, Morris County
AL84: 81 | AM84: Chester Township, Morris County
AL85: 82 | AM85: Chesterfield Township, Burlington County
AL86: 83 | AM86: Cinnaminson Township, Burlington County
AL87: 84 | AM87: City of Orange Township, Essex County
AL88: 85 | AM88: Clark Township, Union County
AL89: 86 | AM89: Clayton Borough, Gloucester County
AL90: 87 | AM90: Clementon Borough, Camden County
AL91: 88 | AM91: Cliffside Park Borough, Bergen County
AL92: 89 | AM92: Clifton City, Passaic County
AL93: 90 | AM93: Clinton Town, Hunterdon County
AL94: 91 | AM94: Clinton Township, Hunterdon County
AL95: 92 | AM95: Closter Borough, Bergen County
AL96: 93 | AM96: Collingswood Borough, Camden County
AL97: 94 | AM97: Colts Neck Township, Monmouth County
AL98: 95 | AM98: Commercial Township, Cumberland County
AL99: 96 | AM99: Corbin City, Atlantic County
AL100: 97 | AM100: Cranbury Township, Middlesex County
AL101: 98 | AM101: Cranford Township, Union County
AL102: 99 | AM102: Cresskill Borough, Bergen County
AL103: 100 | AM103: Deal Borough, Monmouth County
AL104: 101 | AM104: Deerfield Township, Cumberland County
AL105: 102 | AM105: Delanco Township, Burlington County
AL106: 103 | AM106: Delaware Township, Hunterdon County
AL107: 104 | AM107: Delran Township, Burlington County
AL108: 105 | AM108: Demarest Borough, Bergen County
AL109: 106 | AM109: Dennis Township, Cape May County
AL110: 107 | AM110: Denville Township, Morris County
AL111: 108 | AM111: Deptford Township, Gloucester County
AL112: 109 | AM112: Dover Town, Morris County
AL113: 110 | AM113: Downe Township, Cumberland County
AL114: 111 | AM114: Dumont Borough, Bergen County
AL115: 112 | AM115: Dunellen Borough, Middlesex County
AL116: 113 | AM116: Eagleswood Township, Ocean County
AL117: 114 | AM117: East Amwell Township, Hunterdon County
AL118: 115 | AM118: East Brunswick Township, Middlesex County
AL119: 116 | AM119: East Greenwich Township, Gloucester County
AL120: 117 | AM120: East Hanover Township, Morris County
AL121: 118 | AM121: East Newark Borough, Hudson County
AL122: 119 | AM122: East Orange City, Essex County
AL123: 120 | AM123: East Rutherford Borough, Bergen County
AL124: 121 | AM124: East Windsor Township, Mercer County
AL125: 122 | AM125: Eastampton Township, Burlington County
AL126: 123 | AM126: Eatontown Borough, Monmouth County
AL127: 124 | AM127: Edgewater Borough, Bergen County
AL128: 125 | AM128: Edgewater Park Township, Burlington County
AL129: 126 | AM129: Edison Township, Middlesex County
AL130: 127 | AM130: Egg Harbor City, Atlantic County
AL131: 128 | AM131: Egg Harbor Township, Atlantic County
AL132: 129 | AM132: Elizabeth City, Union County
AL133: 130 | AM133: Elk Township, Gloucester County
AL134: 131 | AM134: Elmer Borough, Salem County
AL135: 132 | AM135: Elmwood Park Borough, Bergen County
AL136: 133 | AM136: Elsinboro Township, Salem County
AL137: 134 | AM137: Emerson Borough, Bergen County
AL138: 135 | AM138: Englewood City, Bergen County
AL139: 136 | AM139: Englewood Cliffs Borough, Bergen County
AL140: =AL139+1 -> 137 | AM140: Englishtown Borough, Monmouth County
AL141: 138 | AM141: Essex Fells Borough, Essex County
AL142: 139 | AM142: Estell Manor City, Atlantic County
AL143: 140 | AM143: Evesham Township, Burlington County
AL144: 141 | AM144: Ewing Township, Mercer County
AL145: 142 | AM145: Fair Haven Borough, Monmouth County
AL146: 143 | AM146: Fair Lawn Borough, Bergen County
AL147: 144 | AM147: Fairfield Township, Cumberland County
AL148: 145 | AM148: Fairfield Township, Essex County
AL149: 146 | AM149: Fairview Borough, Bergen County
AL150: 147 | AM150: Fanwood Borough, Union County
AL151: 148 | AM151: Far Hills Borough, Somerset County
AL152: 149 | AM152: Farmingdale Borough, Monmouth County
AL153: 150 | AM153: Fieldsboro Borough, Burlington County
AL154: 151 | AM154: Flemington Borough, Hunterdon County
AL155: 152 | AM155: Florence Township, Burlington County
AL156: 153 | AM156: Florham Park Borough, Morris County
AL157: 154 | AM157: Folsom Borough, Atlantic County
AL158: 155 | AM158: Fort Lee Borough, Bergen County
AL159: 156 | AM159: Frankford Township, Sussex County
AL160: 157 | AM160: Franklin Borough, Sussex County
AL161: 158 | AM161: Franklin Lakes Borough, Bergen County
AL162: 159 | AM162: Franklin Township, Gloucester County
AL163: 160 | AM163: Franklin Township, Hunterdon County
AL164: 161 | AM164: Franklin Township, Somerset County
AL165: 162 | AM165: Franklin Township, Warren County
AL166: 163 | AM166: Fredon Township, Sussex County
AL167: 164 | AM167: Freehold Borough, Monmouth County
AL168: 165 | AM168: Freehold Township, Monmouth County
AL169: 166 | AM169: Frelinghuysen Township, Warren County
AL170: 167 | AM170: Frenchtown Borough, Hunterdon County
AL171: 168 | AM171: Galloway Township, Atlantic County
AL172: 169 | AM172: Garfield City, Bergen County
AL173: 170 | AM173: Garwood Borough, Union County
AL174: 171 | AM174: Gibbsboro Borough, Camden County
AL175: 172 | AM175: Glassboro Borough, Gloucester County
AL176: 173 | AM176: Glen Gardner Borough, Hunterdon County
AL177: 174 | AM177: Glen Ridge Borough, Essex County
AL178: 175 | AM178: Glen Rock Borough, Bergen County
AL179: 176 | AM179: Gloucester City, Camden County
AL180: 177 | AM180: Gloucester Township, Camden County
AL181: 178 | AM181: Green Brook Township, Somerset County
AL182: 179 | AM182: Green Township, Sussex County
AL183: 180 | AM183: Greenwich Township, Cumberland County
AL184: 181 | AM184: Greenwich Township, Gloucester County
AL185: 182 | AM185: Greenwich Township, Warren County
AL186: 183 | AM186: Guttenberg Town, Hudson County
AL187: 184 | AM187: Hackensack City, Bergen County
AL188: 185 | AM188: Hackettstown Town, Warren County
AL189: 186 | AM189: Haddon Heights Borough, Camden County
AL190: 187 | AM190: Haddon Township, Camden County
AL191: 188 | AM191: Haddonfield Borough, Camden County
AL192: 189 | AM192: Hainesport Township, Burlington County
AL193: 190 | AM193: Haledon Borough, Passaic County
AL194: 191 | AM194: Hamburg Borough, Sussex County
AL195: 192 | AM195: Hamilton Township, Atlantic County
AL196: 193 | AM196: Hamilton Township, Mercer County
AL197: 194 | AM197: Hammonton Town, Atlantic County
AL198: 195 | AM198: Hampton Borough, Hunterdon County
AL199: 196 | AM199: Hampton Township, Sussex County
AL200: 197 | AM200: Hanover Township, Morris County
AL201: 198 | AM201: Harding Township, Morris County
... 367 more rows

Sheet Model
A1: ='Inputs & Assumptions'!A1 -> Payment in Lieu of Taxes Financial Agreement Forecasting Model - Aberdeen Township, Monmouth County
A2: Projections
A3: Year | B3: Year Number | C3: Net Rents/Gross Revenue | D3: Operating Expenses | E3: Property Assessed Value Pre-Improvement | F3: Municipal Property Tax Revenue Pre-Improvement | G3: Property Assessed Value Post-Improvement | H3: Total Property Taxes without PILOT | I3: Municipal Property Taxes without PILOT | J3: PILOT Payments | K3: Municipal PILOT | L3: County PILOT | M3: School PILOT | N3: Project Net Operating Income before Debt Service | O3: Debt Service | P3: Project Cash Flow | Q3: Equity (In)/Out | R3: Net Cash Flow | S3: PILOT % of Annual Gross Revenue | T3: PILOT % of Conventional Taxes | U3: Additional Municipal Costs Outside Core Budget | V3: Additional Municipal Costs (Core Budget) | W3: Total Additional Municipal Costs | X3: Additional Net Benefit (Loss to Municipality) | Y3: Net Benefit (Loss) to Municipality
A4: ='Inputs & Assumptions'!G5 -> 2021 | B4: 1 | C4: ='Inputs & Assumptions'!F37 -> 756406 | D4: ='Inputs & Assumptions'!G37 -> -463121 | E4: ='Inputs & Assumptions'!J37 -> 721600 | F4: ='Inputs & Assumptions'!$P$4*(E4/100) -> 4042.473786 | G4: ='Inputs & Assumptions'!K37 -> 14521600 | H4: =(G4/100)*'Inputs & Assumptions'!$P$5 -> 368175.9159 | I4: =(G4/100)*'Inputs & Assumptions'!$P$4 -> 81351.42369 | J4: =IF(IF('Inputs & Assumptions'!$B$8=1,-C4*'Inputs & Assumptions'!$C37,IF('Inputs & Assumptions'!$B$8=2,-H4*'Inputs & Assumptions'!$D37,IF('Inputs & Assumptions'!$B$8=3,-'Inputs & Assumptions'!E37,"")))*$AA$10>0,0,IF('Inputs & Assumptions'!$B$8=1,-C4*'Inputs & Assumptions'!$C37,IF('Inputs & Assumptions'!$B$8=2,-H4*'Inputs & Assumptions'!$D37,IF('Inputs & Assumptions'!$B$8=3,-'Inputs & Assumptions'!E37,"")))*$AA$10) -> -42635 | K4: =VLOOKUP(Muni,Data!$E$4:$O$568,11,FALSE)*J4 -> -9420.54545 | L4: =J4*VLOOKUP(Muni,Data!$E$4:$Q$568,12,FALSE) -> -4687.201215 | M4: =J4*VLOOKUP(Muni,Data!$E$4:$Q$568,13,FALSE) -> -28527.25333 | N4: =J4+D4+C4 -> 250650 | O4: ='Inputs & Assumptions'!H37 -> -208998 | P4: =SUM(N4:O4) -> 41652 | Q4: ='Inputs & Assumptions'!I37 -> -23968003 | R4: =SUM(P4:Q4) -> -23926351 | S4: =IFERROR(-J4/C4,"--") -> 0.05636523243 | T4: =IFERROR(-J4/H4,"--") -> 0.1158006218 | U4: ='Inputs & Assumptions'!M37 -> 0 | V4: =IFERROR(IF(Type=1,'Inputs & Assumptions'!$P$6*'Inputs & Assumptions'!E16,IF(Type=2,'Inputs & Assumptions'!$P$6*'Inputs & Assumptions'!C20,IF(Type=3,'Inputs & Assumptions'!$P$6*'Inputs & Assumptions'!C33,"--"))),"No Data") -> 32836.69003 | W4: =IFERROR(V4+U4,"--") -> 32836.69003 | X4: ='Inputs & Assumptions'!L37 -> 0 | Y4: =IFERROR(-K4-F4-W4+X4,"--") -> -27458.61837 | AA4: Current IRR | AB4: =IRR(R4:R33,0.1) -> 0.03153672318
A5: =A4+1 -> 2022 | B5: 2 | C5: ='Inputs & Assumptions'!F38 -> 771476 | D5: ='Inputs & Assumptions'!G38 -> -475810 | E5: ='Inputs & Assumptions'!J38 -> 743248 | F5: ='Inputs & Assumptions'!$P$4*(E5/100) -> 4163.748 | G5: ='Inputs & Assumptions'!K38 -> 14957248 | H5: =(G5/100)*'Inputs & Assumptions'!$P$5 -> 379221.1933 | I5: =(G5/100)*'Inputs & Assumptions'!$P$4 -> 83791.9664 | J5: =IF(C5="","--",IF(IF('Inputs & Assumptions'!$B$8=1,-C5*'Inputs & Assumptions'!$C38,IF('Inputs & Assumptions'!$B$8=2,-H5*'Inputs & Assumptions'!$D38,IF('Inputs & Assumptions'!$B$8=3,-'Inputs & Assumptions'!E38,"")))*$AA$10>0,0,IF('Inputs & Assumptions'!$B$8=1,-C5*'Inputs & Assumptions'!$C38,IF('Inputs & Assumptions'!$B$8=2,-H5*'Inputs & Assumptions'!$D38,IF('Inputs & Assumptions'!$B$8=3,-'Inputs & Assumptions'!E38,"")))*$AA$10)) -> -43488 | K5: =VLOOKUP(Muni,Data!$E$4:$O$568,11,FALSE)*J5 -> -9609.022646 | L5: =J5*VLOOKUP(Muni,Data!$E$4:$Q$568,12,FALSE) -> -4780.978221 | M5: =J5*VLOOKUP(Muni,Data!$E$4:$Q$568,13,FALSE) -> -29097.99913 | N5: 252178 | O5: ='Inputs & Assumptions'!H38 -> -208998 | P5: =SUM(N5:O5) -> 43180 | Q5: ='Inputs & Assumptions'!I38 -> 0 | R5: =SUM(P5:Q5) -> 43180 | S5: =IFERROR(-J5/C5,"--") -> 0.05636986763 | T5: =IFERROR(-J5/H5,"--") -> 0.114677135 | U5: ='Inputs & Assumptions'!M38 -> 0 | V5: =IF(OR(C5>0),IFERROR(V4*((1+'Inputs & Assumptions'!N38)),"No Data"),"--") -> 33493.42383 | W5: =IFERROR(V5+U5,"--") -> 33493.42383 | X5: ='Inputs & Assumptions'!L38 -> 0 | Y5: =IFERROR(-K5-F5-W5+X5,"--") -> -28048.14919
A6: =A5+1 -> 2023 | B6: 3 | C6: ='Inputs & Assumptions'!F39 -> 786849 | D6: ='Inputs & Assumptions'!G39 -> -488868 | E6: ='Inputs & Assumptions'!J39 -> 765545.44 | F6: ='Inputs & Assumptions'!$P$4*(E6/100) -> 4288.66044 | G6: ='Inputs & Assumptions'!K39 -> 15405965.44 | H6: =(G6/100)*'Inputs & Assumptions'!$P$5 -> 390597.8291 | I6: =(G6/100)*'Inputs & Assumptions'!$P$4 -> 86305.72539 | J6: =IF(C6="","--",IF(IF('Inputs & Assumptions'!$B$8=1,-C6*'Inputs & Assumptions'!$C39,IF('Inputs & Assumptions'!$B$8=2,-H6*'Inputs & Assumptions'!$D39,IF('Inputs & Assumptions'!$B$8=3,-'Inputs & Assumptions'!E39,"")))*$AA$10>0,0,IF('Inputs & Assumptions'!$B$8=1,-C6*'Inputs & Assumptions'!$C39,IF('Inputs & Assumptions'!$B$8=2,-H6*'Inputs & Assumptions'!$D39,IF('Inputs & Assumptions'!$B$8=3,-'Inputs & Assumptions'!E39,"")))*$AA$10)) -> -44357 | K6: =VLOOKUP(Muni,Data!$E$4:$O$568,11,FALSE)*J6 -> -9801.035171 | L6: =J6*VLOOKUP(Muni,Data!$E$4:$Q$568,12,FALSE) -> -4876.514233 | M6: =J6*VLOOKUP(Muni,Data!$E$4:$Q$568,13,FALSE) -> -29679.4506 | N6: 253624 | O6: ='Inputs & Assumptions'!H39 -> -208998 | P6: =SUM(N6:O6) -> 44626 | Q6: ='Inputs & Assumptions'!I39 -> 0 | R6: 44626 | S6: 0.05637295085 | T6: 0.1135618191 | U6: ='Inputs & Assumptions'!M39 -> 0 | V6: =IF(OR(C6>0),IFERROR(V5*((1+'Inputs & Assumptions'!N39)),"No Data"),"--") -> 34163.29231 | W6: 34163.29231 | X6: ='Inputs & Assumptions'!L39 -> 0 | Y6: -28650.91758 | AA6: IRR Target | AB6: 0.03
A7: 2024 | B7: 4 | C7: ='Inputs & Assumptions'!F40 -> 802528 | D7: ='Inputs & Assumptions'!G40 -> -502308 | E7: ='Inputs & Assumptions'!J40 -> 788511.8032 | F7: ='Inputs & Assumptions'!$P$4*(E7/100) -> 4417.320253 | G7: ='Inputs & Assumptions'!K40 -> 15868144.4 | H7: =(G7/100)*'Inputs & Assumptions'!$P$5 -> 402315.764 | I7: =(G7/100)*'Inputs & Assumptions'!$P$4 -> 88894.89715 | J7: =IF(C7="","--",IF(IF('Inputs & Assumptions'!$B$8=1,-C7*'Inputs & Assumptions'!$C40,IF('Inputs & Assumptions'!$B$8=2,-H7*'Inputs & Assumptions'!$D40,IF('Inputs & Assumptions'!$B$8=3,-'Inputs & Assumptions'!E40,"")))*$AA$10>0,0,IF('Inputs & Assumptions'!$B$8=1,-C7*'Inputs & Assumptions'!$C40,IF('Inputs & Assumptions'!$B$8=2,-H7*'Inputs & Assumptions'!$D40,IF('Inputs & Assumptions'!$B$8=3,-'Inputs & Assumptions'!E40,"")))*$AA$10)) -> -45244 | K7: =VLOOKUP(Muni,Data!$E$4:$O$568,11,FALSE)*J7 -> -9997.02494 | L7: =J7*VLOOKUP(Muni,Data!$E$4:$Q$568,12,FALSE) -> -4974.029126 | M7: =J7*VLOOKUP(Muni,Data!$E$4:$Q$568,13,FALSE) -> -30272.94593 | N7: 254976 | O7: ='Inputs & Assumptions'!H40 -> -208998 | P7: 45978 | Q7: ='Inputs & Assumptions'!I40 -> 0 | R7: 45978 | S7: 0.05637684916 | T7: 0.1124589291 | U7: ='Inputs & Assumptions'!M40 -> 0 | V7: =IF(OR(C7>0),IFERROR(V6*((1+'Inputs & Assumptions'!N40)),"No Data"),"--") -> 34846.55815 | W7: 34846.55815 | X7: ='Inputs & Assumptions'!L40 -> 0 | Y7: -29266.85347
A8: 2025 | B8: 5 | C8: ='Inputs & Assumptions'!F41 -> 818520 | D8: ='Inputs & Assumptions'!G41 -> -516143 | E8: ='Inputs & Assumptions'!J41 -> 812167.1573 | F8: ='Inputs & Assumptions'!$P$4*(E8/100) -> 4549.83986 | G8: ='Inputs & Assumptions'!K41 -> 16344188.74 | H8: =(G8/100)*'Inputs & Assumptions'!$P$5 -> 414385.2369 | I8: =(G8/100)*'Inputs & Assumptions'!$P$4 -> 91561.74407 | J8: =IF(C8="","--",IF(IF('Inputs & Assumptions'!$B$8=1,-C8*'Inputs & Assumptions'!$C41,IF('Inputs & Assumptions'!$B$8=2,-H8*'Inputs & Assumptions'!$D41,IF('Inputs & Assumptions'!$B$8=3,-'Inputs & Assumptions'!E41,"")))*$AA$10>0,0,IF('Inputs & Assumptions'!$B$8=1,-C8*'Inputs & Assumptions'!$C41,IF('Inputs & Assumptions'!$B$8=2,-H8*'Inputs & Assumptions'!$D41,IF('Inputs & Assumptions'!$B$8=3,-'Inputs & Assumptions'!E41,"")))*$AA$10)) -> -46148 | K8: =VLOOKUP(Muni,Data!$E$4:$O$568,11,FALSE)*J8 -> -10196.771 | L8: =J8*VLOOKUP(Muni,Data!$E$4:$Q$568,12,FALSE) -> -5073.412963 | M8: =J8*VLOOKUP(Muni,Data!$E$4:$Q$568,13,FALSE) -> -30877.81604 | N8: 256229 | O8: ='Inputs & Assumptions'!H41 -> -208998 | P8: 47231 | Q8: ='Inputs & Assumptions'!I41 -> 0 | R8: =SUM(P8:Q8) -> 47231 | S8: 0.05637980746 | T8: 0.1113649713 | U8: ='Inputs & Assumptions'!M41 -> 0 | V8: =IF(OR(C8>0),IFERROR(V7*((1+'Inputs & Assumptions'!N41)),"No Data"),"--") -> 35543.48932 | W8: 35543.48932 | X8: ='Inputs & Assumptions'!L41 -> 0 | Y8: -29896.55818
A9: 2026 | B9: 6 | C9: ='Inputs & Assumptions'!F42 -> 834832 | D9: ='Inputs & Assumptions'!G42 -> -530383 | E9: ='Inputs & Assumptions'!J42 -> 836532.172 | F9: ='Inputs & Assumptions'!$P$4*(E9/100) -> 4686.335056 | G9: ='Inputs & Assumptions'!K42 -> 16834514.4 | H9: =(G9/100)*'Inputs & Assumptions'!$P$5 -> 426816.794 | I9: =(G9/100)*'Inputs & Assumptions'!$P$4 -> 94308.59639 | J9: =IF(C9="","--",IF(IF('Inputs & Assumptions'!$B$8=1,-C9*'Inputs & Assumptions'!$C42,IF('Inputs & Assumptions'!$B$8=2,-H9*'Inputs & Assumptions'!$D42,IF('Inputs & Assumptions'!$B$8=3,-'Inputs & Assumptions'!E42,"")))*$AA$10>0,0,IF('Inputs & Assumptions'!$B$8=1,-C9*'Inputs & Assumptions'!$C42,IF('Inputs & Assumptions'!$B$8=2,-H9*'Inputs & Assumptions'!$D42,IF('Inputs & Assumptions'!$B$8=3,-'Inputs & Assumptions'!E42,"")))*$AA$10)) -> -47070 | K9: =VLOOKUP(Muni,Data!$E$4:$O$568,11,FALSE)*J9 -> -10400.4943 | L9: =J9*VLOOKUP(Muni,Data!$E$4:$Q$568,12,FALSE) -> -5174.775682 | M9: =J9*VLOOKUP(Muni,Data!$E$4:$Q$568,13,FALSE) -> -31494.73002 | N9: 257379 | O9: ='Inputs & Assumptions'!H42 -> -208998 | P9: 48381 | Q9: ='Inputs & Assumptions'!I42 -> 0 | R9: 48381 | S9: 0.05638260153 | T9: 0.1102815087 | U9: ='Inputs & Assumptions'!M42 -> 0 | V9: =IF(OR(C9>0),IFERROR(V8*((1+'Inputs & Assumptions'!N42)),"No Data"),"--") -> 36254.3591 | W9: 36254.3591 | X9: ='Inputs & Assumptions'!L42 -> 0 | Y9: -30540.19986 | AA9: PILOT Adjustment Factor
A10: 2027 | B10: 7 | C10: ='Inputs & Assumptions'!F43 -> 851470 | D10: ='Inputs & Assumptions'!G43 -> -545038 | E10: ='Inputs & Assumptions'!J43 -> 861628.1372 | F10: ='Inputs & Assumptions'!$P$4*(E10/100) -> 4826.925108 | G10: ='Inputs & Assumptions'!K43 -> 17339549.83 | H10: =(G10/100)*'Inputs & Assumptions'!$P$5 -> 439621.2979 | I10: =(G10/100)*'Inputs & Assumptions'!$P$4 -> 97137.85428 | J10: =IF(C10="","--",IF(IF('Inputs & Assumptions'!$B$8=1,-C10*'Inputs & Assumptions'!$C43,IF('Inputs & Assumptions'!$B$8=2,-H10*'Inputs & Assumptions'!$D43,IF('Inputs & Assumptions'!$B$8=3,-'Inputs & Assumptions'!E43,"")))*$AA$10>0,0,IF('Inputs & Assumptions'!$B$8=1,-C10*'Inputs & Assumptions'!$C43,IF('Inputs & Assumptions'!$B$8=2,-H10*'Inputs & Assumptions'!$D43,IF('Inputs & Assumptions'!$B$8=3,-'Inputs & Assumptions'!E43,"")))*$AA$10)) -> -48011 | K10: =VLOOKUP(Muni,Data!$E$4:$O$568,11,FALSE)*J10 -> -10608.4158 | L10: =J10*VLOOKUP(Muni,Data!$E$4:$Q$568,12,FALSE) -> -5278.227221 | M10: =J10*VLOOKUP(Muni,Data!$E$4:$Q$568,13,FALSE) -> -32124.35698 | N10: 258421 | O10: ='Inputs & Assumptions'!H43 -> -208998 | P10: 49423 | Q10: ='Inputs & Assumptions'!I43 -> 0 | R10: 49423 | S10: 0.05638601477 | T10: 0.1092099046 | U10: ='Inputs & Assumptions'!M43 -> 0 | V10: =IF(OR(C10>0),IFERROR(V9*((1+'Inputs & Assumptions'!N43)),"No Data"),"--") -> 36979.44629 | W10: 36979.44629 | X10: ='Inputs & Assumptions'!L43 -> 0 | Y10: -31197.95559 | AA10: 1
A11: 2028 | B11: 8 | C11: ='Inputs & Assumptions'!F44 -> 868439 | D11: ='Inputs & Assumptions'!G44 -> -560126 | E11: ='Inputs & Assumptions'!J44 -> 887476.9813 | F11: ='Inputs & Assumptions'!$P$4*(E11/100) -> 4971.732861 | G11: ='Inputs & Assumptions'!K44 -> 17859736.32 | H11: =(G11/100)*'Inputs & Assumptions'!$P$5 -> 452809.9368 | I11: =(G11/100)*'Inputs & Assumptions'!$P$4 -> 100051.9899 | J11: =IF(C11="","--",IF(IF('Inputs & Assumptions'!$B$8=1,-C11*'Inputs & Assumptions'!$C44,IF('Inputs & Assumptions'!$B$8=2,-H11*'Inputs & Assumptions'!$D44,IF('Inputs & Assumptions'!$B$8=3,-'Inputs & Assumptions'!E44,"")))*$AA$10>0,0,IF('Inputs & Assumptions'!$B$8=1,-C11*'Inputs & Assumptions'!$C44,IF('Inputs & Assumptions'!$B$8=2,-H11*'Inputs & Assumptions'!$D44,IF('Inputs & Assumptions'!$B$8=3,-'Inputs & Assumptions'!E44,"")))*$AA$10)) -> -48971 | K11: =VLOOKUP(Muni,Data!$E$4:$O$568,11,FALSE)*J11 -> -10820.5355 | L11: =J11*VLOOKUP(Muni,Data!$E$4:$Q$568,12,FALSE) -> -5383.767579 | M11: =J11*VLOOKUP(Muni,Data!$E$4:$Q$568,13,FALSE) -> -32766.69692 | N11: 259342 | O11: ='Inputs & Assumptions'!H44 -> -208998 | P11: 50344 | Q11: ='Inputs & Assumptions'!I44 -> 0 | R11: 50344 | S11: 0.0563896831 | T11: 0.1081491284 | U11: ='Inputs & Assumptions'!M44 -> 0 | V11: =IF(OR(C11>0),IFERROR(V10*((1+'Inputs & Assumptions'!N44)),"No Data"),"--") -> 37719.03521 | W11: 37719.03521 | X11: ='Inputs & Assumptions'!L44 -> 0 | Y11: -31870.23257
A12: 2029 | B12: 9 | C12: ='Inputs & Assumptions'!F45 -> 885748 | D12: ='Inputs & Assumptions'!G45 -> -575655 | E12: ='Inputs & Assumptions'!J45 -> 914101.2907 | F12: ='Inputs & Assumptions'!$P$4*(E12/100) -> 5120.884847 | G12: ='Inputs & Assumptions'!K45 -> 18395528.41 | H12: =(G12/100)*'Inputs & Assumptions'!$P$5 -> 466394.2349 | I12: =(G12/100)*'Inputs & Assumptions'!$P$4 -> 103053.5496 | J12: =IF(C12="","--",IF(IF('Inputs & Assumptions'!$B$8=1,-C12*'Inputs & Assumptions'!$C45,IF('Inputs & Assumptions'!$B$8=2,-H12*'Inputs & Assumptions'!$D45,IF('Inputs & Assumptions'!$B$8=3,-'Inputs & Assumptions'!E45,"")))*$AA$10>0,0,IF('Inputs & Assumptions'!$B$8=1,-C12*'Inputs & Assumptions'!$C45,IF('Inputs & Assumptions'!$B$8=2,-H12*'Inputs & Assumptions'!$D45,IF('Inputs & Assumptions'!$B$8=3,-'Inputs & Assumptions'!E45,"")))*$AA$10)) -> -49950 | K12: =VLOOKUP(Muni,Data!$E$4:$O$568,11,FALSE)*J12 -> -11036.85341 | L12: =J12*VLOOKUP(Muni,Data!$E$4:$Q$568,12,FALSE) -> -5491.396756 | M12: =J12*VLOOKUP(Muni,Data!$E$4:$Q$568,13,FALSE) -> -33421.74983 | N12: =J12+D12+C12 -> 260143 | O12: ='Inputs & Assumptions'!H45 -> -208998 | P12: 51145 | Q12: ='Inputs & Assumptions'!I45 -> 0 | R12: 51145 | S12: 0.05639301472 | T12: 0.1070982363 | U12: ='Inputs & Assumptions'!M45 -> 0 | V12: =IF(OR(C12>0),IFERROR(V11*((1+'Inputs & Assumptions'!N45)),"No Data"),"--") -> 38473.41592 | W12: 38473.41592 | X12: ='Inputs & Assumptions'!L45 -> 0 | Y12: -32557.44735
A13: 2030 | B13: 10 | C13: ='Inputs & Assumptions'!F46 -> 903402 | D13: ='Inputs & Assumptions'!G46 -> -591640 | E13: ='Inputs & Assumptions'!J46 -> 941524.3295 | F13: ='Inputs & Assumptions'!$P$4*(E13/100) -> 5274.511392 | G13: ='Inputs & Assumptions'!K46 -> 18947394.27 | H13: =(G13/100)*'Inputs & Assumptions'!$P$5 -> 480386.0619 | I13: =(G13/100)*'Inputs & Assumptions'!$P$4 -> 106145.1561 | J13: =IF(C13="","--",IF(IF('Inputs & Assumptions'!$B$8=1,-C13*'Inputs & Assumptions'!$C46,IF('Inputs & Assumptions'!$B$8=2,-H13*'Inputs & Assumptions'!$D46,IF('Inputs & Assumptions'!$B$8=3,-'Inputs & Assumptions'!E46,"")))*$AA$10>0,0,IF('Inputs & Assumptions'!$B$8=1,-C13*'Inputs & Assumptions'!$C46,IF('Inputs & Assumptions'!$B$8=2,-H13*'Inputs & Assumptions'!$D46,IF('Inputs & Assumptions'!$B$8=3,-'Inputs & Assumptions'!E46,"")))*$AA$10)) -> -50949 | K13: =VLOOKUP(Muni,Data!$E$4:$O$568,11,FALSE)*J13 -> -11257.59048 | L13: =J13*VLOOKUP(Muni,Data!$E$4:$Q$568,12,FALSE) -> -5601.224692 | M13: =J13*VLOOKUP(Muni,Data!$E$4:$Q$568,13,FALSE) -> -34090.18483 | N13: 260813 | O13: ='Inputs & Assumptions'!H46 -> -208998 | P13: 51815 | Q13: ='Inputs & Assumptions'!I46 -> 0 | R13: 51815 | S13: 0.05639682002 | T13: 0.1060584476 | U13: ='Inputs & Assumptions'!M46 -> 0 | V13: =IF(OR(C13>0),IFERROR(V12*((1+'Inputs & Assumptions'!N46)),"No Data"),"--") -> 39242.88423 | W13: 39242.88423 | X13: ='Inputs & Assumptions'!L46 -> 0 | Y13: -33259.80515
A14: 2031 | B14: 11 | C14: ='Inputs & Assumptions'!F47 -> 921409 | D14: ='Inputs & Assumptions'!G47 -> -608094 | E14: ='Inputs & Assumptions'!J47 -> 969770.0593 | F14: ='Inputs & Assumptions'!$P$4*(E14/100) -> 5432.746734 | G14: ='Inputs & Assumptions'!K47 -> 19515816.09 | H14: =(G14/100)*'Inputs & Assumptions'!$P$5 -> 494797.6438 | I14: =(G14/100)*'Inputs & Assumptions'!$P$4 -> 109329.5108 | J14: =IF(C14="","--",IF(IF('Inputs & Assumptions'!$B$8=1,-C14*'Inputs & Assumptions'!$C47,IF('Inputs & Assumptions'!$B$8=2,-H14*'Inputs & Assumptions'!$D47,IF('Inputs & Assumptions'!$B$8=3,-'Inputs & Assumptions'!E47,"")))*$AA$10>0,0,IF('Inputs & Assumptions'!$B$8=1,-C14*'Inputs & Assumptions'!$C47,IF('Inputs & Assumptions'!$B$8=2,-H14*'Inputs & Assumptions'!$D47,IF('Inputs & Assumptions'!$B$8=3,-'Inputs & Assumptions'!E47,"")))*$AA$10)) -> -51967 | K14: =IFERROR(VLOOKUP(Muni,Data!$E$4:$O$568,11,FALSE)*J14,"--") -> -11482.52575 | L14: =IFERROR(J14*VLOOKUP(Muni,Data!$E$4:$Q$568,12,FALSE),"--") -> -5713.141446 | M14: =IFERROR(J14*VLOOKUP(Muni,Data!$E$4:$Q$568,13,FALSE),"--") -> -34771.3328 | N14: =IFERROR(J14+D14+C14,"--") -> 261348 | O14: ='Inputs & Assumptions'!H47 -> -208998 | P14: =IF(C14="","--",SUM(N14:O14)) -> 52350 | Q14: ='Inputs & Assumptions'!I47 -> 0 | R14: =IF(C14="","--",SUM(P14:Q14)) -> 52350 | S14: 0.05639949252 | T14: 0.1050267734 | U14: ='Inputs & Assumptions'!M47 -> 0 | V14: =IF(OR(C14>0),IFERROR(V13*((1+'Inputs & Assumptions'!N47)),"No Data"),"--") -> 40027.74192 | W14: 40027.74192 | X14: ='Inputs & Assumptions'!L47 -> 0 | Y14: -33977.9629
A15: 2032 | B15: 12 | C15: ='Inputs & Assumptions'!F48 -> 939775 | D15: ='Inputs & Assumptions'!G48 -> -625029 | E15: ='Inputs & Assumptions'!J48 -> 998863.1611 | F15: ='Inputs & Assumptions'!$P$4*(E15/100) -> 5595.729136 | G15: ='Inputs & Assumptions'!K48 -> 20101290.58 | H15: =(G15/100)*'Inputs & Assumptions'!$P$5 -> 509641.5731 | I15: =(G15/100)*'Inputs & Assumptions'!$P$4 -> 112609.3961 | J15: =IF(C15="","--",IF(IF('Inputs & Assumptions'!$B$8=1,-C15*'Inputs & Assumptions'!$C48,IF('Inputs & Assumptions'!$B$8=2,-H15*'Inputs & Assumptions'!$D48,IF('Inputs & Assumptions'!$B$8=3,-'Inputs & Assumptions'!E48,"")))*$AA$10>0,0,IF('Inputs & Assumptions'!$B$8=1,-C15*'Inputs & Assumptions'!$C48,IF('Inputs & Assumptions'!$B$8=2,-H15*'Inputs & Assumptions'!$D48,IF('Inputs & Assumptions'!$B$8=3,-'Inputs & Assumptions'!E48,"")))*$AA$10)) -> -53006 | K15: =IFERROR(VLOOKUP(Muni,Data!$E$4:$O$568,11,FALSE)*J15,"--") -> -11712.10114 | L15: =IFERROR(J15*VLOOKUP(Muni,Data!$E$4:$Q$568,12,FALSE),"--") -> -5827.366896 | M15: =IFERROR(J15*VLOOKUP(Muni,Data!$E$4:$Q$568,13,FALSE),"--") -> -35466.53196 | N15: =IFERROR(J15+D15+C15,"--") -> 261740 | O15: ='Inputs & Assumptions'!H48 -> -208998 | P15: =IF(C15="","--",SUM(N15:O15)) -> 52742 | Q15: ='Inputs & Assumptions'!I48 -> 0 | R15: =IF(C15="","--",SUM(P15:Q15)) -> 52742 | S15: 0.05640286239 | T15: 0.1040064288 | U15: ='Inputs & Assumptions'!M48 -> 0 | V15: =IF(OR(C15>0),IFERROR(V14*((1+'Inputs & Assumptions'!N48)),"No Data"),"--") -> 40828.29676 | W15: 40828.29676 | X15: ='Inputs & Assumptions'!L48 -> 0 | Y15: -34711.92475
A16: 2033 | B16: =B15+1 -> 13 | C16: ='Inputs & Assumptions'!F49 -> 958507 | D16: ='Inputs & Assumptions'!G49 -> -642460 | E16: ='Inputs & Assumptions'!J49 -> 1028829.056 | F16: ='Inputs & Assumptions'!$P$4*(E16/100) -> 5763.60101 | G16: ='Inputs & Assumptions'!K49 -> 20704329.29 | H16: =(G16/100)*'Inputs & Assumptions'!$P$5 -> 524930.8203 | I16: =(G16/100)*'Inputs & Assumptions'!$P$4 -> 115987.678 | J16: =IF(C16="","--",IF(IF('Inputs & Assumptions'!$B$8=1,-C16*'Inputs & Assumptions'!$C49,IF('Inputs & Assumptions'!$B$8=2,-H16*'Inputs & Assumptions'!$D49,IF('Inputs & Assumptions'!$B$8=3,-'Inputs & Assumptions'!E49,"")))*$AA$10>0,0,IF('Inputs & Assumptions'!$B$8=1,-C16*'Inputs & Assumptions'!$C49,IF('Inputs & Assumptions'!$B$8=2,-H16*'Inputs & Assumptions'!$D49,IF('Inputs & Assumptions'!$B$8=3,-'Inputs & Assumptions'!E49,"")))*$AA$10)) -> -54066 | K16: =IFERROR(VLOOKUP(Muni,Data!$E$4:$O$568,11,FALSE)*J16,"--") -> -11946.31665 | L16: =IFERROR(J16*VLOOKUP(Muni,Data!$E$4:$Q$568,12,FALSE),"--") -> -5943.901042 | M16: =IFERROR(J16*VLOOKUP(Muni,Data!$E$4:$Q$568,13,FALSE),"--") -> -36175.78231 | N16: 261981 | O16: ='Inputs & Assumptions'!H49 -> -208998 | P16: 52983 | Q16: ='Inputs & Assumptions'!I49 -> 0 | R16: 52983 | S16: 0.05640647382 | T16: 0.1029964291 | U16: ='Inputs & Assumptions'!M49 -> 0 | V16: =IF(OR(C16>0),IFERROR(V15*((1+'Inputs & Assumptions'!N49)),"No Data"),"--") -> 41644.86269 | W16: 41644.86269 | X16: ='Inputs & Assumptions'!L49 -> 0 | Y16: -35462.14705
A17: 2034 | B17: =B16+1 -> 14 | C17: ='Inputs & Assumptions'!F50 -> 977614 | D17: ='Inputs & Assumptions'!G50 -> -660403 | E17: ='Inputs & Assumptions'!J50 -> 1059693.928 | F17: ='Inputs & Assumptions'!$P$4*(E17/100) -> 5936.509041 | G17: ='Inputs & Assumptions'!K50 -> 21325459.17 | H17: =(G17/100)*'Inputs & Assumptions'!$P$5 -> 540678.7449 | I17: =(G17/100)*'Inputs & Assumptions'!$P$4 -> 119467.3083 | J17: =IF(C17="","--",IF(IF('Inputs & Assumptions'!$B$8=1,-C17*'Inputs & Assumptions'!$C50,IF('Inputs & Assumptions'!$B$8=2,-H17*'Inputs & Assumptions'!$D50,IF('Inputs & Assumptions'!$B$8=3,-'Inputs & Assumptions'!E50,"")))*$AA$10>0,0,IF('Inputs & Assumptions'!$B$8=1,-C17*'Inputs & Assumptions'!$C50,IF('Inputs & Assumptions'!$B$8=2,-H17*'Inputs & Assumptions'!$D50,IF('Inputs & Assumptions'!$B$8=3,-'Inputs & Assumptions'!E50,"")))*$AA$10)) -> -55147 | K17: =IFERROR(VLOOKUP(Muni,Data!$E$4:$O$568,11,FALSE)*J17,"--") -> -12185.17227 | L17: =IFERROR(J17*VLOOKUP(Muni,Data!$E$4:$Q$568,12,FALSE),"--") -> -6062.743882 | M17: =IFERROR(J17*VLOOKUP(Muni,Data!$E$4:$Q$568,13,FALSE),"--") -> -36899.08384 | N17: 262064 | O17: ='Inputs & Assumptions'!H50 -> -208998 | P17: 53066 | Q17: ='Inputs & Assumptions'!I50 -> 0 | R17: 53066 | S17: 0.05640978955 | T17: 0.1019958719 | U17: ='Inputs & Assumptions'!M50 -> 0 | V17: =IF(OR(C17>0),IFERROR(V16*((1+'Inputs & Assumptions'!N50)),"No Data"),"--") -> 42477.75995 | W17: 42477.75995 | X17: ='Inputs & Assumptions'!L50 -> 0 | Y17: -36229.09671
A18: 2035 | B18: 15 | C18: ='Inputs & Assumptions'!F51 -> 997102 | D18: ='Inputs & Assumptions'!G51 -> -678871 | E18: ='Inputs & Assumptions'!J51 -> 1091484.745 | F18: ='Inputs & Assumptions'!$P$4*(E18/100) -> 6114.604312 | G18: ='Inputs & Assumptions'!K51 -> 21965222.95 | H18: =(G18/100)*'Inputs & Assumptions'!$P$5 -> 556899.1073 | I18: =(G18/100)*'Inputs & Assumptions'!$P$4 -> 123051.3276 | J18: =IF(C18="","--",IF(IF('Inputs & Assumptions'!$B$8=1,-C18*'Inputs & Assumptions'!$C51,IF('Inputs & Assumptions'!$B$8=2,-H18*'Inputs & Assumptions'!$D51,IF('Inputs & Assumptions'!$B$8=3,-'Inputs & Assumptions'!E51,"")))*$AA$10>0,0,IF('Inputs & Assumptions'!$B$8=1,-C18*'Inputs & Assumptions'!$C51,IF('Inputs & Assumptions'!$B$8=2,-H18*'Inputs & Assumptions'!$D51,IF('Inputs & Assumptions'!$B$8=3,-'Inputs & Assumptions'!E51,"")))*$AA$10)) -> -56249 | K18: =IFERROR(VLOOKUP(Muni,Data!$E$4:$O$568,11,FALSE)*J18,"--") -> -12428.66802 | L18: =IFERROR(J18*VLOOKUP(Muni,Data!$E$4:$Q$568,12,FALSE),"--") -> -6183.895418 | M18: =IFERROR(J18*VLOOKUP(Muni,Data!$E$4:$Q$568,13,FALSE),"--") -> -37636.43656 | N18: 261982 | O18: ='Inputs & Assumptions'!H51 -> -208998 | P18: 52984 | Q18: ='Inputs & Assumptions'!I51 -> 0 | R18: 52984 | S18: 0.05641248338 | T18: 0.1010039328 | U18: ='Inputs & Assumptions'!M51 -> 0 | V18: =IF(OR(C18>0),IFERROR(V17*((1+'Inputs & Assumptions'!N51)),"No Data"),"--") -> 43327.31515 | W18: 43327.31515 | X18: ='Inputs & Assumptions'!L51 -> 0 | Y18: -37013.25144
A19: 2036 | B19: 16 | C19: ='Inputs & Assumptions'!F52 -> 1016981 | D19: ='Inputs & Assumptions'!G52 -> -697883 | E19: ='Inputs & Assumptions'!J52 -> 1124229.288 | F19: ='Inputs & Assumptions'!$P$4*(E19/100) -> 6298.042441 | G19: ='Inputs & Assumptions'!K52 -> 22624179.64 | H19: =(G19/100)*'Inputs & Assumptions'!$P$5 -> 573606.0805 | I19: =(G19/100)*'Inputs & Assumptions'!$P$4 -> 126742.8674 | J19: =IF(C19="","--",IF(IF('Inputs & Assumptions'!$B$8=1,-C19*'Inputs & Assumptions'!$C52,IF('Inputs & Assumptions'!$B$8=2,-H19*'Inputs & Assumptions'!$D52,IF('Inputs & Assumptions'!$B$8=3,-'Inputs & Assumptions'!E52,"")))*$AA$10>0,0,IF('Inputs & Assumptions'!$B$8=1,-C19*'Inputs & Assumptions'!$C52,IF('Inputs & Assumptions'!$B$8=2,-H19*'Inputs & Assumptions'!$D52,IF('Inputs & Assumptions'!$B$8=3,-'Inputs & Assumptions'!E52,"")))*$AA$10)) -> -57373 | K19: =IFERROR(VLOOKUP(Muni,Data!$E$4:$O$568,11,FALSE)*J19,"--") -> -12677.02484 | L19: =IFERROR(J19*VLOOKUP(Muni,Data!$E$4:$Q$568,12,FALSE),"--") -> -6307.465588 | M19: =IFERROR(J19*VLOOKUP(Muni,Data!$E$4:$Q$568,13,FALSE),"--") -> -38388.50957 | N19: 261725 | O19: ='Inputs & Assumptions'!H52 -> -208998 | P19: 52727 | Q19: ='Inputs & Assumptions'!I52 -> 0 | R19: 52727 | S19: 0.0564150166 | T19: 0.1000216036 | U19: ='Inputs & Assumptions'!M52 -> 0 | V19: =IF(OR(C19>0),IFERROR(V18*((1+'Inputs & Assumptions'!N52)),"No Data"),"--") -> 44193.86145 | W19: 44193.86145 | X19: ='Inputs & Assumptions'!L52 -> 0 | Y19: -37814.87905
A20: 2037 | B20: 17 | C20: ='Inputs & Assumptions'!F53 -> 1037256 | D20: ='Inputs & Assumptions'!G53 -> -717452 | E20: ='Inputs & Assumptions'!J53 -> 1157956.166 | F20: ='Inputs & Assumptions'!$P$4*(E20/100) -> 6486.983714 | G20: ='Inputs & Assumptions'!K53 -> 23302905.03 | H20: =(G20/100)*'Inputs & Assumptions'!$P$5 -> 590814.2629 | I20: =(G20/100)*'Inputs & Assumptions'!$P$4 -> 130545.1534 | J20: =IF(C20="","--",IF(IF('Inputs & Assumptions'!$B$8=1,-C20*'Inputs & Assumptions'!$C53,IF('Inputs & Assumptions'!$B$8=2,-H20*'Inputs & Assumptions'!$D53,IF('Inputs & Assumptions'!$B$8=3,-'Inputs & Assumptions'!E53,"")))*$AA$10>0,0,IF('Inputs & Assumptions'!$B$8=1,-C20*'Inputs & Assumptions'!$C53,IF('Inputs & Assumptions'!$B$8=2,-H20*'Inputs & Assumptions'!$D53,IF('Inputs & Assumptions'!$B$8=3,-'Inputs & Assumptions'!E53,"")))*$AA$10)) -> -58520 | K20: =IFERROR(VLOOKUP(Muni,Data!$E$4:$O$568,11,FALSE)*J20,"--") -> -12930.4637 | L20: =IFERROR(J20*VLOOKUP(Muni,Data!$E$4:$Q$568,12,FALSE),"--") -> -6433.564328 | M20: =IFERROR(J20*VLOOKUP(Muni,Data!$E$4:$Q$568,13,FALSE),"--") -> -39155.97197 | N20: 261284 | O20: ='Inputs & Assumptions'!H53 -> -208998 | P20: 52286 | Q20: ='Inputs & Assumptions'!I53 -> 0 | R20: 52286 | S20: 0.05641808772 | T20: 0.09904974148 | U20: ='Inputs & Assumptions'!M53 -> 0 | V20: =IF(OR(C20>0),IFERROR(V19*((1+'Inputs & Assumptions'!N53)),"No Data"),"--") -> 45077.73868 | W20: 45077.73868 | X20: ='Inputs & Assumptions'!L53 -> 0 | Y20: -38634.25869
A21: 2038 | B21: 18 | C21: ='Inputs & Assumptions'!F54 -> 1057935 | D21: ='Inputs & Assumptions'!G54 -> -737596 | E21: ='Inputs & Assumptions'!J54 -> 1192694.851 | F21: ='Inputs & Assumptions'!$P$4*(E21/100) -> 6681.593226 | G21: ='Inputs & Assumptions'!K54 -> 24001992.18 | H21: =(G21/100)*'Inputs & Assumptions'!$P$5 -> 608538.6908 | I21: =(G21/100)*'Inputs & Assumptions'!$P$4 -> 134461.508 | J21: =IF(C21="","--",IF(IF('Inputs & Assumptions'!$B$8=1,-C21*'Inputs & Assumptions'!$C54,IF('Inputs & Assumptions'!$B$8=2,-H21*'Inputs & Assumptions'!$D54,IF('Inputs & Assumptions'!$B$8=3,-'Inputs & Assumptions'!E54,"")))*$AA$10>0,0,IF('Inputs & Assumptions'!$B$8=1,-C21*'Inputs & Assumptions'!$C54,IF('Inputs & Assumptions'!$B$8=2,-H21*'Inputs & Assumptions'!$D54,IF('Inputs & Assumptions'!$B$8=3,-'Inputs & Assumptions'!E54,"")))*$AA$10)) -> -59690 | K21: =IFERROR(VLOOKUP(Muni,Data!$E$4:$O$568,11,FALSE)*J21,"--") -> -13188.98459 | L21: =IFERROR(J21*VLOOKUP(Muni,Data!$E$4:$Q$568,12,FALSE),"--") -> -6562.191639 | M21: =IFERROR(J21*VLOOKUP(Muni,Data!$E$4:$Q$568,13,FALSE),"--") -> -39938.82377 | N21: 260649 | O21: ='Inputs & Assumptions'!H54 -> -208998 | P21: 51651 | Q21: ='Inputs & Assumptions'!I54 -> 0 | R21: 51651 | S21: 0.05642123571 | T21: 0.09808743619 | U21: ='Inputs & Assumptions'!M54 -> 0 | V21: =IF(OR(C21>0),IFERROR(V20*((1+'Inputs & Assumptions'!N54)),"No Data"),"--") -> 45979.29345 | W21: 45979.29345 | X21: ='Inputs & Assumptions'!L54 -> 0 | Y21: -39471.90209
A22: 2039 | B22: 19 | C22: ='Inputs & Assumptions'!F55 -> 1079027 | D22: ='Inputs & Assumptions'!G55 -> -758332 | E22: ='Inputs & Assumptions'!J55 -> 1228475.697 | F22: ='Inputs & Assumptions'!$P$4*(E22/100) -> 6882.041023 | G22: ='Inputs & Assumptions'!K55 -> 24722051.94 | H22: =(G22/100)*'Inputs & Assumptions'!$P$5 -> 626794.8515 | I22: =(G22/100)*'Inputs & Assumptions'!$P$4 -> 138495.3533 | J22: =IF(C22="","--",IF(IF('Inputs & Assumptions'!$B$8=1,-C22*'Inputs & Assumptions'!$C55,IF('Inputs & Assumptions'!$B$8=2,-H22*'Inputs & Assumptions'!$D55,IF('Inputs & Assumptions'!$B$8=3,-'Inputs & Assumptions'!E55,"")))*$AA$10>0,0,IF('Inputs & Assumptions'!$B$8=1,-C22*'Inputs & Assumptions'!$C55,IF('Inputs & Assumptions'!$B$8=2,-H22*'Inputs & Assumptions'!$D55,IF('Inputs & Assumptions'!$B$8=3,-'Inputs & Assumptions'!E55,"")))*$AA$10)) -> -60883 | K22: =IFERROR(VLOOKUP(Muni,Data!$E$4:$O$568,11,FALSE)*J22,"--") -> -13452.58751 | L22: =IFERROR(J22*VLOOKUP(Muni,Data!$E$4:$Q$568,12,FALSE),"--") -> -6693.347522 | M22: =IFERROR(J22*VLOOKUP(Muni,Data!$E$4:$Q$568,13,FALSE),"--") -> -40737.06496 | N22: 259812 | O22: ='Inputs & Assumptions'!H55 -> -208998 | P22: 50814 | Q22: ='Inputs & Assumptions'!I55 -> 0 | R22: 50814 | S22: 0.05642398198 | T22: 0.09713385465 | U22: ='Inputs & Assumptions'!M55 -> 0 | V22: =IF(OR(C22>0),IFERROR(V21*((1+'Inputs & Assumptions'!N55)),"No Data"),"--") -> 46898.87932 | W22: 46898.87932 | X22: ='Inputs & Assumptions'!L55 -> 0 | Y22: -40328.33283
A23: 2040 | B23: 20 | C23: ='Inputs & Assumptions'!F56 -> 1100540 | D23: ='Inputs & Assumptions'!G56 -> -779677 | E23: ='Inputs & Assumptions'!J56 -> 1265329.968 | F23: ='Inputs & Assumptions'!$P$4*(E23/100) -> 7088.502253 | G23: ='Inputs & Assumptions'!K56 -> 25463713.5 | H23: =(G23/100)*'Inputs & Assumptions'!$P$5 -> 645598.6971 | I23: =(G23/100)*'Inputs & Assumptions'!$P$4 -> 142650.2139 | J23: =IF(C23="","--",IF(IF('Inputs & Assumptions'!$B$8=1,-C23*'Inputs & Assumptions'!$C56,IF('Inputs & Assumptions'!$B$8=2,-H23*'Inputs & Assumptions'!$D56,IF('Inputs & Assumptions'!$B$8=3,-'Inputs & Assumptions'!E56,"")))*$AA$10>0,0,IF('Inputs & Assumptions'!$B$8=1,-C23*'Inputs & Assumptions'!$C56,IF('Inputs & Assumptions'!$B$8=2,-H23*'Inputs & Assumptions'!$D56,IF('Inputs & Assumptions'!$B$8=3,-'Inputs & Assumptions'!E56,"")))*$AA$10)) -> -62100 | K23: =IFERROR(VLOOKUP(Muni,Data!$E$4:$O$568,11,FALSE)*J23,"--") -> -13721.49343 | L23: =IFERROR(J23*VLOOKUP(Muni,Data!$E$4:$Q$568,12,FALSE),"--") -> -6827.141913 | M23: =IFERROR(J23*VLOOKUP(Muni,Data!$E$4:$Q$568,13,FALSE),"--") -> -41551.36466 | N23: 258763 | O23: ='Inputs & Assumptions'!H56 -> -208998 | P23: 49765 | Q23: ='Inputs & Assumptions'!I56 -> 0 | R23: 49765 | S23: 0.056426845 | T23: 0.09618978521 | U23: ='Inputs & Assumptions'!M56 -> 0 | V23: =IF(OR(C23>0),IFERROR(V22*((1+'Inputs & Assumptions'!N56)),"No Data"),"--") -> 47836.85691 | W23: 47836.85691 | X23: ='Inputs & Assumptions'!L56 -> 0 | Y23: -41203.86573
A24: 2041 | B24: 21 | C24: ='Inputs & Assumptions'!F57 -> 1122483 | D24: ='Inputs & Assumptions'!G57 -> -801649 | E24: ='Inputs & Assumptions'!J57 -> 1303289.867 | F24: ='Inputs & Assumptions'!$P$4*(E24/100) -> 7301.157321 | G24: ='Inputs & Assumptions'!K57 -> 26227624.91 | H24: =(G24/100)*'Inputs & Assumptions'!$P$5 -> 664966.658 | I24: =(G24/100)*'Inputs & Assumptions'!$P$4 -> 146929.7203 | J24: =IF(C24="","--",IF(IF('Inputs & Assumptions'!$B$8=1,-C24*'Inputs & Assumptions'!$C57,IF('Inputs & Assumptions'!$B$8=2,-H24*'Inputs & Assumptions'!$D57,IF('Inputs & Assumptions'!$B$8=3,-'Inputs & Assumptions'!E57,"")))*$AA$10>0,0,IF('Inputs & Assumptions'!$B$8=1,-C24*'Inputs & Assumptions'!$C57,IF('Inputs & Assumptions'!$B$8=2,-H24*'Inputs & Assumptions'!$D57,IF('Inputs & Assumptions'!$B$8=3,-'Inputs & Assumptions'!E57,"")))*$AA$10)) -> -63342 | K24: =IFERROR(VLOOKUP(Muni,Data!$E$4:$O$568,11,FALSE)*J24,"--") -> -13995.9233 | L24: =IFERROR(J24*VLOOKUP(Muni,Data!$E$4:$Q$568,12,FALSE),"--") -> -6963.684752 | M24: =IFERROR(J24*VLOOKUP(Muni,Data!$E$4:$Q$568,13,FALSE),"--") -> -42382.39195 | N24: 257492 | O24: ='Inputs & Assumptions'!H57 -> -208998 | P24: 48494 | Q24: ='Inputs & Assumptions'!I57 -> 0 | R24: 48494 | S24: 0.05643025329 | T24: 0.0952559038 | U24: ='Inputs & Assumptions'!M57 -> 0 | V24: =IF(OR(C24>0),IFERROR(V23*((1+'Inputs & Assumptions'!N57)),"No Data"),"--") -> 48793.59404 | W24: 48793.59404 | X24: ='Inputs & Assumptions'!L57 -> 0 | Y24: -42098.82807
A25: 2042 | B25: 22 | C25: ='Inputs & Assumptions'!F58 -> 1144865 | D25: ='Inputs & Assumptions'!G58 -> -824267 | E25: ='Inputs & Assumptions'!J58 -> 1342388.563 | F25: ='Inputs & Assumptions'!$P$4*(E25/100) -> 7520.192041 | G25: ='Inputs & Assumptions'!K58 -> 27014453.65 | H25: =(G25/100)*'Inputs & Assumptions'!$P$5 -> 684915.6577 | I25: =(G25/100)*'Inputs & Assumptions'!$P$4 -> 151337.6119 | J25: =IF(C25="","--",IF(IF('Inputs & Assumptions'!$B$8=1,-C25*'Inputs & Assumptions'!$C58,IF('Inputs & Assumptions'!$B$8=2,-H25*'Inputs & Assumptions'!$D58,IF('Inputs & Assumptions'!$B$8=3,-'Inputs & Assumptions'!E58,"")))*$AA$10>0,0,IF('Inputs & Assumptions'!$B$8=1,-C25*'Inputs & Assumptions'!$C58,IF('Inputs & Assumptions'!$B$8=2,-H25*'Inputs & Assumptions'!$D58,IF('Inputs & Assumptions'!$B$8=3,-'Inputs & Assumptions'!E58,"")))*$AA$10)) -> -64608 | K25: =IFERROR(VLOOKUP(Muni,Data!$E$4:$O$568,11,FALSE)*J25,"--") -> -14275.65616 | L25: =IFERROR(J25*VLOOKUP(Muni,Data!$E$4:$Q$568,12,FALSE),"--") -> -7102.866099 | M25: =IFERROR(J25*VLOOKUP(Muni,Data!$E$4:$Q$568,13,FALSE),"--") -> -43229.47774 | N25: 255990 | O25: ='Inputs & Assumptions'!H58 -> -208998 | P25: 46992 | Q25: ='Inputs & Assumptions'!I58 -> 0 | R25: 46992 | S25: 0.05643285453 | T25: 0.09432986277 | U25: ='Inputs & Assumptions'!M58 -> 0 | V25: =IF(OR(C25>0),IFERROR(V24*((1+'Inputs & Assumptions'!N58)),"No Data"),"--") -> 49769.46593 | W25: 49769.46593 | X25: ='Inputs & Assumptions'!L58 -> 0 | Y25: -43014.0018
A26: 2043 | B26: 23 | C26: ='Inputs & Assumptions'!F59 -> 1167693 | D26: ='Inputs & Assumptions'!G59 -> -847550 | E26: ='Inputs & Assumptions'!J59 -> 1382660.22 | F26: ='Inputs & Assumptions'!$P$4*(E26/100) -> 7745.797802 | G26: ='Inputs & Assumptions'!K59 -> 27824887.26 | H26: =(G26/100)*'Inputs & Assumptions'!$P$5 -> 705463.1274 | I26: =(G26/100)*'Inputs & Assumptions'!$P$4 -> 155877.7402 | J26: =IF(C26="","--",IF(IF('Inputs & Assumptions'!$B$8=1,-C26*'Inputs & Assumptions'!$C59,IF('Inputs & Assumptions'!$B$8=2,-H26*'Inputs & Assumptions'!$D59,IF('Inputs & Assumptions'!$B$8=3,-'Inputs & Assumptions'!E59,"")))*$AA$10>0,0,IF('Inputs & Assumptions'!$B$8=1,-C26*'Inputs & Assumptions'!$C59,IF('Inputs & Assumptions'!$B$8=2,-H26*'Inputs & Assumptions'!$D59,IF('Inputs & Assumptions'!$B$8=3,-'Inputs & Assumptions'!E59,"")))*$AA$10)) -> -65900 | K26: =IFERROR(VLOOKUP(Muni,Data!$E$4:$O$568,11,FALSE)*J26,"--") -> -14561.13393 | L26: =IFERROR(J26*VLOOKUP(Muni,Data!$E$4:$Q$568,12,FALSE),"--") -> -7244.905831 | M26: =IFERROR(J26*VLOOKUP(Muni,Data!$E$4:$Q$568,13,FALSE),"--") -> -44093.96024 | N26: 254243 | O26: ='Inputs & Assumptions'!H59 -> -208998 | P26: 45245 | Q26: ='Inputs & Assumptions'!I59 -> 0 | R26: 45245 | S26: 0.05643606667 | T26: 0.09341381206 | U26: ='Inputs & Assumptions'!M59 -> 0 | V26: =IF(OR(C26>0),IFERROR(V25*((1+'Inputs & Assumptions'!N59)),"No Data"),"--") -> 50764.85524 | W26: 50764.85524 | X26: ='Inputs & Assumptions'!L59 -> 0 | Y26: -43949.51911
A27: 2044 | B27: 24 | C27: ='Inputs & Assumptions'!F60 -> 1190976 | D27: ='Inputs & Assumptions'!G60 -> -871517 | E27: ='Inputs & Assumptions'!J60 -> 1424140.026 | F27: ='Inputs & Assumptions'!$P$4*(E27/100) -> 7978.171736 | G27: ='Inputs & Assumptions'!K60 -> 28659633.88 | H27: =(G27/100)*'Inputs & Assumptions'!$P$5 -> 726627.0213 | I27: =(G27/100)*'Inputs & Assumptions'!$P$4 -> 160554.0724 | J27: =IF(C27="","--",IF(IF('Inputs & Assumptions'!$B$8=1,-C27*'Inputs & Assumptions'!$C60,IF('Inputs & Assumptions'!$B$8=2,-H27*'Inputs & Assumptions'!$D60,IF('Inputs & Assumptions'!$B$8=3,-'Inputs & Assumptions'!E60,"")))*$AA$10>0,0,IF('Inputs & Assumptions'!$B$8=1,-C27*'Inputs & Assumptions'!$C60,IF('Inputs & Assumptions'!$B$8=2,-H27*'Inputs & Assumptions'!$D60,IF('Inputs & Assumptions'!$B$8=3,-'Inputs & Assumptions'!E60,"")))*$AA$10)) -> -67218 | K27: =IFERROR(VLOOKUP(Muni,Data!$E$4:$O$568,11,FALSE)*J27,"--") -> -14852.35661 | L27: =IFERROR(J27*VLOOKUP(Muni,Data!$E$4:$Q$568,12,FALSE),"--") -> -7389.803947 | M27: =IFERROR(J27*VLOOKUP(Muni,Data!$E$4:$Q$568,13,FALSE),"--") -> -44975.83944 | N27: 252241 | O27: ='Inputs & Assumptions'!H60 -> -208998 | P27: 43243 | Q27: ='Inputs & Assumptions'!I60 -> 0 | R27: 43243 | S27: 0.05643942447 | T27: 0.09250688184 | U27: ='Inputs & Assumptions'!M60 -> 0 | V27: =IF(OR(C27>0),IFERROR(V26*((1+'Inputs & Assumptions'!N60)),"No Data"),"--") -> 51780.15235 | W27: 51780.15235 | X27: ='Inputs & Assumptions'!L60 -> 0 | Y27: -44905.96747
A28: 2045 | B28: 25 | C28: ='Inputs & Assumptions'!F61 -> 1214725 | D28: ='Inputs & Assumptions'!G61 -> -896190 | E28: ='Inputs & Assumptions'!J61 -> 1466864.227 | F28: ='Inputs & Assumptions'!$P$4*(E28/100) -> 8217.516888 | G28: ='Inputs & Assumptions'!K61 -> 29519422.9 | H28: =(G28/100)*'Inputs & Assumptions'!$P$5 -> 748425.8319 | I28: =(G28/100)*'Inputs & Assumptions'!$P$4 -> 165370.6946 | J28: =IF(C28="","--",IF(IF('Inputs & Assumptions'!$B$8=1,-C28*'Inputs & Assumptions'!$C61,IF('Inputs & Assumptions'!$B$8=2,-H28*'Inputs & Assumptions'!$D61,IF('Inputs & Assumptions'!$B$8=3,-'Inputs & Assumptions'!E61,"")))*$AA$10>0,0,IF('Inputs & Assumptions'!$B$8=1,-C28*'Inputs & Assumptions'!$C61,IF('Inputs & Assumptions'!$B$8=2,-H28*'Inputs & Assumptions'!$D61,IF('Inputs & Assumptions'!$B$8=3,-'Inputs & Assumptions'!E61,"")))*$AA$10)) -> -68562 | K28: =IFERROR(VLOOKUP(Muni,Data!$E$4:$O$568,11,FALSE)*J28,"--") -> -15149.3242 | L28: =IFERROR(J28*VLOOKUP(Muni,Data!$E$4:$Q$568,12,FALSE),"--") -> -7537.560449 | M28: =IFERROR(J28*VLOOKUP(Muni,Data!$E$4:$Q$568,13,FALSE),"--") -> -45875.11535 | N28: 249973 | O28: ='Inputs & Assumptions'!H61 -> -208998 | P28: 40975 | Q28: ='Inputs & Assumptions'!I61 -> 0 | R28: 40975 | S28: 0.05644240466 | T28: 0.09160827577 | U28: ='Inputs & Assumptions'!M61 -> 0 | V28: =IF(OR(C28>0),IFERROR(V27*((1+'Inputs & Assumptions'!N61)),"No Data"),"--") -> 52815.7554 | W28: 52815.7554 | X28: ='Inputs & Assumptions'!L61 -> 0 | Y28: -45883.94809
A29: 2046 | B29: 26 | C29: ='Inputs & Assumptions'!F62 -> 1238950 | D29: ='Inputs & Assumptions'!G62 -> -921587 | E29: ='Inputs & Assumptions'!J62 -> 1510870.154 | F29: ='Inputs & Assumptions'!$P$4*(E29/100) -> 8464.042395 | G29: ='Inputs & Assumptions'!K62 -> 30405005.58 | H29: =(G29/100)*'Inputs & Assumptions'!$P$5 -> 770878.6069 | I29: =(G29/100)*'Inputs & Assumptions'!$P$4 -> 170331.8155 | J29: =IF(C29="","--",IF(IF('Inputs & Assumptions'!$B$8=1,-C29*'Inputs & Assumptions'!$C62,IF('Inputs & Assumptions'!$B$8=2,-H29*'Inputs & Assumptions'!$D62,IF('Inputs & Assumptions'!$B$8=3,-'Inputs & Assumptions'!E62,"")))*$AA$10>0,0,IF('Inputs & Assumptions'!$B$8=1,-C29*'Inputs & Assumptions'!$C62,IF('Inputs & Assumptions'!$B$8=2,-H29*'Inputs & Assumptions'!$D62,IF('Inputs & Assumptions'!$B$8=3,-'Inputs & Assumptions'!E62,"")))*$AA$10)) -> -69933 | K29: =IFERROR(VLOOKUP(Muni,Data!$E$4:$O$568,11,FALSE)*J29,"--") -> -15452.25765 | L29: =IFERROR(J29*VLOOKUP(Muni,Data!$E$4:$Q$568,12,FALSE),"--") -> -7688.285273 | M29: =IFERROR(J29*VLOOKUP(Muni,Data!$E$4:$Q$568,13,FALSE),"--") -> -46792.45708 | N29: 247430 | O29: ='Inputs & Assumptions'!H62 -> -208998 | P29: 38432 | Q29: ='Inputs & Assumptions'!I62 -> 0 | R29: 38432 | S29: 0.05644537713 | T29: 0.0907185637 | U29: ='Inputs & Assumptions'!M62 -> 0 | V29: =IF(OR(C29>0),IFERROR(V28*((1+'Inputs & Assumptions'!N62)),"No Data"),"--") -> 53872.0705 | W29: 53872.0705 | X29: ='Inputs & Assumptions'!L62 -> 0 | Y29: -46883.85525
A30: 2047 | B30: 27 | C30: ='Inputs & Assumptions'!F63 -> 1263657 | D30: ='Inputs & Assumptions'!G63 -> -947732 | E30: ='Inputs & Assumptions'!J63 -> 1556196.259 | F30: ='Inputs & Assumptions'!$P$4*(E30/100) -> 8717.963666 | G30: ='Inputs & Assumptions'!K63 -> 31317155.75 | H30: =(G30/100)*'Inputs & Assumptions'!$P$5 -> 794004.9651 | I30: =(G30/100)*'Inputs & Assumptions'!$P$4 -> 175441.7699 | J30: =IF(C30="","--",IF(IF('Inputs & Assumptions'!$B$8=1,-C30*'Inputs & Assumptions'!$C63,IF('Inputs & Assumptions'!$B$8=2,-H30*'Inputs & Assumptions'!$D63,IF('Inputs & Assumptions'!$B$8=3,-'Inputs & Assumptions'!E63,"")))*$AA$10>0,0,IF('Inputs & Assumptions'!$B$8=1,-C30*'Inputs & Assumptions'!$C63,IF('Inputs & Assumptions'!$B$8=2,-H30*'Inputs & Assumptions'!$D63,IF('Inputs & Assumptions'!$B$8=3,-'Inputs & Assumptions'!E63,"")))*$AA$10)) -> -71331 | K30: =IFERROR(VLOOKUP(Muni,Data!$E$4:$O$568,11,FALSE)*J30,"--") -> -15761.15697 | L30: =IFERROR(J30*VLOOKUP(Muni,Data!$E$4:$Q$568,12,FALSE),"--") -> -7841.978419 | M30: =IFERROR(J30*VLOOKUP(Muni,Data!$E$4:$Q$568,13,FALSE),"--") -> -47727.86461 | N30: 244594 | O30: ='Inputs & Assumptions'!H63 -> -208998 | P30: 35596 | Q30: ='Inputs & Assumptions'!I63 -> 0 | R30: 35596 | S30: 0.05644807096 | T30: 0.08983696972 | U30: ='Inputs & Assumptions'!M63 -> 0 | V30: =IF(OR(C30>0),IFERROR(V29*((1+'Inputs & Assumptions'!N63)),"No Data"),"--") -> 54949.51191 | W30: 54949.51191 | X30: ='Inputs & Assumptions'!L63 -> 0 | Y30: -47906.31861
A31: 2048 | B31: 28 | C31: ='Inputs & Assumptions'!F64 -> 1288857 | D31: ='Inputs & Assumptions'!G64 -> -974646 | E31: ='Inputs & Assumptions'!J64 -> 1602882.146 | F31: ='Inputs & Assumptions'!$P$4*(E31/100) -> 8979.502576 | G31: ='Inputs & Assumptions'!K64 -> 32256670.42 | H31: =(G31/100)*'Inputs & Assumptions'!$P$5 -> 817825.114 | I31: =(G31/100)*'Inputs & Assumptions'!$P$4 -> 180705.023 | J31: =IF(C31="","--",IF(IF('Inputs & Assumptions'!$B$8=1,-C31*'Inputs & Assumptions'!$C64,IF('Inputs & Assumptions'!$B$8=2,-H31*'Inputs & Assumptions'!$D64,IF('Inputs & Assumptions'!$B$8=3,-'Inputs & Assumptions'!E64,"")))*$AA$10>0,0,IF('Inputs & Assumptions'!$B$8=1,-C31*'Inputs & Assumptions'!$C64,IF('Inputs & Assumptions'!$B$8=2,-H31*'Inputs & Assumptions'!$D64,IF('Inputs & Assumptions'!$B$8=3,-'Inputs & Assumptions'!E64,"")))*$AA$10)) -> -72757 | K31: =IFERROR(VLOOKUP(Muni,Data!$E$4:$O$568,11,FALSE)*J31,"--") -> -16076.24312 | L31: =IFERROR(J31*VLOOKUP(Muni,Data!$E$4:$Q$568,12,FALSE),"--") -> -7998.749826 | M31: =IFERROR(J31*VLOOKUP(Muni,Data!$E$4:$Q$568,13,FALSE),"--") -> -48682.00706 | N31: 241454 | O31: ='Inputs & Assumptions'!H64 -> -208998 | P31: 32456 | Q31: ='Inputs & Assumptions'!I64 -> 0 | R31: 32456 | S31: 0.05645079322 | T31: 0.08896400802 | U31: ='Inputs & Assumptions'!M64 -> 0 | V31: =IF(OR(C31>0),IFERROR(V30*((1+'Inputs & Assumptions'!N64)),"No Data"),"--") -> 56048.50215 | W31: 56048.50215 | X31: ='Inputs & Assumptions'!L64 -> 0 | Y31: -48951.76161
A32: 2049 | B32: 29 | C32: ='Inputs & Assumptions'!F65 -> 1314560 | D32: ='Inputs & Assumptions'!G65 -> -1002351 | E32: ='Inputs & Assumptions'!J65 -> 1650968.611 | F32: ='Inputs & Assumptions'!$P$4*(E32/100) -> 9248.887654 | G32: ='Inputs & Assumptions'!K65 -> 33224370.54 | H32: =(G32/100)*'Inputs & Assumptions'!$P$5 -> 842359.8674 | I32: =(G32/100)*'Inputs & Assumptions'!$P$4 -> 186126.1737 | J32: =IF(C32="","--",IF(IF('Inputs & Assumptions'!$B$8=1,-C32*'Inputs & Assumptions'!$C65,IF('Inputs & Assumptions'!$B$8=2,-H32*'Inputs & Assumptions'!$D65,IF('Inputs & Assumptions'!$B$8=3,-'Inputs & Assumptions'!E65,"")))*$AA$10>0,0,IF('Inputs & Assumptions'!$B$8=1,-C32*'Inputs & Assumptions'!$C65,IF('Inputs & Assumptions'!$B$8=2,-H32*'Inputs & Assumptions'!$D65,IF('Inputs & Assumptions'!$B$8=3,-'Inputs & Assumptions'!E65,"")))*$AA$10)) -> -74212 | K32: =IFERROR(VLOOKUP(Muni,Data!$E$4:$O$568,11,FALSE)*J32,"--") -> -16397.73705 | L32: =IFERROR(J32*VLOOKUP(Muni,Data!$E$4:$Q$568,12,FALSE),"--") -> -8158.709431 | M32: =IFERROR(J32*VLOOKUP(Muni,Data!$E$4:$Q$568,13,FALSE),"--") -> -49655.55352 | N32: 237997 | O32: ='Inputs & Assumptions'!H65 -> -208998 | P32: 28999 | Q32: ='Inputs & Assumptions'!I65 -> 0 | R32: 28999 | S32: 0.0564538705 | T32: 0.08810011358 | U32: ='Inputs & Assumptions'!M65 -> 0 | V32: =IF(OR(C32>0),IFERROR(V31*((1+'Inputs & Assumptions'!N65)),"No Data"),"--") -> 57169.47219 | W32: 57169.47219 | X32: ='Inputs & Assumptions'!L65 -> 0 | Y32: -50020.6228
A33: 2050 | B33: 30 | C33: ='Inputs & Assumptions'!F66 -> 1340778 | D33: ='Inputs & Assumptions'!G66 -> -1030872 | E33: ='Inputs & Assumptions'!J66 -> 1700497.669 | F33: ='Inputs & Assumptions'!$P$4*(E33/100) -> 9526.354283 | G33: ='Inputs & Assumptions'!K66 -> 34221101.65 | H33: =(G33/100)*'Inputs & Assumptions'!$P$5 -> 867630.6635 | I33: =(G33/100)*'Inputs & Assumptions'!$P$4 -> 191709.9589 | J33: =IF(C33="","--",IF(IF('Inputs & Assumptions'!$B$8=1,-C33*'Inputs & Assumptions'!$C66,IF('Inputs & Assumptions'!$B$8=2,-H33*'Inputs & Assumptions'!$D66,IF('Inputs & Assumptions'!$B$8=3,-'Inputs & Assumptions'!E66,"")))*$AA$10>0,0,IF('Inputs & Assumptions'!$B$8=1,-C33*'Inputs & Assumptions'!$C66,IF('Inputs & Assumptions'!$B$8=2,-H33*'Inputs & Assumptions'!$D66,IF('Inputs & Assumptions'!$B$8=3,-'Inputs & Assumptions'!E66,"")))*$AA$10)) -> -75696 | K33: =IFERROR(VLOOKUP(Muni,Data!$E$4:$O$568,11,FALSE)*J33,"--") -> -16725.63876 | L33: =IFERROR(J33*VLOOKUP(Muni,Data!$E$4:$Q$568,12,FALSE),"--") -> -8321.857235 | M33: =IFERROR(J33*VLOOKUP(Muni,Data!$E$4:$Q$568,13,FALSE),"--") -> -50648.50401 | N33: 234210 | O33: ='Inputs & Assumptions'!H66 -> 0 | P33: 234210 | Q33: ='Inputs & Assumptions'!I66 -> 56482169.12 | R33: 56716379.12 | S33: 0.0564567736 | T33: 0.08724449606 | U33: ='Inputs & Assumptions'!M66 -> 0 | V33: =IF(OR(C33>0),IFERROR(V32*((1+'Inputs & Assumptions'!N66)),"No Data"),"--") -> 58312.86164 | W33: 58312.86164 | X33: ='Inputs & Assumptions'!L66 -> 0 | Y33: -51113.57717
B35: TOTAL | C35: =SUM(C4:C33) -> 30653360 | D35: -21273250 | E35: 34330419.97 | F35: 192322.3709 | G35: 690871156.7 | H35: 17516122.25 | I35: 3870327.8 | J35: -1729383 | K35: -382121.0543 | L35: -190124.6886 | M35: -1157137.257 | N35: 7650727 | O35: -6060942 | P35: 1589785 | Q35: 32514166.12 | R35: 34103951.12 | V35: =SUM(V4:V33) -> 1332121.442 | W35: =SUM(W4:W33) -> 1332121.442 | X35: =SUM(X4:X33) -> 0 | Y35: -1142322.759

Sheet Data
A1: ='Inputs & Assumptions'!A1 -> Payment in Lieu of Taxes Financial Agreement Forecasting Model - Aberdeen Township, Monmouth County
A2: Data
A3: Municode | B3: Municipality | C3: County | D3: Census FIPS | E3: ID | F3: 2020 Net Valuation Taxable | G3: 2020 Total Municipal Tax Levy | H3: 2020 Total Municipal Tax Rate | I3: 2020 Municipal Expenditures Applicable to Project | J3: 2020 Land Area (in Acres) | K3: 2020 CY Total Rate | L3: 2020 County Levy | M3: 2020 School Levy | N3: 2020 Total Levy | O3: 2020 Municipal Share of Levy | P3: 2020 County Share of Levy | Q3: 2020 School Share of Levy | R3: Daytime Pop. (2015-19 estimate) | S3: Municipal Spending/Daytime Pop. Ratio | T3: General Government Approp. | U3: Land-Use Administration Approp. | V3: Uniform Construction Code Approp. | W3: Public Safety Approp. | X3: Public Works Approp. | Y3: Health and Human Services Approp. | Z3: Education (including Library) Approp. | AA3: Landfill / Solid Waste Disposal Approp. | AB3: Statutory Expenditures Approp. | AC3: Court and Public Defender Approp. | AD3: General Government Appl. to Project | AE3: Land-Use Admin. Appl. to Project | AF3: Uniform Construction Code Appl. to Project | AG3: Public Safety Appl. to Project | AH3: Public Works Appl. to Project | AI3: Health and Human Services Appl. to Project | AJ3: Education (including Library) Appl. to Project | AK3: Landfill / Solid Waste Disposal Appl. to Project | AL3: Statutory Expenditures Appl. to Project | AM3: Court and Public Defender Appl. to Project
A4: 1330 | B4: Aberdeen Township | C4: Monmouth | D4: 3402500070 | E4: 1 | F4: 2329384090 | G4: 13049437.53 | H4: =G4/(F4/100) -> 0.5602097819 | I4: =IF(IFERROR(SUM(AD4:AM4),"--")=0,"--",IFERROR(SUM(AD4:AM4),"--")) -> 5717203.858 | J4: 3484.420434 | K4: 2.535367424 | L4: 6492759.87 | M4: 39516248 | N4: 59058445.4 | O4: =G4/N4 -> 0.2209580263 | P4: =L4/N4 -> 0.109937873 | Q4: =M4/N4 -> 0.6691041007 | R4: 22112 | S4: =IFERROR(I4/R4,"--") -> 258.5566144 | T4: 8313610.58 | U4: 135781 | V4: 504557 | W4: 5035704 | X4: 1451111 | Y4: 101911 | Z4: 0 | AA4: 1491800 | AB4: 2201031 | AC4: 200833 | AD4: =IFERROR(T4*'Inputs & Assumptions'!$P$37,"--") -> 831361.058 | AE4: =IFERROR(U4*'Inputs & Assumptions'!$P$38,"--") -> 13578.1 | AF4: =IFERROR(V4*'Inputs & Assumptions'!$P$39,"--") -> 252278.5 | AG4: =IFERROR(W4*'Inputs & Assumptions'!$P$40,"--") -> 2517852 | AH4: =IFERROR(X4*'Inputs & Assumptions'!$P$41,"--") -> 145111.1 | AI4: =IFERROR(Y4*'Inputs & Assumptions'!$P$42,"--") -> 10191.1 | AJ4: =IFERROR(Z4*'Inputs & Assumptions'!$P$43,"--") -> 0 | AK4: =IFERROR(AA4*'Inputs & Assumptions'!$P$44,"--") -> 745900 | AL4: =IFERROR(AB4*'Inputs & Assumptions'!$P$45,"--") -> 1100515.5 | AM4: =IFERROR(AC4*'Inputs & Assumptions'!$P$46,"--") -> 100416.5
A5: 0101 | B5: Absecon City | C5: Atlantic | D5: 3400100100 | E5: =E4+1 -> 2 | F5: 710099400 | G5: 7378820 | H5: =G5/(F5/100) -> 1.039124945 | I5: =IF(IFERROR(SUM(AD5:AM5),"--")=0,"--",IFERROR(SUM(AD5:AM5),"--")) -> 3629804.15 | J5: 3499.667571 | K5: 3.301520372 | L5: 3713875.35 | M5: 12351381 | N5: 23444076.35 | O5: 0.3147413398 | P5: 0.158414232 | Q5: 0.5268444282 | R5: 10408 | S5: 348.7513595 | T5: 1043466 | U5: 29600 | V5: 148000 | W5: 3516200 | X5: 1020334 | Y5: 8400 | Z5: 247964.3 | AA5: 1632000 | AB5: 1161884 | AC5: 133200 | AD5: =IFERROR(T5*'Inputs & Assumptions'!$P$37,"--") -> 104346.6 | AE5: =IFERROR(U5*'Inputs & Assumptions'!$P$38,"--") -> 2960 | AF5: =IFERROR(V5*'Inputs & Assumptions'!$P$39,"--") -> 74000 | AG5: =IFERROR(W5*'Inputs & Assumptions'!$P$40,"--") -> 1758100 | AH5: =IFERROR(X5*'Inputs & Assumptions'!$P$41,"--") -> 102033.4 | AI5: =IFERROR(Y5*'Inputs & Assumptions'!$P$42,"--") -> 840 | AJ5: =IFERROR(Z5*'Inputs & Assumptions'!$P$43,"--") -> 123982.15 | AK5: =IFERROR(AA5*'Inputs & Assumptions'!$P$44,"--") -> 816000 | AL5: =IFERROR(AB5*'Inputs & Assumptions'!$P$45,"--") -> 580942 | AM5: =IFERROR(AC5*'Inputs & Assumptions'!$P$46,"--") -> 66600
A6: 1001 | B6: Alexandria Township | C6: Hunterdon | D6: 3401900550 | E6: 3 | F6: 719260528 | G6: 2211302.56 | H6: =G6/(F6/100) -> 0.3074411112 | I6: 434454.478 | J6: 17621.43755 | K6: 2.666961242 | L6: 2967892.95 | M6: 14003204 | N6: 19182399.51 | O6: 0.1152776825 | P6: 0.1547195881 | Q6: 0.7300027295 | R6: 5419 | S6: 80.17244473 | T6: 545565 | U6: 33550 | V6: 115000 | W6: 277330 | X6: 676094.78 | Y6: 11600 | Z6: 0 | AA6: 0 | AB6: 173417 | AC6: 49800 | AD6: =IFERROR(T6*'Inputs & Assumptions'!$P$37,"--") -> 54556.5 | AE6: =IFERROR(U6*'Inputs & Assumptions'!$P$38,"--") -> 3355 | AF6: =IFERROR(V6*'Inputs & Assumptions'!$P$39,"--") -> 57500 | AG6: =IFERROR(W6*'Inputs & Assumptions'!$P$40,"--") -> 138665 | AH6: =IFERROR(X6*'Inputs & Assumptions'!$P$41,"--") -> 67609.478 | AI6: =IFERROR(Y6*'Inputs & Assumptions'!$P$42,"--") -> 1160 | AJ6: =IFERROR(Z6*'Inputs & Assumptions'!$P$43,"--") -> 0 | AK6: =IFERROR(AA6*'Inputs & Assumptions'!$P$44,"--") -> 0 | AL6: =IFERROR(AB6*'Inputs & Assumptions'!$P$45,"--") -> 86708.5 | AM6: =IFERROR(AC6*'Inputs & Assumptions'!$P$46,"--") -> 24900
A7: 2101 | B7: Allamuchy Township | C7: Warren | D7: 3404100670 | E7: 4 | F7: 586202200 | G7: 2612016 | H7: 0.4455827699 | I7: 431522.4 | J7: 12794.996 | K7: 2.952586456 | L7: 4796444.76 | M7: 9899666 | N7: 17308126.76 | O7: 0.1509126918 | P7: 0.2771209633 | Q7: 0.5719663449 | R7: 5122 | S7: 84.24880906 | T7: 573525 | U7: 39495 | V7: 19446 | W7: 165423 | X7: 1447003 | Y7: 60011 | Z7: 0 | AA7: 0 | AB7: 170575 | AC7: 83594 | AD7: =IFERROR(T7*'Inputs & Assumptions'!$P$37,"--") -> 57352.5 | AE7: =IFERROR(U7*'Inputs & Assumptions'!$P$38,"--") -> 3949.5 | AF7: =IFERROR(V7*'Inputs & Assumptions'!$P$39,"--") -> 9723 | AG7: =IFERROR(W7*'Inputs & Assumptions'!$P$40,"--") -> 82711.5 | AH7: =IFERROR(X7*'Inputs & Assumptions'!$P$41,"--") -> 144700.3 | AI7: =IFERROR(Y7*'Inputs & Assumptions'!$P$42,"--") -> 6001.1 | AJ7: =IFERROR(Z7*'Inputs & Assumptions'!$P$43,"--") -> 0 | AK7: =IFERROR(AA7*'Inputs & Assumptions'!$P$44,"--") -> 0 | AL7: =IFERROR(AB7*'Inputs & Assumptions'!$P$45,"--") -> 85287.5 | AM7: =IFERROR(AC7*'Inputs & Assumptions'!$P$46,"--") -> 41797
A8: 0201 | B8: Allendale Borough | C8: Bergen | D8: 3400300700 | E8: 5 | F8: 1684255000 | G8: 10122266 | H8: 0.6009936738 | I8: 2745551.8 | J8: 1982.143142 | K8: 2.412390252 | L8: 4426672.44 | M8: 26081865 | N8: 40630803.44 | O8: 0.2491278819 | P8: 0.1089486809 | Q8: 0.6419234372 | R8: 9877 | S8: 277.9742634 | T8: 923895 | U8: 76200 | V8: 186334 | W8: 2999042 | X8: 2019143 | Y8: 84600 | Z8: 596959 | AA8: 0 | AB8: 1064731 | AC8: 23270 | AD8: =IFERROR(T8*'Inputs & Assumptions'!$P$37,"--") -> 92389.5 | AE8: =IFERROR(U8*'Inputs & Assumptions'!$P$38,"--") -> 7620 | AF8: =IFERROR(V8*'Inputs & Assumptions'!$P$39,"--") -> 93167 | AG8: =IFERROR(W8*'Inputs & Assumptions'!$P$40,"--") -> 1499521 | AH8: =IFERROR(X8*'Inputs & Assumptions'!$P$41,"--") -> 201914.3 | AI8: =IFERROR(Y8*'Inputs & Assumptions'!$P$42,"--") -> 8460 | AJ8: =IFERROR(Z8*'Inputs & Assumptions'!$P$43,"--") -> 298479.5 | AK8: =IFERROR(AA8*'Inputs & Assumptions'!$P$44,"--") -> 0 | AL8: =IFERROR(AB8*'Inputs & Assumptions'!$P$45,"--") -> 532365.5 | AM8: =IFERROR(AC8*'Inputs & Assumptions'!$P$46,"--") -> 11635
A9: 1301 | B9: Allenhurst Borough | C9: Monmouth | D9: 3402500730 | E9: 6 | F9: 653152349 | G9: 2807787.32 | H9: 0.42988245 | I9: 1117695.424 | J9: 160.3075736 | K9: 0.7902654745 | L9: 2127958.19 | M9: 225892 | N9: 5161637.51 | O9: 0.5439722016 | P9: 0.4122641673 | Q9: 0.04376363113 | R9: 772 | S9: 1447.792 | T9: 649250 | U9: 55000 | V9: 20300 | W9: 1264568.24 | X9: 850018.04 | Y9: 18000 | Z9: 0 | AA9: 0 | AB9: 537019 | AC9: 99050 | AD9: =IFERROR(T9*'Inputs & Assumptions'!$P$37,"--") -> 64925 | AE9: =IFERROR(U9*'Inputs & Assumptions'!$P$38,"--") -> 5500 | AF9: =IFERROR(V9*'Inputs & Assumptions'!$P$39,"--") -> 10150 | AG9: =IFERROR(W9*'Inputs & Assumptions'!$P$40,"--") -> 632284.12 | AH9: =IFERROR(X9*'Inputs & Assumptions'!$P$41,"--") -> 85001.804 | AI9: =IFERROR(Y9*'Inputs & Assumptions'!$P$42,"--") -> 1800 | AJ9: =IFERROR(Z9*'Inputs & Assumptions'!$P$43,"--") -> 0 | AK9: =IFERROR(AA9*'Inputs & Assumptions'!$P$44,"--") -> 0 | AL9: =IFERROR(AB9*'Inputs & Assumptions'!$P$45,"--") -> 268509.5 | AM9: =IFERROR(AC9*'Inputs & Assumptions'!$P$46,"--") -> 49525
A10: 1302 | B10: Allentown Borough | C10: Monmouth | D10: 3402500760 | E10: 7 | F10: 192688600 | G10: 1666104 | H10: 0.8646614278 | I10: 744564.505 | J10: 381.5569926 | K10: 2.950660625 | L10: 562247.65 | M10: 3457235 | N10: 5685586.65 | O10: 0.2930399451 | P10: 0.09888999757 | Q10: 0.6080700573 | R10: 2540 | S10: 293.1356319 | T10: 2114510.05 | U10: 19800 | V10: 1450 | W10: 639342 | X10: 327950 | Y10: 1125 | Z10: 2500 | AA10: 0 | AB10: 285135 | AC10: 68025 | AD10: =IFERROR(T10*'Inputs & Assumptions'!$P$37,"--") -> 211451.005 | AE10: =IFERROR(U10*'Inputs & Assumptions'!$P$38,"--") -> 1980 | AF10: =IFERROR(V10*'Inputs & Assumptions'!$P$39,"--") -> 725 | AG10: =IFERROR(W10*'Inputs & Assumptions'!$P$40,"--") -> 319671 | AH10: =IFERROR(X10*'Inputs & Assumptions'!$P$41,"--") -> 32795 | AI10: =IFERROR(Y10*'Inputs & Assumptions'!$P$42,"--") -> 112.5 | AJ10: =IFERROR(Z10*'Inputs & Assumptions'!$P$43,"--") -> 1250 | AK10: =IFERROR(AA10*'Inputs & Assumptions'!$P$44,"--") -> 0 | AL10: =IFERROR(AB10*'Inputs & Assumptions'!$P$45,"--") -> 142567.5 | AM10: =IFERROR(AC10*'Inputs & Assumptions'!$P$46,"--") -> 34012.5
A11: 1701 | B11: Alloway Township | C11: Salem | D11: 3403300880 | E11: 8 | F11: 283147243 | G11: 825620.3 | H11: 0.2915869112 | I11: 218168.145 | J11: 21425.34015 | K11: 3.098265244 | L11: 3597492.32 | M11: 4349540 | N11: 8772652.62 | O11: 0.09411295942 | P11: 0.4100803344 | Q11: 0.4958067062 | R11: 3779 | S11: 57.73171342 | T11: 306425 | U11: 12500 | V11: 64275 | W11: 48200 | X11: 316800 | Y11: 7525 | Z11: 237.5 | AA11: 108683.79 | AB11: 68290 | AC11: 18000 | AD11: =IFERROR(T11*'Inputs & Assumptions'!$P$37,"--") -> 30642.5 | AE11: =IFERROR(U11*'Inputs & Assumptions'!$P$38,"--") -> 1250 | AF11: =IFERROR(V11*'Inputs & Assumptions'!$P$39,"--") -> 32137.5 | AG11: =IFERROR(W11*'Inputs & Assumptions'!$P$40,"--") -> 24100 | AH11: =IFERROR(X11*'Inputs & Assumptions'!$P$41,"--") -> 31680 | AI11: =IFERROR(Y11*'Inputs & Assumptions'!$P$42,"--") -> 752.5 | AJ11: =IFERROR(Z11*'Inputs & Assumptions'!$P$43,"--") -> 118.75 | AK11: =IFERROR(AA11*'Inputs & Assumptions'!$P$44,"--") -> 54341.895 | AL11: =IFERROR(AB11*'Inputs & Assumptions'!$P$45,"--") -> 34145 | AM11: =IFERROR(AC11*'Inputs & Assumptions'!$P$46,"--") -> 9000
A12: 2102 | B12: Alpha Borough | C12: Warren | D12: 3404101030 | E12: 9 | F12: 218967914 | G12: 1907308.09 | H12: 0.871044554 | I12: 415652.495 | J12: 1075.628527 | K12: 3.191149727 | L12: 1466571.9 | M12: 3613714 | N12: 6987593.99 | O12: 0.2729563413 | P12: 0.209882243 | Q12: 0.5171614157 | R12: 2794 | S12: 148.7661042 | T12: 873423 | U12: 26850 | V12: 38550 | W12: 70020 | X12: 482683.2 | Y12: 8340 | Z12: 70675 | AA12: 295000 | AB12: 78640 | AC12: 160.75 | AD12: =IFERROR(T12*'Inputs & Assumptions'!$P$37,"--") -> 87342.3 | AE12: =IFERROR(U12*'Inputs & Assumptions'!$P$38,"--") -> 2685 | AF12: =IFERROR(V12*'Inputs & Assumptions'!$P$39,"--") -> 19275 | AG12: =IFERROR(W12*'Inputs & Assumptions'!$P$40,"--") -> 35010 | AH12: =IFERROR(X12*'Inputs & Assumptions'!$P$41,"--") -> 48268.32 | AI12: =IFERROR(Y12*'Inputs & Assumptions'!$P$42,"--") -> 834 | AJ12: =IFERROR(Z12*'Inputs & Assumptions'!$P$43,"--") -> 35337.5 | AK12: =IFERROR(AA12*'Inputs & Assumptions'!$P$44,"--") -> 147500 | AL12: =IFERROR(AB12*'Inputs & Assumptions'!$P$45,"--") -> 39320 | AM12: =IFERROR(AC12*'Inputs & Assumptions'!$P$46,"--") -> 80.375
A13: 0202 | B13: Alpine Borough | C13: Bergen | D13: 3400301090 | E13: 10 | F13: 1998092200 | G13: 3540683 | H13: 0.1772031841 | I13: 1686050.9 | J13: 4096.623518 | K13: 0.758366722 | L13: 4845440.32 | M13: 6766743 | N13: 15152866.32 | O13: 0.2336642405 | P13: 0.3197705449 | Q13: 0.4465652146 | R13: 1992 | S13: 846.4110944 | T13: 553000 | U13: 35950 | V13: 146400 | W13: 2232477 | X13: 421000 | Y13: 36204 | Z13: 1500 | AA13: 70400 | AB13: 675244 | AC13: 36850 | AD13: =IFERROR(T13*'Inputs & Assumptions'!$P$37,"--") -> 55300 | AE13: =IFERROR(U13*'Inputs & Assumptions'!$P$38,"--") -> 3595 | AF13: =IFERROR(V13*'Inputs & Assumptions'!$P$39,"--") -> 73200 | AG13: =IFERROR(W13*'Inputs & Assumptions'!$P$40,"--") -> 1116238.5 | AH13: =IFERROR(X13*'Inputs & Assumptions'!$P$41,"--") -> 42100 | AI13: =IFERROR(Y13*'Inputs & Assumptions'!$P$42,"--") -> 3620.4 | AJ13: =IFERROR(Z13*'Inputs & Assumptions'!$P$43,"--") -> 750 | AK13: =IFERROR(AA13*'Inputs & Assumptions'!$P$44,"--") -> 35200 | AL13: =IFERROR(AB13*'Inputs & Assumptions'!$P$45,"--") -> 337622 | AM13: =IFERROR(AC13*'Inputs & Assumptions'!$P$46,"--") -> 18425
A14: 1901 | B14: Andover Borough | C14: Sussex | D14: 3403701330 | E14: 11 | F14: 67327800 | G14: 362849 | H14: 0.5389289417 | I14: 119702.8 | J14: 862.6361309 | K14: 3.00767319 | L14: 400766.19 | M14: 1261385 | N14: 2025000.19 | O14: 0.1791846745 | P14: 0.1979092111 | Q14: 0.6229061144 | R14: 1072 | S14: 111.6630597 | T14: 146433 | U14: 17688 | V14: 14653 | W14: 42363 | X14: 449510 | Y14: 1502 | Z14: 0 | AA14: 34783 | AB14: 24580 | AC14: 0 | AD14: =IFERROR(T14*'Inputs & Assumptions'!$P$37,"--") -> 14643.3 | AE14: =IFERROR(U14*'Inputs & Assumptions'!$P$38,"--") -> 1768.8 | AF14: =IFERROR(V14*'Inputs & Assumptions'!$P$39,"--") -> 7326.5 | AG14: =IFERROR(W14*'Inputs & Assumptions'!$P$40,"--") -> 21181.5 | AH14: =IFERROR(X14*'Inputs & Assumptions'!$P$41,"--") -> 44951 | AI14: =IFERROR(Y14*'Inputs & Assumptions'!$P$42,"--") -> 150.2 | AJ14: =IFERROR(Z14*'Inputs & Assumptions'!$P$43,"--") -> 0 | AK14: =IFERROR(AA14*'Inputs & Assumptions'!$P$44,"--") -> 17391.5 | AL14: =IFERROR(AB14*'Inputs & Assumptions'!$P$45,"--") -> 12290 | AM14: =IFERROR(AC14*'Inputs & Assumptions'!$P$46,"--") -> 0
A15: 1902 | B15: Andover Township | C15: Sussex | D15: 3403701360 | E15: 12 | F15: 653452913 | G15: 6932673 | H15: 1.060929236 | I15: 2020726.513 | J15: 12828.47185 | K15: 3.736873148 | L15: 4207598.44 | M15: 13278435 | N15: 24418706.44 | O15: 0.2839082822 | P15: 0.1723104559 | Q15: 0.5437812618 | R15: 7678 | S15: 263.1839689 | T15: 782659 | U15: 63130 | V15: 0 | W15: 2104337.21 | X15: 1131300.08 | Y15: 12000 | Z15: 0 | AA15: 600000 | AB15: 811808 | AC15: 127490 | AD15: =IFERROR(T15*'Inputs & Assumptions'!$P$37,"--") -> 78265.9 | AE15: =IFERROR(U15*'Inputs & Assumptions'!$P$38,"--") -> 6313 | AF15: =IFERROR(V15*'Inputs & Assumptions'!$P$39,"--") -> 0 | AG15: =IFERROR(W15*'Inputs & Assumptions'!$P$40,"--") -> 1052168.605 | AH15: =IFERROR(X15*'Inputs & Assumptions'!$P$41,"--") -> 113130.008 | AI15: =IFERROR(Y15*'Inputs & Assumptions'!$P$42,"--") -> 1200 | AJ15: =IFERROR(Z15*'Inputs & Assumptions'!$P$43,"--") -> 0 | AK15: =IFERROR(AA15*'Inputs & Assumptions'!$P$44,"--") -> 300000 | AL15: =IFERROR(AB15*'Inputs & Assumptions'!$P$45,"--") -> 405904 | AM15: =IFERROR(AC15*'Inputs & Assumptions'!$P$46,"--") -> 63745
A16: 1303 | B16: Asbury Park City | C16: Monmouth | D16: 3402501960 | E16: 13 | F16: 2010280000 | G16: 16919046.22 | H16: 0.8416263516 | I16: 14411956.52 | J16: 914.549985 | K16: 1.574493605 | L16: 5142125.83 | M16: 9590558 | N16: 31651730.05 | O16: 0.5345378023 | P16: 0.1624595503 | Q16: 0.3030026474 | R16: 19913 | S16: 723.7461216 | T16: 3261500 | U16: 532200 | V16: 1029315 | W16: 18009064.91 | X16: 9728777.74 | Y16: 563292 | Z16: 627314.18 | AA16: 0 | AB16: 5903805 | AC16: 437260 | AD16: =IFERROR(T16*'Inputs & Assumptions'!$P$37,"--") -> 326150 | AE16: =IFERROR(U16*'Inputs & Assumptions'!$P$38,"--") -> 53220 | AF16: =IFERROR(V16*'Inputs & Assumptions'!$P$39,"--") -> 514657.5 | AG16: =IFERROR(W16*'Inputs & Assumptions'!$P$40,"--") -> 9004532.455 | AH16: =IFERROR(X16*'Inputs & Assumptions'!$P$41,"--") -> 972877.774 | AI16: =IFERROR(Y16*'Inputs & Assumptions'!$P$42,"--") -> 56329.2 | AJ16: =IFERROR(Z16*'Inputs & Assumptions'!$P$43,"--") -> 313657.09 | AK16: =IFERROR(AA16*'Inputs & Assumptions'!$P$44,"--") -> 0 | AL16: =IFERROR(AB16*'Inputs & Assumptions'!$P$45,"--") -> 2951902.5 | AM16: =IFERROR(AC16*'Inputs & Assumptions'!$P$46,"--") -> 218630
A17: 0102 | B17: Atlantic City City | C17: Atlantic | D17: 3400102080 | E17: 14 | F17: 2509823023 | G17: 43697149.26 | H17: 1.74104504 | I17: 46861029.8 | J17: 6886.699118 | K17: 3.933778394 | L17: 12401867.54 | M17: 42631859 | N17: 98730875.8 | O17: 0.4425884902 | P17: 0.1256128586 | Q17: 0.4317986512 | R17: 66160 | S17: 708.2985157 | T17: 11932053 | U17: 856850 | V17: 2989814 | W17: 61885805.72 | X17: 16527930.27 | Y17: 2019547.5 | Z17: 1653119 | AA17: 0 | AB17: 19392634.73 | AC17: 1533410 | AD17: =IFERROR(T17*'Inputs & Assumptions'!$P$37,"--") -> 1193205.3 | AE17: =IFERROR(U17*'Inputs & Assumptions'!$P$38,"--") -> 85685 | AF17: =IFERROR(V17*'Inputs & Assumptions'!$P$39,"--") -> 1494907 | AG17: =IFERROR(W17*'Inputs & Assumptions'!$P$40,"--") -> 30942902.86 | AH17: =IFERROR(X17*'Inputs & Assumptions'!$P$41,"--") -> 1652793.027 | AI17: =IFERROR(Y17*'Inputs & Assumptions'!$P$42,"--") -> 201954.75 | AJ17: =IFERROR(Z17*'Inputs & Assumptions'!$P$43,"--") -> 826559.5 | AK17: =IFERROR(AA17*'Inputs & Assumptions'!$P$44,"--") -> 0 | AL17: =IFERROR(AB17*'Inputs & Assumptions'!$P$45,"--") -> 9696317.365 | AM17: =IFERROR(AC17*'Inputs & Assumptions'!$P$46,"--") -> 766705
A18: 1304 | B18: Atlantic Highlands Borough | C18: Monmouth | D18: 3402502110 | E18: 15 | F18: 929847728 | G18: 5708012.72 | H18: 0.6138653188 | I18: 2484931.996 | J18: 809.0014357 | K18: 1.987875192 | L18: 2688679.59 | M18: 10087520 | N18: 18484212.31 | O18: 0.3088047586 | P18: 0.1454581642 | Q18: 0.5457370772 | R18: 5447 | S18: 456.2019453 | T18: 6433639.96 | U18: 66900 | V18: 92800 | W18: 2029093 | X18: 874600 | Y18: 10000 | Z18: 1500 | AA18: 250000 | AB18: 985839 | AC18: 133604 | AD18: =IFERROR(T18*'Inputs & Assumptions'!$P$37,"--") -> 643363.996 | AE18: =IFERROR(U18*'Inputs & Assumptions'!$P$38,"--") -> 6690 | AF18: =IFERROR(V18*'Inputs & Assumptions'!$P$39,"--") -> 46400 | AG18: =IFERROR(W18*'Inputs & Assumptions'!$P$40,"--") -> 1014546.5 | AH18: =IFERROR(X18*'Inputs & Assumptions'!$P$41,"--") -> 87460 | AI18: =IFERROR(Y18*'Inputs & Assumptions'!$P$42,"--") -> 1000 | AJ18: =IFERROR(Z18*'Inputs & Assumptions'!$P$43,"--") -> 750 | AK18: =IFERROR(AA18*'Inputs & Assumptions'!$P$44,"--") -> 125000 | AL18: =IFERROR(AB18*'Inputs & Assumptions'!$P$45,"--") -> 492919.5 | AM18: =IFERROR(AC18*'Inputs & Assumptions'!$P$46,"--") -> 66802
A19: 0401 | B19: Audubon Borough | C19: Camden | D19: 3400702200 | E19: 16 | F19: 713129412 | G19: 6647000 | H19: 0.9320888871 | I19: 2459421.66 | J19: 948.5830539 | K19: 3.605840914 | L19: 5888419.11 | M19: 13178893 | N19: 25714312.11 | O19: 0.2584941791 | P19: 0.2289938414 | Q19: 0.5125119795 | R19: 10666 | S19: 230.5851922 | T19: 605333 | U19: 39050 | V19: 36000 | W19: 2523098 | X19: 1448860 | Y19: 0 | Z19: 244586.72 | AA19: 485000 | AB19: 958416 | AC19: 253094 | AD19: =IFERROR(T19*'Inputs & Assumptions'!$P$37,"--") -> 60533.3 | AE19: =IFERROR(U19*'Inputs & Assumptions'!$P$38,"--") -> 3905 | AF19: =IFERROR(V19*'Inputs & Assumptions'!$P$39,"--") -> 18000 | AG19: =IFERROR(W19*'Inputs & Assumptions'!$P$40,"--") -> 1261549 | AH19: =IFERROR(X19*'Inputs & Assumptions'!$P$41,"--") -> 144886 | AI19: =IFERROR(Y19*'Inputs & Assumptions'!$P$42,"--") -> 0 | AJ19: =IFERROR(Z19*'Inputs & Assumptions'!$P$43,"--") -> 122293.36 | AK19: =IFERROR(AA19*'Inputs & Assumptions'!$P$44,"--") -> 242500 | AL19: =IFERROR(AB19*'Inputs & Assumptions'!$P$45,"--") -> 479208 | AM19: =IFERROR(AC19*'Inputs & Assumptions'!$P$46,"--") -> 126547
A20: 0402 | B20: Audubon Park Borough | C20: Camden | D20: 3400702230 | E20: 17 | F20: 20985321 | G20: 782000 | H20: 3.726414287 | I20: 70662.809 | J20: 96.27369972 | K20: 6.318762386 | L20: 179719.57 | M20: 364293 | N20: 1326012.57 | O20: 0.5897379992 | P20: 0.1355338359 | Q20: 0.2747281649 | R20: 1119 | S20: 63.14817605 | T20: 154817.34 | U20: 0 | V20: 3000 | W20: 38235.83 | X20: 91000 | Y20: 4380.8 | Z20: 23444 | AA20: 0 | AB20: 26606.16 | AC20: 0 | AD20: =IFERROR(T20*'Inputs & Assumptions'!$P$37,"--") -> 15481.734 | AE20: =IFERROR(U20*'Inputs & Assumptions'!$P$38,"--") -> 0 | AF20: =IFERROR(V20*'Inputs & Assumptions'!$P$39,"--") -> 1500 | AG20: =IFERROR(W20*'Inputs & Assumptions'!$P$40,"--") -> 19117.915 | AH20: =IFERROR(X20*'Inputs & Assumptions'!$P$41,"--") -> 9100 | AI20: =IFERROR(Y20*'Inputs & Assumptions'!$P$42,"--") -> 438.08 | AJ20: =IFERROR(Z20*'Inputs & Assumptions'!$P$43,"--") -> 11722 | AK20: =IFERROR(AA20*'Inputs & Assumptions'!$P$44,"--") -> 0 | AL20: =IFERROR(AB20*'Inputs & Assumptions'!$P$45,"--") -> 13303.08 | AM20: =IFERROR(AC20*'Inputs & Assumptions'!$P$46,"--") -> 0
A21: 0501 | B21: Avalon Borough | C21: Cape May | D21: 3400902320 | E21: 18 | F21: 9199582879 | G21: 21579725 | H21: 0.2345728636 | I21: -- | J21: 2732.755824 | K21: 0.5235527889 | L21: 23475466.73 | M21: 3109481 | N21: 48164672.73 | O21: 0.4480405197 | P21: 0.4874001088 | Q21: 0.0645593715 | R21: 2746 | S21: -- | T21: -- | U21: -- | V21: -- | W21: -- | X21: -- | Y21: -- | Z21: -- | AA21: -- | AB21: -- | AC21: -- | AD21: =IFERROR(T21*'Inputs & Assumptions'!$P$37,"--") -> -- | AE21: =IFERROR(U21*'Inputs & Assumptions'!$P$38,"--") -> -- | AF21: =IFERROR(V21*'Inputs & Assumptions'!$P$39,"--") -> -- | AG21: =IFERROR(W21*'Inputs & Assumptions'!$P$40,"--") -> -- | AH21: =IFERROR(X21*'Inputs & Assumptions'!$P$41,"--") -> -- | AI21: =IFERROR(Y21*'Inputs & Assumptions'!$P$42,"--") -> -- | AJ21: =IFERROR(Z21*'Inputs & Assumptions'!$P$43,"--") -> -- | AK21: =IFERROR(AA21*'Inputs & Assumptions'!$P$44,"--") -> -- | AL21: =IFERROR(AB21*'Inputs & Assumptions'!$P$45,"--") -> -- | AM21: =IFERROR(AC21*'Inputs & Assumptions'!$P$46,"--") -> --
A22: 1305 | B22: Avon-by-the-Sea Borough | C22: Monmouth | D22: 3402502440 | E22: 19 | F22: 931244500 | G22: 3998291.85 | H22: 0.4293493116 | I22: 1725864.521 | J22: 272.3530149 | K22: 1.199129694 | L22: 2978659.47 | M22: 4189878 | N22: 11166829.32 | O22: 0.3580507712 | P22: 0.2667417388 | Q22: 0.37520749 | R22: 2213 | S22: 779.8755178 | T22: 1471219 | U22: 25413.2 | V22: 145030 | W22: 1588057.19 | X22: 973804.56 | Y22: 10650 | Z22: 368660.5 | AA22: 174500 | AB22: 656264 | AC22: 23000 | AD22: =IFERROR(T22*'Inputs & Assumptions'!$P$37,"--") -> 147121.9 | AE22: =IFERROR(U22*'Inputs & Assumptions'!$P$38,"--") -> 2541.32 | AF22: =IFERROR(V22*'Inputs & Assumptions'!$P$39,"--") -> 72515 | AG22: =IFERROR(W22*'Inputs & Assumptions'!$P$40,"--") -> 794028.595 | AH22: =IFERROR(X22*'Inputs & Assumptions'!$P$41,"--") -> 97380.456 | AI22: =IFERROR(Y22*'Inputs & Assumptions'!$P$42,"--") -> 1065 | AJ22: =IFERROR(Z22*'Inputs & Assumptions'!$P$43,"--") -> 184330.25 | AK22: =IFERROR(AA22*'Inputs & Assumptions'!$P$44,"--") -> 87250 | AL22: =IFERROR(AB22*'Inputs & Assumptions'!$P$45,"--") -> 328132 | AM22: =IFERROR(AC22*'Inputs & Assumptions'!$P$46,"--") -> 11500
A23: 1501 | B23: Barnegat Light Borough | C23: Ocean | D23: 3402903130 | E23: 20 | F23: 1011983300 | G23: 2437076.19 | H23: 0.2408217794 | I23: 315275.154 | J23: 531.7253423 | K23: 0.9024823186 | L23: 4053901.16 | M23: 2641993 | N23: 9132970.35 | O23: 0.2668437646 | P23: 0.443875432 | Q23: 0.2892808034 | R23: 788 | S23: 400.0953731 | T23: 1191816.54 | U23: 20150 | V23: 25000 | W23: 113527 | X23: 628750 | Y23: 0 | Z23: 0 | AA23: 0 | AB23: 103880 | AC23: 20000 | AD23: =IFERROR(T23*'Inputs & Assumptions'!$P$37,"--") -> 119181.654 | AE23: =IFERROR(U23*'Inputs & Assumptions'!$P$38,"--") -> 2015 | AF23: =IFERROR(V23*'Inputs & Assumptions'!$P$39,"--") -> 12500 | AG23: =IFERROR(W23*'Inputs & Assumptions'!$P$40,"--") -> 56763.5 | AH23: =IFERROR(X23*'Inputs & Assumptions'!$P$41,"--") -> 62875 | AI23: =IFERROR(Y23*'Inputs & Assumptions'!$P$42,"--") -> 0 | AJ23: =IFERROR(Z23*'Inputs & Assumptions'!$P$43,"--") -> 0 | AK23: =IFERROR(AA23*'Inputs & Assumptions'!$P$44,"--") -> 0 | AL23: =IFERROR(AB23*'Inputs & Assumptions'!$P$45,"--") -> 51940 | AM23: =IFERROR(AC23*'Inputs & Assumptions'!$P$46,"--") -> 10000
A24: 1533 | B24: Barnegat Township | C24: Ocean | D24: 3402903050 | E24: 21 | F24: 2452073900 | G24: 23102211.71 | H24: 0.9421498965 | I24: 8263620.746 | J24: 21912.95004 | K24: 2.790928556 | L24: 10571890.98 | M24: 34761528 | N24: 68435630.69 | O24: 0.3375757844 | P24: 0.1544793388 | Q24: 0.5079448768 | R24: 24838 | S24: 332.7007306 | T24: 7748450 | U24: 135800 | V24: 1188600 | W24: 8765264.6 | X24: 3136409.46 | Y24: 50850 | Z24: 0 | AA24: 749000 | AB24: 3334075 | AC24: 276000 | AD24: =IFERROR(T24*'Inputs & Assumptions'!$P$37,"--") -> 774845 | AE24: =IFERROR(U24*'Inputs & Assumptions'!$P$38,"--") -> 13580 | AF24: =IFERROR(V24*'Inputs & Assumptions'!$P$39,"--") -> 594300 | AG24: =IFERROR(W24*'Inputs & Assumptions'!$P$40,"--") -> 4382632.3 | AH24: =IFERROR(X24*'Inputs & Assumptions'!$P$41,"--") -> 313640.946 | AI24: =IFERROR(Y24*'Inputs & Assumptions'!$P$42,"--") -> 5085 | AJ24: =IFERROR(Z24*'Inputs & Assumptions'!$P$43,"--") -> 0 | AK24: =IFERROR(AA24*'Inputs & Assumptions'!$P$44,"--") -> 374500 | AL24: =IFERROR(AB24*'Inputs & Assumptions'!$P$45,"--") -> 1667037.5 | AM24: =IFERROR(AC24*'Inputs & Assumptions'!$P$46,"--") -> 138000
A25: 0403 | B25: Barrington Borough | C25: Camden | D25: 3400703250 | E25: 22 | F25: 495433885 | G25: 6310688.56 | H25: 1.273770073 | I25: 1855306.974 | J25: 1011.980137 | K25: 4.399801326 | L25: 4421830.08 | M25: 11065588 | N25: 21798106.64 | O25: 0.2895062706 | P25: 0.2028538603 | Q25: 0.507639869 | R25: 9119 | S25: 203.4550909 | T25: 717601.51 | U25: 20830 | V25: 0 | W25: 1875544.31 | X25: 1312234.93 | Y25: 15193 | Z25: 0 | AA25: 535598.69 | AB25: 767299.06 | AC25: 119000 | AD25: =IFERROR(T25*'Inputs & Assumptions'!$P$37,"--") -> 71760.151 | AE25: =IFERROR(U25*'Inputs & Assumptions'!$P$38,"--") -> 2083 | AF25: =IFERROR(V25*'Inputs & Assumptions'!$P$39,"--") -> 0 | AG25: =IFERROR(W25*'Inputs & Assumptions'!$P$40,"--") -> 937772.155 | AH25: =IFERROR(X25*'Inputs & Assumptions'!$P$41,"--") -> 131223.493 | AI25: =IFERROR(Y25*'Inputs & Assumptions'!$P$42,"--") -> 1519.3 | AJ25: =IFERROR(Z25*'Inputs & Assumptions'!$P$43,"--") -> 0 | AK25: =IFERROR(AA25*'Inputs & Assumptions'!$P$44,"--") -> 267799.345 | AL25: =IFERROR(AB25*'Inputs & Assumptions'!$P$45,"--") -> 383649.53 | AM25: =IFERROR(AC25*'Inputs & Assumptions'!$P$46,"--") -> 59500
A26: 0301 | B26: Bass River Township | C26: Burlington | D26: 3400503370 | E26: 23 | F26: 170776298 | G26: 637002.11 | H26: 0.373003817 | I26: 236834.2 | J26: 48079.38726 | K26: 2.245719602 | L26: 686735.69 | M26: 2511419 | N26: 3835156.8 | O26: 0.166095454 | P26: 0.1790632628 | Q26: 0.6548412832 | R26: 2703 | S26: 87.61901591 | T26: 315226 | U26: 18200 | V26: 5900 | W26: 106100 | X26: 272226 | Y26: 6000 | Z26: 0 | AA26: 2000 | AB26: 59338 | AC26: 178000 | AD26: =IFERROR(T26*'Inputs & Assumptions'!$P$37,"--") -> 31522.6 | AE26: =IFERROR(U26*'Inputs & Assumptions'!$P$38,"--") -> 1820 | AF26: =IFERROR(V26*'Inputs & Assumptions'!$P$39,"--") -> 2950 | AG26: =IFERROR(W26*'Inputs & Assumptions'!$P$40,"--") -> 53050 | AH26: =IFERROR(X26*'Inputs & Assumptions'!$P$41,"--") -> 27222.6 | AI26: =IFERROR(Y26*'Inputs & Assumptions'!$P$42,"--") -> 600 | AJ26: =IFERROR(Z26*'Inputs & Assumptions'!$P$43,"--") -> 0 | AK26: =IFERROR(AA26*'Inputs & Assumptions'!$P$44,"--") -> 1000 | AL26: =IFERROR(AB26*'Inputs & Assumptions'!$P$45,"--") -> 29669 | AM26: =IFERROR(AC26*'Inputs & Assumptions'!$P$46,"--") -> 89000
A27: 1502 | B27: Bay Head Borough | C27: Ocean | D27: 3402903520 | E27: 24 | F27: 1618686600 | G27: 3745905.76 | H27: 0.2314163693 | I27: 1169206.211 | J27: 374.7195895 | K27: 0.8756389464 | L27: 6952963.53 | M27: 3474981 | N27: 14173850.29 | O27: 0.2642828648 | P27: 0.4905486786 | Q27: 0.2451684566 | R27: 1667 | S27: 701.3834499 | T27: 635800 | U27: 34100 | V27: 114450 | W27: 1270255.41 | X27: 303325.06 | Y27: 5850 | Z27: 3000 | AA27: 240500 | AB27: 465592 | AC27: 48800 | AD27: =IFERROR(T27*'Inputs & Assumptions'!$P$37,"--") -> 63580 | AE27: =IFERROR(U27*'Inputs & Assumptions'!$P$38,"--") -> 3410 | AF27: =IFERROR(V27*'Inputs & Assumptions'!$P$39,"--") -> 57225 | AG27: =IFERROR(W27*'Inputs & Assumptions'!$P$40,"--") -> 635127.705 | AH27: =IFERROR(X27*'Inputs & Assumptions'!$P$41,"--") -> 30332.506 | AI27: =IFERROR(Y27*'Inputs & Assumptions'!$P$42,"--") -> 585 | AJ27: =IFERROR(Z27*'Inputs & Assumptions'!$P$43,"--") -> 1500 | AK27: =IFERROR(AA27*'Inputs & Assumptions'!$P$44,"--") -> 120250 | AL27: =IFERROR(AB27*'Inputs & Assumptions'!$P$45,"--") -> 232796 | AM27: =IFERROR(AC27*'Inputs & Assumptions'!$P$46,"--") -> 24400
A28: 0901 | B28: Bayonne City | C28: Hudson | D28: 3401703580 | E28: 25 | F28: 7578100324 | G28: 85430464.43 | H28: 1.127333511 | I28: 37137801.02 | J28: 3725.750369 | K28: 2.56557305 | L28: 29022102.22 | M28: 79969133 | N28: 194421699.7 | O28: 0.4394080732 | P28: 0.1492739868 | Q28: 0.41131794 | R28: 72989 | S28: 508.8136708 | T28: 6332904 | U28: 559000 | V28: 0 | W28: 46540128.85 | X28: 9651189.46 | Y28: 4577322.45 | Z28: 2368506 | AA28: 4100000 | AB28: 15712884 | AC28: 1330000 | AD28: =IFERROR(T28*'Inputs & Assumptions'!$P$37,"--") -> 633290.4 | AE28: =IFERROR(U28*'Inputs & Assumptions'!$P$38,"--") -> 55900 | AF28: =IFERROR(V28*'Inputs & Assumptions'!$P$39,"--") -> 0 | AG28: =IFERROR(W28*'Inputs & Assumptions'!$P$40,"--") -> 23270064.43 | AH28: =IFERROR(X28*'Inputs & Assumptions'!$P$41,"--") -> 965118.946 | AI28: =IFERROR(Y28*'Inputs & Assumptions'!$P$42,"--") -> 457732.245 | AJ28: =IFERROR(Z28*'Inputs & Assumptions'!$P$43,"--") -> 1184253 | AK28: =IFERROR(AA28*'Inputs & Assumptions'!$P$44,"--") -> 2050000 | AL28: =IFERROR(AB28*'Inputs & Assumptions'!$P$45,"--") -> 7856442 | AM28: =IFERROR(AC28*'Inputs & Assumptions'!$P$46,"--") -> 665000
A29: 1503 | B29: Beach Haven Borough | C29: Ocean | D29: 3402903940 | E29: 26 | F29: 2113094000 | G29: 8650605.84 | H29: 0.4093810233 | I29: 2604939.923 | J29: 626.7986046 | K29: 1.120367264 | L29: 8107048.59 | M29: 6916759 | N29: 23674413.43 | O29: 0.3653989513 | P29: 0.3424392589 | Q29: 0.2921617898 | R29: 2537 | S29: 1026.779631 | T29: 2139922 | U29: 115085 | V29: 183505 | W29: 2149474.58 | X29: 1513743.23 | Y29: 89000 | Z29: 768765.22 | AA29: 240000 | AB29: 991580 | AC29: 105005 | AD29: =IFERROR(T29*'Inputs & Assumptions'!$P$37,"--") -> 213992.2 | AE29: =IFERROR(U29*'Inputs & Assumptions'!$P$38,"--") -> 11508.5 | AF29: =IFERROR(V29*'Inputs & Assumptions'!$P$39,"--") -> 91752.5 | AG29: =IFERROR(W29*'Inputs & Assumptions'!$P$40,"--") -> 1074737.29 | AH29: =IFERROR(X29*'Inputs & Assumptions'!$P$41,"--") -> 151374.323 | AI29: =IFERROR(Y29*'Inputs & Assumptions'!$P$42,"--") -> 8900 | AJ29: =IFERROR(Z29*'Inputs & Assumptions'!$P$43,"--") -> 384382.61 | AK29: =IFERROR(AA29*'Inputs & Assumptions'!$P$44,"--") -> 120000 | AL29: =IFERROR(AB29*'Inputs & Assumptions'!$P$45,"--") -> 495790 | AM29: =IFERROR(AC29*'Inputs & Assumptions'!$P$46,"--") -> 52502.5
A30: 1504 | B30: Beachwood Borough | C30: Ocean | D30: 3402904180 | E30: 27 | F30: 813057151 | G30: 7785786.49 | H30: 0.9575939994 | I30: 2550403.954 | J30: 1768.374589 | K30: 2.530109349 | L30: 3751533.5 | M30: 9033915 | N30: 20571234.99 | O30: 0.3784792937 | P30: 0.1823679279 | Q30: 0.4391527784 | R30: 11861 | S30: 215.0243617 | T30: 2064811 | U30: 27910 | V30: 130800 | W30: 2465398.69 | X30: 1273325.09 | Y30: 11000 | Z30: 5000 | AA30: 519350 | AB30: 1171350 | AC30: 133500 | AD30: =IFERROR(T30*'Inputs & Assumptions'!$P$37,"--") -> 206481.1 | AE30: =IFERROR(U30*'Inputs & Assumptions'!$P$38,"--") -> 2791 | AF30: =IFERROR(V30*'Inputs & Assumptions'!$P$39,"--") -> 65400 | AG30: =IFERROR(W30*'Inputs & Assumptions'!$P$40,"--") -> 1232699.345 | AH30: =IFERROR(X30*'Inputs & Assumptions'!$P$41,"--") -> 127332.509 | AI30: =IFERROR(Y30*'Inputs & Assumptions'!$P$42,"--") -> 1100 | AJ30: =IFERROR(Z30*'Inputs & Assumptions'!$P$43,"--") -> 2500 | AK30: =IFERROR(AA30*'Inputs & Assumptions'!$P$44,"--") -> 259675 | AL30: =IFERROR(AB30*'Inputs & Assumptions'!$P$45,"--") -> 585675 | AM30: =IFERROR(AC30*'Inputs & Assumptions'!$P$46,"--") -> 66750
A31: 1801 | B31: Bedminster Township | C31: Somerset | D31: 3403504450 | E31: 28 | F31: 2451629366 | G31: 7964846.66 | H31: 0.3248797216 | I31: 2658044.813 | J31: 16718.59146 | K31: 1.38299511 | L31: 8585687.59 | M31: 17355380 | N31: 33905914.25 | O31: 0.2349102461 | P31: 0.2532209433 | Q31: 0.5118688106 | R31: 15976 | S31: 166.3773669 | T31: 1214344.03 | U31: 63078 | V31: 229525 | W31: 2689381 | X31: 1248425 | Y31: 116041 | Z31: 823239.02 | AA31: 0 | AB31: 962567 | AC31: 83000 | AD31: =IFERROR(T31*'Inputs & Assumptions'!$P$37,"--") -> 121434.403 | AE31: =IFERROR(U31*'Inputs & Assumptions'!$P$38,"--") -> 6307.8 | AF31: =IFERROR(V31*'Inputs & Assumptions'!$P$39,"--") -> 114762.5 | AG31: =IFERROR(W31*'Inputs & Assumptions'!$P$40,"--") -> 1344690.5 | AH31: =IFERROR(X31*'Inputs & Assumptions'!$P$41,"--") -> 124842.5 | AI31: =IFERROR(Y31*'Inputs & Assumptions'!$P$42,"--") -> 11604.1 | AJ31: =IFERROR(Z31*'Inputs & Assumptions'!$P$43,"--") -> 411619.51 | AK31: =IFERROR(AA31*'Inputs & Assumptions'!$P$44,"--") -> 0 | AL31: =IFERROR(AB31*'Inputs & Assumptions'!$P$45,"--") -> 481283.5 | AM31: =IFERROR(AC31*'Inputs & Assumptions'!$P$46,"--") -> 41500
A32: 0701 | B32: Belleville Township | C32: Essex | D32: 3401304695 | E32: 29 | F32: 3105335426 | G32: 56570145.2 | H32: 1.821708042 | I32: 17965826.55 | J32: 2109.329219 | K32: 3.742342089 | L32: 15372908.44 | M32: 44269221 | N32: 116212274.6 | O32: 0.4867828753 | P32: 0.132283001 | Q32: 0.3809341237 | R32: 42784 | S32: 419.9192816 | T32: 2903257.7 | U32: 101294 | V32: 890065 | W32: 21608828 | X32: 3329848 | Y32: 947268 | Z32: 912087 | AA32: 2800000 | AB32: 7756594.55 | AC32: 507745 | AD32: =IFERROR(T32*'Inputs & Assumptions'!$P$37,"--") -> 290325.77 | AE32: =IFERROR(U32*'Inputs & Assumptions'!$P$38,"--") -> 10129.4 | AF32: =IFERROR(V32*'Inputs & Assumptions'!$P$39,"--") -> 445032.5 | AG32: =IFERROR(W32*'Inputs & Assumptions'!$P$40,"--") -> 10804414 | AH32: =IFERROR(X32*'Inputs & Assumptions'!$P$41,"--") -> 332984.8 | AI32: =IFERROR(Y32*'Inputs & Assumptions'!$P$42,"--") -> 94726.8 | AJ32: =IFERROR(Z32*'Inputs & Assumptions'!$P$43,"--") -> 456043.5 | AK32: =IFERROR(AA32*'Inputs & Assumptions'!$P$44,"--") -> 1400000 | AL32: =IFERROR(AB32*'Inputs & Assumptions'!$P$45,"--") -> 3878297.275 | AM32: =IFERROR(AC32*'Inputs & Assumptions'!$P$46,"--") -> 253872.5
A33: 0404 | B33: Bellmawr Borough | C33: Camden | D33: 3400704750 | E33: 30 | F33: 783621800 | G33: 9281839.51 | H33: 1.184479491 | I33: 3236210.376 | J33: 1909.949605 | K33: 3.843438577 | L33: 6578274.05 | M33: 14257909 | N33: 30118022.56 | O33: 0.3081822351 | P33: 0.2184165324 | Q33: 0.4734012325 | R33: 16743 | S33: 193.2873664 | T33: 2363334.51 | U33: 16302.36 | V33: 120961 | W33: 3803322.43 | X33: 2456131.82 | Y33: 46066.92 | Z33: 0 | AA33: 0 | AB33: 1328245 | AC33: 243525.2 | AD33: =IFERROR(T33*'Inputs & Assumptions'!$P$37,"--") -> 236333.451 | AE33: =IFERROR(U33*'Inputs & Assumptions'!$P$38,"--") -> 1630.236 | AF33: =IFERROR(V33*'Inputs & Assumptions'!$P$39,"--") -> 60480.5 | AG33: =IFERROR(W33*'Inputs & Assumptions'!$P$40,"--") -> 1901661.215 | AH33: =IFERROR(X33*'Inputs & Assumptions'!$P$41,"--") -> 245613.182 | AI33: =IFERROR(Y33*'Inputs & Assumptions'!$P$42,"--") -> 4606.692 | AJ33: =IFERROR(Z33*'Inputs & Assumptions'!$P$43,"--") -> 0 | AK33: =IFERROR(AA33*'Inputs & Assumptions'!$P$44,"--") -> 0 | AL33: =IFERROR(AB33*'Inputs & Assumptions'!$P$45,"--") -> 664122.5 | AM33: =IFERROR(AC33*'Inputs & Assumptions'!$P$46,"--") -> 121762.6
A34: 1306 | B34: Belmar Borough | C34: Monmouth | D34: 3402504930 | E34: 31 | F34: 1714720700 | G34: 8840689.36 | H34: 0.5155760562 | I34: 4515586.04 | J34: 668.8984253 | K34: 1.344749276 | L34: 4958582.84 | M34: 9259422 | N34: 23058694.2 | O34: 0.383399393 | P34: 0.2150417884 | Q34: 0.4015588185 | R34: 7772 | S34: 581.0069532 | T34: 1457605 | U34: 52500 | V34: 157879 | W34: 4922308.37 | X34: 3261910 | Y34: 32100 | Z34: 605705 | AA34: 523000 | AB34: 1708300.71 | AC34: 153156 | AD34: =IFERROR(T34*'Inputs & Assumptions'!$P$37,"--") -> 145760.5 | AE34: =IFERROR(U34*'Inputs & Assumptions'!$P$38,"--") -> 5250 | AF34: =IFERROR(V34*'Inputs & Assumptions'!$P$39,"--") -> 78939.5 | AG34: =IFERROR(W34*'Inputs & Assumptions'!$P$40,"--") -> 2461154.185 | AH34: =IFERROR(X34*'Inputs & Assumptions'!$P$41,"--") -> 326191 | AI34: =IFERROR(Y34*'Inputs & Assumptions'!$P$42,"--") -> 3210 | AJ34: =IFERROR(Z34*'Inputs & Assumptions'!$P$43,"--") -> 302852.5 | AK34: =IFERROR(AA34*'Inputs & Assumptions'!$P$44,"--") -> 261500 | AL34: =IFERROR(AB34*'Inputs & Assumptions'!$P$45,"--") -> 854150.355 | AM34: =IFERROR(AC34*'Inputs & Assumptions'!$P$46,"--") -> 76578
A35: 2103 | B35: Belvidere Town | C35: Warren | D35: 3404104990 | E35: 32 | F35: 127138621 | G35: 2023551.26 | H35: 1.5916102 | I35: 810785.751 | J35: 927.6435995 | K35: 5.694898413 | L35: 1362339.05 | M35: 3854525 | N35: 7240415.31 | O35: 0.2794799985 | P35: 0.1881575837 | Q35: 0.5323624178 | R35: 3706 | S35: 218.7765113 | T35: 1069001 | U35: 17060 | V35: 26500 | W35: 886821.99 | X35: 444250 | Y35: 19461.56 | Z35: 0 | AA35: 1500 | AB35: 335295 | AC35: 61500 | AD35: =IFERROR(T35*'Inputs & Assumptions'!$P$37,"--") -> 106900.1 | AE35: =IFERROR(U35*'Inputs & Assumptions'!$P$38,"--") -> 1706 | AF35: =IFERROR(V35*'Inputs & Assumptions'!$P$39,"--") -> 13250 | AG35: =IFERROR(W35*'Inputs & Assumptions'!$P$40,"--") -> 443410.995 | AH35: =IFERROR(X35*'Inputs & Assumptions'!$P$41,"--") -> 44425 | AI35: =IFERROR(Y35*'Inputs & Assumptions'!$P$42,"--") -> 1946.156 | AJ35: =IFERROR(Z35*'Inputs & Assumptions'!$P$43,"--") -> 0 | AK35: =IFERROR(AA35*'Inputs & Assumptions'!$P$44,"--") -> 750 | AL35: =IFERROR(AB35*'Inputs & Assumptions'!$P$45,"--") -> 167647.5 | AM35: =IFERROR(AC35*'Inputs & Assumptions'!$P$46,"--") -> 30750
A36: 0203 | B36: Bergenfield Borough | C36: Bergen | D36: 3400305170 | E36: 33 | F36: 2684233230 | G36: 30734470 | H36: 1.144999982 | I36: 8611319.3 | J36: 1858.64363 | K36: 3.29984879 | L36: 7955104.77 | M36: 49886063 | N36: 88575637.77 | O36: 0.3469855908 | P36: 0.08981143089 | Q36: 0.5632029783 | R36: 29923 | S36: 287.7826187 | T36: 1960275 | U36: 15650 | V36: 460900 | W36: 9554100 | X36: 4296500 | Y36: 396018 | Z36: 1417800 | AA36: 1007000 | AB36: 3241150 | AC36: 208000 | AD36: =IFERROR(T36*'Inputs & Assumptions'!$P$37,"--") -> 196027.5 | AE36: =IFERROR(U36*'Inputs & Assumptions'!$P$38,"--") -> 1565 | AF36: =IFERROR(V36*'Inputs & Assumptions'!$P$39,"--") -> 230450 | AG36: =IFERROR(W36*'Inputs & Assumptions'!$P$40,"--") -> 4777050 | AH36: =IFERROR(X36*'Inputs & Assumptions'!$P$41,"--") -> 429650 | AI36: =IFERROR(Y36*'Inputs & Assumptions'!$P$42,"--") -> 39601.8 | AJ36: =IFERROR(Z36*'Inputs & Assumptions'!$P$43,"--") -> 708900 | AK36: =IFERROR(AA36*'Inputs & Assumptions'!$P$44,"--") -> 503500 | AL36: =IFERROR(AB36*'Inputs & Assumptions'!$P$45,"--") -> 1620575 | AM36: =IFERROR(AC36*'Inputs & Assumptions'!$P$46,"--") -> 104000
A37: 2001 | B37: Berkeley Heights Township | C37: Union | D37: 3403905320 | E37: 34 | F37: 1836454758 | G37: 14909843.25 | H37: 0.811881871 | I37: 4270759.905 | J37: 3981.028409 | K37: 4.197754514 | L37: 17720883.26 | M37: 44459136 | N37: 77089862.51 | O37: 0.1934086113 | P37: 0.2298730687 | Q37: 0.5767183201 | R37: 20126 | S37: 212.2011281 | T37: 1559500 | U37: 115375 | V37: 381276 | W37: 4132546.23 | X37: 3219173.6 | Y37: 14000 | Z37: 1157587.86 | AA37: 0 | AB37: 1856000 | AC37: 32500 | AD37: =IFERROR(T37*'Inputs & Assumptions'!$P$37,"--") -> 155950 | AE37: =IFERROR(U37*'Inputs & Assumptions'!$P$38,"--") -> 11537.5 | AF37: =IFERROR(V37*'Inputs & Assumptions'!$P$39,"--") -> 190638 | AG37: =IFERROR(W37*'Inputs & Assumptions'!$P$40,"--") -> 2066273.115 | AH37: =IFERROR(X37*'Inputs & Assumptions'!$P$41,"--") -> 321917.36 | AI37: =IFERROR(Y37*'Inputs & Assumptions'!$P$42,"--") -> 1400 | AJ37: =IFERROR(Z37*'Inputs & Assumptions'!$P$43,"--") -> 578793.93 | AK37: =IFERROR(AA37*'Inputs & Assumptions'!$P$44,"--") -> 0 | AL37: =IFERROR(AB37*'Inputs & Assumptions'!$P$45,"--") -> 928000 | AM37: =IFERROR(AC37*'Inputs & Assumptions'!$P$46,"--") -> 16250
A38: 1505 | B38: Berkeley Township | C38: Ocean | D38: 3402905305 | E38: 35 | F38: 5223443562 | G38: 36350388.96 | H38: 0.6959085233 | I38: 10762839.92 | J38: 27334.15398 | K38: 2.228429275 | L38: 23558350.52 | M38: 56492006 | N38: 116400745.5 | O38: 0.3122865649 | P38: 0.2023900313 | Q38: 0.4853234038 | R38: 46017 | S38: 233.888344 | T38: 3032799 | U38: 402694 | V38: 233031 | W38: 12523094 | X38: 5548379.18 | Y38: 165937.06 | Z38: 0 | AA38: 2100000 | AB38: 4511000 | AC38: 328593 | AD38: =IFERROR(T38*'Inputs & Assumptions'!$P$37,"--") -> 303279.9 | AE38: =IFERROR(U38*'Inputs & Assumptions'!$P$38,"--") -> 40269.4 | AF38: =IFERROR(V38*'Inputs & Assumptions'!$P$39,"--") -> 116515.5 | AG38: =IFERROR(W38*'Inputs & Assumptions'!$P$40,"--") -> 6261547 | AH38: =IFERROR(X38*'Inputs & Assumptions'!$P$41,"--") -> 554837.918 | AI38: =IFERROR(Y38*'Inputs & Assumptions'!$P$42,"--") -> 16593.706 | AJ38: =IFERROR(Z38*'Inputs & Assumptions'!$P$43,"--") -> 0 | AK38: =IFERROR(AA38*'Inputs & Assumptions'!$P$44,"--") -> 1050000 | AL38: =IFERROR(AB38*'Inputs & Assumptions'!$P$45,"--") -> 2255500 | AM38: =IFERROR(AC38*'Inputs & Assumptions'!$P$46,"--") -> 164296.5
A39: 0405 | B39: Berlin Borough | C39: Camden | D39: 3400705440 | E39: 36 | F39: 738536794 | G39: 6099117.96 | H39: 0.8258380638 | I39: 2456310.432 | J39: 2299.998371 | K39: 3.289673561 | L39: 5860341.69 | M39: 12335990 | N39: 24295449.65 | O39: 0.2510395176 | P39: 0.2412114933 | Q39: 0.5077489891 | R39: 11835 | S39: 207.5462976 | T39: 1005090.92 | U39: 20350 | V39: 109830 | W39: 2366715.77 | X39: 1992610 | Y39: 0 | Z39: 288961.18 | AA39: 360221.51 | AB39: 1024874.6 | AC39: 158407.62 | AD39: =IFERROR(T39*'Inputs & Assumptions'!$P$37,"--") -> 100509.092 | AE39: =IFERROR(U39*'Inputs & Assumptions'!$P$38,"--") -> 2035 | AF39: =IFERROR(V39*'Inputs & Assumptions'!$P$39,"--") -> 54915 | AG39: =IFERROR(W39*'Inputs & Assumptions'!$P$40,"--") -> 1183357.885 | AH39: =IFERROR(X39*'Inputs & Assumptions'!$P$41,"--") -> 199261 | AI39: =IFERROR(Y39*'Inputs & Assumptions'!$P$42,"--") -> 0 | AJ39: =IFERROR(Z39*'Inputs & Assumptions'!$P$43,"--") -> 144480.59 | AK39: =IFERROR(AA39*'Inputs & Assumptions'!$P$44,"--") -> 180110.755 | AL39: =IFERROR(AB39*'Inputs & Assumptions'!$P$45,"--") -> 512437.3 | AM39: =IFERROR(AC39*'Inputs & Assumptions'!$P$46,"--") -> 79203.81
A40: 0406 | B40: Berlin Township | C40: Camden | D40: 3400705470 | E40: 37 | F40: 625417666 | G40: 8008913.6 | H40: 1.280570415 | I40: 2118590.869 | J40: 2139.126162 | K40: 3.680511757 | L40: 5776947.13 | M40: 9232710 | N40: 23018570.73 | O40: 0.3479327059 | P40: 0.2509689762 | Q40: 0.4010983179 | R40: 9954 | S40: 212.8381424 | T40: 872601 | U40: 26100 | V40: 183400 | W40: 2215380 | X40: 1333606.34 | Y40: 7620 | Z40: 38580 | AA40: 221900 | AB40: 943533.27 | AC40: 186403 | AD40: =IFERROR(T40*'Inputs & Assumptions'!$P$37,"--") -> 87260.1 | AE40: =IFERROR(U40*'Inputs & Assumptions'!$P$38,"--") -> 2610 | AF40: =IFERROR(V40*'Inputs & Assumptions'!$P$39,"--") -> 91700 | AG40: =IFERROR(W40*'Inputs & Assumptions'!$P$40,"--") -> 1107690 | AH40: =IFERROR(X40*'Inputs & Assumptions'!$P$41,"--") -> 133360.634 | AI40: =IFERROR(Y40*'Inputs & Assumptions'!$P$42,"--") -> 762 | AJ40: =IFERROR(Z40*'Inputs & Assumptions'!$P$43,"--") -> 19290 | AK40: =IFERROR(AA40*'Inputs & Assumptions'!$P$44,"--") -> 110950 | AL40: =IFERROR(AB40*'Inputs & Assumptions'!$P$45,"--") -> 471766.635 | AM40: =IFERROR(AC40*'Inputs & Assumptions'!$P$46,"--") -> 93201.5
A41: 1802 | B41: Bernards Township | C41: Somerset | D41: 3403505560 | E41: 38 | F41: 6707165385 | G41: 23097392.64 | H41: 0.3443689146 | I41: 7895199.901 | J41: 15488.9432 | K41: 2.093035299 | L41: 24172500.45 | M41: 93113446 | N41: 140383339.1 | O41: 0.164530868 | P41: 0.1721892399 | Q41: 0.6632798921 | R41: 44690 | S41: 176.6659186 | T41: 4542290.97 | U41: 624462.39 | V41: 1169543.25 | W41: 6402131.94 | X41: 4922415.89 | Y41: 691561.51 | Z41: 2381557 | AA41: 304256.46 | AB41: 3033393.58 | AC41: 343371.42 | AD41: =IFERROR(T41*'Inputs & Assumptions'!$P$37,"--") -> 454229.097 | AE41: =IFERROR(U41*'Inputs & Assumptions'!$P$38,"--") -> 62446.239 | AF41: =IFERROR(V41*'Inputs & Assumptions'!$P$39,"--") -> 584771.625 | AG41: =IFERROR(W41*'Inputs & Assumptions'!$P$40,"--") -> 3201065.97 | AH41: =IFERROR(X41*'Inputs & Assumptions'!$P$41,"--") -> 492241.589 | AI41: =IFERROR(Y41*'Inputs & Assumptions'!$P$42,"--") -> 69156.151 | AJ41: =IFERROR(Z41*'Inputs & Assumptions'!$P$43,"--") -> 1190778.5 | AK41: =IFERROR(AA41*'Inputs & Assumptions'!$P$44,"--") -> 152128.23 | AL41: =IFERROR(AB41*'Inputs & Assumptions'!$P$45,"--") -> 1516696.79 | AM41: =IFERROR(AC41*'Inputs & Assumptions'!$P$46,"--") -> 171685.71
A42: 1803 | B42: Bernardsville Borough | C42: Somerset | D42: 3403505590 | E42: 39 | F42: 2191901508 | G42: 11497569.11 | H42: 0.5245477075 | I42: -- | J42: 8214.734569 | K42: 2.103877822 | L42: 7759481.59 | M42: 26857879 | N42: 46114929.7 | O42: 0.249324225 | P42: 0.1682639796 | Q42: 0.5824117954 | R42: 10230 | S42: -- | T42: -- | U42: -- | V42: -- | W42: -- | X42: -- | Y42: -- | Z42: -- | AA42: -- | AB42: -- | AC42: -- | AD42: =IFERROR(T42*'Inputs & Assumptions'!$P$37,"--") -> -- | AE42: =IFERROR(U42*'Inputs & Assumptions'!$P$38,"--") -> -- | AF42: =IFERROR(V42*'Inputs & Assumptions'!$P$39,"--") -> -- | AG42: =IFERROR(W42*'Inputs & Assumptions'!$P$40,"--") -> -- | AH42: =IFERROR(X42*'Inputs & Assumptions'!$P$41,"--") -> -- | AI42: =IFERROR(Y42*'Inputs & Assumptions'!$P$42,"--") -> -- | AJ42: =IFERROR(Z42*'Inputs & Assumptions'!$P$43,"--") -> -- | AK42: =IFERROR(AA42*'Inputs & Assumptions'!$P$44,"--") -> -- | AL42: =IFERROR(AB42*'Inputs & Assumptions'!$P$45,"--") -> -- | AM42: =IFERROR(AC42*'Inputs & Assumptions'!$P$46,"--") -> --
A43: 1002 | B43: Bethlehem Township | C43: Hunterdon | D43: 3401905650 | E43: 40 | F43: 527035293 | G43: 2136160.08 | H43: 0.4053163248 | I43: 369915.881 | J43: 13236.82914 | K43: 2.994830532 | L43: 2134443.79 | M43: 11513210 | N43: 15783813.87 | O43: 0.1353386512 | P43: 0.1352299139 | Q43: 0.7294314349 | R43: 4193 | S43: 88.22224684 | T43: 423170.93 | U43: 88983.41 | V43: 0 | W43: 238355.18 | X43: 717842.94 | Y43: 7550.63 | Z43: 0 | AA43: 9000 | AB43: 146667 | AC43: 98300 | AD43: =IFERROR(T43*'Inputs & Assumptions'!$P$37,"--") -> 42317.093 | AE43: =IFERROR(U43*'Inputs & Assumptions'!$P$38,"--") -> 8898.341 | AF43: =IFERROR(V43*'Inputs & Assumptions'!$P$39,"--") -> 0 | AG43: =IFERROR(W43*'Inputs & Assumptions'!$P$40,"--") -> 119177.59 | AH43: =IFERROR(X43*'Inputs & Assumptions'!$P$41,"--") -> 71784.294 | AI43: =IFERROR(Y43*'Inputs & Assumptions'!$P$42,"--") -> 755.063 | AJ43: =IFERROR(Z43*'Inputs & Assumptions'!$P$43,"--") -> 0 | AK43: =IFERROR(AA43*'Inputs & Assumptions'!$P$44,"--") -> 4500 | AL43: =IFERROR(AB43*'Inputs & Assumptions'!$P$45,"--") -> 73333.5 | AM43: =IFERROR(AC43*'Inputs & Assumptions'!$P$46,"--") -> 49150
A44: 0302 | B44: Beverly City | C44: Burlington | D44: 3400505740 | E44: 41 | F44: 119425507 | G44: 1919724.07 | H44: 1.607465707 | I44: 832444.5 | J44: 346.402807 | K44: 4.637120678 | L44: 492234.81 | M44: 3125946 | N44: 5537904.88 | O44: 0.3466516872 | P44: 0.08888466318 | Q44: 0.5644636497 | R44: 2553 | S44: 326.0652174 | T44: 405130 | U44: 14560 | V44: 77400 | W44: 944620 | X44: 251450 | Y44: 6750 | Z44: 1000 | AA44: 101000 | AB44: 316469 | AC44: 88822 | AD44: =IFERROR(T44*'Inputs & Assumptions'!$P$37,"--") -> 40513 | AE44: =IFERROR(U44*'Inputs & Assumptions'!$P$38,"--") -> 1456 | AF44: =IFERROR(V44*'Inputs & Assumptions'!$P$39,"--") -> 38700 | AG44: =IFERROR(W44*'Inputs & Assumptions'!$P$40,"--") -> 472310 | AH44: =IFERROR(X44*'Inputs & Assumptions'!$P$41,"--") -> 25145 | AI44: =IFERROR(Y44*'Inputs & Assumptions'!$P$42,"--") -> 675 | AJ44: =IFERROR(Z44*'Inputs & Assumptions'!$P$43,"--") -> 500 | AK44: =IFERROR(AA44*'Inputs & Assumptions'!$P$44,"--") -> 50500 | AL44: =IFERROR(AB44*'Inputs & Assumptions'!$P$45,"--") -> 158234.5 | AM44: =IFERROR(AC44*'Inputs & Assumptions'!$P$46,"--") -> 44411
A45: 2104 | B45: Blairstown Township | C45: Warren | D45: 3404106160 | E45: 42 | F45: 708855459 | G45: 603476 | H45: 0.08513385802 | I45: 836127.53 | J45: 19127.53138 | K45: 2.47104884 | L45: 5109241.6 | M45: 11803447 | N45: 17516164.6 | O45: 0.03445251936 | P45: 0.2916872339 | Q45: 0.6738602468 | R45: 7179 | S45: 116.4685235 | T45: 446925 | U45: 67375 | V45: 3776 | W45: 986027.99 | X45: 677941 | Y45: 25050 | Z45: 0 | AA45: 12325 | AB45: 411667.87 | AC45: 15000 | AD45: =IFERROR(T45*'Inputs & Assumptions'!$P$37,"--") -> 44692.5 | AE45: =IFERROR(U45*'Inputs & Assumptions'!$P$38,"--") -> 6737.5 | AF45: =IFERROR(V45*'Inputs & Assumptions'!$P$39,"--") -> 1888 | AG45: =IFERROR(W45*'Inputs & Assumptions'!$P$40,"--") -> 493013.995 | AH45: =IFERROR(X45*'Inputs & Assumptions'!$P$41,"--") -> 67794.1 | AI45: =IFERROR(Y45*'Inputs & Assumptions'!$P$42,"--") -> 2505 | AJ45: =IFERROR(Z45*'Inputs & Assumptions'!$P$43,"--") -> 0 | AK45: =IFERROR(AA45*'Inputs & Assumptions'!$P$44,"--") -> 6162.5 | AL45: =IFERROR(AB45*'Inputs & Assumptions'!$P$45,"--") -> 205833.935 | AM45: =IFERROR(AC45*'Inputs & Assumptions'!$P$46,"--") -> 7500
A46: 0702 | B46: Bloomfield Township | C46: Essex | D46: 3401306260 | E46: 43 | F46: 5297838837 | G46: 62274287.52 | H46: 1.175465873 | I46: 24114156.39 | J46: 3415.629289 | K46: 3.094066292 | L46: 24569857.14 | M46: 77074501 | N46: 163918645.7 | O46: 0.3799097245 | P46: 0.1498905572 | Q46: 0.4701997182 | R46: 59024 | S46: 408.548326 | T46: 9850145.84 | U46: 117500 | V46: 670000 | W46: 28090318.19 | X46: 4214827.4 | Y46: 3040340.76 | Z46: 1662025.87 | AA46: 4350000 | AB46: 9148855.93 | AC46: 862550 | AD46: =IFERROR(T46*'Inputs & Assumptions'!$P$37,"--") -> 985014.584 | AE46: =IFERROR(U46*'Inputs & Assumptions'!$P$38,"--") -> 11750 | AF46: =IFERROR(V46*'Inputs & Assumptions'!$P$39,"--") -> 335000 | AG46: =IFERROR(W46*'Inputs & Assumptions'!$P$40,"--") -> 14045159.1 | AH46: =IFERROR(X46*'Inputs & Assumptions'!$P$41,"--") -> 421482.74 | AI46: =IFERROR(Y46*'Inputs & Assumptions'!$P$42,"--") -> 304034.076 | AJ46: =IFERROR(Z46*'Inputs & Assumptions'!$P$43,"--") -> 831012.935 | AK46: =IFERROR(AA46*'Inputs & Assumptions'!$P$44,"--") -> 2175000 | AL46: =IFERROR(AB46*'Inputs & Assumptions'!$P$45,"--") -> 4574427.965 | AM46: =IFERROR(AC46*'Inputs & Assumptions'!$P$46,"--") -> 431275
A47: 1601 | B47: Bloomingdale Borough | C47: Passaic | D47: 3403106340 | E47: 44 | F47: 732722300 | G47: 8439406 | H47: 1.151787792 | I47: 3458499.4 | J47: 5632.435713 | K47: 4.36159024 | L47: 5789791.32 | M47: 17729147 | N47: 31958344.32 | O47: 0.2640751947 | P47: 0.1811668108 | Q47: 0.5547579944 | R47: 9343 | S47: 370.1701167 | T47: 1012064 | U47: 59210 | V47: 87700 | W47: 2875097 | X47: 4402200 | Y47: 156000 | Z47: 373770 | AA47: 882200 | AB47: 1441887 | AC47: 130450 | AD47: =IFERROR(T47*'Inputs & Assumptions'!$P$37,"--") -> 101206.4 | AE47: =IFERROR(U47*'Inputs & Assumptions'!$P$38,"--") -> 5921 | AF47: =IFERROR(V47*'Inputs & Assumptions'!$P$39,"--") -> 43850 | AG47: =IFERROR(W47*'Inputs & Assumptions'!$P$40,"--") -> 1437548.5 | AH47: =IFERROR(X47*'Inputs & Assumptions'!$P$41,"--") -> 440220 | AI47: =IFERROR(Y47*'Inputs & Assumptions'!$P$42,"--") -> 15600 | AJ47: =IFERROR(Z47*'Inputs & Assumptions'!$P$43,"--") -> 186885 | AK47: =IFERROR(AA47*'Inputs & Assumptions'!$P$44,"--") -> 441100 | AL47: =IFERROR(AB47*'Inputs & Assumptions'!$P$45,"--") -> 720943.5 | AM47: =IFERROR(AC47*'Inputs & Assumptions'!$P$46,"--") -> 65225
A48: 1003 | B48: Bloomsbury Borough | C48: Hunterdon | D48: 3401906370 | E48: 45 | F48: 89714695 | G48: 585706.82 | H48: 0.652854942 | I48: 151863.496 | J48: 596.7718536 | K48: 3.133665438 | L48: 364667.57 | M48: 1860984 | N48: 2811358.39 | O48: 0.2083358785 | P48: 0.1297122314 | Q48: 0.6619518901 | R48: 940 | S48: 161.5569106 | T48: 276730 | U48: 9400 | V48: 0 | W48: 43175 | X48: 271749.96 | Y48: 3600 | Z48: 0 | AA48: 70000 | AB48: 28256 | AC48: 50000 | AD48: =IFERROR(T48*'Inputs & Assumptions'!$P$37,"--") -> 27673 | AE48: =IFERROR(U48*'Inputs & Assumptions'!$P$38,"--") -> 940 | AF48: =IFERROR(V48*'Inputs & Assumptions'!$P$39,"--") -> 0 | AG48: =IFERROR(W48*'Inputs & Assumptions'!$P$40,"--") -> 21587.5 | AH48: =IFERROR(X48*'Inputs & Assumptions'!$P$41,"--") -> 27174.996 | AI48: =IFERROR(Y48*'Inputs & Assumptions'!$P$42,"--") -> 360 | AJ48: =IFERROR(Z48*'Inputs & Assumptions'!$P$43,"--") -> 0 | AK48: =IFERROR(AA48*'Inputs & Assumptions'!$P$44,"--") -> 35000 | AL48: =IFERROR(AB48*'Inputs & Assumptions'!$P$45,"--") -> 14128 | AM48: =IFERROR(AC48*'Inputs & Assumptions'!$P$46,"--") -> 25000
A49: 0204 | B49: Bogota Borough | C49: Bergen | D49: 3400306490 | E49: 46 | F49: 643425600 | G49: 8236328 | H49: 1.28007465 | I49: 2280133.4 | J49: 482.9638103 | K49: 4.072220886 | L49: 2060662.67 | M49: 15904721 | N49: 26201711.67 | O49: 0.3143431278 | P49: 0.07864610892 | Q49: 0.6070107633 | R49: 9370 | S49: 243.3440128 | T49: 853929 | U49: 16550 | V49: 159200 | W49: 2649133 | X49: 1268430 | Y49: 89505 | Z49: 269367 | AA49: 290000 | AB49: 746884 | AC49: 0 | AD49: =IFERROR(T49*'Inputs & Assumptions'!$P$37,"--") -> 85392.9 | AE49: =IFERROR(U49*'Inputs & Assumptions'!$P$38,"--") -> 1655 | AF49: =IFERROR(V49*'Inputs & Assumptions'!$P$39,"--") -> 79600 | AG49: =IFERROR(W49*'Inputs & Assumptions'!$P$40,"--") -> 1324566.5 | AH49: =IFERROR(X49*'Inputs & Assumptions'!$P$41,"--") -> 126843 | AI49: =IFERROR(Y49*'Inputs & Assumptions'!$P$42,"--") -> 8950.5 | AJ49: =IFERROR(Z49*'Inputs & Assumptions'!$P$43,"--") -> 134683.5 | AK49: =IFERROR(AA49*'Inputs & Assumptions'!$P$44,"--") -> 145000 | AL49: =IFERROR(AB49*'Inputs & Assumptions'!$P$45,"--") -> 373442 | AM49: =IFERROR(AC49*'Inputs & Assumptions'!$P$46,"--") -> 0
A50: 1401 | B50: Boonton Town | C50: Morris | D50: 3402706610 | E50: 47 | F50: 1102341700 | G50: 9602994.88 | H50: 0.8711450252 | I50: 3847234.146 | J50: 1494.687947 | K50: 2.98933682 | L50: 3151943.44 | M50: 20197768 | N50: 32952706.32 | O50: 0.2914174874 | P50: 0.09565051833 | Q50: 0.6129319942 | R50: 11204 | S50: 343.3804129 | T50: 1083825.44 | U50: 224575 | V50: 110210 | W50: 3780253.92 | X50: 4973356.42 | Y50: 72290 | Z50: 452323 | AA50: 495400 | AB50: 1364813.8 | AC50: 220658.2 | AD50: =IFERROR(T50*'Inputs & Assumptions'!$P$37,"--") -> 108382.544 | AE50: =IFERROR(U50*'Inputs & Assumptions'!$P$38,"--") -> 22457.5 | AF50: =IFERROR(V50*'Inputs & Assumptions'!$P$39,"--") -> 55105 | AG50: =IFERROR(W50*'Inputs & Assumptions'!$P$40,"--") -> 1890126.96 | AH50: =IFERROR(X50*'Inputs & Assumptions'!$P$41,"--") -> 497335.642 | AI50: =IFERROR(Y50*'Inputs & Assumptions'!$P$42,"--") -> 7229 | AJ50: =IFERROR(Z50*'Inputs & Assumptions'!$P$43,"--") -> 226161.5 | AK50: =IFERROR(AA50*'Inputs & Assumptions'!$P$44,"--") -> 247700 | AL50: =IFERROR(AB50*'Inputs & Assumptions'!$P$45,"--") -> 682406.9 | AM50: =IFERROR(AC50*'Inputs & Assumptions'!$P$46,"--") -> 110329.1
A51: 1402 | B51: Boonton Township | C51: Morris | D51: 3402706640 | E51: 48 | F51: 879417900 | G51: 4391729.92 | H51: 0.4993905537 | I51: 1545001.121 | J51: 5203.885721 | K51: 2.346481623 | L51: 2551007.49 | M51: 13692642 | N51: 20635379.41 | O51: 0.2128252567 | P51: 0.1236229991 | Q51: 0.6635517442 | R51: 5231 | S51: 295.354831 | T51: 634854 | U51: 82506 | V51: 2000 | W51: 2019346.15 | X51: 1261860.36 | Y51: 61647 | Z51: 0 | AA51: 0 | AB51: 623764 | AC51: 36718.62 | AD51: =IFERROR(T51*'Inputs & Assumptions'!$P$37,"--") -> 63485.4 | AE51: =IFERROR(U51*'Inputs & Assumptions'!$P$38,"--") -> 8250.6 | AF51: =IFERROR(V51*'Inputs & Assumptions'!$P$39,"--") -> 1000 | AG51: =IFERROR(W51*'Inputs & Assumptions'!$P$40,"--") -> 1009673.075 | AH51: =IFERROR(X51*'Inputs & Assumptions'!$P$41,"--") -> 126186.036 | AI51: =IFERROR(Y51*'Inputs & Assumptions'!$P$42,"--") -> 6164.7 | AJ51: =IFERROR(Z51*'Inputs & Assumptions'!$P$43,"--") -> 0 | AK51: =IFERROR(AA51*'Inputs & Assumptions'!$P$44,"--") -> 0 | AL51: =IFERROR(AB51*'Inputs & Assumptions'!$P$45,"--") -> 311882 | AM51: =IFERROR(AC51*'Inputs & Assumptions'!$P$46,"--") -> 18359.31
A52: 0303 | B52: Bordentown City | C52: Burlington | D52: 3400506670 | E52: 49 | F52: 334213219 | G52: 3558772.32 | H52: 1.064820934 | I52: 1451318.5 | J52: 598.10128 | K52: 3.475925574 | L52: 1450351.43 | M52: 6607879 | N52: 11617002.75 | O52: 0.3063416956 | P52: 0.1248473002 | Q52: 0.5688110042 | R52: 5857 | S52: 247.7921291 | T52: 889800 | U52: 47000 | V52: 0 | W52: 1575000 | X52: 680200 | Y52: 2000 | Z52: 0 | AA52: 405000 | AB52: 598837 | AC52: 0 | AD52: =IFERROR(T52*'Inputs & Assumptions'!$P$37,"--") -> 88980 | AE52: =IFERROR(U52*'Inputs & Assumptions'!$P$38,"--") -> 4700 | AF52: =IFERROR(V52*'Inputs & Assumptions'!$P$39,"--") -> 0 | AG52: =IFERROR(W52*'Inputs & Assumptions'!$P$40,"--") -> 787500 | AH52: =IFERROR(X52*'Inputs & Assumptions'!$P$41,"--") -> 68020 | AI52: =IFERROR(Y52*'Inputs & Assumptions'!$P$42,"--") -> 200 | AJ52: =IFERROR(Z52*'Inputs & Assumptions'!$P$43,"--") -> 0 | AK52: =IFERROR(AA52*'Inputs & Assumptions'!$P$44,"--") -> 202500 | AL52: =IFERROR(AB52*'Inputs & Assumptions'!$P$45,"--") -> 299418.5 | AM52: =IFERROR(AC52*'Inputs & Assumptions'!$P$46,"--") -> 0
A53: 0304 | B53: Bordentown Township | C53: Burlington | D53: 3400506700 | E53: 50 | F53: 1189011386 | G53: 6987267.73 | H53: 0.5876535593 | I53: 3094974 | J53: 5544.101506 | K53: 3.297143755 | L53: 6344101.93 | M53: 25872045 | N53: 39203414.66 | O53: 0.1782311003 | P53: 0.1618252386 | Q53: 0.6599436611 | R53: 15288 | S53: 202.4446625 | T53: 1214375 | U53: 5000 | V53: 371650 | W53: 3236465 | X53: 1527885 | Y53: 10000 | Z53: 0 | AA53: 405000 | AB53: 1291256 | AC53: 334125 | AD53: =IFERROR(T53*'Inputs & Assumptions'!$P$37,"--") -> 121437.5 | AE53: =IFERROR(U53*'Inputs & Assumptions'!$P$38,"--") -> 500 | AF53: =IFERROR(V53*'Inputs & Assumptions'!$P$39,"--") -> 185825 | AG53: =IFERROR(W53*'Inputs & Assumptions'!$P$40,"--") -> 1618232.5 | AH53: =IFERROR(X53*'Inputs & Assumptions'!$P$41,"--") -> 152788.5 | AI53: =IFERROR(Y53*'Inputs & Assumptions'!$P$42,"--") -> 1000 | AJ53: =IFERROR(Z53*'Inputs & Assumptions'!$P$43,"--") -> 0 | AK53: =IFERROR(AA53*'Inputs & Assumptions'!$P$44,"--") -> 202500 | AL53: =IFERROR(AB53*'Inputs & Assumptions'!$P$45,"--") -> 645628 | AM53: =IFERROR(AC53*'Inputs & Assumptions'!$P$46,"--") -> 167062.5
A54: 1804 | B54: Bound Brook Borough | C54: Somerset | D54: 3403506790 | E54: 51 | F54: 833724621 | G54: 8737733.31 | H54: 1.048035897 | I54: 3406466.673 | J54: 1063.229772 | K54: 3.086337214 | L54: 3335895.93 | M54: 13657924 | N54: 25731553.24 | O54: 0.3395727117 | P54: 0.1296422295 | Q54: 0.5307850588 | R54: 12620 | S54: 269.9260438 | T54: 1270832.75 | U54: 69000 | V54: 336160 | W54: 4064024.43 | X54: 1623221.75 | Y54: 119025.08 | Z54: 140185 | AA54: 0 | AB54: 1431178 | AC54: 224970 | AD54: =IFERROR(T54*'Inputs & Assumptions'!$P$37,"--") -> 127083.275 | AE54: =IFERROR(U54*'Inputs & Assumptions'!$P$38,"--") -> 6900 | AF54: =IFERROR(V54*'Inputs & Assumptions'!$P$39,"--") -> 168080 | AG54: =IFERROR(W54*'Inputs & Assumptions'!$P$40,"--") -> 2032012.215 | AH54: =IFERROR(X54*'Inputs & Assumptions'!$P$41,"--") -> 162322.175 | AI54: =IFERROR(Y54*'Inputs & Assumptions'!$P$42,"--") -> 11902.508 | AJ54: =IFERROR(Z54*'Inputs & Assumptions'!$P$43,"--") -> 70092.5 | AK54: =IFERROR(AA54*'Inputs & Assumptions'!$P$44,"--") -> 0 | AL54: =IFERROR(AB54*'Inputs & Assumptions'!$P$45,"--") -> 715589 | AM54: =IFERROR(AC54*'Inputs & Assumptions'!$P$46,"--") -> 112485
A55: 1307 | B55: Bradley Beach Borough | C55: Monmouth | D55: 3402506970 | E55: 52 | F55: 1458545700 | G55: 7481773.1 | H55: 0.5129611708 | I55: 2875282.67 | J55: 390.6914864 | K55: 1.221594902 | L55: 3837656.81 | M55: 6498090 | N55: 17817519.91 | O55: 0.4199110279 | P55: 0.2153866997 | Q55: 0.3647022724 | R55: 4701 | S55: 611.6321357 | T55: 4053375.4 | U55: 89796.2 | V55: 146214 | W55: 2669031.2 | X55: 1023861.5 | Y55: 34460 | Z55: 472733.52 | AA55: 211700 | AB55: 1153568 | AC55: 57020 | AD55: =IFERROR(T55*'Inputs & Assumptions'!$P$37,"--") -> 405337.54 | AE55: =IFERROR(U55*'Inputs & Assumptions'!$P$38,"--") -> 8979.62 | AF55: =IFERROR(V55*'Inputs & Assumptions'!$P$39,"--") -> 73107 | AG55: =IFERROR(W55*'Inputs & Assumptions'!$P$40,"--") -> 1334515.6 | AH55: =IFERROR(X55*'Inputs & Assumptions'!$P$41,"--") -> 102386.15 | AI55: =IFERROR(Y55*'Inputs & Assumptions'!$P$42,"--") -> 3446 | AJ55: =IFERROR(Z55*'Inputs & Assumptions'!$P$43,"--") -> 236366.76 | AK55: =IFERROR(AA55*'Inputs & Assumptions'!$P$44,"--") -> 105850 | AL55: =IFERROR(AB55*'Inputs & Assumptions'!$P$45,"--") -> 576784 | AM55: =IFERROR(AC55*'Inputs & Assumptions'!$P$46,"--") -> 28510
A56: 1805 | B56: Branchburg Township | C56: Somerset | D56: 3403507180 | E56: 53 | F56: 3254808500 | G56: 12595932.7 | H56: 0.3869945866 | I56: 4331751.1 | J56: 12845.17023 | K56: 2.142400152 | L56: 13196659.54 | M56: 43938430 | N56: 69731022.24 | O56: 0.1806359967 | P56: 0.1892509118 | Q56: 0.6301130915 | R56: 26190 | S56: 165.3971401 | T56: 3857572 | U56: 120250 | V56: 462635 | W56: 4101210 | X56: 6180494 | Y56: 217650 | Z56: 0 | AA56: 0 | AB56: 2024464 | AC56: 0 | AD56: =IFERROR(T56*'Inputs & Assumptions'!$P$37,"--") -> 385757.2 | AE56: =IFERROR(U56*'Inputs & Assumptions'!$P$38,"--") -> 12025 | AF56: =IFERROR(V56*'Inputs & Assumptions'!$P$39,"--") -> 231317.5 | AG56: =IFERROR(W56*'Inputs & Assumptions'!$P$40,"--") -> 2050605 | AH56: =IFERROR(X56*'Inputs & Assumptions'!$P$41,"--") -> 618049.4 | AI56: =IFERROR(Y56*'Inputs & Assumptions'!$P$42,"--") -> 21765 | AJ56: =IFERROR(Z56*'Inputs & Assumptions'!$P$43,"--") -> 0 | AK56: =IFERROR(AA56*'Inputs & Assumptions'!$P$44,"--") -> 0 | AL56: =IFERROR(AB56*'Inputs & Assumptions'!$P$45,"--") -> 1012232 | AM56: =IFERROR(AC56*'Inputs & Assumptions'!$P$46,"--") -> 0
A57: 1903 | B57: Branchville Borough | C57: Sussex | D57: 3403707300 | E57: 54 | F57: 127952900 | G57: 182189 | H57: 0.1423875504 | I57: 204562.531 | J57: 379.4175551 | K57: 2.291009793 | L57: 760441.47 | M57: 1988783 | N57: 2931413.47 | O57: 0.06215056384 | P57: 0.2594111946 | Q57: 0.6784382416 | R57: 1980 | S57: 103.3144096 | T57: 266750 | U57: 14500 | V57: 20501 | W57: 50202 | X57: 1157074 | Y57: 5136.31 | Z57: 0 | AA57: 0 | AB57: 49730 | AC57: 0 | AD57: =IFERROR(T57*'Inputs & Assumptions'!$P$37,"--") -> 26675 | AE57: =IFERROR(U57*'Inputs & Assumptions'!$P$38,"--") -> 1450 | AF57: =IFERROR(V57*'Inputs & Assumptions'!$P$39,"--") -> 10250.5 | AG57: =IFERROR(W57*'Inputs & Assumptions'!$P$40,"--") -> 25101 | AH57: =IFERROR(X57*'Inputs & Assumptions'!$P$41,"--") -> 115707.4 | AI57: =IFERROR(Y57*'Inputs & Assumptions'!$P$42,"--") -> 513.631 | AJ57: =IFERROR(Z57*'Inputs & Assumptions'!$P$43,"--") -> 0 | AK57: =IFERROR(AA57*'Inputs & Assumptions'!$P$44,"--") -> 0 | AL57: =IFERROR(AB57*'Inputs & Assumptions'!$P$45,"--") -> 24865 | AM57: =IFERROR(AC57*'Inputs & Assumptions'!$P$46,"--") -> 0
A58: 1506 | B58: Brick Township | C58: Ocean | D58: 3402907420 | E58: 55 | F58: 10390198125 | G58: 77094218.33 | H58: 0.7419898774 | I58: 23169606.17 | J58: 16375.48429 | K58: 2.29545238 | L58: 46112894.84 | M58: 115294937 | N58: 238502050.2 | O58: 0.3232434198 | P58: 0.193343809 | Q58: 0.4834127712 | R58: 88245 | S58: 262.5599884 | T58: 6398956 | U58: 593100 | V58: 1948700 | W58: 25987254.7 | X58: 9478227.25 | Y58: 574305 | Z58: 0 | AA58: 3021783 | AB58: 10989052 | AC58: 983505 | AD58: =IFERROR(T58*'Inputs & Assumptions'!$P$37,"--") -> 639895.6 | AE58: =IFERROR(U58*'Inputs & Assumptions'!$P$38,"--") -> 59310 | AF58: =IFERROR(V58*'Inputs & Assumptions'!$P$39,"--") -> 974350 | AG58: =IFERROR(W58*'Inputs & Assumptions'!$P$40,"--") -> 12993627.35 | AH58: =IFERROR(X58*'Inputs & Assumptions'!$P$41,"--") -> 947822.725 | AI58: =IFERROR(Y58*'Inputs & Assumptions'!$P$42,"--") -> 57430.5 | AJ58: =IFERROR(Z58*'Inputs & Assumptions'!$P$43,"--") -> 0 | AK58: =IFERROR(AA58*'Inputs & Assumptions'!$P$44,"--") -> 1510891.5 | AL58: =IFERROR(AB58*'Inputs & Assumptions'!$P$45,"--") -> 5494526 | AM58: =IFERROR(AC58*'Inputs & Assumptions'!$P$46,"--") -> 491752.5
A59: 0601 | B59: Bridgeton City | C59: Cumberland | D59: 3401107600 | E59: 56 | F59: 480529987 | G59: 13512755.73 | H59: 2.812052545 | I59: 8361122.19 | J59: 3986.159303 | K59: 4.980630674 | L59: 6741633.2 | M59: 3679035 | N59: 23933423.93 | O59: 0.5645976844 | P59: 0.2816827722 | Q59: 0.1537195435 | R59: 30125 | S59: 277.5476246 | T59: 2652999.27 | U59: 36484 | V59: 432700 | W59: 9099499.68 | X59: 10021973.93 | Y59: 190073 | Z59: 247150.66 | AA59: 852100 | AB59: 3160988 | AC59: 349500 | AD59: =IFERROR(T59*'Inputs & Assumptions'!$P$37,"--") -> 265299.927 | AE59: =IFERROR(U59*'Inputs & Assumptions'!$P$38,"--") -> 3648.4 | AF59: =IFERROR(V59*'Inputs & Assumptions'!$P$39,"--") -> 216350 | AG59: =IFERROR(W59*'Inputs & Assumptions'!$P$40,"--") -> 4549749.84 | AH59: =IFERROR(X59*'Inputs & Assumptions'!$P$41,"--") -> 1002197.393 | AI59: =IFERROR(Y59*'Inputs & Assumptions'!$P$42,"--") -> 19007.3 | AJ59: =IFERROR(Z59*'Inputs & Assumptions'!$P$43,"--") -> 123575.33 | AK59: =IFERROR(AA59*'Inputs & Assumptions'!$P$44,"--") -> 426050 | AL59: =IFERROR(AB59*'Inputs & Assumptions'!$P$45,"--") -> 1580494 | AM59: =IFERROR(AC59*'Inputs & Assumptions'!$P$46,"--") -> 174750
A60: 1806 | B60: Bridgewater Township | C60: Somerset | D60: 3403507720 | E60: 57 | F60: 9234102163 | G60: 22005035.62 | H60: 0.2383018428 | I60: 9702161.801 | J60: 20408.0129 | K60: 2.074455857 | L60: 37154665.53 | M60: 132397672 | N60: 191557373.2 | O60: 0.114874386 | P60: 0.1939610307 | Q60: 0.6911645833 | R60: 75912 | S60: 127.8080119 | T60: 3771153.09 | U60: 249596 | V60: 970435 | W60: 9944850.41 | X60: 14043477.44 | Y60: 527666.38 | Z60: 115331.61 | AA60: 0 | AB60: 4441718 | AC60: 213610 | AD60: =IFERROR(T60*'Inputs & Assumptions'!$P$37,"--") -> 377115.309 | AE60: =IFERROR(U60*'Inputs & Assumptions'!$P$38,"--") -> 24959.6 | AF60: =IFERROR(V60*'Inputs & Assumptions'!$P$39,"--") -> 485217.5 | AG60: =IFERROR(W60*'Inputs & Assumptions'!$P$40,"--") -> 4972425.205 | AH60: =IFERROR(X60*'Inputs & Assumptions'!$P$41,"--") -> 1404347.744 | AI60: =IFERROR(Y60*'Inputs & Assumptions'!$P$42,"--") -> 52766.638 | AJ60: =IFERROR(Z60*'Inputs & Assumptions'!$P$43,"--") -> 57665.805 | AK60: =IFERROR(AA60*'Inputs & Assumptions'!$P$44,"--") -> 0 | AL60: =IFERROR(AB60*'Inputs & Assumptions'!$P$45,"--") -> 2220859 | AM60: =IFERROR(AC60*'Inputs & Assumptions'!$P$46,"--") -> 106805
A61: 1308 | B61: Brielle Borough | C61: Monmouth | D61: 3402507750 | E61: 58 | F61: 1575977400 | G61: 6989704.2 | H61: 0.4435155098 | I61: 2625148.249 | J61: 1123.528897 | K61: 1.636070567 | L61: 4464392.19 | M61: 14330006 | N61: 25784102.39 | O61: 0.2710858068 | P61: 0.1731451467 | Q61: 0.5557690465 | R61: 5807 | S61: 452.06617 | T61: 2545046 | U61: 64000 | V61: 18200 | W61: 2579932.27 | X61: 1022309.94 | Y61: 72472 | Z61: 165000 | AA61: 718319.64 | AB61: 986079 | AC61: 42000 | AD61: =IFERROR(T61*'Inputs & Assumptions'!$P$37,"--") -> 254504.6 | AE61: =IFERROR(U61*'Inputs & Assumptions'!$P$38,"--") -> 6400 | AF61: =IFERROR(V61*'Inputs & Assumptions'!$P$39,"--") -> 9100 | AG61: =IFERROR(W61*'Inputs & Assumptions'!$P$40,"--") -> 1289966.135 | AH61: =IFERROR(X61*'Inputs & Assumptions'!$P$41,"--") -> 102230.994 | AI61: =IFERROR(Y61*'Inputs & Assumptions'!$P$42,"--") -> 7247.2 | AJ61: =IFERROR(Z61*'Inputs & Assumptions'!$P$43,"--") -> 82500 | AK61: =IFERROR(AA61*'Inputs & Assumptions'!$P$44,"--") -> 359159.82 | AL61: =IFERROR(AB61*'Inputs & Assumptions'!$P$45,"--") -> 493039.5 | AM61: =IFERROR(AC61*'Inputs & Assumptions'!$P$46,"--") -> 21000
A62: 0103 | B62: Brigantine City | C62: Atlantic | D62: 3400107810 | E62: 59 | F62: 3322876700 | G62: 21109370.65 | H62: 0.6352739676 | I62: 7607761.47 | J62: 4174.320584 | K62: 1.687128265 | L62: 18150707.36 | M62: 16801114 | N62: 56061192.01 | O62: 0.3765415949 | P62: 0.3237659905 | Q62: 0.2996924146 | R62: 9760 | S62: 779.4837572 | T62: 6169565 | U62: 52510 | V62: 367500 | W62: 8930195.94 | X62: 4536800 | Y62: 32600 | Z62: 0 | AA62: 0 | AB62: 3577532 | AC62: 182000 | AD62: =IFERROR(T62*'Inputs & Assumptions'!$P$37,"--") -> 616956.5 | AE62: =IFERROR(U62*'Inputs & Assumptions'!$P$38,"--") -> 5251 | AF62: =IFERROR(V62*'Inputs & Assumptions'!$P$39,"--") -> 183750 | AG62: =IFERROR(W62*'Inputs & Assumptions'!$P$40,"--") -> 4465097.97 | AH62: =IFERROR(X62*'Inputs & Assumptions'!$P$41,"--") -> 453680 | AI62: =IFERROR(Y62*'Inputs & Assumptions'!$P$42,"--") -> 3260 | AJ62: =IFERROR(Z62*'Inputs & Assumptions'!$P$43,"--") -> 0 | AK62: =IFERROR(AA62*'Inputs & Assumptions'!$P$44,"--") -> 0 | AL62: =IFERROR(AB62*'Inputs & Assumptions'!$P$45,"--") -> 1788766 | AM62: =IFERROR(AC62*'Inputs & Assumptions'!$P$46,"--") -> 91000
A63: 0407 | B63: Brooklawn Borough | C63: Camden | D63: 3400708170 | E63: 60 | F63: 113290900 | G63: 2062900 | H63: 1.820887644 | I63: 726798.47 | J63: 312.6153608 | K63: 4.044238681 | L63: 1005013.4 | M63: 1513841 | N63: 4581754.4 | O63: 0.4502423788 | P63: 0.2193512162 | Q63: 0.330406405 | R63: 2399 | S63: 302.9589287 | T63: 558520.65 | U63: 0 | V63: 26000 | W63: 814000 | X63: 575600 | Y63: 9500 | Z63: 0 | AA63: 70000 | AB63: 314872.81 | AC63: 0 | AD63: =IFERROR(T63*'Inputs & Assumptions'!$P$37,"--") -> 55852.065 | AE63: =IFERROR(U63*'Inputs & Assumptions'!$P$38,"--") -> 0 | AF63: =IFERROR(V63*'Inputs & Assumptions'!$P$39,"--") -> 13000 | AG63: =IFERROR(W63*'Inputs & Assumptions'!$P$40,"--") -> 407000 | AH63: =IFERROR(X63*'Inputs & Assumptions'!$P$41,"--") -> 57560 | AI63: =IFERROR(Y63*'Inputs & Assumptions'!$P$42,"--") -> 950 | AJ63: =IFERROR(Z63*'Inputs & Assumptions'!$P$43,"--") -> 0 | AK63: =IFERROR(AA63*'Inputs & Assumptions'!$P$44,"--") -> 35000 | AL63: =IFERROR(AB63*'Inputs & Assumptions'!$P$45,"--") -> 157436.405 | AM63: =IFERROR(AC63*'Inputs & Assumptions'!$P$46,"--") -> 0
A64: 0104 | B64: Buena Borough | C64: Atlantic | D64: 3400108680 | E64: 61 | F64: 287749400 | G64: 2894262.85 | H64: 1.005827588 | I64: 589495.228 | J64: 4846.573216 | K64: 3.15918209 | L64: 1397573.66 | M64: 4798691 | N64: 9090527.51 | O64: 0.3183822772 | P64: 0.1537395556 | Q64: 0.5278781671 | R64: 5251 | S64: 112.2634218 | T64: 436097.03 | U64: 19863 | V64: 85676 | W64: 449117 | X64: 358700 | Y64: 18000 | Z64: 12613 | AA64: 291500.45 | AB64: 173552 | AC64: 0 | AD64: =IFERROR(T64*'Inputs & Assumptions'!$P$37,"--") -> 43609.703 | AE64: =IFERROR(U64*'Inputs & Assumptions'!$P$38,"--") -> 1986.3 | AF64: =IFERROR(V64*'Inputs & Assumptions'!$P$39,"--") -> 42838 | AG64: =IFERROR(W64*'Inputs & Assumptions'!$P$40,"--") -> 224558.5 | AH64: =IFERROR(X64*'Inputs & Assumptions'!$P$41,"--") -> 35870 | AI64: =IFERROR(Y64*'Inputs & Assumptions'!$P$42,"--") -> 1800 | AJ64: =IFERROR(Z64*'Inputs & Assumptions'!$P$43,"--") -> 6306.5 | AK64: =IFERROR(AA64*'Inputs & Assumptions'!$P$44,"--") -> 145750.225 | AL64: =IFERROR(AB64*'Inputs & Assumptions'!$P$45,"--") -> 86776 | AM64: =IFERROR(AC64*'Inputs & Assumptions'!$P$46,"--") -> 0
A65: 0105 | B65: Buena Vista Township | C65: Atlantic | D65: 3400108710 | E65: 62 | F65: 644015306 | G65: 2834058.14 | H65: 0.4400606808 | I65: 648246.3 | J65: 26290.99854 | K65: 2.606587152 | L65: 3170170.08 | M65: 10782592 | N65: 16786820.22 | O65: 0.168826383 | P65: 0.1888487539 | Q65: 0.6423248631 | R65: 9334 | S65: 69.45 | T65: 846973 | U65: 37050 | V65: 0 | W65: 429800 | X65: 1219000 | Y65: 19800 | Z65: 0 | AA65: 215000 | AB65: 227128 | AC65: 0 | AD65: =IFERROR(T65*'Inputs & Assumptions'!$P$37,"--") -> 84697.3 | AE65: =IFERROR(U65*'Inputs & Assumptions'!$P$38,"--") -> 3705 | AF65: =IFERROR(V65*'Inputs & Assumptions'!$P$39,"--") -> 0 | AG65: =IFERROR(W65*'Inputs & Assumptions'!$P$40,"--") -> 214900 | AH65: =IFERROR(X65*'Inputs & Assumptions'!$P$41,"--") -> 121900 | AI65: =IFERROR(Y65*'Inputs & Assumptions'!$P$42,"--") -> 1980 | AJ65: =IFERROR(Z65*'Inputs & Assumptions'!$P$43,"--") -> 0 | AK65: =IFERROR(AA65*'Inputs & Assumptions'!$P$44,"--") -> 107500 | AL65: =IFERROR(AB65*'Inputs & Assumptions'!$P$45,"--") -> 113564 | AM65: =IFERROR(AC65*'Inputs & Assumptions'!$P$46,"--") -> 0
A66: 0305 | B66: Burlington City | C66: Burlington | D66: 3400508920 | E66: 63 | F66: 604814492 | G66: 8370270.38 | H66: 1.383940116 | I66: 5004935.668 | J66: 1942.539826 | K66: 3.997582884 | L66: 2592147.23 | M66: 13215543 | N66: 24177960.61 | O66: 0.3461942268 | P66: 0.1072111611 | Q66: 0.5465946121 | R66: 14695 | S66: 340.5876603 | T66: 1909032.35 | U66: 78320 | V66: 106310 | W66: 5477830.57 | X66: 6304645.23 | Y66: 106106.25 | Z66: 66000 | AA66: 430500 | AB66: 1813710 | AC66: 435900 | AD66: =IFERROR(T66*'Inputs & Assumptions'!$P$37,"--") -> 190903.235 | AE66: =IFERROR(U66*'Inputs & Assumptions'!$P$38,"--") -> 7832 | AF66: =IFERROR(V66*'Inputs & Assumptions'!$P$39,"--") -> 53155 | AG66: =IFERROR(W66*'Inputs & Assumptions'!$P$40,"--") -> 2738915.285 | AH66: =IFERROR(X66*'Inputs & Assumptions'!$P$41,"--") -> 630464.523 | AI66: =IFERROR(Y66*'Inputs & Assumptions'!$P$42,"--") -> 10610.625 | AJ66: =IFERROR(Z66*'Inputs & Assumptions'!$P$43,"--") -> 33000 | AK66: =IFERROR(AA66*'Inputs & Assumptions'!$P$44,"--") -> 215250 | AL66: =IFERROR(AB66*'Inputs & Assumptions'!$P$45,"--") -> 906855 | AM66: =IFERROR(AC66*'Inputs & Assumptions'!$P$46,"--") -> 217950
A67: 0306 | B67: Burlington Township | C67: Burlington | D67: 3400508950 | E67: 64 | F67: 2364534326 | G67: 12470249.49 | H67: 0.5273871203 | I67: 6124530.9 | J67: 8624.69829 | K67: 2.905688977 | L67: 10852371.77 | M67: 45383392 | N67: 68706013.26 | O67: 0.1815015731 | P67: 0.1579537402 | Q67: 0.6605446867 | R67: 31115 | S67: 196.8353174 | T67: 8317600 | U67: 132945 | V67: 483563 | W67: 6123598 | X67: 3640019 | Y67: 24000 | Z67: 7500 | AA67: 0 | AB67: 2744593 | AC67: 466895 | AD67: =IFERROR(T67*'Inputs & Assumptions'!$P$37,"--") -> 831760 | AE67: =IFERROR(U67*'Inputs & Assumptions'!$P$38,"--") -> 13294.5 | AF67: =IFERROR(V67*'Inputs & Assumptions'!$P$39,"--") -> 241781.5 | AG67: =IFERROR(W67*'Inputs & Assumptions'!$P$40,"--") -> 3061799 | AH67: =IFERROR(X67*'Inputs & Assumptions'!$P$41,"--") -> 364001.9 | AI67: =IFERROR(Y67*'Inputs & Assumptions'!$P$42,"--") -> 2400 | AJ67: =IFERROR(Z67*'Inputs & Assumptions'!$P$43,"--") -> 3750 | AK67: =IFERROR(AA67*'Inputs & Assumptions'!$P$44,"--") -> 0 | AL67: =IFERROR(AB67*'Inputs & Assumptions'!$P$45,"--") -> 1372296.5 | AM67: =IFERROR(AC67*'Inputs & Assumptions'!$P$46,"--") -> 233447.5
A68: 1403 | B68: Butler Borough | C68: Morris | D68: 3402709040 | E68: 65 | F68: 763049350 | G68: 7797187 | H68: 1.021845704 | I68: 3411726.771 | J68: 1301.564298 | K68: 3.735039015 | L68: 2666046.93 | M68: 18036957 | N68: 28500190.93 | O68: =G68/N68 -> 0.273583676 | P68: =L68/N68 -> 0.09354487963 | Q68: =M68/N68 -> 0.6328714444 | R68: 10061 | S68: =IFERROR(I68/R68,"--") -> 339.1041418 | T68: 2186125 | U68: 77050 | V68: 4850 | W68: 3023350 | X68: 5744029.71 | Y68: 222073 | Z68: 351341 | AA68: 0 | AB68: 1660147 | AC68: 137910 | AD68: =IFERROR(T68*'Inputs & Assumptions'!$P$37,"--") -> 218612.5 | AE68: =IFERROR(U68*'Inputs & Assumptions'!$P$38,"--") -> 7705 | AF68: =IFERROR(V68*'Inputs & Assumptions'!$P$39,"--") -> 2425 | AG68: =IFERROR(W68*'Inputs & Assumptions'!$P$40,"--") -> 1511675 | AH68: =IFERROR(X68*'Inputs & Assumptions'!$P$41,"--") -> 574402.971 | AI68: =IFERROR(Y68*'Inputs & Assumptions'!$P$42,"--") -> 22207.3 | AJ68: =IFERROR(Z68*'Inputs & Assumptions'!$P$43,"--") -> 175670.5 | AK68: =IFERROR(AA68*'Inputs & Assumptions'!$P$44,"--") -> 0 | AL68: =IFERROR(AB68*'Inputs & Assumptions'!$P$45,"--") -> 830073.5 | AM68: =IFERROR(AC68*'Inputs & Assumptions'!$P$46,"--") -> 68955
A69: 1904 | B69: Byram Township | C69: Sussex | D69: 3403709160 | E69: =E68+1 -> 66 | F69: 924670100 | G69: 8735954 | H69: 0.9447644084 | I69: =IF(IFERROR(SUM(AD69:AM69),"--")=0,"--",IFERROR(SUM(AD69:AM69),"--")) -> 2643050.61 | J69: 13779.55635 | K69: 3.573206575 | L69: 5799436.81 | M69: 18504982 | N69: 33040372.81 | O69: 0.264402404 | P69: 0.1755257679 | Q69: 0.5600718281 | R69: 9047 | S69: 292.1466353 | T69: 1123414 | U69: 175900 | V69: 199000 | W69: 2545880.08 | X69: 2006350 | Y69: 64000 | Z69: 0 | AA69: 738647.34 | AB69: 982187 | AC69: 146454 | AD69: =IFERROR(T69*'Inputs & Assumptions'!$P$37,"--") -> 112341.4 | AE69: =IFERROR(U69*'Inputs & Assumptions'!$P$38,"--") -> 17590 | AF69: =IFERROR(V69*'Inputs & Assumptions'!$P$39,"--") -> 99500 | AG69: =IFERROR(W69*'Inputs & Assumptions'!$P$40,"--") -> 1272940.04 | AH69: =IFERROR(X69*'Inputs & Assumptions'!$P$41,"--") -> 200635 | AI69: =IFERROR(Y69*'Inputs & Assumptions'!$P$42,"--") -> 6400 | AJ69: =IFERROR(Z69*'Inputs & Assumptions'!$P$43,"--") -> 0 | AK69: =IFERROR(AA69*'Inputs & Assumptions'!$P$44,"--") -> 369323.67 | AL69: =IFERROR(AB69*'Inputs & Assumptions'!$P$45,"--") -> 491093.5 | AM69: =IFERROR(AC69*'Inputs & Assumptions'!$P$46,"--") -> 73227
A70: 0703 | B70: Caldwell Borough | C70: Essex | D70: 3401309250 | E70: 67 | F70: 1034348700 | G70: 8316985.65 | H70: =G70/(F70/100) -> 0.8040794802 | I70: 3021823.403 | J70: 753.9869045 | K70: 2.802336463 | L70: 5640103.12 | M70: 15028842 | N70: 28985930.77 | O70: 0.2869318124 | P70: 0.1945807145 | Q70: 0.5184874731 | R70: 10785 | S70: 280.1876127 | T70: 5569554.47 | U70: 18000 | V70: 155620.66 | W70: 2780233.55 | X70: 1306760.54 | Y70: 39842 | Z70: 384041.42 | AA70: 0 | AB70: 1183628.19 | AC70: 153291.584 | AD70: =IFERROR(T70*'Inputs & Assumptions'!$P$37,"--") -> 556955.447 | AE70: =IFERROR(U70*'Inputs & Assumptions'!$P$38,"--") -> 1800 | AF70: =IFERROR(V70*'Inputs & Assumptions'!$P$39,"--") -> 77810.33 | AG70: =IFERROR(W70*'Inputs & Assumptions'!$P$40,"--") -> 1390116.775 | AH70: =IFERROR(X70*'Inputs & Assumptions'!$P$41,"--") -> 130676.054 | AI70: =IFERROR(Y70*'Inputs & Assumptions'!$P$42,"--") -> 3984.2 | AJ70: =IFERROR(Z70*'Inputs & Assumptions'!$P$43,"--") -> 192020.71 | AK70: =IFERROR(AA70*'Inputs & Assumptions'!$P$44,"--") -> 0 | AL70: =IFERROR(AB70*'Inputs & Assumptions'!$P$45,"--") -> 591814.095 | AM70: =IFERROR(AC70*'Inputs & Assumptions'!$P$46,"--") -> 76645.792
A71: 1004 | B71: Califon Borough | C71: Hunterdon | D71: 3401909280 | E71: 68 | F71: 146585108 | G71: 956722.55 | H71: 0.6526737696 | I71: 126515.1 | J71: 613.6669358 | K71: 3.50490513 | L71: 568818.42 | M71: 3612128 | N71: 5137668.97 | O71: 0.1862172428 | P71: 0.1107152725 | Q71: 0.7030674847 | R71: 1492 | S71: 84.79564343 | T71: 261707 | U71: 24870 | V71: 0 | W71: 85165 | X71: 115923 | Y71: 9371 | Z71: 100 | AA71: 0 | AB71: 80081 | AC71: 5310 | AD71: =IFERROR(T71*'Inputs & Assumptions'!$P$37,"--") -> 26170.7 | AE71: =IFERROR(U71*'Inputs & Assumptions'!$P$38,"--") -> 2487 | AF71: =IFERROR(V71*'Inputs & Assumptions'!$P$39,"--") -> 0 | AG71: =IFERROR(W71*'Inputs & Assumptions'!$P$40,"--") -> 42582.5 | AH71: =IFERROR(X71*'Inputs & Assumptions'!$P$41,"--") -> 11592.3 | AI71: =IFERROR(Y71*'Inputs & Assumptions'!$P$42,"--") -> 937.1 | AJ71: =IFERROR(Z71*'Inputs & Assumptions'!$P$43,"--") -> 50 | AK71: =IFERROR(AA71*'Inputs & Assumptions'!$P$44,"--") -> 0 | AL71: =IFERROR(AB71*'Inputs & Assumptions'!$P$45,"--") -> 40040.5 | AM71: =IFERROR(AC71*'Inputs & Assumptions'!$P$46,"--") -> 2655
A72: 0408 | B72: Camden City | C72: Camden | D72: 3400710000 | E72: 69 | F72: 1712794938 | G72: 28340363.19 | H72: 1.654626748 | I72: -- | J72: 5709.659573 | K72: 3.17931169 | L72: 16096358.5 | M72: 10018368 | N72: 54455089.69 | O72: 0.520435525 | P72: 0.2955896059 | Q72: 0.1839748691 | R72: 101167 | S72: -- | T72: -- | U72: -- | V72: -- | W72: -- | X72: -- | Y72: -- | Z72: -- | AA72: -- | AB72: -- | AC72: -- | AD72: =IFERROR(T72*'Inputs & Assumptions'!$P$37,"--") -> -- | AE72: =IFERROR(U72*'Inputs & Assumptions'!$P$38,"--") -> -- | AF72: =IFERROR(V72*'Inputs & Assumptions'!$P$39,"--") -> -- | AG72: =IFERROR(W72*'Inputs & Assumptions'!$P$40,"--") -> -- | AH72: =IFERROR(X72*'Inputs & Assumptions'!$P$41,"--") -> -- | AI72: =IFERROR(Y72*'Inputs & Assumptions'!$P$42,"--") -> -- | AJ72: =IFERROR(Z72*'Inputs & Assumptions'!$P$43,"--") -> -- | AK72: =IFERROR(AA72*'Inputs & Assumptions'!$P$44,"--") -> -- | AL72: =IFERROR(AB72*'Inputs & Assumptions'!$P$45,"--") -> -- | AM72: =IFERROR(AC72*'Inputs & Assumptions'!$P$46,"--") -> --
A73: 0502 | B73: Cape May City | C73: Cape May | D73: 3400910270 | E73: 70 | F73: 2886887700 | G73: 10476805.85 | H73: 0.3629100588 | I73: 4568453.082 | J73: 1582.845968 | K73: 0.9683882255 | L73: 8504855.72 | M73: 8974619 | N73: 27956280.57 | O73: 0.3747567858 | P73: 0.3042198585 | Q73: 0.3210233556 | R73: 7137 | S73: 640.1083203 | T73: 1661550 | U73: 105500 | V73: 471000 | W73: 4406751.97 | X73: 8340005.97 | Y73: 5900 | Z73: 0 | AA73: 0 | AB73: 2042763 | AC73: 193800 | AD73: =IFERROR(T73*'Inputs & Assumptions'!$P$37,"--") -> 166155 | AE73: =IFERROR(U73*'Inputs & Assumptions'!$P$38,"--") -> 10550 | AF73: =IFERROR(V73*'Inputs & Assumptions'!$P$39,"--") -> 235500 | AG73: =IFERROR(W73*'Inputs & Assumptions'!$P$40,"--") -> 2203375.985 | AH73: =IFERROR(X73*'Inputs & Assumptions'!$P$41,"--") -> 834000.597 | AI73: =IFERROR(Y73*'Inputs & Assumptions'!$P$42,"--") -> 590 | AJ73: =IFERROR(Z73*'Inputs & Assumptions'!$P$43,"--") -> 0 | AK73: =IFERROR(AA73*'Inputs & Assumptions'!$P$44,"--") -> 0 | AL73: =IFERROR(AB73*'Inputs & Assumptions'!$P$45,"--") -> 1021381.5 | AM73: =IFERROR(AC73*'Inputs & Assumptions'!$P$46,"--") -> 96900
A74: 0503 | B74: Cape May Point Borough | C74: Cape May | D74: 3400910330 | E74: 71 | F74: 465080600 | G74: 1371708.97 | H74: 0.2949400534 | I74: 377264.5 | J74: 188.7800323 | K74: 0.6189792393 | L74: 1403925.39 | M74: 103118 | N74: 2878752.36 | O74: 0.4764942581 | P74: 0.4876853631 | Q74: 0.0358203788 | R74: 327 | S74: 1153.714067 | T74: 472760 | U74: 22100 | V74: 25100 | W74: 342150 | X74: 840400 | Y74: 2800 | Z74: 0 | AA74: 0 | AB74: 105292 | AC74: 14375 | AD74: =IFERROR(T74*'Inputs & Assumptions'!$P$37,"--") -> 47276 | AE74: =IFERROR(U74*'Inputs & Assumptions'!$P$38,"--") -> 2210 | AF74: =IFERROR(V74*'Inputs & Assumptions'!$P$39,"--") -> 12550 | AG74: =IFERROR(W74*'Inputs & Assumptions'!$P$40,"--") -> 171075 | AH74: =IFERROR(X74*'Inputs & Assumptions'!$P$41,"--") -> 84040 | AI74: =IFERROR(Y74*'Inputs & Assumptions'!$P$42,"--") -> 280 | AJ74: =IFERROR(Z74*'Inputs & Assumptions'!$P$43,"--") -> 0 | AK74: =IFERROR(AA74*'Inputs & Assumptions'!$P$44,"--") -> 0 | AL74: =IFERROR(AB74*'Inputs & Assumptions'!$P$45,"--") -> 52646 | AM74: =IFERROR(AC74*'Inputs & Assumptions'!$P$46,"--") -> 7187.5
A75: 0205 | B75: Carlstadt Borough | C75: Bergen | D75: 3400310480 | E75: 72 | F75: 2576927076 | G75: 20018272.61 | H75: 0.7768272838 | I75: 5046933.781 | J75: 2525.809353 | K75: 1.774804741 | L75: 6190996.31 | M75: 19526155 | N75: 45735423.92 | O75: 0.4376973229 | P75: 0.1353654515 | Q75: 0.4269372256 | R75: 16767 | S75: 301.0039829 | T75: 1640250 | U75: 158600 | V75: 233280 | W75: 5613545 | X75: 2729232.51 | Y75: 78500 | Z75: 794083.06 | AA75: 260000 | AB75: 2185000 | AC75: 86643 | AD75: =IFERROR(T75*'Inputs & Assumptions'!$P$37,"--") -> 164025 | AE75: =IFERROR(U75*'Inputs & Assumptions'!$P$38,"--") -> 15860 | AF75: =IFERROR(V75*'Inputs & Assumptions'!$P$39,"--") -> 116640 | AG75: =IFERROR(W75*'Inputs & Assumptions'!$P$40,"--") -> 2806772.5 | AH75: =IFERROR(X75*'Inputs & Assumptions'!$P$41,"--") -> 272923.251 | AI75: =IFERROR(Y75*'Inputs & Assumptions'!$P$42,"--") -> 7850 | AJ75: =IFERROR(Z75*'Inputs & Assumptions'!$P$43,"--") -> 397041.53 | AK75: =IFERROR(AA75*'Inputs & Assumptions'!$P$44,"--") -> 130000 | AL75: =IFERROR(AB75*'Inputs & Assumptions'!$P$45,"--") -> 1092500 | AM75: =IFERROR(AC75*'Inputs & Assumptions'!$P$46,"--") -> 43321.5
A76: 1713 | B76: Carneys Point Township | C76: Salem | D76: 3403310610 | E76: 73 | F76: 643271000 | G76: 4060675.55 | H76: 0.6312542537 | I76: 2157419.241 | J76: 10823.58439 | K76: 3.346792991 | L76: 7625418.19 | M76: 9842855 | N76: 21528948.74 | O76: 0.1886146694 | P76: 0.3541937083 | Q76: 0.4571916223 | R76: 10143 | S76: 212.7003097 | T76: 1008012.71 | U76: 53350 | V76: 218300 | W76: 2431275 | X76: 611175 | Y76: 91779 | Z76: 0 | AA76: 405089.84 | AB76: 803730.3 | AC76: 103580 | AD76: =IFERROR(T76*'Inputs & Assumptions'!$P$37,"--") -> 100801.271 | AE76: =IFERROR(U76*'Inputs & Assumptions'!$P$38,"--") -> 5335 | AF76: =IFERROR(V76*'Inputs & Assumptions'!$P$39,"--") -> 109150 | AG76: =IFERROR(W76*'Inputs & Assumptions'!$P$40,"--") -> 1215637.5 | AH76: =IFERROR(X76*'Inputs & Assumptions'!$P$41,"--") -> 61117.5 | AI76: =IFERROR(Y76*'Inputs & Assumptions'!$P$42,"--") -> 9177.9 | AJ76: =IFERROR(Z76*'Inputs & Assumptions'!$P$43,"--") -> 0 | AK76: =IFERROR(AA76*'Inputs & Assumptions'!$P$44,"--") -> 202544.92 | AL76: =IFERROR(AB76*'Inputs & Assumptions'!$P$45,"--") -> 401865.15 | AM76: =IFERROR(AC76*'Inputs & Assumptions'!$P$46,"--") -> 51790
A77: 1201 | B77: Carteret Borough | C77: Middlesex | D77: 3402310750 | E77: 74 | F77: 2446814583 | G77: 31607086.3 | H77: 1.291764669 | I77: 11835253.56 | J77: 2810.207515 | K77: 2.875997031 | L77: 10757079.45 | M77: 28006149 | N77: 70370314.75 | O77: 0.4491536866 | P77: 0.1528638814 | Q77: 0.3979824319 | R77: 31488 | S77: 375.865522 | T77: 3872500 | U77: 45500 | V77: 307000 | W77: 12862000 | X77: 5123727.76 | Y77: 147000 | Z77: 903505.59 | AA77: 3756043.97 | AB77: 3597012 | AC77: 407200 | AD77: =IFERROR(T77*'Inputs & Assumptions'!$P$37,"--") -> 387250 | AE77: =IFERROR(U77*'Inputs & Assumptions'!$P$38,"--") -> 4550 | AF77: =IFERROR(V77*'Inputs & Assumptions'!$P$39,"--") -> 153500 | AG77: =IFERROR(W77*'Inputs & Assumptions'!$P$40,"--") -> 6431000 | AH77: =IFERROR(X77*'Inputs & Assumptions'!$P$41,"--") -> 512372.776 | AI77: =IFERROR(Y77*'Inputs & Assumptions'!$P$42,"--") -> 14700 | AJ77: =IFERROR(Z77*'Inputs & Assumptions'!$P$43,"--") -> 451752.795 | AK77: =IFERROR(AA77*'Inputs & Assumptions'!$P$44,"--") -> 1878021.985 | AL77: =IFERROR(AB77*'Inputs & Assumptions'!$P$45,"--") -> 1798506 | AM77: =IFERROR(AC77*'Inputs & Assumptions'!$P$46,"--") -> 203600
A78: 0704 | B78: Cedar Grove Township | C78: Essex | D78: 3401311200 | E78: 75 | F78: 2217934700 | G78: 11434890.76 | H78: 0.5155648072 | I78: 5613132.2 | J78: 2711.571983 | K78: 2.423372898 | L78: 11524304.65 | M78: 30789633 | N78: 53748828.41 | O78: 0.2127467909 | P78: 0.2144103414 | Q78: 0.5728428677 | R78: 16317 | S78: 344.0051603 | T78: 995750 | U78: 69390 | V78: 299408 | W78: 4974492.96 | X78: 3693998.14 | Y78: 239549.06 | Z78: 866946 | AA78: 1862115 | AB78: 1949644 | AC78: 273921 | AD78: =IFERROR(T78*'Inputs & Assumptions'!$P$37,"--") -> 99575 | AE78: =IFERROR(U78*'Inputs & Assumptions'!$P$38,"--") -> 6939 | AF78: =IFERROR(V78*'Inputs & Assumptions'!$P$39,"--") -> 149704 | AG78: =IFERROR(W78*'Inputs & Assumptions'!$P$40,"--") -> 2487246.48 | AH78: =IFERROR(X78*'Inputs & Assumptions'!$P$41,"--") -> 369399.814 | AI78: =IFERROR(Y78*'Inputs & Assumptions'!$P$42,"--") -> 23954.906 | AJ78: =IFERROR(Z78*'Inputs & Assumptions'!$P$43,"--") -> 433473 | AK78: =IFERROR(AA78*'Inputs & Assumptions'!$P$44,"--") -> 931057.5 | AL78: =IFERROR(AB78*'Inputs & Assumptions'!$P$45,"--") -> 974822 | AM78: =IFERROR(AC78*'Inputs & Assumptions'!$P$46,"--") -> 136960.5
A79: 1404 | B79: Chatham Borough | C79: Morris | D79: 3402712100 | E79: 76 | F79: 2112590517 | G79: 9369831.21 | H79: 0.4435233016 | I79: -- | J79: 1502.287422 | K79: 2.118590658 | L79: 6855653.12 | M79: 28531661 | N79: 44757145.33 | O79: 0.2093482759 | P79: 0.1531744947 | Q79: 0.6374772294 | R79: 12591 | S79: -- | T79: -- | U79: -- | V79: -- | W79: -- | X79: -- | Y79: -- | Z79: -- | AA79: -- | AB79: -- | AC79: -- | AD79: =IFERROR(T79*'Inputs & Assumptions'!$P$37,"--") -> -- | AE79: =IFERROR(U79*'Inputs & Assumptions'!$P$38,"--") -> -- | AF79: =IFERROR(V79*'Inputs & Assumptions'!$P$39,"--") -> -- | AG79: =IFERROR(W79*'Inputs & Assumptions'!$P$40,"--") -> -- | AH79: =IFERROR(X79*'Inputs & Assumptions'!$P$41,"--") -> -- | AI79: =IFERROR(Y79*'Inputs & Assumptions'!$P$42,"--") -> -- | AJ79: =IFERROR(Z79*'Inputs & Assumptions'!$P$43,"--") -> -- | AK79: =IFERROR(AA79*'Inputs & Assumptions'!$P$44,"--") -> -- | AL79: =IFERROR(AB79*'Inputs & Assumptions'!$P$45,"--") -> -- | AM79: =IFERROR(AC79*'Inputs & Assumptions'!$P$46,"--") -> --
A80: 1405 | B80: Chatham Township | C80: Morris | D80: 3402712130 | E80: 77 | F80: 3261779631 | G80: 11380992.7 | H80: 0.3489197306 | I80: 3884370.266 | J80: 5810.120224 | K80: 1.892415767 | L80: 9600166.32 | M80: 40745273 | N80: 61726432.02 | O80: 0.1843779452 | P80: 0.1555276404 | Q80: 0.6600944144 | R80: 12053 | S80: 322.2741447 | T80: 3507500.16 | U80: 150050 | V80: 361000 | W80: 3493600 | X80: 3002250 | Y80: 140500 | Z80: 1125285.5 | AA80: 0 | AB80: 1358795 | AC80: 70000 | AD80: =IFERROR(T80*'Inputs & Assumptions'!$P$37,"--") -> 350750.016 | AE80: =IFERROR(U80*'Inputs & Assumptions'!$P$38,"--") -> 15005 | AF80: =IFERROR(V80*'Inputs & Assumptions'!$P$39,"--") -> 180500 | AG80: =IFERROR(W80*'Inputs & Assumptions'!$P$40,"--") -> 1746800 | AH80: =IFERROR(X80*'Inputs & Assumptions'!$P$41,"--") -> 300225 | AI80: =IFERROR(Y80*'Inputs & Assumptions'!$P$42,"--") -> 14050 | AJ80: =IFERROR(Z80*'Inputs & Assumptions'!$P$43,"--") -> 562642.75 | AK80: =IFERROR(AA80*'Inputs & Assumptions'!$P$44,"--") -> 0 | AL80: =IFERROR(AB80*'Inputs & Assumptions'!$P$45,"--") -> 679397.5 | AM80: =IFERROR(AC80*'Inputs & Assumptions'!$P$46,"--") -> 35000
A81: 0409 | B81: Cherry Hill Township | C81: Camden | D81: 3400712280 | E81: 78 | F81: 7903566393 | G81: 46035405.78 | H81: 0.5824637068 | I81: 17865788.54 | J81: 15406.09003 | K81: 3.752227395 | L81: 71010028.62 | M81: 179514349 | N81: 296559783.4 | O81: 0.155231452 | P81: 0.2394459148 | Q81: 0.6053226332 | R81: 111543 | S81: 160.169518 | T81: 4510322 | U81: 658749 | V81: 1461484 | W81: 18626253.7 | X81: 11741355.91 | Y81: 0 | Z81: 3165765 | AA81: 2085000 | AB81: 6562890 | AC81: 448099 | AD81: =IFERROR(T81*'Inputs & Assumptions'!$P$37,"--") -> 451032.2 | AE81: =IFERROR(U81*'Inputs & Assumptions'!$P$38,"--") -> 65874.9 | AF81: =IFERROR(V81*'Inputs & Assumptions'!$P$39,"--") -> 730742 | AG81: =IFERROR(W81*'Inputs & Assumptions'!$P$40,"--") -> 9313126.85 | AH81: =IFERROR(X81*'Inputs & Assumptions'!$P$41,"--") -> 1174135.591 | AI81: =IFERROR(Y81*'Inputs & Assumptions'!$P$42,"--") -> 0 | AJ81: =IFERROR(Z81*'Inputs & Assumptions'!$P$43,"--") -> 1582882.5 | AK81: =IFERROR(AA81*'Inputs & Assumptions'!$P$44,"--") -> 1042500 | AL81: =IFERROR(AB81*'Inputs & Assumptions'!$P$45,"--") -> 3281445 | AM81: =IFERROR(AC81*'Inputs & Assumptions'!$P$46,"--") -> 224049.5
A82: 0410 | B82: Chesilhurst Borough | C82: Camden | D82: 3400712550 | E82: 79 | F82: 89644883 | G82: 1599289.55 | H82: 1.784027706 | I82: 778679.105 | J82: 1097.845516 | K82: 3.476326161 | L82: 725894.97 | M82: 791164 | N82: 3116348.52 | O82: 0.5131934184 | P82: 0.2329312544 | Q82: 0.2538753271 | R82: 1602 | S82: 486.0668571 | T82: 521000 | U82: 28151 | V82: 0 | W82: 924602.93 | X82: 369621.84 | Y82: 35839.31 | Z82: 0 | AA82: 56000 | AB82: 310382.85 | AC82: 75450 | AD82: =IFERROR(T82*'Inputs & Assumptions'!$P$37,"--") -> 52100 | AE82: =IFERROR(U82*'Inputs & Assumptions'!$P$38,"--") -> 2815.1 | AF82: =IFERROR(V82*'Inputs & Assumptions'!$P$39,"--") -> 0 | AG82: =IFERROR(W82*'Inputs & Assumptions'!$P$40,"--") -> 462301.465 | AH82: =IFERROR(X82*'Inputs & Assumptions'!$P$41,"--") -> 36962.184 | AI82: =IFERROR(Y82*'Inputs & Assumptions'!$P$42,"--") -> 3583.931 | AJ82: =IFERROR(Z82*'Inputs & Assumptions'!$P$43,"--") -> 0 | AK82: =IFERROR(AA82*'Inputs & Assumptions'!$P$44,"--") -> 28000 | AL82: =IFERROR(AB82*'Inputs & Assumptions'!$P$45,"--") -> 155191.425 | AM82: =IFERROR(AC82*'Inputs & Assumptions'!$P$46,"--") -> 37725
A83: 1406 | B83: Chester Borough | C83: Morris | D83: 3402712580 | E83: 80 | F83: 403668727 | G83: 3857423.3 | H83: 0.9555913158 | I83: 1150349.953 | J83: 1019.052538 | K83: 2.702398534 | L83: 1026319.46 | M83: 6024995 | N83: 10908737.76 | O83: 0.3536085829 | P83: 0.09408232947 | Q83: 0.5523090877 | R83: 4044 | S83: 284.4584454 | T83: 871635 | U83: 98600 | V83: 56500 | W83: 1363578.23 | X83: 1136915.9 | Y83: 80621.13 | Z83: 130913.27 | AA83: 141800 | AB83: 170354 | AC83: 0 | AD83: =IFERROR(T83*'Inputs & Assumptions'!$P$37,"--") -> 87163.5 | AE83: =IFERROR(U83*'Inputs & Assumptions'!$P$38,"--") -> 9860 | AF83: =IFERROR(V83*'Inputs & Assumptions'!$P$39,"--") -> 28250 | AG83: =IFERROR(W83*'Inputs & Assumptions'!$P$40,"--") -> 681789.115 | AH83: =IFERROR(X83*'Inputs & Assumptions'!$P$41,"--") -> 113691.59 | AI83: =IFERROR(Y83*'Inputs & Assumptions'!$P$42,"--") -> 8062.113 | AJ83: =IFERROR(Z83*'Inputs & Assumptions'!$P$43,"--") -> 65456.635 | AK83: =IFERROR(AA83*'Inputs & Assumptions'!$P$44,"--") -> 70900 | AL83: =IFERROR(AB83*'Inputs & Assumptions'!$P$45,"--") -> 85177 | AM83: =IFERROR(AC83*'Inputs & Assumptions'!$P$46,"--") -> 0
A84: 1407 | B84: Chester Township | C84: Morris | D84: 3402712610 | E84: 81 | F84: 1820470374 | G84: 9660110.39 | H84: 0.5306381542 | I84: 2677763.158 | J84: 18644.22236 | K84: 2.372900401 | L84: 4879558.42 | M84: 28658280 | N84: 43197948.81 | O84: 0.2236242844 | P84: 0.1129581046 | Q84: 0.663417611 | R84: 9542 | S84: 280.62913 | T84: 1103233.98 | U84: 199000 | V84: 185900 | W84: 2231799 | X84: 2017211 | Y84: 31660 | Z84: 627016.32 | AA84: 444000 | AB84: 1109210 | AC84: 87380 | AD84: =IFERROR(T84*'Inputs & Assumptions'!$P$37,"--") -> 110323.398 | AE84: =IFERROR(U84*'Inputs & Assumptions'!$P$38,"--") -> 19900 | AF84: =IFERROR(V84*'Inputs & Assumptions'!$P$39,"--") -> 92950 | AG84: =IFERROR(W84*'Inputs & Assumptions'!$P$40,"--") -> 1115899.5 | AH84: =IFERROR(X84*'Inputs & Assumptions'!$P$41,"--") -> 201721.1 | AI84: =IFERROR(Y84*'Inputs & Assumptions'!$P$42,"--") -> 3166 | AJ84: =IFERROR(Z84*'Inputs & Assumptions'!$P$43,"--") -> 313508.16 | AK84: =IFERROR(AA84*'Inputs & Assumptions'!$P$44,"--") -> 222000 | AL84: =IFERROR(AB84*'Inputs & Assumptions'!$P$45,"--") -> 554605 | AM84: =IFERROR(AC84*'Inputs & Assumptions'!$P$46,"--") -> 43690
A85: 0307 | B85: Chesterfield Township | C85: Burlington | D85: 3400512670 | E85: 82 | F85: 821807556 | G85: 2790755.43 | H85: 0.339587463 | I85: 1114436.172 | J85: 13639.28358 | K85: 2.939997573 | L85: 3384674.77 | M85: 17985692 | N85: 24161122.2 | O85: 0.1155060351 | P85: 0.1400876475 | Q85: 0.7444063174 | R85: 8490 | S85: 131.2645668 | T85: 986050 | U85: 41250 | V85: 163500 | W85: 1281164 | X85: 506884.57 | Y85: 22100 | Z85: 25000 | AA85: 0 | AB85: 447951.43 | AC85: 0 | AD85: =IFERROR(T85*'Inputs & Assumptions'!$P$37,"--") -> 98605 | AE85: =IFERROR(U85*'Inputs & Assumptions'!$P$38,"--") -> 4125 | AF85: =IFERROR(V85*'Inputs & Assumptions'!$P$39,"--") -> 81750 | AG85: =IFERROR(W85*'Inputs & Assumptions'!$P$40,"--") -> 640582 | AH85: =IFERROR(X85*'Inputs & Assumptions'!$P$41,"--") -> 50688.457 | AI85: =IFERROR(Y85*'Inputs & Assumptions'!$P$42,"--") -> 2210 | AJ85: =IFERROR(Z85*'Inputs & Assumptions'!$P$43,"--") -> 12500 | AK85: =IFERROR(AA85*'Inputs & Assumptions'!$P$44,"--") -> 0 | AL85: =IFERROR(AB85*'Inputs & Assumptions'!$P$45,"--") -> 223975.715 | AM85: =IFERROR(AC85*'Inputs & Assumptions'!$P$46,"--") -> 0
A86: 0308 | B86: Cinnaminson Township | C86: Burlington | D86: 3400512940 | E86: 83 | F86: 1610009289 | G86: 10194434.91 | H86: 0.6331910617 | I86: 3147232.154 | J86: 4751.272617 | K86: 3.366885939 | L86: 7169585.45 | M86: 36843156 | N86: 54207176.36 | O86: 0.1880643043 | P86: 0.1322626621 | Q86: 0.6796730336 | R86: 22657 | S86: 138.9077174 | T86: 987998.73 | U86: 103865 | V86: 267791 | W86: 3641462 | X86: 2990715.81 | Y86: 19657 | Z86: 0 | AA86: 25000 | AB86: 1333714 | AC86: 206050 | AD86: =IFERROR(T86*'Inputs & Assumptions'!$P$37,"--") -> 98799.873 | AE86: =IFERROR(U86*'Inputs & Assumptions'!$P$38,"--") -> 10386.5 | AF86: =IFERROR(V86*'Inputs & Assumptions'!$P$39,"--") -> 133895.5 | AG86: =IFERROR(W86*'Inputs & Assumptions'!$P$40,"--") -> 1820731 | AH86: =IFERROR(X86*'Inputs & Assumptions'!$P$41,"--") -> 299071.581 | AI86: =IFERROR(Y86*'Inputs & Assumptions'!$P$42,"--") -> 1965.7 | AJ86: =IFERROR(Z86*'Inputs & Assumptions'!$P$43,"--") -> 0 | AK86: =IFERROR(AA86*'Inputs & Assumptions'!$P$44,"--") -> 12500 | AL86: =IFERROR(AB86*'Inputs & Assumptions'!$P$45,"--") -> 666857 | AM86: =IFERROR(AC86*'Inputs & Assumptions'!$P$46,"--") -> 103025
A87: 0717 | B87: City of Orange Township | C87: Essex | D87: 3401313045 | E87: 84 | F87: 1290822711 | G87: 52520284 | H87: 4.06874496 | I87: 20794878.4 | J87: 1416.110939 | K87: 5.606525996 | L87: 6888630.85 | M87: 12961396 | N87: 72370310.85 | O87: 0.7257158824 | P87: 0.09518586792 | Q87: 0.1790982497 | R87: 35242 | S87: 590.0595426 | T87: 7577891 | U87: 31240 | V87: 595775 | W87: 26045494 | X87: 15442242 | Y87: 1985511 | Z87: 1131000 | AA87: 0 | AB87: 7573663 | AC87: 1236448 | AD87: =IFERROR(T87*'Inputs & Assumptions'!$P$37,"--") -> 757789.1 | AE87: =IFERROR(U87*'Inputs & Assumptions'!$P$38,"--") -> 3124 | AF87: =IFERROR(V87*'Inputs & Assumptions'!$P$39,"--") -> 297887.5 | AG87: =IFERROR(W87*'Inputs & Assumptions'!$P$40,"--") -> 13022747 | AH87: =IFERROR(X87*'Inputs & Assumptions'!$P$41,"--") -> 1544224.2 | AI87: =IFERROR(Y87*'Inputs & Assumptions'!$P$42,"--") -> 198551.1 | AJ87: =IFERROR(Z87*'Inputs & Assumptions'!$P$43,"--") -> 565500 | AK87: =IFERROR(AA87*'Inputs & Assumptions'!$P$44,"--") -> 0 | AL87: =IFERROR(AB87*'Inputs & Assumptions'!$P$45,"--") -> 3786831.5 | AM87: =IFERROR(AC87*'Inputs & Assumptions'!$P$46,"--") -> 618224
A88: 2002 | B88: Clark Township | C88: Union | D88: 3403913150 | E88: 85 | F88: 766296303 | G88: 18600258 | H88: 2.427293193 | I88: 5837300.9 | J88: 2734.86215 | K88: 8.744321435 | L88: 14382280.88 | M88: 34024873 | N88: 67007411.88 | O88: 0.2775850832 | P88: 0.2146371644 | Q88: 0.5077777524 | R88: 22630 | S88: 257.9452452 | T88: 2641112 | U88: 54946 | V88: 557178 | W88: 6556340 | X88: 2288092 | Y88: 252924 | Z88: 944127 | AA88: 0 | AB88: 2318499 | AC88: 251043 | AD88: =IFERROR(T88*'Inputs & Assumptions'!$P$37,"--") -> 264111.2 | AE88: =IFERROR(U88*'Inputs & Assumptions'!$P$38,"--") -> 5494.6 | AF88: =IFERROR(V88*'Inputs & Assumptions'!$P$39,"--") -> 278589 | AG88: =IFERROR(W88*'Inputs & Assumptions'!$P$40,"--") -> 3278170 | AH88: =IFERROR(X88*'Inputs & Assumptions'!$P$41,"--") -> 228809.2 | AI88: =IFERROR(Y88*'Inputs & Assumptions'!$P$42,"--") -> 25292.4 | AJ88: =IFERROR(Z88*'Inputs & Assumptions'!$P$43,"--") -> 472063.5 | AK88: =IFERROR(AA88*'Inputs & Assumptions'!$P$44,"--") -> 0 | AL88: =IFERROR(AB88*'Inputs & Assumptions'!$P$45,"--") -> 1159249.5 | AM88: =IFERROR(AC88*'Inputs & Assumptions'!$P$46,"--") -> 125521.5
A89: 0801 | B89: Clayton Borough | C89: Gloucester | D89: 3401513360 | E89: 86 | F89: 466743682 | G89: 4644251.29 | H89: 0.9950324919 | I89: 2095714.615 | J89: 4527.823961 | K89: 3.956186888 | L89: 3616323.06 | M89: 10204678 | N89: 18465252.35 | O89: 0.2515130149 | P89: 0.1958447679 | Q89: 0.5526422172 | R89: 9684 | S89: 216.4100181 | T89: 986563.58 | U89: 28150 | V89: 121600 | W89: 2224802.23 | X89: 1880806.42 | Y89: 20850 | Z89: 0 | AA89: 291500 | AB89: 791573 | AC89: 178680 | AD89: =IFERROR(T89*'Inputs & Assumptions'!$P$37,"--") -> 98656.358 | AE89: =IFERROR(U89*'Inputs & Assumptions'!$P$38,"--") -> 2815 | AF89: =IFERROR(V89*'Inputs & Assumptions'!$P$39,"--") -> 60800 | AG89: =IFERROR(W89*'Inputs & Assumptions'!$P$40,"--") -> 1112401.115 | AH89: =IFERROR(X89*'Inputs & Assumptions'!$P$41,"--") -> 188080.642 | AI89: =IFERROR(Y89*'Inputs & Assumptions'!$P$42,"--") -> 2085 | AJ89: =IFERROR(Z89*'Inputs & Assumptions'!$P$43,"--") -> 0 | AK89: =IFERROR(AA89*'Inputs & Assumptions'!$P$44,"--") -> 145750 | AL89: =IFERROR(AB89*'Inputs & Assumptions'!$P$45,"--") -> 395786.5 | AM89: =IFERROR(AC89*'Inputs & Assumptions'!$P$46,"--") -> 89340
A90: 0411 | B90: Clementon Borough | C90: Camden | D90: 3400713420 | E90: 87 | F90: 249342910 | G90: 4113596.18 | H90: 1.649774674 | I90: 1567553.063 | J90: 1211.381743 | K90: 4.298600369 | L90: 2190453.07 | M90: 4414206 | N90: 10718255.25 | O90: 0.3837934518 | P90: 0.2043665708 | Q90: 0.4118399774 | R90: 5828 | S90: 268.969297 | T90: 598686 | U90: 16123 | V90: 127550 | W90: 1717576.82 | X90: 1490500 | Y90: 27275.53 | Z90: 0 | AA90: 142500 | AB90: 600262.4 | AC90: 120700 | AD90: =IFERROR(T90*'Inputs & Assumptions'!$P$37,"--") -> 59868.6 | AE90: =IFERROR(U90*'Inputs & Assumptions'!$P$38,"--") -> 1612.3 | AF90: =IFERROR(V90*'Inputs & Assumptions'!$P$39,"--") -> 63775 | AG90: =IFERROR(W90*'Inputs & Assumptions'!$P$40,"--") -> 858788.41 | AH90: =IFERROR(X90*'Inputs & Assumptions'!$P$41,"--") -> 149050 | AI90: =IFERROR(Y90*'Inputs & Assumptions'!$P$42,"--") -> 2727.553 | AJ90: =IFERROR(Z90*'Inputs & Assumptions'!$P$43,"--") -> 0 | AK90: =IFERROR(AA90*'Inputs & Assumptions'!$P$44,"--") -> 71250 | AL90: =IFERROR(AB90*'Inputs & Assumptions'!$P$45,"--") -> 300131.2 | AM90: =IFERROR(AC90*'Inputs & Assumptions'!$P$46,"--") -> 60350
A91: 0206 | B91: Cliffside Park Borough | C91: Bergen | D91: 3400313570 | E91: 88 | F91: 2932676218 | G91: 28153516 | H91: 0.9599940091 | I91: 7761915.8 | J91: 611.6945414 | K91: 2.487948554 | L91: 8869600.57 | M91: 35940359 | N91: 72963475.57 | O91: 0.3858576607 | P91: 0.1215621995 | Q91: 0.4925801398 | R91: 26831 | S91: 289.2890984 | T91: 2624000 | U91: 25500 | V91: 399000 | W91: 8814390 | X91: 3207943 | Y91: 243000 | Z91: 1178375 | AA91: 900000 | AB91: 2699478 | AC91: 312500 | AD91: =IFERROR(T91*'Inputs & Assumptions'!$P$37,"--") -> 262400 | AE91: =IFERROR(U91*'Inputs & Assumptions'!$P$38,"--") -> 2550 | AF91: =IFERROR(V91*'Inputs & Assumptions'!$P$39,"--") -> 199500 | AG91: =IFERROR(W91*'Inputs & Assumptions'!$P$40,"--") -> 4407195 | AH91: =IFERROR(X91*'Inputs & Assumptions'!$P$41,"--") -> 320794.3 | AI91: =IFERROR(Y91*'Inputs & Assumptions'!$P$42,"--") -> 24300 | AJ91: =IFERROR(Z91*'Inputs & Assumptions'!$P$43,"--") -> 589187.5 | AK91: =IFERROR(AA91*'Inputs & Assumptions'!$P$44,"--") -> 450000 | AL91: =IFERROR(AB91*'Inputs & Assumptions'!$P$45,"--") -> 1349739 | AM91: =IFERROR(AC91*'Inputs & Assumptions'!$P$46,"--") -> 156250
A92: 1602 | B92: Clifton City | C92: Passaic | D92: 3403113690 | E92: 89 | F92: 5334050063 | G92: 86152592 | H92: 1.615144046 | I92: 33272578.4 | J92: 7216.053885 | K92: 5.492257071 | L92: 71578489.78 | M92: 135228660 | N92: 292959741.8 | O92: 0.2940765563 | P92: 0.2443287578 | Q92: 0.4615946859 | R92: 111431 | S92: 298.5935548 | T92: 4875302 | U92: 745900 | V92: 970450 | W92: 36877890 | X92: 14060463 | Y92: 6421174 | Z92: 3479965 | AA92: 6225000 | AB92: 12653384 | AC92: 1117900 | AD92: =IFERROR(T92*'Inputs & Assumptions'!$P$37,"--") -> 487530.2 | AE92: =IFERROR(U92*'Inputs & Assumptions'!$P$38,"--") -> 74590 | AF92: =IFERROR(V92*'Inputs & Assumptions'!$P$39,"--") -> 485225 | AG92: =IFERROR(W92*'Inputs & Assumptions'!$P$40,"--") -> 18438945 | AH92: =IFERROR(X92*'Inputs & Assumptions'!$P$41,"--") -> 1406046.3 | AI92: =IFERROR(Y92*'Inputs & Assumptions'!$P$42,"--") -> 642117.4 | AJ92: =IFERROR(Z92*'Inputs & Assumptions'!$P$43,"--") -> 1739982.5 | AK92: =IFERROR(AA92*'Inputs & Assumptions'!$P$44,"--") -> 3112500 | AL92: =IFERROR(AB92*'Inputs & Assumptions'!$P$45,"--") -> 6326692 | AM92: =IFERROR(AC92*'Inputs & Assumptions'!$P$46,"--") -> 558950
A93: 1005 | B93: Clinton Town | C93: Hunterdon | D93: 3401913720 | E93: 90 | F93: 392357050 | G93: 3342852 | H93: 0.8519923371 | I93: 1624689.147 | J93: 861.7529766 | K93: 3.232564319 | L93: 1558087 | M93: 7782255 | N93: 12683194 | O93: 0.263565471 | P93: 0.1228465795 | Q93: 0.6135879495 | R93: 4876 | S93: 333.2012196 | T93: 494931 | U93: 100850 | V93: 82000 | W93: 1328325.35 | X93: 4550198.72 | Y93: 11270 | Z93: 0 | AA93: 102000 | AB93: 705603 | AC93: 0 | AD93: =IFERROR(T93*'Inputs & Assumptions'!$P$37,"--") -> 49493.1 | AE93: =IFERROR(U93*'Inputs & Assumptions'!$P$38,"--") -> 10085 | AF93: =IFERROR(V93*'Inputs & Assumptions'!$P$39,"--") -> 41000 | AG93: =IFERROR(W93*'Inputs & Assumptions'!$P$40,"--") -> 664162.675 | AH93: =IFERROR(X93*'Inputs & Assumptions'!$P$41,"--") -> 455019.872 | AI93: =IFERROR(Y93*'Inputs & Assumptions'!$P$42,"--") -> 1127 | AJ93: =IFERROR(Z93*'Inputs & Assumptions'!$P$43,"--") -> 0 | AK93: =IFERROR(AA93*'Inputs & Assumptions'!$P$44,"--") -> 51000 | AL93: =IFERROR(AB93*'Inputs & Assumptions'!$P$45,"--") -> 352801.5 | AM93: =IFERROR(AC93*'Inputs & Assumptions'!$P$46,"--") -> 0
A94: 1006 | B94: Clinton Township | C94: Hunterdon | D94: 3401913750 | E94: 91 | F94: 2149909400 | G94: 9341524.49 | H94: 0.4345078211 | I94: 2852411.81 | J94: 19115.92238 | K94: 2.694333089 | L94: 8628378.86 | M94: 39955817 | N94: 57925720.35 | O94: 0.1612672995 | P94: 0.1489559182 | Q94: 0.6897767824 | R94: 17829 | S94: 159.9872012 | T94: 1146766 | U94: 111700 | V94: 300000 | W94: 3200000 | X94: 1228600 | Y94: 5000 | Z94: 0 | AA94: 0 | AB94: 1338410.42 | AC94: 368000 | AD94: =IFERROR(T94*'Inputs & Assumptions'!$P$37,"--") -> 114676.6 | AE94: =IFERROR(U94*'Inputs & Assumptions'!$P$38,"--") -> 11170 | AF94: =IFERROR(V94*'Inputs & Assumptions'!$P$39,"--") -> 150000 | AG94: =IFERROR(W94*'Inputs & Assumptions'!$P$40,"--") -> 1600000 | AH94: =IFERROR(X94*'Inputs & Assumptions'!$P$41,"--") -> 122860 | AI94: =IFERROR(Y94*'Inputs & Assumptions'!$P$42,"--") -> 500 | AJ94: =IFERROR(Z94*'Inputs & Assumptions'!$P$43,"--") -> 0 | AK94: =IFERROR(AA94*'Inputs & Assumptions'!$P$44,"--") -> 0 | AL94: =IFERROR(AB94*'Inputs & Assumptions'!$P$45,"--") -> 669205.21 | AM94: =IFERROR(AC94*'Inputs & Assumptions'!$P$46,"--") -> 184000
A95: 0207 | B95: Closter Borough | C95: Bergen | D95: 3400313810 | E95: 92 | F95: 2269970300 | G95: 12770454 | H95: 0.5625824267 | I95: 3797380.2 | J95: 2022.550045 | K95: 2.240826928 | L95: 5687608.75 | M95: 32408043 | N95: 50866105.75 | O95: 0.2510601866 | P95: 0.1118152976 | Q95: 0.6371245159 | R95: 11128 | S95: 341.2455248 | T95: 1350150 | U95: 73150 | V95: 344350 | W95: 3875362 | X95: 2223369 | Y95: 160053 | Z95: 767704 | AA95: 303000 | AB95: 1424000 | AC95: 119000 | AD95: =IFERROR(T95*'Inputs & Assumptions'!$P$37,"--") -> 135015 | AE95: =IFERROR(U95*'Inputs & Assumptions'!$P$38,"--") -> 7315 | AF95: =IFERROR(V95*'Inputs & Assumptions'!$P$39,"--") -> 172175 | AG95: =IFERROR(W95*'Inputs & Assumptions'!$P$40,"--") -> 1937681 | AH95: =IFERROR(X95*'Inputs & Assumptions'!$P$41,"--") -> 222336.9 | AI95: =IFERROR(Y95*'Inputs & Assumptions'!$P$42,"--") -> 16005.3 | AJ95: =IFERROR(Z95*'Inputs & Assumptions'!$P$43,"--") -> 383852 | AK95: =IFERROR(AA95*'Inputs & Assumptions'!$P$44,"--") -> 151500 | AL95: =IFERROR(AB95*'Inputs & Assumptions'!$P$45,"--") -> 712000 | AM95: =IFERROR(AC95*'Inputs & Assumptions'!$P$46,"--") -> 59500
A96: 0412 | B96: Collingswood Borough | C96: Camden | D96: 3400714260 | E96: 93 | F96: 1068015900 | G96: 11499948 | H96: 1.076758127 | I96: 4657735.184 | J96: 1171.212556 | K96: 3.585845684 | L96: 8741753.05 | M96: 18055701 | N96: 38297402.05 | O96: 0.3002801074 | P96: 0.2282596882 | Q96: 0.4714602044 | R96: 17578 | S96: 264.9752636 | T96: 1022000 | U96: 95000 | V96: 141000 | W96: 5050034.1 | X96: 4142646.03 | Y96: 451291.26 | Z96: 637500 | AA96: 406254.79 | AB96: 1730394.02 | AC96: 208100 | AD96: =IFERROR(T96*'Inputs & Assumptions'!$P$37,"--") -> 102200 | AE96: =IFERROR(U96*'Inputs & Assumptions'!$P$38,"--") -> 9500 | AF96: =IFERROR(V96*'Inputs & Assumptions'!$P$39,"--") -> 70500 | AG96: =IFERROR(W96*'Inputs & Assumptions'!$P$40,"--") -> 2525017.05 | AH96: =IFERROR(X96*'Inputs & Assumptions'!$P$41,"--") -> 414264.603 | AI96: =IFERROR(Y96*'Inputs & Assumptions'!$P$42,"--") -> 45129.126 | AJ96: =IFERROR(Z96*'Inputs & Assumptions'!$P$43,"--") -> 318750 | AK96: =IFERROR(AA96*'Inputs & Assumptions'!$P$44,"--") -> 203127.395 | AL96: =IFERROR(AB96*'Inputs & Assumptions'!$P$45,"--") -> 865197.01 | AM96: =IFERROR(AC96*'Inputs & Assumptions'!$P$46,"--") -> 104050
A97: 1309 | B97: Colts Neck Township | C97: Monmouth | D97: 3402514560 | E97: 94 | F97: 3004574391 | G97: 8173590.75 | H97: 0.2720382219 | I97: 2581946.959 | J97: 19657.74913 | K97: 1.763339779 | L97: 8585422.67 | M97: 36221842 | N97: 52980855.42 | O97: 0.1542744202 | P97: 0.1620476416 | Q97: 0.6836779382 | R97: 12227 | S97: 211.1676584 | T97: 1070350.49 | U97: 168249.71 | V97: 62615.63 | W97: 2720970 | X97: 1334332.89 | Y97: 164340.95 | Z97: 52385 | AA97: 589757.64 | AB97: 1102656 | AC97: 88054.84 | AD97: =IFERROR(T97*'Inputs & Assumptions'!$P$37,"--") -> 107035.049 | AE97: =IFERROR(U97*'Inputs & Assumptions'!$P$38,"--") -> 16824.971 | AF97: =IFERROR(V97*'Inputs & Assumptions'!$P$39,"--") -> 31307.815 | AG97: =IFERROR(W97*'Inputs & Assumptions'!$P$40,"--") -> 1360485 | AH97: =IFERROR(X97*'Inputs & Assumptions'!$P$41,"--") -> 133433.289 | AI97: =IFERROR(Y97*'Inputs & Assumptions'!$P$42,"--") -> 16434.095 | AJ97: =IFERROR(Z97*'Inputs & Assumptions'!$P$43,"--") -> 26192.5 | AK97: =IFERROR(AA97*'Inputs & Assumptions'!$P$44,"--") -> 294878.82 | AL97: =IFERROR(AB97*'Inputs & Assumptions'!$P$45,"--") -> 551328 | AM97: =IFERROR(AC97*'Inputs & Assumptions'!$P$46,"--") -> 44027.42
A98: 0602 | B98: Commercial Township | C98: Cumberland | D98: 3401114710 | E98: 95 | F98: 276167700 | G98: 1563943.67 | H98: 0.5663021671 | I98: 532529.976 | J98: 20424.64556 | K98: 2.457627662 | L98: 2993226.12 | M98: 2230004 | N98: 6787173.79 | O98: 0.230426348 | P98: 0.4410121521 | Q98: 0.3285614998 | R98: 5340 | S98: 99.72471461 | T98: 684305 | U98: 6600 | V98: 143240 | W98: 20220 | X98: 1757929.76 | Y98: 65500 | Z98: 34088 | AA98: 154800 | AB98: 147785 | AC98: 62060 | AD98: =IFERROR(T98*'Inputs & Assumptions'!$P$37,"--") -> 68430.5 | AE98: =IFERROR(U98*'Inputs & Assumptions'!$P$38,"--") -> 660 | AF98: =IFERROR(V98*'Inputs & Assumptions'!$P$39,"--") -> 71620 | AG98: =IFERROR(W98*'Inputs & Assumptions'!$P$40,"--") -> 10110 | AH98: =IFERROR(X98*'Inputs & Assumptions'!$P$41,"--") -> 175792.976 | AI98: =IFERROR(Y98*'Inputs & Assumptions'!$P$42,"--") -> 6550 | AJ98: =IFERROR(Z98*'Inputs & Assumptions'!$P$43,"--") -> 17044 | AK98: =IFERROR(AA98*'Inputs & Assumptions'!$P$44,"--") -> 77400 | AL98: =IFERROR(AB98*'Inputs & Assumptions'!$P$45,"--") -> 73892.5 | AM98: =IFERROR(AC98*'Inputs & Assumptions'!$P$46,"--") -> 31030
A99: 0106 | B99: Corbin City | C99: Atlantic | D99: 3400115160 | E99: 96 | F99: 50863400 | G99: 170850 | H99: 0.3358996843 | I99: 65881.7 | J99: 4926.259974 | K99: 1.899386789 | L99: 274183.7 | M99: 521059 | N99: 966092.7 | O99: 0.1768463834 | P99: 0.2838068231 | Q99: 0.5393467935 | R99: 624 | S99: 105.5796474 | T99: 196578 | U99: 26548 | V99: 0 | W99: 10919 | X99: 245225 | Y99: 3501 | Z99: 0 | AA99: 0 | AB99: 21474 | AC99: 5000 | AD99: =IFERROR(T99*'Inputs & Assumptions'!$P$37,"--") -> 19657.8 | AE99: =IFERROR(U99*'Inputs & Assumptions'!$P$38,"--") -> 2654.8 | AF99: =IFERROR(V99*'Inputs & Assumptions'!$P$39,"--") -> 0 | AG99: =IFERROR(W99*'Inputs & Assumptions'!$P$40,"--") -> 5459.5 | AH99: =IFERROR(X99*'Inputs & Assumptions'!$P$41,"--") -> 24522.5 | AI99: =IFERROR(Y99*'Inputs & Assumptions'!$P$42,"--") -> 350.1 | AJ99: =IFERROR(Z99*'Inputs & Assumptions'!$P$43,"--") -> 0 | AK99: =IFERROR(AA99*'Inputs & Assumptions'!$P$44,"--") -> 0 | AL99: =IFERROR(AB99*'Inputs & Assumptions'!$P$45,"--") -> 10737 | AM99: =IFERROR(AC99*'Inputs & Assumptions'!$P$46,"--") -> 2500
A100: 1202 | B100: Cranbury Township | C100: Middlesex | D100: 3402315550 | E100: 97 | F100: 1838565181 | G100: 7349428.63 | H100: 0.3997371813 | I100: 2768852.107 | J100: 8501.251164 | K100: 1.779034955 | L100: 7441509.61 | M100: 17917779 | N100: 32708717.24 | O100: 0.2246932699 | P100: 0.2275084515 | Q100: 0.5477982786 | R100: 11728 | S100: 236.0890269 | T100: 934832.22 | U100: 281534 | V100: 149619 | W100: 3072007.21 | X100: 1161471.8 | Y100: 34312 | Z100: 606012 | AA100: 0 | AB100: 987636 | AC100: 240000 | AD100: =IFERROR(T100*'Inputs & Assumptions'!$P$37,"--") -> 93483.222 | AE100: =IFERROR(U100*'Inputs & Assumptions'!$P$38,"--") -> 28153.4 | AF100: =IFERROR(V100*'Inputs & Assumptions'!$P$39,"--") -> 74809.5 | AG100: =IFERROR(W100*'Inputs & Assumptions'!$P$40,"--") -> 1536003.605 | AH100: =IFERROR(X100*'Inputs & Assumptions'!$P$41,"--") -> 116147.18 | AI100: =IFERROR(Y100*'Inputs & Assumptions'!$P$42,"--") -> 3431.2 | AJ100: =IFERROR(Z100*'Inputs & Assumptions'!$P$43,"--") -> 303006 | AK100: =IFERROR(AA100*'Inputs & Assumptions'!$P$44,"--") -> 0 | AL100: =IFERROR(AB100*'Inputs & Assumptions'!$P$45,"--") -> 493818 | AM100: =IFERROR(AC100*'Inputs & Assumptions'!$P$46,"--") -> 120000
A101: 2003 | B101: Cranford Township | C101: Union | D101: 3403915640 | E101: 98 | F101: 1665559717 | G101: 25028834 | H101: 1.502728107 | I101: 9677108.596 | J101: 3094.438634 | K101: 6.561074593 | L101: 23953067.42 | M101: 60296714 | N101: 109278615.4 | O101: 0.229036888 | P101: 0.2191926328 | Q101: 0.5517704792 | R101: 33278 | S101: 290.7959792 | T101: 2694896 | U101: 247524.34 | V101: 714482 | W101: 11820041.46 | X101: 3638771.87 | Y101: 327842 | Z101: 1578834 | AA101: 0 | AB101: 3596799.89 | AC101: 262253 | AD101: =IFERROR(T101*'Inputs & Assumptions'!$P$37,"--") -> 269489.6 | AE101: =IFERROR(U101*'Inputs & Assumptions'!$P$38,"--") -> 24752.434 | AF101: =IFERROR(V101*'Inputs & Assumptions'!$P$39,"--") -> 357241 | AG101: =IFERROR(W101*'Inputs & Assumptions'!$P$40,"--") -> 5910020.73 | AH101: =IFERROR(X101*'Inputs & Assumptions'!$P$41,"--") -> 363877.187 | AI101: =IFERROR(Y101*'Inputs & Assumptions'!$P$42,"--") -> 32784.2 | AJ101: =IFERROR(Z101*'Inputs & Assumptions'!$P$43,"--") -> 789417 | AK101: =IFERROR(AA101*'Inputs & Assumptions'!$P$44,"--") -> 0 | AL101: =IFERROR(AB101*'Inputs & Assumptions'!$P$45,"--") -> 1798399.945 | AM101: =IFERROR(AC101*'Inputs & Assumptions'!$P$46,"--") -> 131126.5
A102: 0208 | B102: Cresskill Borough | C102: Bergen | D102: 3400315820 | E102: 99 | F102: 2157684600 | G102: 16655590 | H102: 0.7719195845 | I102: 5187986.5 | J102: 1321.407593 | K102: 2.431488685 | L102: 5580498.91 | M102: 30227768 | N102: 52463856.91 | O102: 0.3174678909 | P102: 0.1063684456 | Q102: 0.5761636635 | R102: 10437 | S102: 497.0764108 | T102: 1371000 | U102: 74800 | V102: 229600 | W102: 6028500 | X102: 3566000 | Y102: 117800 | Z102: 776839 | AA102: 257000 | AB102: 1960514 | AC102: 97600 | AD102: =IFERROR(T102*'Inputs & Assumptions'!$P$37,"--") -> 137100 | AE102: =IFERROR(U102*'Inputs & Assumptions'!$P$38,"--") -> 7480 | AF102: =IFERROR(V102*'Inputs & Assumptions'!$P$39,"--") -> 114800 | AG102: =IFERROR(W102*'Inputs & Assumptions'!$P$40,"--") -> 3014250 | AH102: =IFERROR(X102*'Inputs & Assumptions'!$P$41,"--") -> 356600 | AI102: =IFERROR(Y102*'Inputs & Assumptions'!$P$42,"--") -> 11780 | AJ102: =IFERROR(Z102*'Inputs & Assumptions'!$P$43,"--") -> 388419.5 | AK102: =IFERROR(AA102*'Inputs & Assumptions'!$P$44,"--") -> 128500 | AL102: =IFERROR(AB102*'Inputs & Assumptions'!$P$45,"--") -> 980257 | AM102: =IFERROR(AC102*'Inputs & Assumptions'!$P$46,"--") -> 48800
A103: 1310 | B103: Deal Borough | C103: Monmouth | D103: 3402516660 | E103: 100 | F103: 2469689062 | G103: 7627213.23 | H103: 0.3088329356 | I103: 2432986.7 | J103: 757.9116777 | K103: 0.713457253 | L103: 7945765.51 | M103: 2047197 | N103: 17620175.74 | O103: 0.4328681701 | P103: 0.4509470068 | Q103: 0.116184823 | R103: 860 | S103: 2829.054302 | T103: 1838802 | U103: 96650 | V103: 220800 | W103: 2565600 | X103: 434150 | Y103: 37000 | Z103: 0 | AA103: 250000 | AB103: 1163953 | AC103: 184300 | AD103: =IFERROR(T103*'Inputs & Assumptions'!$P$37,"--") -> 183880.2 | AE103: =IFERROR(U103*'Inputs & Assumptions'!$P$38,"--") -> 9665 | AF103: =IFERROR(V103*'Inputs & Assumptions'!$P$39,"--") -> 110400 | AG103: =IFERROR(W103*'Inputs & Assumptions'!$P$40,"--") -> 1282800 | AH103: =IFERROR(X103*'Inputs & Assumptions'!$P$41,"--") -> 43415 | AI103: =IFERROR(Y103*'Inputs & Assumptions'!$P$42,"--") -> 3700 | AJ103: =IFERROR(Z103*'Inputs & Assumptions'!$P$43,"--") -> 0 | AK103: =IFERROR(AA103*'Inputs & Assumptions'!$P$44,"--") -> 125000 | AL103: =IFERROR(AB103*'Inputs & Assumptions'!$P$45,"--") -> 581976.5 | AM103: =IFERROR(AC103*'Inputs & Assumptions'!$P$46,"--") -> 92150
A104: 0603 | B104: Deerfield Township | C104: Cumberland | D104: 3401116900 | E104: 101 | F104: 191333461 | G104: 172060.58 | H104: 0.0899270724 | I104: 239959.27 | J104: 10778.67251 | K104: 3.728437066 | L104: 2518354.1 | M104: 4443333 | N104: 7133747.68 | O104: 0.02411924107 | P104: 0.3530197889 | Q104: 0.62286097 | R104: 4220 | S104: 56.86238626 | T104: 454200 | U104: 22700 | V104: 33250 | W104: 227400 | X104: 145700 | Y104: 47380 | Z104: 0 | AA104: 660 | AB104: 84612.54 | AC104: 0 | AD104: =IFERROR(T104*'Inputs & Assumptions'!$P$37,"--") -> 45420 | AE104: =IFERROR(U104*'Inputs & Assumptions'!$P$38,"--") -> 2270 | AF104: =IFERROR(V104*'Inputs & Assumptions'!$P$39,"--") -> 16625 | AG104: =IFERROR(W104*'Inputs & Assumptions'!$P$40,"--") -> 113700 | AH104: =IFERROR(X104*'Inputs & Assumptions'!$P$41,"--") -> 14570 | AI104: =IFERROR(Y104*'Inputs & Assumptions'!$P$42,"--") -> 4738 | AJ104: =IFERROR(Z104*'Inputs & Assumptions'!$P$43,"--") -> 0 | AK104: =IFERROR(AA104*'Inputs & Assumptions'!$P$44,"--") -> 330 | AL104: =IFERROR(AB104*'Inputs & Assumptions'!$P$45,"--") -> 42306.27 | AM104: =IFERROR(AC104*'Inputs & Assumptions'!$P$46,"--") -> 0
A105: 0309 | B105: Delanco Township | C105: Burlington | D105: 3400517080 | E105: 102 | F105: 400355293 | G105: 4326901.63 | H105: 1.080765437 | I105: 1560690.9 | J105: 1508.868083 | K105: 3.263105731 | L105: 1711013.88 | M105: 7026101 | N105: 13064016.51 | O105: 0.3312076058 | P105: 0.1309715032 | Q105: 0.537820891 | R105: 5614 | S105: 277.9998041 | T105: 717125 | U105: 74250 | V105: 172550 | W105: 1741812 | X105: 966744 | Y105: 11860 | Z105: 80305 | AA105: 177000 | AB105: 526639 | AC105: 69080 | AD105: =IFERROR(T105*'Inputs & Assumptions'!$P$37,"--") -> 71712.5 | AE105: =IFERROR(U105*'Inputs & Assumptions'!$P$38,"--") -> 7425 | AF105: =IFERROR(V105*'Inputs & Assumptions'!$P$39,"--") -> 86275 | AG105: =IFERROR(W105*'Inputs & Assumptions'!$P$40,"--") -> 870906 | AH105: =IFERROR(X105*'Inputs & Assumptions'!$P$41,"--") -> 96674.4 | AI105: =IFERROR(Y105*'Inputs & Assumptions'!$P$42,"--") -> 1186 | AJ105: =IFERROR(Z105*'Inputs & Assumptions'!$P$43,"--") -> 40152.5 | AK105: =IFERROR(AA105*'Inputs & Assumptions'!$P$44,"--") -> 88500 | AL105: =IFERROR(AB105*'Inputs & Assumptions'!$P$45,"--") -> 263319.5 | AM105: =IFERROR(AC105*'Inputs & Assumptions'!$P$46,"--") -> 34540
A106: 1007 | B106: Delaware Township | C106: Hunterdon | D106: 3401917170 | E106: 103 | F106: 803676430 | G106: 3899865 | H106: 0.4852531261 | I106: 990626.624 | J106: 23459.57333 | K106: 2.582536768 | L106: 3307305.3 | M106: 13548069 | N106: 20755239.3 | O106: 0.1878978577 | P106: 0.1593479724 | Q106: 0.6527541699 | R106: 4915 | S106: 201.5517038 | T106: 546441.24 | U106: 57730 | V106: 110660 | W106: 1056435 | X106: 816020 | Y106: 28100 | Z106: 0 | AA106: 0 | AB106: 437350 | AC106: 87150 | AD106: =IFERROR(T106*'Inputs & Assumptions'!$P$37,"--") -> 54644.124 | AE106: =IFERROR(U106*'Inputs & Assumptions'!$P$38,"--") -> 5773 | AF106: =IFERROR(V106*'Inputs & Assumptions'!$P$39,"--") -> 55330 | AG106: =IFERROR(W106*'Inputs & Assumptions'!$P$40,"--") -> 528217.5 | AH106: =IFERROR(X106*'Inputs & Assumptions'!$P$41,"--") -> 81602 | AI106: =IFERROR(Y106*'Inputs & Assumptions'!$P$42,"--") -> 2810 | AJ106: =IFERROR(Z106*'Inputs & Assumptions'!$P$43,"--") -> 0 | AK106: =IFERROR(AA106*'Inputs & Assumptions'!$P$44,"--") -> 0 | AL106: =IFERROR(AB106*'Inputs & Assumptions'!$P$45,"--") -> 218675 | AM106: =IFERROR(AC106*'Inputs & Assumptions'!$P$46,"--") -> 43575
A107: 0310 | B107: Delran Township | C107: Burlington | D107: 3400517440 | E107: 104 | F107: 1425281690 | G107: 11598977.98 | H107: 0.8138024968 | I107: 4093017.2 | J107: 4243.199204 | K107: 3.723704831 | L107: 6495270.17 | M107: 34979035 | N107: 53073283.15 | O107: 0.2185464567 | P107: 0.1223830482 | Q107: 0.6590704951 | R107: 20491 | S107: 199.7470694 | T107: 3626189 | U107: 155700 | V107: 319300 | W107: 4151317 | X107: 2165803 | Y107: 59200 | Z107: 0 | AA107: 537000 | AB107: 1788374 | AC107: 188665 | AD107: =IFERROR(T107*'Inputs & Assumptions'!$P$37,"--") -> 362618.9 | AE107: =IFERROR(U107*'Inputs & Assumptions'!$P$38,"--") -> 15570 | AF107: =IFERROR(V107*'Inputs & Assumptions'!$P$39,"--") -> 159650 | AG107: =IFERROR(W107*'Inputs & Assumptions'!$P$40,"--") -> 2075658.5 | AH107: =IFERROR(X107*'Inputs & Assumptions'!$P$41,"--") -> 216580.3 | AI107: =IFERROR(Y107*'Inputs & Assumptions'!$P$42,"--") -> 5920 | AJ107: =IFERROR(Z107*'Inputs & Assumptions'!$P$43,"--") -> 0 | AK107: =IFERROR(AA107*'Inputs & Assumptions'!$P$44,"--") -> 268500 | AL107: =IFERROR(AB107*'Inputs & Assumptions'!$P$45,"--") -> 894187 | AM107: =IFERROR(AC107*'Inputs & Assumptions'!$P$46,"--") -> 94332.5
A108: 0209 | B108: Demarest Borough | C108: Bergen | D108: 3400317530 | E108: 105 | F108: 1354798010 | G108: 8037905 | H108: 0.5932917631 | I108: 2607575.7 | J108: 1326.364772 | K108: 2.703659109 | L108: 4115016.8 | M108: 24476198 | N108: 36629119.8 | O108: 0.219440299 | P108: 0.1123427705 | Q108: 0.6682169305 | R108: 5998 | S108: 434.7408636 | T108: 839513 | U108: 25150 | V108: 135350 | W108: 3048270 | X108: 1860736 | Y108: 58013 | Z108: 548487 | AA108: 200 | AB108: 865067 | AC108: 61095 | AD108: =IFERROR(T108*'Inputs & Assumptions'!$P$37,"--") -> 83951.3 | AE108: =IFERROR(U108*'Inputs & Assumptions'!$P$38,"--") -> 2515 | AF108: =IFERROR(V108*'Inputs & Assumptions'!$P$39,"--") -> 67675 | AG108: =IFERROR(W108*'Inputs & Assumptions'!$P$40,"--") -> 1524135 | AH108: =IFERROR(X108*'Inputs & Assumptions'!$P$41,"--") -> 186073.6 | AI108: =IFERROR(Y108*'Inputs & Assumptions'!$P$42,"--") -> 5801.3 | AJ108: =IFERROR(Z108*'Inputs & Assumptions'!$P$43,"--") -> 274243.5 | AK108: =IFERROR(AA108*'Inputs & Assumptions'!$P$44,"--") -> 100 | AL108: =IFERROR(AB108*'Inputs & Assumptions'!$P$45,"--") -> 432533.5 | AM108: =IFERROR(AC108*'Inputs & Assumptions'!$P$46,"--") -> 30547.5
A109: 0504 | B109: Dennis Township | C109: Cape May | D109: 3400917560 | E109: 106 | F109: 884654100 | G109: 2034714.56 | H109: 0.2300011451 | I109: 578979.216 | J109: 38669.25693 | K109: 1.741831944 | L109: 2505850.15 | M109: 10868623 | N109: 15409187.71 | O109: 0.1320455431 | P109: 0.1626205221 | Q109: 0.7053339348 | R109: 7175 | S109: 80.69396739 | T109: 769775 | U109: 52000 | V109: 12100 | W109: 304881 | X109: 1065307.16 | Y109: 121815 | Z109: 0 | AA109: 220000 | AB109: 219198 | AC109: 0 | AD109: =IFERROR(T109*'Inputs & Assumptions'!$P$37,"--") -> 76977.5 | AE109: =IFERROR(U109*'Inputs & Assumptions'!$P$38,"--") -> 5200 | AF109: =IFERROR(V109*'Inputs & Assumptions'!$P$39,"--") -> 6050 | AG109: =IFERROR(W109*'Inputs & Assumptions'!$P$40,"--") -> 152440.5 | AH109: =IFERROR(X109*'Inputs & Assumptions'!$P$41,"--") -> 106530.716 | AI109: =IFERROR(Y109*'Inputs & Assumptions'!$P$42,"--") -> 12181.5 | AJ109: =IFERROR(Z109*'Inputs & Assumptions'!$P$43,"--") -> 0 | AK109: =IFERROR(AA109*'Inputs & Assumptions'!$P$44,"--") -> 110000 | AL109: =IFERROR(AB109*'Inputs & Assumptions'!$P$45,"--") -> 109599 | AM109: =IFERROR(AC109*'Inputs & Assumptions'!$P$46,"--") -> 0
A110: 1408 | B110: Denville Township | C110: Morris | D110: 3402717650 | E110: 107 | F110: 3082129900 | G110: 15473379.3 | H110: 0.5020352744 | I110: 5898539.96 | J110: 7674.606659 | K110: 2.511240811 | L110: 8657216.59 | M110: 53269108 | N110: 77399703.89 | O110: 0.1999152261 | P110: 0.1118507714 | Q110: 0.6882340025 | R110: 25474 | S110: 231.5513842 | T110: 2245284 | U110: 104732 | V110: 386959 | W110: 5380902 | X110: 5177452 | Y110: 354868 | Z110: 1100244.72 | AA110: 677000 | AB110: 2409790 | AC110: 265717 | AD110: =IFERROR(T110*'Inputs & Assumptions'!$P$37,"--") -> 224528.4 | AE110: =IFERROR(U110*'Inputs & Assumptions'!$P$38,"--") -> 10473.2 | AF110: =IFERROR(V110*'Inputs & Assumptions'!$P$39,"--") -> 193479.5 | AG110: =IFERROR(W110*'Inputs & Assumptions'!$P$40,"--") -> 2690451 | AH110: =IFERROR(X110*'Inputs & Assumptions'!$P$41,"--") -> 517745.2 | AI110: =IFERROR(Y110*'Inputs & Assumptions'!$P$42,"--") -> 35486.8 | AJ110: =IFERROR(Z110*'Inputs & Assumptions'!$P$43,"--") -> 550122.36 | AK110: =IFERROR(AA110*'Inputs & Assumptions'!$P$44,"--") -> 338500 | AL110: =IFERROR(AB110*'Inputs & Assumptions'!$P$45,"--") -> 1204895 | AM110: =IFERROR(AC110*'Inputs & Assumptions'!$P$46,"--") -> 132858.5
A111: 0802 | B111: Deptford Township | C111: Gloucester | D111: 3401517710 | E111: 108 | F111: 2829992276 | G111: 24709327.5 | H111: 0.8731234961 | I111: 8201544.159 | J111: 11092.03883 | K111: 3.184431812 | L111: 20162324.8 | M111: 45247522 | N111: 90119174.3 | O111: 0.2741850188 | P111: 0.2237295776 | Q111: 0.5020854036 | R111: 41704 | S111: 196.6608517 | T111: 2489000 | U111: 396000 | V111: 545500 | W111: 8216050.87 | X111: 4054253.74 | Y111: 273000 | Z111: 957586.7 | AA111: 1400000 | AB111: 3295500 | AC111: 546000 | AD111: =IFERROR(T111*'Inputs & Assumptions'!$P$37,"--") -> 248900 | AE111: =IFERROR(U111*'Inputs & Assumptions'!$P$38,"--") -> 39600 | AF111: =IFERROR(V111*'Inputs & Assumptions'!$P$39,"--") -> 272750 | AG111: =IFERROR(W111*'Inputs & Assumptions'!$P$40,"--") -> 4108025.435 | AH111: =IFERROR(X111*'Inputs & Assumptions'!$P$41,"--") -> 405425.374 | AI111: =IFERROR(Y111*'Inputs & Assumptions'!$P$42,"--") -> 27300 | AJ111: =IFERROR(Z111*'Inputs & Assumptions'!$P$43,"--") -> 478793.35 | AK111: =IFERROR(AA111*'Inputs & Assumptions'!$P$44,"--") -> 700000 | AL111: =IFERROR(AB111*'Inputs & Assumptions'!$P$45,"--") -> 1647750 | AM111: =IFERROR(AC111*'Inputs & Assumptions'!$P$46,"--") -> 273000
A112: 1409 | B112: Dover Town | C112: Morris | D112: 3402718070 | E112: 109 | F112: 1294133500 | G112: 17360049.75 | H112: 1.341441957 | I112: 6269665.686 | J112: 1712.433907 | K112: 2.844991198 | L112: 3738481.42 | M112: 15719453 | N112: 36817984.17 | O112: 0.4715100552 | P112: 0.1015395466 | Q112: 0.4269503981 | R112: 23688 | S112: 264.6768696 | T112: 4908707.1 | U112: 21342 | V112: 608115 | W112: 6823343 | X112: 3039171.66 | Y112: 303353 | Z112: 476426 | AA112: 0 | AB112: 2538460.62 | AC112: 438472 | AD112: =IFERROR(T112*'Inputs & Assumptions'!$P$37,"--") -> 490870.71 | AE112: =IFERROR(U112*'Inputs & Assumptions'!$P$38,"--") -> 2134.2 | AF112: =IFERROR(V112*'Inputs & Assumptions'!$P$39,"--") -> 304057.5 | AG112: =IFERROR(W112*'Inputs & Assumptions'!$P$40,"--") -> 3411671.5 | AH112: =IFERROR(X112*'Inputs & Assumptions'!$P$41,"--") -> 303917.166 | AI112: =IFERROR(Y112*'Inputs & Assumptions'!$P$42,"--") -> 30335.3 | AJ112: =IFERROR(Z112*'Inputs & Assumptions'!$P$43,"--") -> 238213 | AK112: =IFERROR(AA112*'Inputs & Assumptions'!$P$44,"--") -> 0 | AL112: =IFERROR(AB112*'Inputs & Assumptions'!$P$45,"--") -> 1269230.31 | AM112: =IFERROR(AC112*'Inputs & Assumptions'!$P$46,"--") -> 219236
A113: 0604 | B113: Downe Township | C113: Cumberland | D113: 3401118220 | E113: 110 | F113: 165294300 | G113: 502154.1 | H113: 0.3037939602 | I113: 123282.2 | J113: 30977.91704 | K113: 2.218982064 | L113: 1644768.77 | M113: 1520928 | N113: 3667850.87 | O113: 0.1369069021 | P113: 0.4484284744 | Q113: 0.4146646235 | R113: 1449 | S113: 85.08088337 | T113: 407655 | U113: 16501 | V113: 0 | W113: 37000 | X113: 309101 | Y113: 15500 | Z113: 0 | AA113: 0 | AB113: 50813 | AC113: 9000 | AD113: =IFERROR(T113*'Inputs & Assumptions'!$P$37,"--") -> 40765.5 | AE113: =IFERROR(U113*'Inputs & Assumptions'!$P$38,"--") -> 1650.1 | AF113: =IFERROR(V113*'Inputs & Assumptions'!$P$39,"--") -> 0 | AG113: =IFERROR(W113*'Inputs & Assumptions'!$P$40,"--") -> 18500 | AH113: =IFERROR(X113*'Inputs & Assumptions'!$P$41,"--") -> 30910.1 | AI113: =IFERROR(Y113*'Inputs & Assumptions'!$P$42,"--") -> 1550 | AJ113: =IFERROR(Z113*'Inputs & Assumptions'!$P$43,"--") -> 0 | AK113: =IFERROR(AA113*'Inputs & Assumptions'!$P$44,"--") -> 0 | AL113: =IFERROR(AB113*'Inputs & Assumptions'!$P$45,"--") -> 25406.5 | AM113: =IFERROR(AC113*'Inputs & Assumptions'!$P$46,"--") -> 4500
A114: 0210 | B114: Dumont Borough | C114: Bergen | D114: 3400318400 | E114: 111 | F114: 1690378240 | G114: 19833511 | H114: 1.173317931 | I114: -- | J114: 1247.617014 | K114: 3.758612013 | L114: 5333570.6 | M114: 38367678 | N114: 63534759.6 | O114: 0.3121678767 | P114: 0.08394728545 | Q114: 0.6038848379 | R114: 19280 | S114: -- | T114: -- | U114: -- | V114: -- | W114: -- | X114: -- | Y114: -- | Z114: -- | AA114: -- | AB114: -- | AC114: -- | AD114: =IFERROR(T114*'Inputs & Assumptions'!$P$37,"--") -> -- | AE114: =IFERROR(U114*'Inputs & Assumptions'!$P$38,"--") -> -- | AF114: =IFERROR(V114*'Inputs & Assumptions'!$P$39,"--") -> -- | AG114: =IFERROR(W114*'Inputs & Assumptions'!$P$40,"--") -> -- | AH114: =IFERROR(X114*'Inputs & Assumptions'!$P$41,"--") -> -- | AI114: =IFERROR(Y114*'Inputs & Assumptions'!$P$42,"--") -> -- | AJ114: =IFERROR(Z114*'Inputs & Assumptions'!$P$43,"--") -> -- | AK114: =IFERROR(AA114*'Inputs & Assumptions'!$P$44,"--") -> -- | AL114: =IFERROR(AB114*'Inputs & Assumptions'!$P$45,"--") -> -- | AM114: =IFERROR(AC114*'Inputs & Assumptions'!$P$46,"--") -> --
A115: 1203 | B115: Dunellen Borough | C115: Middlesex | D115: 3402318490 | E115: 112 | F115: 650278700 | G115: 5667939 | H115: 0.8716168929 | I115: 1931020.345 | J115: 679.818749 | K115: 3.247974341 | L115: 2527087.32 | M115: 12925859 | N115: 21120885.32 | O115: 0.2683570747 | P115: 0.1196487402 | Q115: 0.6119941851 | R115: 8202 | S115: 235.4328633 | T115: 1334715 | U115: 26000 | V115: 103770 | W115: 2152067.35 | X115: 615700 | Y115: 66500 | Z115: 215297 | AA115: 59434.34 | AB115: 760989 | AC115: 161900 | AD115: =IFERROR(T115*'Inputs & Assumptions'!$P$37,"--") -> 133471.5 | AE115: =IFERROR(U115*'Inputs & Assumptions'!$P$38,"--") -> 2600 | AF115: =IFERROR(V115*'Inputs & Assumptions'!$P$39,"--") -> 51885 | AG115: =IFERROR(W115*'Inputs & Assumptions'!$P$40,"--") -> 1076033.675 | AH115: =IFERROR(X115*'Inputs & Assumptions'!$P$41,"--") -> 61570 | AI115: =IFERROR(Y115*'Inputs & Assumptions'!$P$42,"--") -> 6650 | AJ115: =IFERROR(Z115*'Inputs & Assumptions'!$P$43,"--") -> 107648.5 | AK115: =IFERROR(AA115*'Inputs & Assumptions'!$P$44,"--") -> 29717.17 | AL115: =IFERROR(AB115*'Inputs & Assumptions'!$P$45,"--") -> 380494.5 | AM115: =IFERROR(AC115*'Inputs & Assumptions'!$P$46,"--") -> 80950
A116: 1508 | B116: Eagleswood Township | C116: Ocean | D116: 3402918670 | E116: 113 | F116: 233917100 | G116: 994081.33 | H116: 0.4249716374 | I116: 163264.5 | J116: 10306.098 | K116: 2.711170945 | L116: 966760.12 | M116: 4381051 | N116: 6341892.45 | O116: 0.1567483741 | P116: 0.1524403209 | Q116: 0.6908113051 | R116: 1930 | S116: 84.59300518 | T116: 317750 | U116: 15700 | V116: 20150 | W116: 66800 | X116: 506720 | Y116: 3900 | Z116: 0 | AA116: 3000 | AB116: 67765 | AC116: 0 | AD116: =IFERROR(T116*'Inputs & Assumptions'!$P$37,"--") -> 31775 | AE116: =IFERROR(U116*'Inputs & Assumptions'!$P$38,"--") -> 1570 | AF116: =IFERROR(V116*'Inputs & Assumptions'!$P$39,"--") -> 10075 | AG116: =IFERROR(W116*'Inputs & Assumptions'!$P$40,"--") -> 33400 | AH116: =IFERROR(X116*'Inputs & Assumptions'!$P$41,"--") -> 50672 | AI116: =IFERROR(Y116*'Inputs & Assumptions'!$P$42,"--") -> 390 | AJ116: =IFERROR(Z116*'Inputs & Assumptions'!$P$43,"--") -> 0 | AK116: =IFERROR(AA116*'Inputs & Assumptions'!$P$44,"--") -> 1500 | AL116: =IFERROR(AB116*'Inputs & Assumptions'!$P$45,"--") -> 33882.5 | AM116: =IFERROR(AC116*'Inputs & Assumptions'!$P$46,"--") -> 0
A117: 1008 | B117: East Amwell Township | C117: Hunterdon | D117: 3401918820 | E117: 114 | F117: 671780893 | G117: 1631155 | H117: 0.2428105677 | I117: 226003.381 | J117: 18211.15702 | K117: 2.498021004 | L117: 2880940.81 | M117: 12269132 | N117: 16781227.81 | O117: 0.09720117136 | P117: 0.1716764019 | Q117: 0.7311224267 | R117: 4686 | S117: 48.22948805 | T117: 422100 | U117: 92350 | V117: 0 | W117: 39605 | X117: 496807 | Y117: 55241.81 | Z117: 0 | AA117: 100 | AB117: 144000 | AC117: 55002 | AD117: =IFERROR(T117*'Inputs & Assumptions'!$P$37,"--") -> 42210 | AE117: =IFERROR(U117*'Inputs & Assumptions'!$P$38,"--") -> 9235 | AF117: =IFERROR(V117*'Inputs & Assumptions'!$P$39,"--") -> 0 | AG117: =IFERROR(W117*'Inputs & Assumptions'!$P$40,"--") -> 19802.5 | AH117: =IFERROR(X117*'Inputs & Assumptions'!$P$41,"--") -> 49680.7 | AI117: =IFERROR(Y117*'Inputs & Assumptions'!$P$42,"--") -> 5524.181 | AJ117: =IFERROR(Z117*'Inputs & Assumptions'!$P$43,"--") -> 0 | AK117: =IFERROR(AA117*'Inputs & Assumptions'!$P$44,"--") -> 50 | AL117: =IFERROR(AB117*'Inputs & Assumptions'!$P$45,"--") -> 72000 | AM117: =IFERROR(AC117*'Inputs & Assumptions'!$P$46,"--") -> 27501
A118: 1204 | B118: East Brunswick Township | C118: Middlesex | D118: 3402319000 | E118: 115 | F118: 1901558438 | G118: 44269379.89 | H118: 2.328057819 | I118: 14451295.85 | J118: 13941.92058 | K118: 11.1293323 | L118: 29589897.47 | M118: 137771480 | N118: 211630757.4 | O118: 0.2091821645 | P118: 0.1398185114 | Q118: 0.6509993241 | R118: 65506 | S118: 220.6102624 | T118: 3773231 | U118: 670389 | V118: 25000 | W118: 13470400 | X118: 4924900 | Y118: 693288.5 | Z118: 2938450 | AA118: 3242000 | AB118: 6519480 | AC118: 694900 | AD118: =IFERROR(T118*'Inputs & Assumptions'!$P$37,"--") -> 377323.1 | AE118: =IFERROR(U118*'Inputs & Assumptions'!$P$38,"--") -> 67038.9 | AF118: =IFERROR(V118*'Inputs & Assumptions'!$P$39,"--") -> 12500 | AG118: =IFERROR(W118*'Inputs & Assumptions'!$P$40,"--") -> 6735200 | AH118: =IFERROR(X118*'Inputs & Assumptions'!$P$41,"--") -> 492490 | AI118: =IFERROR(Y118*'Inputs & Assumptions'!$P$42,"--") -> 69328.85 | AJ118: =IFERROR(Z118*'Inputs & Assumptions'!$P$43,"--") -> 1469225 | AK118: =IFERROR(AA118*'Inputs & Assumptions'!$P$44,"--") -> 1621000 | AL118: =IFERROR(AB118*'Inputs & Assumptions'!$P$45,"--") -> 3259740 | AM118: =IFERROR(AC118*'Inputs & Assumptions'!$P$46,"--") -> 347450
A119: 0803 | B119: East Greenwich Township | C119: Gloucester | D119: 3401519180 | E119: 116 | F119: 1211054600 | G119: 4161850 | H119: 0.343655026 | I119: 2193758.445 | J119: 9243.792894 | K119: 3.024252963 | L119: 9127610.62 | M119: 23335894 | N119: 36625354.62 | O119: 0.1136330294 | P119: 0.2492156244 | Q119: 0.6371513462 | R119: 12313 | S119: 178.1660396 | T119: 3141700 | U119: 24450 | V119: 231130 | W119: 2173816 | X119: 1046200 | Y119: 1653 | Z119: 0 | AA119: 15266.84 | AB119: 869603.45 | AC119: 254900 | AD119: =IFERROR(T119*'Inputs & Assumptions'!$P$37,"--") -> 314170 | AE119: =IFERROR(U119*'Inputs & Assumptions'!$P$38,"--") -> 2445 | AF119: =IFERROR(V119*'Inputs & Assumptions'!$P$39,"--") -> 115565 | AG119: =IFERROR(W119*'Inputs & Assumptions'!$P$40,"--") -> 1086908 | AH119: =IFERROR(X119*'Inputs & Assumptions'!$P$41,"--") -> 104620 | AI119: =IFERROR(Y119*'Inputs & Assumptions'!$P$42,"--") -> 165.3 | AJ119: =IFERROR(Z119*'Inputs & Assumptions'!$P$43,"--") -> 0 | AK119: =IFERROR(AA119*'Inputs & Assumptions'!$P$44,"--") -> 7633.42 | AL119: =IFERROR(AB119*'Inputs & Assumptions'!$P$45,"--") -> 434801.725 | AM119: =IFERROR(AC119*'Inputs & Assumptions'!$P$46,"--") -> 127450
A120: 1410 | B120: East Hanover Township | C120: Morris | D120: 3402719210 | E120: 117 | F120: 2533267846 | G120: 18731014 | H120: 0.7394012453 | I120: 5789971.76 | J120: 5039.882194 | K120: 2.389698891 | L120: 8482101.63 | M120: 33324358 | N120: 60537473.63 | O120: 0.3094118878 | P120: 0.140113241 | Q120: 0.5504748712 | R120: 26361 | S120: 219.6415826 | T120: 2018575 | U120: 66100 | V120: 380700 | W120: 5648990.77 | X120: 6424903.75 | Y120: 439765 | Z120: 1090119 | AA120: 0 | AB120: 2475255 | AC120: 195010 | AD120: =IFERROR(T120*'Inputs & Assumptions'!$P$37,"--") -> 201857.5 | AE120: =IFERROR(U120*'Inputs & Assumptions'!$P$38,"--") -> 6610 | AF120: =IFERROR(V120*'Inputs & Assumptions'!$P$39,"--") -> 190350 | AG120: =IFERROR(W120*'Inputs & Assumptions'!$P$40,"--") -> 2824495.385 | AH120: =IFERROR(X120*'Inputs & Assumptions'!$P$41,"--") -> 642490.375 | AI120: =IFERROR(Y120*'Inputs & Assumptions'!$P$42,"--") -> 43976.5 | AJ120: =IFERROR(Z120*'Inputs & Assumptions'!$P$43,"--") -> 545059.5 | AK120: =IFERROR(AA120*'Inputs & Assumptions'!$P$44,"--") -> 0 | AL120: =IFERROR(AB120*'Inputs & Assumptions'!$P$45,"--") -> 1237627.5 | AM120: =IFERROR(AC120*'Inputs & Assumptions'!$P$46,"--") -> 97505
A121: 0902 | B121: East Newark Borough | C121: Hudson | D121: 3401719360 | E121: 118 | F121: 159243816 | G121: 1880264.15 | H121: 1.180745474 | I121: -- | J121: 65.61510052 | K121: 2.606098745 | L121: 806807.94 | M121: 1462979 | N121: 4150051.09 | O121: 0.4530701211 | P121: 0.1944091585 | Q121: 0.3525207204 | R121: 2918 | S121: -- | T121: -- | U121: -- | V121: -- | W121: -- | X121: -- | Y121: -- | Z121: -- | AA121: -- | AB121: -- | AC121: -- | AD121: =IFERROR(T121*'Inputs & Assumptions'!$P$37,"--") -> -- | AE121: =IFERROR(U121*'Inputs & Assumptions'!$P$38,"--") -> -- | AF121: =IFERROR(V121*'Inputs & Assumptions'!$P$39,"--") -> -- | AG121: =IFERROR(W121*'Inputs & Assumptions'!$P$40,"--") -> -- | AH121: =IFERROR(X121*'Inputs & Assumptions'!$P$41,"--") -> -- | AI121: =IFERROR(Y121*'Inputs & Assumptions'!$P$42,"--") -> -- | AJ121: =IFERROR(Z121*'Inputs & Assumptions'!$P$43,"--") -> -- | AK121: =IFERROR(AA121*'Inputs & Assumptions'!$P$44,"--") -> -- | AL121: =IFERROR(AB121*'Inputs & Assumptions'!$P$45,"--") -> -- | AM121: =IFERROR(AC121*'Inputs & Assumptions'!$P$46,"--") -> --
A122: 0705 | B122: East Orange City | C122: Essex | D122: 3401319390 | E122: 119 | F122: 2434713214 | G122: 93249682 | H122: 3.830006814 | I122: -- | J122: 2513.656221 | K122: 5.469223145 | L122: 15591512.61 | M122: 24318704 | N122: 133159898.6 | O122: 0.7002835161 | P122: 0.1170886489 | Q122: 0.1826278351 | R122: 73701 | S122: -- | T122: -- | U122: -- | V122: -- | W122: -- | X122: -- | Y122: -- | Z122: -- | AA122: -- | AB122: -- | AC122: -- | AD122: =IFERROR(T122*'Inputs & Assumptions'!$P$37,"--") -> -- | AE122: =IFERROR(U122*'Inputs & Assumptions'!$P$38,"--") -> -- | AF122: =IFERROR(V122*'Inputs & Assumptions'!$P$39,"--") -> -- | AG122: =IFERROR(W122*'Inputs & Assumptions'!$P$40,"--") -> -- | AH122: =IFERROR(X122*'Inputs & Assumptions'!$P$41,"--") -> -- | AI122: =IFERROR(Y122*'Inputs & Assumptions'!$P$42,"--") -> -- | AJ122: =IFERROR(Z122*'Inputs & Assumptions'!$P$43,"--") -> -- | AK122: =IFERROR(AA122*'Inputs & Assumptions'!$P$44,"--") -> -- | AL122: =IFERROR(AB122*'Inputs & Assumptions'!$P$45,"--") -> -- | AM122: =IFERROR(AC122*'Inputs & Assumptions'!$P$46,"--") -> --
A123: 0212 | B123: East Rutherford Borough | C123: Bergen | D123: 3400319510 | E123: 120 | F123: 2275471060 | G123: 11795756.52 | H123: 0.5183874551 | I123: 6652760.19 | J123: 2375.36474 | K123: 1.818171583 | L123: 5808987.67 | M123: 23767224 | N123: 41371968.19 | O123: 0.2851147053 | P123: 0.1404087822 | Q123: 0.5744765125 | R123: 18011 | S123: 369.372061 | T123: 2012850 | U123: 62800 | V123: 234180 | W123: 7652000 | X123: 4624450 | Y123: 89000 | Z123: 800912.38 | AA123: 446000 | AB123: 2470348 | AC123: 344260 | AD123: =IFERROR(T123*'Inputs & Assumptions'!$P$37,"--") -> 201285 | AE123: =IFERROR(U123*'Inputs & Assumptions'!$P$38,"--") -> 6280 | AF123: =IFERROR(V123*'Inputs & Assumptions'!$P$39,"--") -> 117090 | AG123: =IFERROR(W123*'Inputs & Assumptions'!$P$40,"--") -> 3826000 | AH123: =IFERROR(X123*'Inputs & Assumptions'!$P$41,"--") -> 462445 | AI123: =IFERROR(Y123*'Inputs & Assumptions'!$P$42,"--") -> 8900 | AJ123: =IFERROR(Z123*'Inputs & Assumptions'!$P$43,"--") -> 400456.19 | AK123: =IFERROR(AA123*'Inputs & Assumptions'!$P$44,"--") -> 223000 | AL123: =IFERROR(AB123*'Inputs & Assumptions'!$P$45,"--") -> 1235174 | AM123: =IFERROR(AC123*'Inputs & Assumptions'!$P$46,"--") -> 172130
A124: 1101 | B124: East Windsor Township | C124: Mercer | D124: 3402119780 | E124: 121 | F124: 2821108003 | G124: 12213631.87 | H124: 0.4329374082 | I124: 6283550.6 | J124: 9963.114387 | K124: 3.28569562 | L124: 20144028.23 | M124: 60335362 | N124: 92693022.1 | O124: 0.1317643075 | P124: 0.2173197914 | Q124: 0.650915901 | R124: 32960 | S124: 190.6417051 | T124: 1366572 | U124: 60090 | V124: 404386 | W124: 7215089 | X124: 2349954 | Y124: 554305 | Z124: 0 | AA124: 914000 | AB124: 2721030 | AC124: 446412 | AD124: =IFERROR(T124*'Inputs & Assumptions'!$P$37,"--") -> 136657.2 | AE124: =IFERROR(U124*'Inputs & Assumptions'!$P$38,"--") -> 6009 | AF124: =IFERROR(V124*'Inputs & Assumptions'!$P$39,"--") -> 202193 | AG124: =IFERROR(W124*'Inputs & Assumptions'!$P$40,"--") -> 3607544.5 | AH124: =IFERROR(X124*'Inputs & Assumptions'!$P$41,"--") -> 234995.4 | AI124: =IFERROR(Y124*'Inputs & Assumptions'!$P$42,"--") -> 55430.5 | AJ124: =IFERROR(Z124*'Inputs & Assumptions'!$P$43,"--") -> 0 | AK124: =IFERROR(AA124*'Inputs & Assumptions'!$P$44,"--") -> 457000 | AL124: =IFERROR(AB124*'Inputs & Assumptions'!$P$45,"--") -> 1360515 | AM124: =IFERROR(AC124*'Inputs & Assumptions'!$P$46,"--") -> 223206
A125: 0311 | B125: Eastampton Township | C125: Burlington | D125: 3400518790 | E125: 122 | F125: 449612105 | G125: 4105635.15 | H125: 0.9131504922 | I125: 1659057.5 | J125: 3667.283777 | K125: 3.125301348 | L125: 1986408.03 | M125: 7959690 | N125: 14051733.18 | O125: 0.2921799822 | P125: 0.1413639161 | Q125: 0.5664561018 | R125: 6971 | S125: 237.9941902 | T125: 747635 | U125: 22700 | V125: 165000 | W125: 1917995 | X125: 515500 | Y125: 7000 | Z125: 45500 | AA125: 190800 | AB125: 740253 | AC125: 0 | AD125: =IFERROR(T125*'Inputs & Assumptions'!$P$37,"--") -> 74763.5 | AE125: =IFERROR(U125*'Inputs & Assumptions'!$P$38,"--") -> 2270 | AF125: =IFERROR(V125*'Inputs & Assumptions'!$P$39,"--") -> 82500 | AG125: =IFERROR(W125*'Inputs & Assumptions'!$P$40,"--") -> 958997.5 | AH125: =IFERROR(X125*'Inputs & Assumptions'!$P$41,"--") -> 51550 | AI125: =IFERROR(Y125*'Inputs & Assumptions'!$P$42,"--") -> 700 | AJ125: =IFERROR(Z125*'Inputs & Assumptions'!$P$43,"--") -> 22750 | AK125: =IFERROR(AA125*'Inputs & Assumptions'!$P$44,"--") -> 95400 | AL125: =IFERROR(AB125*'Inputs & Assumptions'!$P$45,"--") -> 370126.5 | AM125: =IFERROR(AC125*'Inputs & Assumptions'!$P$46,"--") -> 0
A126: 1311 | B126: Eatontown Borough | C126: Monmouth | D126: 3402519840 | E126: 123 | F126: 2302211131 | G126: 18486353.5 | H126: 0.8029825437 | I126: 5829679.753 | J126: 3738.026312 | K126: 2.279135401 | L126: 6758755.39 | M126: 27225400 | N126: 52470508.89 | O126: 0.3523189291 | P126: 0.1288105554 | Q126: 0.5188705156 | R126: 24222 | S126: 240.6770602 | T126: 1875088 | U126: 317720 | V126: 494953 | W126: 6989952.9 | X126: 4234758.03 | Y126: 43237 | Z126: 95450 | AA126: 331800 | AB126: 2344810 | AC126: 108233 | AD126: =IFERROR(T126*'Inputs & Assumptions'!$P$37,"--") -> 187508.8 | AE126: =IFERROR(U126*'Inputs & Assumptions'!$P$38,"--") -> 31772 | AF126: =IFERROR(V126*'Inputs & Assumptions'!$P$39,"--") -> 247476.5 | AG126: =IFERROR(W126*'Inputs & Assumptions'!$P$40,"--") -> 3494976.45 | AH126: =IFERROR(X126*'Inputs & Assumptions'!$P$41,"--") -> 423475.803 | AI126: =IFERROR(Y126*'Inputs & Assumptions'!$P$42,"--") -> 4323.7 | AJ126: =IFERROR(Z126*'Inputs & Assumptions'!$P$43,"--") -> 47725 | AK126: =IFERROR(AA126*'Inputs & Assumptions'!$P$44,"--") -> 165900 | AL126: =IFERROR(AB126*'Inputs & Assumptions'!$P$45,"--") -> 1172405 | AM126: =IFERROR(AC126*'Inputs & Assumptions'!$P$46,"--") -> 54116.5
A127: 0213 | B127: Edgewater Borough | C127: Bergen | D127: 3400320020 | E127: 124 | F127: 2964012792 | G127: 24178220 | H127: 0.8157258992 | I127: 7032749.4 | J127: 621.4789221 | K127: 1.944582883 | L127: 10074239.39 | M127: 23385226 | N127: 57637685.39 | O127: 0.4194863107 | P127: 0.1747856341 | Q127: 0.4057280552 | R127: 17529 | S127: 401.2065377 | T127: 3164589 | U127: 102100 | V127: 456500 | W127: 7512600 | X127: 2280700 | Y127: 330850 | Z127: 1335291 | AA127: 1222495 | AB127: 2167965 | AC127: 195000 | AD127: =IFERROR(T127*'Inputs & Assumptions'!$P$37,"--") -> 316458.9 | AE127: =IFERROR(U127*'Inputs & Assumptions'!$P$38,"--") -> 10210 | AF127: =IFERROR(V127*'Inputs & Assumptions'!$P$39,"--") -> 228250 | AG127: =IFERROR(W127*'Inputs & Assumptions'!$P$40,"--") -> 3756300 | AH127: =IFERROR(X127*'Inputs & Assumptions'!$P$41,"--") -> 228070 | AI127: =IFERROR(Y127*'Inputs & Assumptions'!$P$42,"--") -> 33085 | AJ127: =IFERROR(Z127*'Inputs & Assumptions'!$P$43,"--") -> 667645.5 | AK127: =IFERROR(AA127*'Inputs & Assumptions'!$P$44,"--") -> 611247.5 | AL127: =IFERROR(AB127*'Inputs & Assumptions'!$P$45,"--") -> 1083982.5 | AM127: =IFERROR(AC127*'Inputs & Assumptions'!$P$46,"--") -> 97500
A128: 0312 | B128: Edgewater Park Township | C128: Burlington | D128: 3400520050 | E128: 125 | F128: 578178260 | G128: 5369511.7 | H128: 0.9286948458 | I128: 1894181.617 | J128: 1868.425787 | K128: 3.181338818 | L128: 2225417.72 | M128: 10798880 | N128: 18393809.42 | O128: 0.2919195028 | P128: 0.1209873207 | Q128: 0.5870931765 | R128: 9984 | S128: 189.7217164 | T128: 858850 | U128: 20700 | V128: 266300 | W128: 2060049.6 | X128: 937522.12 | Y128: 9100 | Z128: 0 | AA128: 282767.34 | AB128: 611472 | AC128: 202539.87 | AD128: =IFERROR(T128*'Inputs & Assumptions'!$P$37,"--") -> 85885 | AE128: =IFERROR(U128*'Inputs & Assumptions'!$P$38,"--") -> 2070 | AF128: =IFERROR(V128*'Inputs & Assumptions'!$P$39,"--") -> 133150 | AG128: =IFERROR(W128*'Inputs & Assumptions'!$P$40,"--") -> 1030024.8 | AH128: =IFERROR(X128*'Inputs & Assumptions'!$P$41,"--") -> 93752.212 | AI128: =IFERROR(Y128*'Inputs & Assumptions'!$P$42,"--") -> 910 | AJ128: =IFERROR(Z128*'Inputs & Assumptions'!$P$43,"--") -> 0 | AK128: =IFERROR(AA128*'Inputs & Assumptions'!$P$44,"--") -> 141383.67 | AL128: =IFERROR(AB128*'Inputs & Assumptions'!$P$45,"--") -> 305736 | AM128: =IFERROR(AC128*'Inputs & Assumptions'!$P$46,"--") -> 101269.935
A129: 1205 | B129: Edison Township | C129: Middlesex | D129: 3402320230 | E129: 126 | F129: 7261505066 | G129: 103978379.2 | H129: 1.431912232 | I129: 46559792.14 | J129: 19243.40522 | K129: 5.628138044 | L129: 74852195.94 | M129: 229856954 | N129: 408687529.2 | O129: 0.25442024 | P129: 0.1831526303 | Q129: 0.5624271297 | R129: 154525 | S129: 301.3091224 | T129: 33751703 | U129: 0 | V129: 1905254 | W129: 56607408 | X129: 6213562 | Y129: 2087800 | Z129: 9056115.38 | AA129: 1130730 | AB129: 15268303.91 | AC129: 741160 | AD129: =IFERROR(T129*'Inputs & Assumptions'!$P$37,"--") -> 3375170.3 | AE129: =IFERROR(U129*'Inputs & Assumptions'!$P$38,"--") -> 0 | AF129: =IFERROR(V129*'Inputs & Assumptions'!$P$39,"--") -> 952627 | AG129: =IFERROR(W129*'Inputs & Assumptions'!$P$40,"--") -> 28303704 | AH129: =IFERROR(X129*'Inputs & Assumptions'!$P$41,"--") -> 621356.2 | AI129: =IFERROR(Y129*'Inputs & Assumptions'!$P$42,"--") -> 208780 | AJ129: =IFERROR(Z129*'Inputs & Assumptions'!$P$43,"--") -> 4528057.69 | AK129: =IFERROR(AA129*'Inputs & Assumptions'!$P$44,"--") -> 565365 | AL129: =IFERROR(AB129*'Inputs & Assumptions'!$P$45,"--") -> 7634151.955 | AM129: =IFERROR(AC129*'Inputs & Assumptions'!$P$46,"--") -> 370580
A130: 0107 | B130: Egg Harbor City | C130: Atlantic | D130: 3400120350 | E130: 127 | F130: 198862500 | G130: 4572474 | H130: 2.29931435 | I130: 1607963.1 | J130: 6944.599098 | K130: 5.280958552 | L130: 1148352.2 | M130: 4781020 | N130: 10501846.2 | O130: 0.435397159 | P130: 0.1093476497 | Q130: 0.4552551912 | R130: 5649 | S130: 284.6456187 | T130: 469031 | U130: 101500 | V130: 65850 | W130: 1630700 | X130: 1453190 | Y130: 10200 | Z130: 0 | AA130: 457000 | AB130: 621992 | AC130: 33600 | AD130: =IFERROR(T130*'Inputs & Assumptions'!$P$37,"--") -> 46903.1 | AE130: =IFERROR(U130*'Inputs & Assumptions'!$P$38,"--") -> 10150 | AF130: =IFERROR(V130*'Inputs & Assumptions'!$P$39,"--") -> 32925 | AG130: =IFERROR(W130*'Inputs & Assumptions'!$P$40,"--") -> 815350 | AH130: =IFERROR(X130*'Inputs & Assumptions'!$P$41,"--") -> 145319 | AI130: =IFERROR(Y130*'Inputs & Assumptions'!$P$42,"--") -> 1020 | AJ130: =IFERROR(Z130*'Inputs & Assumptions'!$P$43,"--") -> 0 | AK130: =IFERROR(AA130*'Inputs & Assumptions'!$P$44,"--") -> 228500 | AL130: =IFERROR(AB130*'Inputs & Assumptions'!$P$45,"--") -> 310996 | AM130: =IFERROR(AC130*'Inputs & Assumptions'!$P$46,"--") -> 16800
A131: 0108 | B131: Egg Harbor Township | C131: Atlantic | D131: 3400120290 | E131: 128 | F131: 4044526646 | G131: 24602836 | H131: 0.6082995157 | I131: 10652069.8 | J131: 42910.03104 | K131: 3.300013975 | L131: 22959150.54 | M131: 85907958 | N131: 133469944.5 | O131: 0.184332406 | P131: 0.1720173828 | Q131: 0.6436502113 | R131: 56880 | S131: 187.2726758 | T131: 2916463 | U131: 260125 | V131: 464138 | W131: 12535386 | X131: 3983180 | Y131: 24000 | Z131: 0 | AA131: 1543533 | AB131: 4725079 | AC131: 599250 | AD131: =IFERROR(T131*'Inputs & Assumptions'!$P$37,"--") -> 291646.3 | AE131: =IFERROR(U131*'Inputs & Assumptions'!$P$38,"--") -> 26012.5 | AF131: =IFERROR(V131*'Inputs & Assumptions'!$P$39,"--") -> 232069 | AG131: =IFERROR(W131*'Inputs & Assumptions'!$P$40,"--") -> 6267693 | AH131: =IFERROR(X131*'Inputs & Assumptions'!$P$41,"--") -> 398318 | AI131: =IFERROR(Y131*'Inputs & Assumptions'!$P$42,"--") -> 2400 | AJ131: =IFERROR(Z131*'Inputs & Assumptions'!$P$43,"--") -> 0 | AK131: =IFERROR(AA131*'Inputs & Assumptions'!$P$44,"--") -> 771766.5 | AL131: =IFERROR(AB131*'Inputs & Assumptions'!$P$45,"--") -> 2362539.5 | AM131: =IFERROR(AC131*'Inputs & Assumptions'!$P$46,"--") -> 299625
A132: 2004 | B132: Elizabeth City | C132: Union | D132: 3403921000 | E132: 129 | F132: 919338428 | G132: 165375676.5 | H132: 17.98855258 | I132: 70326550.9 | J132: 7884.010098 | K132: 29.27039862 | L132: 43905222.04 | M132: 59813124 | N132: 269094022.5 | O132: =G132/N132 -> 0.6145646601 | P132: =L132/N132 -> 0.1631594103 | Q132: =M132/N132 -> 0.2222759296 | R132: 161871 | S132: =IFERROR(I132/R132,"--") -> 434.460471 | T132: 19849803 | U132: 0 | V132: 0 | W132: 84748620 | X132: 30597008 | Y132: 9500213 | Z132: 4300000 | AA132: 10000000 | AB132: 26794000 | AC132: 2821077 | AD132: =IFERROR(T132*'Inputs & Assumptions'!$P$37,"--") -> 1984980.3 | AE132: =IFERROR(U132*'Inputs & Assumptions'!$P$38,"--") -> 0 | AF132: =IFERROR(V132*'Inputs & Assumptions'!$P$39,"--") -> 0 | AG132: =IFERROR(W132*'Inputs & Assumptions'!$P$40,"--") -> 42374310 | AH132: =IFERROR(X132*'Inputs & Assumptions'!$P$41,"--") -> 3059700.8 | AI132: =IFERROR(Y132*'Inputs & Assumptions'!$P$42,"--") -> 950021.3 | AJ132: =IFERROR(Z132*'Inputs & Assumptions'!$P$43,"--") -> 2150000 | AK132: =IFERROR(AA132*'Inputs & Assumptions'!$P$44,"--") -> 5000000 | AL132: =IFERROR(AB132*'Inputs & Assumptions'!$P$45,"--") -> 13397000 | AM132: =IFERROR(AC132*'Inputs & Assumptions'!$P$46,"--") -> 1410538.5
A133: 0804 | B133: Elk Township | C133: Gloucester | D133: 3401521060 | E133: =E132+1 -> 130 | F133: 374251077 | G133: 3387900 | H133: 0.9052478959 | I133: =IF(IFERROR(SUM(AD133:AM133),"--")=0,"--",IFERROR(SUM(AD133:AM133),"--")) -> 1247141.161 | J133: 12260.4586 | K133: 3.680722396 | L133: 2924181.21 | M133: 7463062 | N133: 13775143.21 | O133: 0.2459429966 | P133: 0.2122795506 | Q133: 0.5417774528 | R133: 4717 | S133: 264.3928686 | T133: 454430 | U133: 76100 | V133: 67550 | W133: 1524748.28 | X133: 573430.26 | Y133: 4400 | Z133: 0 | AA133: 177992.99 | AB133: 449299 | AC133: 53020 | AD133: =IFERROR(T133*'Inputs & Assumptions'!$P$37,"--") -> 45443 | AE133: =IFERROR(U133*'Inputs & Assumptions'!$P$38,"--") -> 7610 | AF133: =IFERROR(V133*'Inputs & Assumptions'!$P$39,"--") -> 33775 | AG133: =IFERROR(W133*'Inputs & Assumptions'!$P$40,"--") -> 762374.14 | AH133: =IFERROR(X133*'Inputs & Assumptions'!$P$41,"--") -> 57343.026 | AI133: =IFERROR(Y133*'Inputs & Assumptions'!$P$42,"--") -> 440 | AJ133: =IFERROR(Z133*'Inputs & Assumptions'!$P$43,"--") -> 0 | AK133: =IFERROR(AA133*'Inputs & Assumptions'!$P$44,"--") -> 88996.495 | AL133: =IFERROR(AB133*'Inputs & Assumptions'!$P$45,"--") -> 224649.5 | AM133: =IFERROR(AC133*'Inputs & Assumptions'!$P$46,"--") -> 26510
A134: 1702 | B134: Elmer Borough | C134: Salem | D134: 3403321240 | E134: 131 | F134: 104822000 | G134: 689755 | H134: =G134/(F134/100) -> 0.6580250329 | I134: 240599.048 | J134: 571.9624835 | K134: 3.776207485 | L134: 1389315.21 | M134: 1879226 | N134: 3958296.21 | O134: 0.174255529 | P134: 0.3509881869 | Q134: 0.4747562841 | R134: 2128 | S134: 113.0634624 | T134: 375454.13 | U134: 10168 | V134: 13252 | W134: 253772.61 | X134: 152350 | Y134: 14777 | Z134: 13621 | AA134: 40549.66 | AB134: 49453 | AC134: 0 | AD134: =IFERROR(T134*'Inputs & Assumptions'!$P$37,"--") -> 37545.413 | AE134: =IFERROR(U134*'Inputs & Assumptions'!$P$38,"--") -> 1016.8 | AF134: =IFERROR(V134*'Inputs & Assumptions'!$P$39,"--") -> 6626 | AG134: =IFERROR(W134*'Inputs & Assumptions'!$P$40,"--") -> 126886.305 | AH134: =IFERROR(X134*'Inputs & Assumptions'!$P$41,"--") -> 15235 | AI134: =IFERROR(Y134*'Inputs & Assumptions'!$P$42,"--") -> 1477.7 | AJ134: =IFERROR(Z134*'Inputs & Assumptions'!$P$43,"--") -> 6810.5 | AK134: =IFERROR(AA134*'Inputs & Assumptions'!$P$44,"--") -> 20274.83 | AL134: =IFERROR(AB134*'Inputs & Assumptions'!$P$45,"--") -> 24726.5 | AM134: =IFERROR(AC134*'Inputs & Assumptions'!$P$46,"--") -> 0
A135: 0211 | B135: Elmwood Park Borough | C135: Bergen | D135: 3400321300 | E135: 132 | F135: 2079454389 | G135: 19564203.5 | H135: 0.9408334996 | I135: 8127791.025 | J135: 1691.463564 | K135: 3.001245418 | L135: 5814665.07 | M135: 37030661 | N135: 62409529.57 | O135: 0.3134810282 | P135: 0.09316950649 | Q135: 0.5933494653 | R135: 27175 | S135: 299.0907461 | T135: 4785600 | U135: 85000 | V135: 355000 | W135: 8001987.05 | X135: 1600000 | Y135: 38360 | Z135: 773888 | AA135: 3032245 | AB135: 2510870 | AC135: 279800 | AD135: =IFERROR(T135*'Inputs & Assumptions'!$P$37,"--") -> 478560 | AE135: =IFERROR(U135*'Inputs & Assumptions'!$P$38,"--") -> 8500 | AF135: =IFERROR(V135*'Inputs & Assumptions'!$P$39,"--") -> 177500 | AG135: =IFERROR(W135*'Inputs & Assumptions'!$P$40,"--") -> 4000993.525 | AH135: =IFERROR(X135*'Inputs & Assumptions'!$P$41,"--") -> 160000 | AI135: =IFERROR(Y135*'Inputs & Assumptions'!$P$42,"--") -> 3836 | AJ135: =IFERROR(Z135*'Inputs & Assumptions'!$P$43,"--") -> 386944 | AK135: =IFERROR(AA135*'Inputs & Assumptions'!$P$44,"--") -> 1516122.5 | AL135: =IFERROR(AB135*'Inputs & Assumptions'!$P$45,"--") -> 1255435 | AM135: =IFERROR(AC135*'Inputs & Assumptions'!$P$46,"--") -> 139900
A136: 1703 | B136: Elsinboro Township | C136: Salem | D136: 3403321330 | E136: 133 | F136: 115657940 | G136: 456846.04 | H136: 0.3949975592 | I136: 138389.63 | J136: 7635.992258 | K136: 2.821879414 | L136: 1253145.56 | M136: 1553736 | N136: 3263727.6 | O136: 0.1399767677 | P136: 0.3839614434 | Q136: 0.476061789 | R136: 1075 | S136: 128.7345395 | T136: 147029 | U136: 10041 | V136: 16565 | W136: 152050.1 | X136: 151000 | Y136: 9645 | Z136: 0 | AA136: 32700 | AB136: 11921.16 | AC136: 0 | AD136: =IFERROR(T136*'Inputs & Assumptions'!$P$37,"--") -> 14702.9 | AE136: =IFERROR(U136*'Inputs & Assumptions'!$P$38,"--") -> 1004.1 | AF136: =IFERROR(V136*'Inputs & Assumptions'!$P$39,"--") -> 8282.5 | AG136: =IFERROR(W136*'Inputs & Assumptions'!$P$40,"--") -> 76025.05 | AH136: =IFERROR(X136*'Inputs & Assumptions'!$P$41,"--") -> 15100 | AI136: =IFERROR(Y136*'Inputs & Assumptions'!$P$42,"--") -> 964.5 | AJ136: =IFERROR(Z136*'Inputs & Assumptions'!$P$43,"--") -> 0 | AK136: =IFERROR(AA136*'Inputs & Assumptions'!$P$44,"--") -> 16350 | AL136: =IFERROR(AB136*'Inputs & Assumptions'!$P$45,"--") -> 5960.58 | AM136: =IFERROR(AC136*'Inputs & Assumptions'!$P$46,"--") -> 0
A137: 0214 | B137: Emerson Borough | C137: Bergen | D137: 3400321450 | E137: 134 | F137: 1207272805 | G137: 9925961 | H137: 0.8221804516 | I137: 3058863 | J137: 1427.78098 | K137: 2.910307533 | L137: 3319761.39 | M137: 21889629 | N137: 35135351.39 | O137: 0.282506382 | P137: 0.09448493493 | Q137: 0.6230086831 | R137: 9548 | S137: 320.3668831 | T137: 945805 | U137: 28400 | V137: 186435 | W137: 3392150 | X137: 2476618 | Y137: 279862 | Z137: 445120 | AA137: 132000 | AB137: 1133508 | AC137: 82376 | AD137: =IFERROR(T137*'Inputs & Assumptions'!$P$37,"--") -> 94580.5 | AE137: =IFERROR(U137*'Inputs & Assumptions'!$P$38,"--") -> 2840 | AF137: =IFERROR(V137*'Inputs & Assumptions'!$P$39,"--") -> 93217.5 | AG137: =IFERROR(W137*'Inputs & Assumptions'!$P$40,"--") -> 1696075 | AH137: =IFERROR(X137*'Inputs & Assumptions'!$P$41,"--") -> 247661.8 | AI137: =IFERROR(Y137*'Inputs & Assumptions'!$P$42,"--") -> 27986.2 | AJ137: =IFERROR(Z137*'Inputs & Assumptions'!$P$43,"--") -> 222560 | AK137: =IFERROR(AA137*'Inputs & Assumptions'!$P$44,"--") -> 66000 | AL137: =IFERROR(AB137*'Inputs & Assumptions'!$P$45,"--") -> 566754 | AM137: =IFERROR(AC137*'Inputs & Assumptions'!$P$46,"--") -> 41188
A138: 0215 | B138: Englewood City | C138: Bergen | D138: 3400321480 | E138: 135 | F138: 4486356200 | G138: 57020443.34 | H138: 1.270974501 | I138: 18291460 | J138: 3152.29957 | K138: 2.814528377 | L138: 12902709 | M138: 56346616 | N138: 126269768.3 | O138: 0.4515763677 | P138: 0.1021836752 | Q138: 0.446239957 | R138: 40631 | S138: 450.1848342 | T138: 3723250 | U138: 87500 | V138: 1213500 | W138: 22333350 | X138: 6114000 | Y138: 845000 | Z138: 2105870 | AA138: 1120000 | AB138: 7141750 | AC138: 514500 | AD138: =IFERROR(T138*'Inputs & Assumptions'!$P$37,"--") -> 372325 | AE138: =IFERROR(U138*'Inputs & Assumptions'!$P$38,"--") -> 8750 | AF138: =IFERROR(V138*'Inputs & Assumptions'!$P$39,"--") -> 606750 | AG138: =IFERROR(W138*'Inputs & Assumptions'!$P$40,"--") -> 11166675 | AH138: =IFERROR(X138*'Inputs & Assumptions'!$P$41,"--") -> 611400 | AI138: =IFERROR(Y138*'Inputs & Assumptions'!$P$42,"--") -> 84500 | AJ138: =IFERROR(Z138*'Inputs & Assumptions'!$P$43,"--") -> 1052935 | AK138: =IFERROR(AA138*'Inputs & Assumptions'!$P$44,"--") -> 560000 | AL138: =IFERROR(AB138*'Inputs & Assumptions'!$P$45,"--") -> 3570875 | AM138: =IFERROR(AC138*'Inputs & Assumptions'!$P$46,"--") -> 257250
A139: 0216 | B139: Englewood Cliffs Borough | C139: Bergen | D139: 3400321510 | E139: 136 | F139: 3403273632 | G139: 16287333 | H139: 0.4785784148 | I139: 3776212.9 | J139: 1360.726738 | K139: 1.150856761 | L139: 8750391.68 | M139: 14129080 | N139: 39166804.68 | O139: 0.4158453347 | P139: 0.2234134684 | Q139: 0.3607411969 | R139: 15024 | S139: 251.3453741 | T139: 1414090 | U139: 1587415 | V139: 212370 | W139: 4572167 | X139: 1674950 | Y139: 60649 | Z139: 150000 | AA139: 0 | AB139: 1592518 | AC139: 77950 | AD139: =IFERROR(T139*'Inputs & Assumptions'!$P$37,"--") -> 141409 | AE139: =IFERROR(U139*'Inputs & Assumptions'!$P$38,"--") -> 158741.5 | AF139: =IFERROR(V139*'Inputs & Assumptions'!$P$39,"--") -> 106185 | AG139: =IFERROR(W139*'Inputs & Assumptions'!$P$40,"--") -> 2286083.5 | AH139: =IFERROR(X139*'Inputs & Assumptions'!$P$41,"--") -> 167495 | AI139: =IFERROR(Y139*'Inputs & Assumptions'!$P$42,"--") -> 6064.9 | AJ139: =IFERROR(Z139*'Inputs & Assumptions'!$P$43,"--") -> 75000 | AK139: =IFERROR(AA139*'Inputs & Assumptions'!$P$44,"--") -> 0 | AL139: =IFERROR(AB139*'Inputs & Assumptions'!$P$45,"--") -> 796259 | AM139: =IFERROR(AC139*'Inputs & Assumptions'!$P$46,"--") -> 38975
A140: 1312 | B140: Englishtown Borough | C140: Monmouth | D140: 3402521570 | E140: 137 | F140: 263644700 | G140: 1662350.82 | H140: 0.6305269251 | I140: 670000.778 | J140: 364.6930456 | K140: 2.225548471 | L140: 752694.77 | M140: 3452495 | N140: 5867540.59 | O140: 0.2833130499 | P140: 0.1282811356 | Q140: 0.5884058145 | R140: 3274 | S140: 204.6428766 | T140: 588075 | U140: 11625 | V140: 26100 | W140: 762844 | X140: 307719.68 | Y140: 100 | Z140: 0 | AA140: 0 | AB140: 238755 | AC140: 130798.62 | AD140: =IFERROR(T140*'Inputs & Assumptions'!$P$37,"--") -> 58807.5 | AE140: =IFERROR(U140*'Inputs & Assumptions'!$P$38,"--") -> 1162.5 | AF140: =IFERROR(V140*'Inputs & Assumptions'!$P$39,"--") -> 13050 | AG140: =IFERROR(W140*'Inputs & Assumptions'!$P$40,"--") -> 381422 | AH140: =IFERROR(X140*'Inputs & Assumptions'!$P$41,"--") -> 30771.968 | AI140: =IFERROR(Y140*'Inputs & Assumptions'!$P$42,"--") -> 10 | AJ140: =IFERROR(Z140*'Inputs & Assumptions'!$P$43,"--") -> 0 | AK140: =IFERROR(AA140*'Inputs & Assumptions'!$P$44,"--") -> 0 | AL140: =IFERROR(AB140*'Inputs & Assumptions'!$P$45,"--") -> 119377.5 | AM140: =IFERROR(AC140*'Inputs & Assumptions'!$P$46,"--") -> 65399.31
A141: 0706 | B141: Essex Fells Borough | C141: Essex | D141: 3401321840 | E141: 138 | F141: 808227638 | G141: 4034083.61 | H141: 0.4991271543 | I141: 1633054.804 | J141: 901.3197212 | K141: 2.037610355 | L141: 3948205.43 | M141: 8486241 | N141: 16468530.04 | O141: 0.2449571152 | P141: 0.2397424312 | Q141: 0.5153004536 | R141: 2438 | S141: 669.8337998 | T141: 2324803.14 | U141: 22300 | V141: 58650 | W141: 1899439 | X141: 934609.9 | Y141: 5600 | Z141: 3500 | AA141: 0 | AB141: 647058 | AC141: 0 | AD141: =IFERROR(T141*'Inputs & Assumptions'!$P$37,"--") -> 232480.314 | AE141: =IFERROR(U141*'Inputs & Assumptions'!$P$38,"--") -> 2230 | AF141: =IFERROR(V141*'Inputs & Assumptions'!$P$39,"--") -> 29325 | AG141: =IFERROR(W141*'Inputs & Assumptions'!$P$40,"--") -> 949719.5 | AH141: =IFERROR(X141*'Inputs & Assumptions'!$P$41,"--") -> 93460.99 | AI141: =IFERROR(Y141*'Inputs & Assumptions'!$P$42,"--") -> 560 | AJ141: =IFERROR(Z141*'Inputs & Assumptions'!$P$43,"--") -> 1750 | AK141: =IFERROR(AA141*'Inputs & Assumptions'!$P$44,"--") -> 0 | AL141: =IFERROR(AB141*'Inputs & Assumptions'!$P$45,"--") -> 323529 | AM141: =IFERROR(AC141*'Inputs & Assumptions'!$P$46,"--") -> 0
A142: 0109 | B142: Estell Manor City | C142: Atlantic | D142: 3400121870 | E142: 139 | F142: 156373720 | G142: 536893.9 | H142: 0.3433402365 | I142: 209841.2 | J142: 34167.69507 | K142: 2.585838311 | L142: 903534.66 | M142: 2603143 | N142: 4043571.56 | O142: 0.1327771481 | P142: 0.2234496525 | Q142: 0.6437731994 | R142: 1823 | S142: 115.1076248 | T142: 362732 | U142: 29015 | V142: 0 | W142: 76000 | X142: 111000 | Y142: 7500 | Z142: 0 | AA142: 179000 | AB142: 34002 | AC142: 28631 | AD142: =IFERROR(T142*'Inputs & Assumptions'!$P$37,"--") -> 36273.2 | AE142: =IFERROR(U142*'Inputs & Assumptions'!$P$38,"--") -> 2901.5 | AF142: =IFERROR(V142*'Inputs & Assumptions'!$P$39,"--") -> 0 | AG142: =IFERROR(W142*'Inputs & Assumptions'!$P$40,"--") -> 38000 | AH142: =IFERROR(X142*'Inputs & Assumptions'!$P$41,"--") -> 11100 | AI142: =IFERROR(Y142*'Inputs & Assumptions'!$P$42,"--") -> 750 | AJ142: =IFERROR(Z142*'Inputs & Assumptions'!$P$43,"--") -> 0 | AK142: =IFERROR(AA142*'Inputs & Assumptions'!$P$44,"--") -> 89500 | AL142: =IFERROR(AB142*'Inputs & Assumptions'!$P$45,"--") -> 17001 | AM142: =IFERROR(AC142*'Inputs & Assumptions'!$P$46,"--") -> 14315.5
A143: 0313 | B143: Evesham Township | C143: Burlington | D143: 3400522110 | E143: 140 | F143: 5284891663 | G143: 23962235.43 | H143: 0.453410154 | I143: 9541361.92 | J143: 18659.74898 | K143: 2.792394943 | L143: 22261996.09 | M143: 101350816 | N143: 147575047.5 | O143: 0.1623732185 | P143: 0.150852034 | Q143: 0.6867747475 | R143: 61979 | S143: 153.9450769 | T143: 2614447 | U143: 274416 | V143: 471600 | W143: 9771628 | X143: 4472900 | Y143: 21058 | Z143: 0 | AA143: 2696635.5 | AB143: 4341256.14 | AC143: 325040 | AD143: =IFERROR(T143*'Inputs & Assumptions'!$P$37,"--") -> 261444.7 | AE143: =IFERROR(U143*'Inputs & Assumptions'!$P$38,"--") -> 27441.6 | AF143: =IFERROR(V143*'Inputs & Assumptions'!$P$39,"--") -> 235800 | AG143: =IFERROR(W143*'Inputs & Assumptions'!$P$40,"--") -> 4885814 | AH143: =IFERROR(X143*'Inputs & Assumptions'!$P$41,"--") -> 447290 | AI143: =IFERROR(Y143*'Inputs & Assumptions'!$P$42,"--") -> 2105.8 | AJ143: =IFERROR(Z143*'Inputs & Assumptions'!$P$43,"--") -> 0 | AK143: =IFERROR(AA143*'Inputs & Assumptions'!$P$44,"--") -> 1348317.75 | AL143: =IFERROR(AB143*'Inputs & Assumptions'!$P$45,"--") -> 2170628.07 | AM143: =IFERROR(AC143*'Inputs & Assumptions'!$P$46,"--") -> 162520
A144: 1102 | B144: Ewing Township | C144: Mercer | D144: 3402122185 | E144: 141 | F144: 3282199337 | G144: 30872419.66 | H144: 0.9406016055 | I144: 13337692.59 | J144: 9732.050935 | K144: 3.458557588 | L144: 21506030.57 | M144: 61138304 | N144: 113516754.2 | O144: 0.2719635517 | P144: 0.1894524796 | Q144: 0.5385839686 | R144: 56548 | S144: 235.8649747 | T144: 12350074.12 | U144: 94000 | V144: 369500 | W144: 14534541.49 | X144: 5366198.98 | Y144: 858116.15 | Z144: 0 | AA144: 1843050 | AB144: 5625515.84 | AC144: 569100 | AD144: =IFERROR(T144*'Inputs & Assumptions'!$P$37,"--") -> 1235007.412 | AE144: =IFERROR(U144*'Inputs & Assumptions'!$P$38,"--") -> 9400 | AF144: =IFERROR(V144*'Inputs & Assumptions'!$P$39,"--") -> 184750 | AG144: =IFERROR(W144*'Inputs & Assumptions'!$P$40,"--") -> 7267270.745 | AH144: =IFERROR(X144*'Inputs & Assumptions'!$P$41,"--") -> 536619.898 | AI144: =IFERROR(Y144*'Inputs & Assumptions'!$P$42,"--") -> 85811.615 | AJ144: =IFERROR(Z144*'Inputs & Assumptions'!$P$43,"--") -> 0 | AK144: =IFERROR(AA144*'Inputs & Assumptions'!$P$44,"--") -> 921525 | AL144: =IFERROR(AB144*'Inputs & Assumptions'!$P$45,"--") -> 2812757.92 | AM144: =IFERROR(AC144*'Inputs & Assumptions'!$P$46,"--") -> 284550
A145: 1313 | B145: Fair Haven Borough | C145: Monmouth | D145: 3402522440 | E145: 142 | F145: 1834586915 | G145: 7250288 | H145: 0.3952000279 | I145: 1864793.354 | J145: 1019.824247 | K145: 1.842131369 | L145: 5078391.05 | M145: 21466822 | N145: 33795501.05 | O145: 0.2145341177 | P145: 0.1502682574 | Q145: 0.6351976249 | R145: 6876 | S145: 271.2032219 | T145: 951875 | U145: 108417 | V145: 21100 | W145: 1985954 | X145: 1148815.29 | Y145: 51910 | Z145: 102503 | AA145: 411500 | AB145: 739638 | AC145: 16688.25 | AD145: =IFERROR(T145*'Inputs & Assumptions'!$P$37,"--") -> 95187.5 | AE145: =IFERROR(U145*'Inputs & Assumptions'!$P$38,"--") -> 10841.7 | AF145: =IFERROR(V145*'Inputs & Assumptions'!$P$39,"--") -> 10550 | AG145: =IFERROR(W145*'Inputs & Assumptions'!$P$40,"--") -> 992977 | AH145: =IFERROR(X145*'Inputs & Assumptions'!$P$41,"--") -> 114881.529 | AI145: =IFERROR(Y145*'Inputs & Assumptions'!$P$42,"--") -> 5191 | AJ145: =IFERROR(Z145*'Inputs & Assumptions'!$P$43,"--") -> 51251.5 | AK145: =IFERROR(AA145*'Inputs & Assumptions'!$P$44,"--") -> 205750 | AL145: =IFERROR(AB145*'Inputs & Assumptions'!$P$45,"--") -> 369819 | AM145: =IFERROR(AC145*'Inputs & Assumptions'!$P$46,"--") -> 8344.125
A146: 0217 | B146: Fair Lawn Borough | C146: Bergen | D146: 3400322470 | E146: 143 | F146: 4253357611 | G146: 38325533 | H146: 0.9010653819 | I146: 13033206.5 | J146: 3286.424363 | K146: 3.429716827 | L146: 13085001.71 | M146: 94467587 | N146: 145878121.7 | O146: 0.2627229673 | P146: 0.08969817788 | Q146: 0.6475788548 | R146: 42140 | S146: 309.2834955 | T146: 10130600 | U146: 55400 | V146: 897050 | W146: 12086700 | X146: 4998450 | Y146: 641150 | Z146: 2434677 | AA146: 2277000 | AB146: 4862716 | AC146: 343150 | AD146: =IFERROR(T146*'Inputs & Assumptions'!$P$37,"--") -> 1013060 | AE146: =IFERROR(U146*'Inputs & Assumptions'!$P$38,"--") -> 5540 | AF146: =IFERROR(V146*'Inputs & Assumptions'!$P$39,"--") -> 448525 | AG146: =IFERROR(W146*'Inputs & Assumptions'!$P$40,"--") -> 6043350 | AH146: =IFERROR(X146*'Inputs & Assumptions'!$P$41,"--") -> 499845 | AI146: =IFERROR(Y146*'Inputs & Assumptions'!$P$42,"--") -> 64115 | AJ146: =IFERROR(Z146*'Inputs & Assumptions'!$P$43,"--") -> 1217338.5 | AK146: =IFERROR(AA146*'Inputs & Assumptions'!$P$44,"--") -> 1138500 | AL146: =IFERROR(AB146*'Inputs & Assumptions'!$P$45,"--") -> 2431358 | AM146: =IFERROR(AC146*'Inputs & Assumptions'!$P$46,"--") -> 171575
A147: 0605 | B147: Fairfield Township | C147: Cumberland | D147: 3401122350 | E147: 144 | F147: 312244086 | G147: 1369687.7 | H147: 0.438659293 | I147: 448391.9 | J147: 26316.08319 | K147: 2.602175018 | L147: 3538585.9 | M147: 3216864 | N147: 8125137.6 | O147: 0.1685740928 | P147: 0.4355108891 | Q147: 0.3959150181 | R147: 7140 | S147: 62.79998599 | T147: 572084 | U147: 55000 | V147: 64900 | W147: 450900 | X147: 347250 | Y147: 38000 | Z147: 0 | AA147: 0 | AB147: 118517 | AC147: 60000 | AD147: =IFERROR(T147*'Inputs & Assumptions'!$P$37,"--") -> 57208.4 | AE147: =IFERROR(U147*'Inputs & Assumptions'!$P$38,"--") -> 5500 | AF147: =IFERROR(V147*'Inputs & Assumptions'!$P$39,"--") -> 32450 | AG147: =IFERROR(W147*'Inputs & Assumptions'!$P$40,"--") -> 225450 | AH147: =IFERROR(X147*'Inputs & Assumptions'!$P$41,"--") -> 34725 | AI147: =IFERROR(Y147*'Inputs & Assumptions'!$P$42,"--") -> 3800 | AJ147: =IFERROR(Z147*'Inputs & Assumptions'!$P$43,"--") -> 0 | AK147: =IFERROR(AA147*'Inputs & Assumptions'!$P$44,"--") -> 0 | AL147: =IFERROR(AB147*'Inputs & Assumptions'!$P$45,"--") -> 59258.5 | AM147: =IFERROR(AC147*'Inputs & Assumptions'!$P$46,"--") -> 30000
A148: 0707 | B148: Fairfield Township | C148: Essex | D148: 3401322385 | E148: 145 | F148: 3200092527 | G148: 15861222.08 | H148: 0.4956488585 | I148: 5868287.87 | J148: 6482.060763 | K148: 1.932658871 | L148: 16034376.02 | M148: 29951274 | N148: 61846872.1 | O148: 0.2564595677 | P148: 0.2592592879 | Q148: 0.4842811444 | R148: 27532 | S148: 213.1442638 | T148: 1806364.06 | U148: 31000 | V148: 397000 | W148: 5850001 | X148: 4530835.94 | Y148: 132000 | Z148: 1085731 | AA148: 860000 | AB148: 2046803.74 | AC148: 197000 | AD148: =IFERROR(T148*'Inputs & Assumptions'!$P$37,"--") -> 180636.406 | AE148: =IFERROR(U148*'Inputs & Assumptions'!$P$38,"--") -> 3100 | AF148: =IFERROR(V148*'Inputs & Assumptions'!$P$39,"--") -> 198500 | AG148: =IFERROR(W148*'Inputs & Assumptions'!$P$40,"--") -> 2925000.5 | AH148: =IFERROR(X148*'Inputs & Assumptions'!$P$41,"--") -> 453083.594 | AI148: =IFERROR(Y148*'Inputs & Assumptions'!$P$42,"--") -> 13200 | AJ148: =IFERROR(Z148*'Inputs & Assumptions'!$P$43,"--") -> 542865.5 | AK148: =IFERROR(AA148*'Inputs & Assumptions'!$P$44,"--") -> 430000 | AL148: =IFERROR(AB148*'Inputs & Assumptions'!$P$45,"--") -> 1023401.87 | AM148: =IFERROR(AC148*'Inputs & Assumptions'!$P$46,"--") -> 98500
A149: 0218 | B149: Fairview Borough | C149: Bergen | D149: 3400322560 | E149: 146 | F149: 1379245679 | G149: 15982559 | H149: 1.158789855 | I149: 4582134.2 | J149: 539.9435697 | K149: 2.586316494 | L149: 3475197.49 | M149: 16213902 | N149: 35671658.49 | O149: 0.4480464233 | P149: 0.09742180872 | Q149: 0.454531768 | R149: 16531 | S149: 277.1843325 | T149: 1382704 | U149: 44790 | V149: 263528 | W149: 5475128 | X149: 2183285 | Y149: 196513 | Z149: 466597 | AA149: 0 | AB149: 1889919 | AC149: 307638 | AD149: =IFERROR(T149*'Inputs & Assumptions'!$P$37,"--") -> 138270.4 | AE149: =IFERROR(U149*'Inputs & Assumptions'!$P$38,"--") -> 4479 | AF149: =IFERROR(V149*'Inputs & Assumptions'!$P$39,"--") -> 131764 | AG149: =IFERROR(W149*'Inputs & Assumptions'!$P$40,"--") -> 2737564 | AH149: =IFERROR(X149*'Inputs & Assumptions'!$P$41,"--") -> 218328.5 | AI149: =IFERROR(Y149*'Inputs & Assumptions'!$P$42,"--") -> 19651.3 | AJ149: =IFERROR(Z149*'Inputs & Assumptions'!$P$43,"--") -> 233298.5 | AK149: =IFERROR(AA149*'Inputs & Assumptions'!$P$44,"--") -> 0 | AL149: =IFERROR(AB149*'Inputs & Assumptions'!$P$45,"--") -> 944959.5 | AM149: =IFERROR(AC149*'Inputs & Assumptions'!$P$46,"--") -> 153819
A150: 2005 | B150: Fanwood Borough | C150: Union | D150: 3403922860 | E150: 147 | F150: 1255569244 | G150: 6677012.79 | H150: 0.5317916811 | I150: -- | J150: 857.3735298 | K150: 2.696785575 | L150: 6348907.47 | M150: 20834090 | N150: 33860010.26 | O150: 0.1971946476 | P150: 0.1875045938 | Q150: 0.6153007586 | R150: 8467 | S150: -- | T150: -- | U150: -- | V150: -- | W150: -- | X150: -- | Y150: -- | Z150: -- | AA150: -- | AB150: -- | AC150: -- | AD150: =IFERROR(T150*'Inputs & Assumptions'!$P$37,"--") -> -- | AE150: =IFERROR(U150*'Inputs & Assumptions'!$P$38,"--") -> -- | AF150: =IFERROR(V150*'Inputs & Assumptions'!$P$39,"--") -> -- | AG150: =IFERROR(W150*'Inputs & Assumptions'!$P$40,"--") -> -- | AH150: =IFERROR(X150*'Inputs & Assumptions'!$P$41,"--") -> -- | AI150: =IFERROR(Y150*'Inputs & Assumptions'!$P$42,"--") -> -- | AJ150: =IFERROR(Z150*'Inputs & Assumptions'!$P$43,"--") -> -- | AK150: =IFERROR(AA150*'Inputs & Assumptions'!$P$44,"--") -> -- | AL150: =IFERROR(AB150*'Inputs & Assumptions'!$P$45,"--") -> -- | AM150: =IFERROR(AC150*'Inputs & Assumptions'!$P$46,"--") -> --
A151: 1807 | B151: Far Hills Borough | C151: Somerset | D151: 3403522890 | E151: 148 | F151: 419703637 | G151: 2311782.11 | H151: 0.55081298 | I151: 850738.671 | J151: 3101.862417 | K151: 1.356936347 | L151: 1474892.09 | M151: 1908437 | N151: 5695111.2 | O151: 0.4059239633 | P151: 0.2589751171 | Q151: 0.3351009195 | R151: 1738 | S151: 489.4929062 | T151: 486695 | U151: 132716 | V151: 63913 | W151: 966807.13 | X151: 186404.26 | Y151: 14751 | Z151: 142390.03 | AA151: 0 | AB151: 288531.81 | AC151: 75722.12 | AD151: =IFERROR(T151*'Inputs & Assumptions'!$P$37,"--") -> 48669.5 | AE151: =IFERROR(U151*'Inputs & Assumptions'!$P$38,"--") -> 13271.6 | AF151: =IFERROR(V151*'Inputs & Assumptions'!$P$39,"--") -> 31956.5 | AG151: =IFERROR(W151*'Inputs & Assumptions'!$P$40,"--") -> 483403.565 | AH151: =IFERROR(X151*'Inputs & Assumptions'!$P$41,"--") -> 18640.426 | AI151: =IFERROR(Y151*'Inputs & Assumptions'!$P$42,"--") -> 1475.1 | AJ151: =IFERROR(Z151*'Inputs & Assumptions'!$P$43,"--") -> 71195.015 | AK151: =IFERROR(AA151*'Inputs & Assumptions'!$P$44,"--") -> 0 | AL151: =IFERROR(AB151*'Inputs & Assumptions'!$P$45,"--") -> 144265.905 | AM151: =IFERROR(AC151*'Inputs & Assumptions'!$P$46,"--") -> 37861.06
A152: 1314 | B152: Farmingdale Borough | C152: Monmouth | D152: 3402522950 | E152: 149 | F152: 172551600 | G152: 536389.4 | H152: 0.3108573899 | I152: 170223 | J152: 333.0665351 | K152: 2.268735399 | L152: 493631.83 | M152: 2884718 | N152: 3914739.23 | O152: 0.1370179132 | P152: 0.1260957119 | Q152: 0.7368863749 | R152: 2294 | S152: 74.20357454 | T152: 202400 | U152: 11600 | V152: 27070 | W152: 79600 | X152: 602930 | Y152: 0 | Z152: 0 | AA152: 0 | AB152: 56890 | AC152: 13500 | AD152: =IFERROR(T152*'Inputs & Assumptions'!$P$37,"--") -> 20240 | AE152: =IFERROR(U152*'Inputs & Assumptions'!$P$38,"--") -> 1160 | AF152: =IFERROR(V152*'Inputs & Assumptions'!$P$39,"--") -> 13535 | AG152: =IFERROR(W152*'Inputs & Assumptions'!$P$40,"--") -> 39800 | AH152: =IFERROR(X152*'Inputs & Assumptions'!$P$41,"--") -> 60293 | AI152: =IFERROR(Y152*'Inputs & Assumptions'!$P$42,"--") -> 0 | AJ152: =IFERROR(Z152*'Inputs & Assumptions'!$P$43,"--") -> 0 | AK152: =IFERROR(AA152*'Inputs & Assumptions'!$P$44,"--") -> 0 | AL152: =IFERROR(AB152*'Inputs & Assumptions'!$P$45,"--") -> 28445 | AM152: =IFERROR(AC152*'Inputs & Assumptions'!$P$46,"--") -> 6750
A153: 0314 | B153: Fieldsboro Borough | C153: Burlington | D153: 3400523250 | E153: 150 | F153: 55887967 | G153: 316886 | H153: 0.5670021957 | I153: 156503.415 | J153: 178.4077882 | K153: 2.883305256 | L153: 246302.69 | M153: 1048232 | N153: 1611420.69 | O153: 0.1966500753 | P153: 0.1528481616 | Q153: 0.6505017631 | R153: 900 | S153: 173.8926833 | T153: 432950 | U153: 4500 | V153: 4000 | W153: 44200 | X153: 53000 | Y153: 300 | Z153: 0 | AA153: 59901.12 | AB153: 22955.71 | AC153: 83800 | AD153: =IFERROR(T153*'Inputs & Assumptions'!$P$37,"--") -> 43295 | AE153: =IFERROR(U153*'Inputs & Assumptions'!$P$38,"--") -> 450 | AF153: =IFERROR(V153*'Inputs & Assumptions'!$P$39,"--") -> 2000 | AG153: =IFERROR(W153*'Inputs & Assumptions'!$P$40,"--") -> 22100 | AH153: =IFERROR(X153*'Inputs & Assumptions'!$P$41,"--") -> 5300 | AI153: =IFERROR(Y153*'Inputs & Assumptions'!$P$42,"--") -> 30 | AJ153: =IFERROR(Z153*'Inputs & Assumptions'!$P$43,"--") -> 0 | AK153: =IFERROR(AA153*'Inputs & Assumptions'!$P$44,"--") -> 29950.56 | AL153: =IFERROR(AB153*'Inputs & Assumptions'!$P$45,"--") -> 11477.855 | AM153: =IFERROR(AC153*'Inputs & Assumptions'!$P$46,"--") -> 41900
A154: 1009 | B154: Flemington Borough | C154: Hunterdon | D154: 3401923700 | E154: 151 | F154: 461954800 | G154: 4684345 | H154: 1.014026697 | I154: 1857008.5 | J154: 689.5952223 | K154: 3.177439546 | L154: 1601179.5 | M154: 8392810 | N154: 14678334.5 | O154: 0.3191332777 | P154: 0.1090845491 | Q154: 0.5717821732 | R154: 8953 | S154: 207.4174578 | T154: 514140 | U154: 66155 | V154: 113945 | W154: 1854850 | X154: 310500 | Y154: 32000 | Z154: 320834 | AA154: 269305 | AB154: 767424 | AC154: 203100 | AD154: =IFERROR(T154*'Inputs & Assumptions'!$P$37,"--") -> 51414 | AE154: =IFERROR(U154*'Inputs & Assumptions'!$P$38,"--") -> 6615.5 | AF154: =IFERROR(V154*'Inputs & Assumptions'!$P$39,"--") -> 56972.5 | AG154: =IFERROR(W154*'Inputs & Assumptions'!$P$40,"--") -> 927425 | AH154: =IFERROR(X154*'Inputs & Assumptions'!$P$41,"--") -> 31050 | AI154: =IFERROR(Y154*'Inputs & Assumptions'!$P$42,"--") -> 3200 | AJ154: =IFERROR(Z154*'Inputs & Assumptions'!$P$43,"--") -> 160417 | AK154: =IFERROR(AA154*'Inputs & Assumptions'!$P$44,"--") -> 134652.5 | AL154: =IFERROR(AB154*'Inputs & Assumptions'!$P$45,"--") -> 383712 | AM154: =IFERROR(AC154*'Inputs & Assumptions'!$P$46,"--") -> 101550
A155: 0315 | B155: Florence Township | C155: Burlington | D155: 3400523850 | E155: 152 | F155: 1263876100 | G155: 5671087 | H155: 0.4487059293 | I155: 4188762.553 | J155: 6251.917036 | K155: 2.39558574 | L155: 5116966.62 | M155: 19489182 | N155: 30277235.62 | O155: 0.1873053099 | P155: 0.1690037586 | Q155: 0.6436909315 | R155: 16719 | S155: 250.5390605 | T155: 1036623 | U155: 61145 | V155: 582762 | W155: 4275555.07 | X155: 6975127.03 | Y155: 15340 | Z155: 154980 | AA155: 48000 | AB155: 1450077.03 | AC155: 248504 | AD155: =IFERROR(T155*'Inputs & Assumptions'!$P$37,"--") -> 103662.3 | AE155: =IFERROR(U155*'Inputs & Assumptions'!$P$38,"--") -> 6114.5 | AF155: =IFERROR(V155*'Inputs & Assumptions'!$P$39,"--") -> 291381 | AG155: =IFERROR(W155*'Inputs & Assumptions'!$P$40,"--") -> 2137777.535 | AH155: =IFERROR(X155*'Inputs & Assumptions'!$P$41,"--") -> 697512.703 | AI155: =IFERROR(Y155*'Inputs & Assumptions'!$P$42,"--") -> 1534 | AJ155: =IFERROR(Z155*'Inputs & Assumptions'!$P$43,"--") -> 77490 | AK155: =IFERROR(AA155*'Inputs & Assumptions'!$P$44,"--") -> 24000 | AL155: =IFERROR(AB155*'Inputs & Assumptions'!$P$45,"--") -> 725038.515 | AM155: =IFERROR(AC155*'Inputs & Assumptions'!$P$46,"--") -> 124252
A156: 1411 | B156: Florham Park Borough | C156: Morris | D156: 3402723910 | E156: 153 | F156: 3501743215 | G156: 15034315.57 | H156: 0.4293380367 | I156: 5822801.585 | J156: 4676.802005 | K156: 1.566205979 | L156: 9435777.05 | M156: 30374419 | N156: 54844511.62 | O156: 0.2741261637 | P156: 0.1720459672 | Q156: 0.5538278691 | R156: 29815 | S156: 195.2977221 | T156: 5946559 | U156: 130120 | V156: 805110 | W156: 5230723 | X156: 2320999 | Y156: 261218 | Z156: 1182091 | AA156: 97365 | AB156: 2439809.97 | AC156: 158725 | AD156: =IFERROR(T156*'Inputs & Assumptions'!$P$37,"--") -> 594655.9 | AE156: =IFERROR(U156*'Inputs & Assumptions'!$P$38,"--") -> 13012 | AF156: =IFERROR(V156*'Inputs & Assumptions'!$P$39,"--") -> 402555 | AG156: =IFERROR(W156*'Inputs & Assumptions'!$P$40,"--") -> 2615361.5 | AH156: =IFERROR(X156*'Inputs & Assumptions'!$P$41,"--") -> 232099.9 | AI156: =IFERROR(Y156*'Inputs & Assumptions'!$P$42,"--") -> 26121.8 | AJ156: =IFERROR(Z156*'Inputs & Assumptions'!$P$43,"--") -> 591045.5 | AK156: =IFERROR(AA156*'Inputs & Assumptions'!$P$44,"--") -> 48682.5 | AL156: =IFERROR(AB156*'Inputs & Assumptions'!$P$45,"--") -> 1219904.985 | AM156: =IFERROR(AC156*'Inputs & Assumptions'!$P$46,"--") -> 79362.5
A157: 0110 | B157: Folsom Borough | C157: Atlantic | D157: 3400123940 | E157: 154 | F157: 174433700 | G157: 704939.21 | H157: 0.4041301709 | I157: 161494.606 | J157: 5289.066618 | K157: 2.086563542 | L157: 937514.78 | M157: 1997216 | N157: 3639669.99 | O157: 0.1936821778 | P157: 0.2575823584 | Q157: 0.5487354638 | R157: 3081 | S157: 52.41629536 | T157: 262117 | U157: 10525 | V157: 0 | W157: 1300 | X157: 214994.06 | Y157: 13720 | Z157: 0 | AA157: 154000 | AB157: 67418 | AC157: 0 | AD157: =IFERROR(T157*'Inputs & Assumptions'!$P$37,"--") -> 26211.7 | AE157: =IFERROR(U157*'Inputs & Assumptions'!$P$38,"--") -> 1052.5 | AF157: =IFERROR(V157*'Inputs & Assumptions'!$P$39,"--") -> 0 | AG157: =IFERROR(W157*'Inputs & Assumptions'!$P$40,"--") -> 650 | AH157: =IFERROR(X157*'Inputs & Assumptions'!$P$41,"--") -> 21499.406 | AI157: =IFERROR(Y157*'Inputs & Assumptions'!$P$42,"--") -> 1372 | AJ157: =IFERROR(Z157*'Inputs & Assumptions'!$P$43,"--") -> 0 | AK157: =IFERROR(AA157*'Inputs & Assumptions'!$P$44,"--") -> 77000 | AL157: =IFERROR(AB157*'Inputs & Assumptions'!$P$45,"--") -> 33709 | AM157: =IFERROR(AC157*'Inputs & Assumptions'!$P$46,"--") -> 0
A158: 0219 | B158: Fort Lee Borough | C158: Bergen | D158: 3400324420 | E158: 155 | F158: 6621669365 | G158: 70298946.35 | H158: 1.061649902 | I158: 19263299.28 | J158: 1611.292975 | K158: 2.408111769 | L158: 18229052.96 | M158: 70929200 | N158: 159457199.3 | O158: 0.4408640479 | P158: 0.1143194101 | Q158: 0.444816542 | R158: 48005 | S158: 401.2769353 | T158: 3536714.25 | U158: 219078 | V158: 912699 | W158: 21774474.87 | X158: 5420145 | Y158: 727534 | Z158: 2805940 | AA158: 3103445.44 | AB158: 6942457 | AC158: 1006888 | AD158: =IFERROR(T158*'Inputs & Assumptions'!$P$37,"--") -> 353671.425 | AE158: =IFERROR(U158*'Inputs & Assumptions'!$P$38,"--") -> 21907.8 | AF158: =IFERROR(V158*'Inputs & Assumptions'!$P$39,"--") -> 456349.5 | AG158: =IFERROR(W158*'Inputs & Assumptions'!$P$40,"--") -> 10887237.44 | AH158: =IFERROR(X158*'Inputs & Assumptions'!$P$41,"--") -> 542014.5 | AI158: =IFERROR(Y158*'Inputs & Assumptions'!$P$42,"--") -> 72753.4 | AJ158: =IFERROR(Z158*'Inputs & Assumptions'!$P$43,"--") -> 1402970 | AK158: =IFERROR(AA158*'Inputs & Assumptions'!$P$44,"--") -> 1551722.72 | AL158: =IFERROR(AB158*'Inputs & Assumptions'!$P$45,"--") -> 3471228.5 | AM158: =IFERROR(AC158*'Inputs & Assumptions'!$P$46,"--") -> 503444
A159: 1905 | B159: Frankford Township | C159: Sussex | D159: 3403724810 | E159: 156 | F159: 734524500 | G159: 2816852.45 | H159: 0.383493328 | I159: 465339 | J159: 21680.66514 | K159: 2.651879578 | L159: 4737986.76 | M159: 11923866 | N159: 19478705.21 | O159: 0.1446118938 | P159: 0.2432393072 | Q159: 0.612148799 | R159: 6722 | S159: 69.22627194 | T159: 596550 | U159: 38000 | V159: 113000 | W159: 223500 | X159: 1108700 | Y159: 10500 | Z159: 0 | AA159: 15400 | AB159: 228028 | AC159: 0 | AD159: =IFERROR(T159*'Inputs & Assumptions'!$P$37,"--") -> 59655 | AE159: =IFERROR(U159*'Inputs & Assumptions'!$P$38,"--") -> 3800 | AF159: =IFERROR(V159*'Inputs & Assumptions'!$P$39,"--") -> 56500 | AG159: =IFERROR(W159*'Inputs & Assumptions'!$P$40,"--") -> 111750 | AH159: =IFERROR(X159*'Inputs & Assumptions'!$P$41,"--") -> 110870 | AI159: =IFERROR(Y159*'Inputs & Assumptions'!$P$42,"--") -> 1050 | AJ159: =IFERROR(Z159*'Inputs & Assumptions'!$P$43,"--") -> 0 | AK159: =IFERROR(AA159*'Inputs & Assumptions'!$P$44,"--") -> 7700 | AL159: =IFERROR(AB159*'Inputs & Assumptions'!$P$45,"--") -> 114014 | AM159: =IFERROR(AC159*'Inputs & Assumptions'!$P$46,"--") -> 0
A160: 1906 | B160: Franklin Borough | C160: Sussex | D160: 3403724930 | E160: 157 | F160: 395552814 | G160: 4851200 | H160: 1.226435467 | I160: 2169835.349 | J160: 2787.889707 | K160: 3.974181192 | L160: 2465078.54 | M160: 8403707 | N160: 15719985.54 | O160: 0.3086007928 | P160: 0.1568117562 | Q160: 0.534587451 | R160: 6232 | S160: 348.1764039 | T160: 2830736 | U160: 55394 | V160: 0 | W160: 2124683.49 | X160: 569363.19 | Y160: 53930 | Z160: 0 | AA160: 485232.08 | AB160: 838758 | AC160: 189112.49 | AD160: =IFERROR(T160*'Inputs & Assumptions'!$P$37,"--") -> 283073.6 | AE160: =IFERROR(U160*'Inputs & Assumptions'!$P$38,"--") -> 5539.4 | AF160: =IFERROR(V160*'Inputs & Assumptions'!$P$39,"--") -> 0 | AG160: =IFERROR(W160*'Inputs & Assumptions'!$P$40,"--") -> 1062341.745 | AH160: =IFERROR(X160*'Inputs & Assumptions'!$P$41,"--") -> 56936.319 | AI160: =IFERROR(Y160*'Inputs & Assumptions'!$P$42,"--") -> 5393 | AJ160: =IFERROR(Z160*'Inputs & Assumptions'!$P$43,"--") -> 0 | AK160: =IFERROR(AA160*'Inputs & Assumptions'!$P$44,"--") -> 242616.04 | AL160: =IFERROR(AB160*'Inputs & Assumptions'!$P$45,"--") -> 419379 | AM160: =IFERROR(AC160*'Inputs & Assumptions'!$P$46,"--") -> 94556.245
A161: 0220 | B161: Franklin Lakes Borough | C161: Bergen | D161: 3400324990 | E161: 158 | F161: 4297626000 | G161: 12504708 | H161: 0.2909678041 | I161: 4365884.5 | J161: 6025.202637 | K161: 1.647730904 | L161: 10853728.73 | M161: 47454875 | N161: 70813311.73 | O161: 0.1765869678 | P161: 0.1532724352 | Q161: 0.670140597 | R161: 18131 | S161: 240.7966742 | T161: 1364310 | U161: 47605 | V161: 341425 | W161: 4222120 | X161: 2743900 | Y161: 210150 | Z161: 1447506 | AA161: 289500 | AB161: 1400000 | AC161: 158025 | AD161: =IFERROR(T161*'Inputs & Assumptions'!$P$37,"--") -> 136431 | AE161: =IFERROR(U161*'Inputs & Assumptions'!$P$38,"--") -> 4760.5 | AF161: =IFERROR(V161*'Inputs & Assumptions'!$P$39,"--") -> 170712.5 | AG161: =IFERROR(W161*'Inputs & Assumptions'!$P$40,"--") -> 2111060 | AH161: =IFERROR(X161*'Inputs & Assumptions'!$P$41,"--") -> 274390 | AI161: =IFERROR(Y161*'Inputs & Assumptions'!$P$42,"--") -> 21015 | AJ161: =IFERROR(Z161*'Inputs & Assumptions'!$P$43,"--") -> 723753 | AK161: =IFERROR(AA161*'Inputs & Assumptions'!$P$44,"--") -> 144750 | AL161: =IFERROR(AB161*'Inputs & Assumptions'!$P$45,"--") -> 700000 | AM161: =IFERROR(AC161*'Inputs & Assumptions'!$P$46,"--") -> 79012.5
A162: 0805 | B162: Franklin Township | C162: Gloucester | D162: 3401524840 | E162: 159 | F162: 1230598454 | G162: 8471185.44 | H162: 0.6883793338 | I162: -- | J162: 35731.39408 | K162: 3.379556155 | L162: 9286638.35 | M162: 23830942 | N162: 41588765.79 | O162: 0.2036892723 | P162: 0.2232968008 | Q162: 0.5730139269 | R162: 19084 | S162: -- | T162: -- | U162: -- | V162: -- | W162: -- | X162: -- | Y162: -- | Z162: -- | AA162: -- | AB162: -- | AC162: -- | AD162: =IFERROR(T162*'Inputs & Assumptions'!$P$37,"--") -> -- | AE162: =IFERROR(U162*'Inputs & Assumptions'!$P$38,"--") -> -- | AF162: =IFERROR(V162*'Inputs & Assumptions'!$P$39,"--") -> -- | AG162: =IFERROR(W162*'Inputs & Assumptions'!$P$40,"--") -> -- | AH162: =IFERROR(X162*'Inputs & Assumptions'!$P$41,"--") -> -- | AI162: =IFERROR(Y162*'Inputs & Assumptions'!$P$42,"--") -> -- | AJ162: =IFERROR(Z162*'Inputs & Assumptions'!$P$43,"--") -> -- | AK162: =IFERROR(AA162*'Inputs & Assumptions'!$P$44,"--") -> -- | AL162: =IFERROR(AB162*'Inputs & Assumptions'!$P$45,"--") -> -- | AM162: =IFERROR(AC162*'Inputs & Assumptions'!$P$46,"--") -> --
A163: 1010 | B163: Franklin Township | C163: Hunterdon | D163: 3401924870 | E163: 160 | F163: 545519400 | G163: 2204380.97 | H163: 0.404088465 | I163: 666359.845 | J163: 14742.40973 | K163: 2.665979074 | L163: 2132334.08 | M163: 10206718 | N163: 14543433.05 | O163: 0.1515722569 | P163: 0.1466183447 | Q163: 0.7018093984 | R163: 4686 | S163: 142.2022717 | T163: 573457 | U163: 22011 | V163: 99455 | W163: 617431.89 | X163: 531796 | Y163: 13560 | Z163: 0 | AA163: 0 | AB163: 302668 | AC163: 85000 | AD163: =IFERROR(T163*'Inputs & Assumptions'!$P$37,"--") -> 57345.7 | AE163: =IFERROR(U163*'Inputs & Assumptions'!$P$38,"--") -> 2201.1 | AF163: =IFERROR(V163*'Inputs & Assumptions'!$P$39,"--") -> 49727.5 | AG163: =IFERROR(W163*'Inputs & Assumptions'!$P$40,"--") -> 308715.945 | AH163: =IFERROR(X163*'Inputs & Assumptions'!$P$41,"--") -> 53179.6 | AI163: =IFERROR(Y163*'Inputs & Assumptions'!$P$42,"--") -> 1356 | AJ163: =IFERROR(Z163*'Inputs & Assumptions'!$P$43,"--") -> 0 | AK163: =IFERROR(AA163*'Inputs & Assumptions'!$P$44,"--") -> 0 | AL163: =IFERROR(AB163*'Inputs & Assumptions'!$P$45,"--") -> 151334 | AM163: =IFERROR(AC163*'Inputs & Assumptions'!$P$46,"--") -> 42500
A164: 1808 | B164: Franklin Township | C164: Somerset | D164: 3403524900 | E164: 161 | F164: 10559534729 | G164: 44004169 | H164: 0.4167245066 | I164: 16833034.1 | J164: 29548.93883 | K164: 2.196619392 | L164: 36842866.59 | M164: 151105752 | N164: 231952787.6 | O164: 0.1897117489 | P164: 0.1588377832 | Q164: 0.6514504679 | R164: 91879 | S164: 183.2087213 | T164: 3951157 | U164: 336304 | V164: 1556398 | W164: 16544341 | X164: 15618150 | Y164: 474560 | Z164: 3561968 | AA164: 693991 | AB164: 6798800 | AC164: 434536 | AD164: =IFERROR(T164*'Inputs & Assumptions'!$P$37,"--") -> 395115.7 | AE164: =IFERROR(U164*'Inputs & Assumptions'!$P$38,"--") -> 33630.4 | AF164: =IFERROR(V164*'Inputs & Assumptions'!$P$39,"--") -> 778199 | AG164: =IFERROR(W164*'Inputs & Assumptions'!$P$40,"--") -> 8272170.5 | AH164: =IFERROR(X164*'Inputs & Assumptions'!$P$41,"--") -> 1561815 | AI164: =IFERROR(Y164*'Inputs & Assumptions'!$P$42,"--") -> 47456 | AJ164: =IFERROR(Z164*'Inputs & Assumptions'!$P$43,"--") -> 1780984 | AK164: =IFERROR(AA164*'Inputs & Assumptions'!$P$44,"--") -> 346995.5 | AL164: =IFERROR(AB164*'Inputs & Assumptions'!$P$45,"--") -> 3399400 | AM164: =IFERROR(AC164*'Inputs & Assumptions'!$P$46,"--") -> 217268
A165: 2105 | B165: Franklin Township | C165: Warren | D165: 3404124960 | E165: 162 | F165: 413602351 | G165: 1220849.16 | H165: 0.2951746181 | I165: 192888.7 | J165: 14988.6751 | K165: 3.00166626 | L165: 2840312.06 | M165: 8353801 | N165: 12414962.22 | O165: 0.09833692108 | P165: 0.2287813696 | Q165: 0.6728817093 | R165: 3670 | S165: 52.55822888 | T165: 335007 | U165: 86881 | V165: 0 | W165: 127289 | X165: 388396 | Y165: 12133 | Z165: 0 | AA165: 0 | AB165: 94005 | AC165: 0 | AD165: =IFERROR(T165*'Inputs & Assumptions'!$P$37,"--") -> 33500.7 | AE165: =IFERROR(U165*'Inputs & Assumptions'!$P$38,"--") -> 8688.1 | AF165: =IFERROR(V165*'Inputs & Assumptions'!$P$39,"--") -> 0 | AG165: =IFERROR(W165*'Inputs & Assumptions'!$P$40,"--") -> 63644.5 | AH165: =IFERROR(X165*'Inputs & Assumptions'!$P$41,"--") -> 38839.6 | AI165: =IFERROR(Y165*'Inputs & Assumptions'!$P$42,"--") -> 1213.3 | AJ165: =IFERROR(Z165*'Inputs & Assumptions'!$P$43,"--") -> 0 | AK165: =IFERROR(AA165*'Inputs & Assumptions'!$P$44,"--") -> 0 | AL165: =IFERROR(AB165*'Inputs & Assumptions'!$P$45,"--") -> 47002.5 | AM165: =IFERROR(AC165*'Inputs & Assumptions'!$P$46,"--") -> 0
A166: 1907 | B166: Fredon Township | C166: Sussex | D166: 3403725140 | E166: 163 | F166: 434945400 | G166: 1846112 | H166: 0.4244468386 | I166: 307339.599 | J166: 11289.36154 | K166: 2.974955427 | L166: 2519216.78 | M166: 8574103 | N166: 12939431.78 | O166: 0.1426733439 | P166: 0.1946929991 | Q166: 0.662633657 | R166: 3518 | S166: 87.36202359 | T166: 571540 | U166: 57001 | V166: 21325 | W166: 109508 | X166: 722047.99 | Y166: 18697 | Z166: 0 | AA166: 75781 | AB166: 134208 | AC166: 0 | AD166: =IFERROR(T166*'Inputs & Assumptions'!$P$37,"--") -> 57154 | AE166: =IFERROR(U166*'Inputs & Assumptions'!$P$38,"--") -> 5700.1 | AF166: =IFERROR(V166*'Inputs & Assumptions'!$P$39,"--") -> 10662.5 | AG166: =IFERROR(W166*'Inputs & Assumptions'!$P$40,"--") -> 54754 | AH166: =IFERROR(X166*'Inputs & Assumptions'!$P$41,"--") -> 72204.799 | AI166: =IFERROR(Y166*'Inputs & Assumptions'!$P$42,"--") -> 1869.7 | AJ166: =IFERROR(Z166*'Inputs & Assumptions'!$P$43,"--") -> 0 | AK166: =IFERROR(AA166*'Inputs & Assumptions'!$P$44,"--") -> 37890.5 | AL166: =IFERROR(AB166*'Inputs & Assumptions'!$P$45,"--") -> 67104 | AM166: =IFERROR(AC166*'Inputs & Assumptions'!$P$46,"--") -> 0
A167: 1315 | B167: Freehold Borough | C167: Monmouth | D167: 3402525200 | E167: 164 | F167: 1105879000 | G167: 11650730.4 | H167: 1.053526688 | I167: 4724284.687 | J167: 1236.630466 | K167: 2.66152589 | L167: 2946456.5 | M167: 14836069 | N167: 29433255.9 | O167: 0.3958355963 | P167: 0.1001063732 | Q167: 0.5040580305 | R167: 19712 | S167: 239.6654163 | T167: 1585455 | U167: 22600 | V167: 395650 | W167: 4845277.1 | X167: 3239382 | Y167: 45055.37 | Z167: 480056 | AA167: 703866.77 | AB167: 1715221.03 | AC167: 330000 | AD167: =IFERROR(T167*'Inputs & Assumptions'!$P$37,"--") -> 158545.5 | AE167: =IFERROR(U167*'Inputs & Assumptions'!$P$38,"--") -> 2260 | AF167: =IFERROR(V167*'Inputs & Assumptions'!$P$39,"--") -> 197825 | AG167: =IFERROR(W167*'Inputs & Assumptions'!$P$40,"--") -> 2422638.55 | AH167: =IFERROR(X167*'Inputs & Assumptions'!$P$41,"--") -> 323938.2 | AI167: =IFERROR(Y167*'Inputs & Assumptions'!$P$42,"--") -> 4505.537 | AJ167: =IFERROR(Z167*'Inputs & Assumptions'!$P$43,"--") -> 240028 | AK167: =IFERROR(AA167*'Inputs & Assumptions'!$P$44,"--") -> 351933.385 | AL167: =IFERROR(AB167*'Inputs & Assumptions'!$P$45,"--") -> 857610.515 | AM167: =IFERROR(AC167*'Inputs & Assumptions'!$P$46,"--") -> 165000
A168: 1316 | B168: Freehold Township | C168: Monmouth | D168: 3402525230 | E168: 165 | F168: 6717431900 | G168: 24572848.57 | H168: 0.3658071855 | I168: 9922053.628 | J168: 24738.07283 | K168: 2.129560286 | L168: 18908041.39 | M168: 99570872 | N168: 143051762 | O168: 0.1717759239 | P168: 0.1321762216 | Q168: 0.6960478545 | R168: 52906 | S168: 187.5411792 | T168: 3351733 | U168: 211600 | V168: 834150 | W168: 10745941.34 | X168: 8074086.43 | Y168: 531510.15 | Z168: 952559 | AA168: 0 | AB168: 4429671 | AC168: 448000 | AD168: =IFERROR(T168*'Inputs & Assumptions'!$P$37,"--") -> 335173.3 | AE168: =IFERROR(U168*'Inputs & Assumptions'!$P$38,"--") -> 21160 | AF168: =IFERROR(V168*'Inputs & Assumptions'!$P$39,"--") -> 417075 | AG168: =IFERROR(W168*'Inputs & Assumptions'!$P$40,"--") -> 5372970.67 | AH168: =IFERROR(X168*'Inputs & Assumptions'!$P$41,"--") -> 807408.643 | AI168: =IFERROR(Y168*'Inputs & Assumptions'!$P$42,"--") -> 53151.015 | AJ168: =IFERROR(Z168*'Inputs & Assumptions'!$P$43,"--") -> 476279.5 | AK168: =IFERROR(AA168*'Inputs & Assumptions'!$P$44,"--") -> 0 | AL168: =IFERROR(AB168*'Inputs & Assumptions'!$P$45,"--") -> 2214835.5 | AM168: =IFERROR(AC168*'Inputs & Assumptions'!$P$46,"--") -> 224000
A169: 2106 | B169: Frelinghuysen Township | C169: Warren | D169: 3404125320 | E169: 166 | F169: 289536619 | G169: 912940.05 | H169: 0.3153107379 | I169: 152420.8 | J169: 15118.95073 | K169: 2.501559694 | L169: 1999345.31 | M169: 4330646 | N169: 7242931.36 | O169: 0.1260456581 | P169: 0.2760409026 | Q169: 0.5979134393 | R169: 2693 | S169: 56.598886 | T169: 279683 | U169: 9045 | V169: 54640 | W169: 46184 | X169: 312129 | Y169: 16131 | Z169: 0 | AA169: 0 | AB169: 80370 | AC169: 250 | AD169: =IFERROR(T169*'Inputs & Assumptions'!$P$37,"--") -> 27968.3 | AE169: =IFERROR(U169*'Inputs & Assumptions'!$P$38,"--") -> 904.5 | AF169: =IFERROR(V169*'Inputs & Assumptions'!$P$39,"--") -> 27320 | AG169: =IFERROR(W169*'Inputs & Assumptions'!$P$40,"--") -> 23092 | AH169: =IFERROR(X169*'Inputs & Assumptions'!$P$41,"--") -> 31212.9 | AI169: =IFERROR(Y169*'Inputs & Assumptions'!$P$42,"--") -> 1613.1 | AJ169: =IFERROR(Z169*'Inputs & Assumptions'!$P$43,"--") -> 0 | AK169: =IFERROR(AA169*'Inputs & Assumptions'!$P$44,"--") -> 0 | AL169: =IFERROR(AB169*'Inputs & Assumptions'!$P$45,"--") -> 40185 | AM169: =IFERROR(AC169*'Inputs & Assumptions'!$P$46,"--") -> 125
A170: 1011 | B170: Frenchtown Borough | C170: Hunterdon | D170: 3401925350 | E170: 167 | F170: 147310050 | G170: 1391255 | H170: 0.9444399754 | I170: 465873.2 | J170: 722.1090879 | K170: 3.578688467 | L170: 636139.77 | M170: 3244373 | N170: 5271767.77 | O170: 0.2639067312 | P170: 0.1206691565 | Q170: 0.6154241123 | R170: 1957 | S170: 238.0547777 | T170: 663095 | U170: 41116 | V170: 0 | W170: 408800 | X170: 308270 | Y170: 9976 | Z170: 14230 | AA170: 0 | AB170: 201165 | AC170: 103060 | AD170: =IFERROR(T170*'Inputs & Assumptions'!$P$37,"--") -> 66309.5 | AE170: =IFERROR(U170*'Inputs & Assumptions'!$P$38,"--") -> 4111.6 | AF170: =IFERROR(V170*'Inputs & Assumptions'!$P$39,"--") -> 0 | AG170: =IFERROR(W170*'Inputs & Assumptions'!$P$40,"--") -> 204400 | AH170: =IFERROR(X170*'Inputs & Assumptions'!$P$41,"--") -> 30827 | AI170: =IFERROR(Y170*'Inputs & Assumptions'!$P$42,"--") -> 997.6 | AJ170: =IFERROR(Z170*'Inputs & Assumptions'!$P$43,"--") -> 7115 | AK170: =IFERROR(AA170*'Inputs & Assumptions'!$P$44,"--") -> 0 | AL170: =IFERROR(AB170*'Inputs & Assumptions'!$P$45,"--") -> 100582.5 | AM170: =IFERROR(AC170*'Inputs & Assumptions'!$P$46,"--") -> 51530
A171: 0111 | B171: Galloway Township | C171: Atlantic | D171: 3400125560 | E171: 168 | F171: 2728011600 | G171: 16788025.28 | H171: 0.6153942043 | I171: 6926519.9 | J171: 56747.40706 | K171: 3.096386308 | L171: 15312488.39 | M171: 52369264 | N171: 84469777.67 | O171: 0.198745939 | P171: 0.1812777163 | Q171: 0.6199763447 | R171: 45251 | S171: 153.0688802 | T171: 7465224 | U171: 125450 | V171: 509751 | W171: 8230273 | X171: 2117575 | Y171: 3000 | Z171: 0 | AA171: 90000 | AB171: 3080766 | AC171: 0 | AD171: =IFERROR(T171*'Inputs & Assumptions'!$P$37,"--") -> 746522.4 | AE171: =IFERROR(U171*'Inputs & Assumptions'!$P$38,"--") -> 12545 | AF171: =IFERROR(V171*'Inputs & Assumptions'!$P$39,"--") -> 254875.5 | AG171: =IFERROR(W171*'Inputs & Assumptions'!$P$40,"--") -> 4115136.5 | AH171: =IFERROR(X171*'Inputs & Assumptions'!$P$41,"--") -> 211757.5 | AI171: =IFERROR(Y171*'Inputs & Assumptions'!$P$42,"--") -> 300 | AJ171: =IFERROR(Z171*'Inputs & Assumptions'!$P$43,"--") -> 0 | AK171: =IFERROR(AA171*'Inputs & Assumptions'!$P$44,"--") -> 45000 | AL171: =IFERROR(AB171*'Inputs & Assumptions'!$P$45,"--") -> 1540383 | AM171: =IFERROR(AC171*'Inputs & Assumptions'!$P$46,"--") -> 0
A172: 0221 | B172: Garfield City | C172: Bergen | D172: 3400325770 | E172: 169 | F172: 2139503400 | G172: 26208810 | H172: 1.224995015 | I172: 10178001.5 | J172: 1351.06418 | K172: 2.961341553 | L172: 6678239.21 | M172: 30470954 | N172: 63358003.21 | O172: 0.4136621843 | P172: 0.1054048245 | Q172: 0.4809329912 | R172: 36410 | S172: 279.5386295 | T172: 5063986 | U172: 55577 | V172: 571618 | W172: 11087166 | X172: 1800492 | Y172: 391540 | Z172: 900000 | AA172: 2332800 | AB172: 3503887 | AC172: 498213 | AD172: =IFERROR(T172*'Inputs & Assumptions'!$P$37,"--") -> 506398.6 | AE172: =IFERROR(U172*'Inputs & Assumptions'!$P$38,"--") -> 5557.7 | AF172: =IFERROR(V172*'Inputs & Assumptions'!$P$39,"--") -> 285809 | AG172: =IFERROR(W172*'Inputs & Assumptions'!$P$40,"--") -> 5543583 | AH172: =IFERROR(X172*'Inputs & Assumptions'!$P$41,"--") -> 180049.2 | AI172: =IFERROR(Y172*'Inputs & Assumptions'!$P$42,"--") -> 39154 | AJ172: =IFERROR(Z172*'Inputs & Assumptions'!$P$43,"--") -> 450000 | AK172: =IFERROR(AA172*'Inputs & Assumptions'!$P$44,"--") -> 1166400 | AL172: =IFERROR(AB172*'Inputs & Assumptions'!$P$45,"--") -> 1751943.5 | AM172: =IFERROR(AC172*'Inputs & Assumptions'!$P$46,"--") -> 249106.5
A173: 2006 | B173: Garwood Borough | C173: Union | D173: 3403925800 | E173: 170 | F173: 738525511 | G173: 6447268.62 | H173: 0.8729919988 | I173: 2030225.774 | J173: 416.2473615 | K173: 2.51641361 | L173: 3707244.85 | M173: 8429843 | N173: 18584356.47 | O173: 0.3469191215 | P173: 0.1994820136 | Q173: 0.4535988649 | R173: 6151 | S173: 330.064343 | T173: 711293.5 | U173: 59900 | V173: 0 | W173: 2281870.95 | X173: 818179.49 | Y173: 67085 | Z173: 239091 | AA173: 249300 | AB173: 870998 | AC173: 87900 | AD173: =IFERROR(T173*'Inputs & Assumptions'!$P$37,"--") -> 71129.35 | AE173: =IFERROR(U173*'Inputs & Assumptions'!$P$38,"--") -> 5990 | AF173: =IFERROR(V173*'Inputs & Assumptions'!$P$39,"--") -> 0 | AG173: =IFERROR(W173*'Inputs & Assumptions'!$P$40,"--") -> 1140935.475 | AH173: =IFERROR(X173*'Inputs & Assumptions'!$P$41,"--") -> 81817.949 | AI173: =IFERROR(Y173*'Inputs & Assumptions'!$P$42,"--") -> 6708.5 | AJ173: =IFERROR(Z173*'Inputs & Assumptions'!$P$43,"--") -> 119545.5 | AK173: =IFERROR(AA173*'Inputs & Assumptions'!$P$44,"--") -> 124650 | AL173: =IFERROR(AB173*'Inputs & Assumptions'!$P$45,"--") -> 435499 | AM173: =IFERROR(AC173*'Inputs & Assumptions'!$P$46,"--") -> 43950
A174: 0413 | B174: Gibbsboro Borough | C174: Camden | D174: 3400726070 | E174: 171 | F174: 228316900 | G174: 2253114.32 | H174: 0.986836419 | I174: 657897.767 | J174: 1377.324553 | K174: 4.009969845 | L174: 2208263.52 | M174: 4694061 | N174: 9155438.84 | O174: 0.2460957207 | P174: 0.2411969059 | Q174: 0.5127073734 | R174: 3250 | S174: 202.4300822 | T174: 336500 | U174: 55000 | V174: 70100 | W174: 745423.24 | X174: 554338.42 | Y174: 9500 | Z174: 37794.61 | AA174: 0 | AB174: 212910 | AC174: 58500 | AD174: =IFERROR(T174*'Inputs & Assumptions'!$P$37,"--") -> 33650 | AE174: =IFERROR(U174*'Inputs & Assumptions'!$P$38,"--") -> 5500 | AF174: =IFERROR(V174*'Inputs & Assumptions'!$P$39,"--") -> 35050 | AG174: =IFERROR(W174*'Inputs & Assumptions'!$P$40,"--") -> 372711.62 | AH174: =IFERROR(X174*'Inputs & Assumptions'!$P$41,"--") -> 55433.842 | AI174: =IFERROR(Y174*'Inputs & Assumptions'!$P$42,"--") -> 950 | AJ174: =IFERROR(Z174*'Inputs & Assumptions'!$P$43,"--") -> 18897.305 | AK174: =IFERROR(AA174*'Inputs & Assumptions'!$P$44,"--") -> 0 | AL174: =IFERROR(AB174*'Inputs & Assumptions'!$P$45,"--") -> 106455 | AM174: =IFERROR(AC174*'Inputs & Assumptions'!$P$46,"--") -> 29250
A175: 0806 | B175: Glassboro Borough | C175: Gloucester | D175: 3401526340 | E175: 172 | F175: 1263853866 | G175: 13203190.3 | H175: 1.044676972 | I175: 8215432.717 | J175: 5964.906725 | K175: 3.542207905 | L175: 10087052.25 | M175: 21478089 | N175: 44768331.55 | O175: 0.2949225455 | P175: 0.2253166893 | Q175: 0.4797607652 | R175: 26916 | S175: 305.2248743 | T175: 3145967 | U175: 94109 | V175: 204767 | W175: 8024836 | X175: 5375532.17 | Y175: 38894 | Z175: 84313 | AA175: 2897492 | AB175: 3050501 | AC175: 438056 | AD175: =IFERROR(T175*'Inputs & Assumptions'!$P$37,"--") -> 314596.7 | AE175: =IFERROR(U175*'Inputs & Assumptions'!$P$38,"--") -> 9410.9 | AF175: =IFERROR(V175*'Inputs & Assumptions'!$P$39,"--") -> 102383.5 | AG175: =IFERROR(W175*'Inputs & Assumptions'!$P$40,"--") -> 4012418 | AH175: =IFERROR(X175*'Inputs & Assumptions'!$P$41,"--") -> 537553.217 | AI175: =IFERROR(Y175*'Inputs & Assumptions'!$P$42,"--") -> 3889.4 | AJ175: =IFERROR(Z175*'Inputs & Assumptions'!$P$43,"--") -> 42156.5 | AK175: =IFERROR(AA175*'Inputs & Assumptions'!$P$44,"--") -> 1448746 | AL175: =IFERROR(AB175*'Inputs & Assumptions'!$P$45,"--") -> 1525250.5 | AM175: =IFERROR(AC175*'Inputs & Assumptions'!$P$46,"--") -> 219028
A176: 1012 | B176: Glen Gardner Borough | C176: Hunterdon | D176: 3401926550 | E176: 173 | F176: 140002363 | G176: 930450 | H176: 0.6645959254 | I176: 220762.5 | J176: 990.7036315 | K176: 3.433962775 | L176: 639971.03 | M176: 3237208 | N176: 4807629.03 | O176: 0.1935361473 | P176: 0.1331157263 | Q176: 0.6733481264 | R176: 1762 | S176: 125.2908627 | T176: 444015 | U176: 29215 | V176: 6100 | W176: 82000 | X176: 244750 | Y176: 5280 | Z176: 30000 | AA176: 75600 | AB176: 68173 | AC176: 35000 | AD176: =IFERROR(T176*'Inputs & Assumptions'!$P$37,"--") -> 44401.5 | AE176: =IFERROR(U176*'Inputs & Assumptions'!$P$38,"--") -> 2921.5 | AF176: =IFERROR(V176*'Inputs & Assumptions'!$P$39,"--") -> 3050 | AG176: =IFERROR(W176*'Inputs & Assumptions'!$P$40,"--") -> 41000 | AH176: =IFERROR(X176*'Inputs & Assumptions'!$P$41,"--") -> 24475 | AI176: =IFERROR(Y176*'Inputs & Assumptions'!$P$42,"--") -> 528 | AJ176: =IFERROR(Z176*'Inputs & Assumptions'!$P$43,"--") -> 15000 | AK176: =IFERROR(AA176*'Inputs & Assumptions'!$P$44,"--") -> 37800 | AL176: =IFERROR(AB176*'Inputs & Assumptions'!$P$45,"--") -> 34086.5 | AM176: =IFERROR(AC176*'Inputs & Assumptions'!$P$46,"--") -> 17500
A177: 0708 | B177: Glen Ridge Borough | C177: Essex | D177: 3401326610 | E177: 174 | F177: 1703366100 | G177: 12234318.51 | H177: 0.7182436301 | I177: 3627451.506 | J177: 815.8479817 | K177: 3.186295335 | L177: 9042768.08 | M177: 32997188 | N177: 54274274.59 | O177: 0.2254165275 | P177: 0.1666124172 | Q177: 0.6079710553 | R177: 8494 | S177: 427.0604551 | T177: 1096253.81 | U177: 25000 | V177: 210000 | W177: 3349460.6 | X177: 759698.25 | Y177: 65620 | Z177: 718000 | AA177: 1200000 | AB177: 1217128 | AC177: 171000 | AD177: =IFERROR(T177*'Inputs & Assumptions'!$P$37,"--") -> 109625.381 | AE177: =IFERROR(U177*'Inputs & Assumptions'!$P$38,"--") -> 2500 | AF177: =IFERROR(V177*'Inputs & Assumptions'!$P$39,"--") -> 105000 | AG177: =IFERROR(W177*'Inputs & Assumptions'!$P$40,"--") -> 1674730.3 | AH177: =IFERROR(X177*'Inputs & Assumptions'!$P$41,"--") -> 75969.825 | AI177: =IFERROR(Y177*'Inputs & Assumptions'!$P$42,"--") -> 6562 | AJ177: =IFERROR(Z177*'Inputs & Assumptions'!$P$43,"--") -> 359000 | AK177: =IFERROR(AA177*'Inputs & Assumptions'!$P$44,"--") -> 600000 | AL177: =IFERROR(AB177*'Inputs & Assumptions'!$P$45,"--") -> 608564 | AM177: =IFERROR(AC177*'Inputs & Assumptions'!$P$46,"--") -> 85500
A178: 0222 | B178: Glen Rock Borough | C178: Bergen | D178: 3400326640 | E178: 175 | F178: 2393170555 | G178: 15293754 | H178: 0.6390582555 | I178: 4442722.234 | J178: 1730.224746 | K178: 3.048476481 | L178: 6730856.51 | M178: 50930631 | N178: 72955241.51 | O178: 0.2096320111 | P178: 0.09226008126 | Q178: 0.6981079076 | R178: 15074 | S178: 294.7274933 | T178: 1302233.34 | U178: 111826 | V178: 346167 | W178: 4436067 | X178: 4006130 | Y178: 70218 | Z178: 896835 | AA178: 260000 | AB178: 1749322 | AC178: 98972 | AD178: =IFERROR(T178*'Inputs & Assumptions'!$P$37,"--") -> 130223.334 | AE178: =IFERROR(U178*'Inputs & Assumptions'!$P$38,"--") -> 11182.6 | AF178: =IFERROR(V178*'Inputs & Assumptions'!$P$39,"--") -> 173083.5 | AG178: =IFERROR(W178*'Inputs & Assumptions'!$P$40,"--") -> 2218033.5 | AH178: =IFERROR(X178*'Inputs & Assumptions'!$P$41,"--") -> 400613 | AI178: =IFERROR(Y178*'Inputs & Assumptions'!$P$42,"--") -> 7021.8 | AJ178: =IFERROR(Z178*'Inputs & Assumptions'!$P$43,"--") -> 448417.5 | AK178: =IFERROR(AA178*'Inputs & Assumptions'!$P$44,"--") -> 130000 | AL178: =IFERROR(AB178*'Inputs & Assumptions'!$P$45,"--") -> 874661 | AM178: =IFERROR(AC178*'Inputs & Assumptions'!$P$46,"--") -> 49486
A179: 0414 | B179: Gloucester City City | C179: Camden | D179: 3400726820 | E179: 176 | F179: 518138650 | G179: 12518073.78 | H179: 2.415969891 | I179: 5902556.978 | J179: 1481.430501 | K179: 4.497698747 | L179: 4364132.79 | M179: 6422109 | N179: 23304315.57 | O179: 0.5371568945 | P179: 0.1872671513 | Q179: 0.2755759542 | R179: 13188 | S179: 447.5702895 | T179: 4406385 | U179: 16000 | V179: 497755.7 | W179: 6558041.3 | X179: 2189439.78 | Y179: 55000 | Z179: 522115 | AA179: 385000 | AB179: 2214372 | AC179: 294465 | AD179: =IFERROR(T179*'Inputs & Assumptions'!$P$37,"--") -> 440638.5 | AE179: =IFERROR(U179*'Inputs & Assumptions'!$P$38,"--") -> 1600 | AF179: =IFERROR(V179*'Inputs & Assumptions'!$P$39,"--") -> 248877.85 | AG179: =IFERROR(W179*'Inputs & Assumptions'!$P$40,"--") -> 3279020.65 | AH179: =IFERROR(X179*'Inputs & Assumptions'!$P$41,"--") -> 218943.978 | AI179: =IFERROR(Y179*'Inputs & Assumptions'!$P$42,"--") -> 5500 | AJ179: =IFERROR(Z179*'Inputs & Assumptions'!$P$43,"--") -> 261057.5 | AK179: =IFERROR(AA179*'Inputs & Assumptions'!$P$44,"--") -> 192500 | AL179: =IFERROR(AB179*'Inputs & Assumptions'!$P$45,"--") -> 1107186 | AM179: =IFERROR(AC179*'Inputs & Assumptions'!$P$46,"--") -> 147232.5
A180: 0415 | B180: Gloucester Township | C180: Camden | D180: 3400726760 | E180: 177 | F180: 4435054600 | G180: 53273280.28 | H180: 1.201186571 | I180: 15882675.93 | J180: 14690.80698 | K180: 3.889877024 | L180: 39250017.59 | M180: 79994872 | N180: 172518169.9 | O180: 0.3087980838 | P180: 0.2275123694 | Q180: 0.4636895468 | R180: 73768 | S180: 215.3057685 | T180: 3364895 | U180: 191750 | V180: 851550 | W180: 18056197.86 | X180: 9208510 | Y180: 269230 | Z180: 510000 | AA180: 1485000 | AB180: 7517667 | AC180: 738060 | AD180: =IFERROR(T180*'Inputs & Assumptions'!$P$37,"--") -> 336489.5 | AE180: =IFERROR(U180*'Inputs & Assumptions'!$P$38,"--") -> 19175 | AF180: =IFERROR(V180*'Inputs & Assumptions'!$P$39,"--") -> 425775 | AG180: =IFERROR(W180*'Inputs & Assumptions'!$P$40,"--") -> 9028098.93 | AH180: =IFERROR(X180*'Inputs & Assumptions'!$P$41,"--") -> 920851 | AI180: =IFERROR(Y180*'Inputs & Assumptions'!$P$42,"--") -> 26923 | AJ180: =IFERROR(Z180*'Inputs & Assumptions'!$P$43,"--") -> 255000 | AK180: =IFERROR(AA180*'Inputs & Assumptions'!$P$44,"--") -> 742500 | AL180: =IFERROR(AB180*'Inputs & Assumptions'!$P$45,"--") -> 3758833.5 | AM180: =IFERROR(AC180*'Inputs & Assumptions'!$P$46,"--") -> 369030
A181: 1809 | B181: Green Brook Township | C181: Somerset | D181: 3403527510 | E181: 178 | F181: 1377844692 | G181: 6314439.53 | H181: 0.4582838376 | I181: 2501829.313 | J181: 2820.753721 | K181: 2.621465185 | L181: 5516189.38 | M181: 24289090 | N181: 36119718.91 | O181: 0.1748197306 | P181: 0.1527196099 | Q181: 0.6724606595 | R181: 10054 | S181: 248.8391996 | T181: 996261 | U181: 104736 | V181: 150575 | W181: 3081628.35 | X181: 707919.13 | Y181: 899511.85 | Z181: 0 | AA181: 0 | AB181: 1053493.68 | AC181: 176276 | AD181: =IFERROR(T181*'Inputs & Assumptions'!$P$37,"--") -> 99626.1 | AE181: =IFERROR(U181*'Inputs & Assumptions'!$P$38,"--") -> 10473.6 | AF181: =IFERROR(V181*'Inputs & Assumptions'!$P$39,"--") -> 75287.5 | AG181: =IFERROR(W181*'Inputs & Assumptions'!$P$40,"--") -> 1540814.175 | AH181: =IFERROR(X181*'Inputs & Assumptions'!$P$41,"--") -> 70791.913 | AI181: =IFERROR(Y181*'Inputs & Assumptions'!$P$42,"--") -> 89951.185 | AJ181: =IFERROR(Z181*'Inputs & Assumptions'!$P$43,"--") -> 0 | AK181: =IFERROR(AA181*'Inputs & Assumptions'!$P$44,"--") -> 0 | AL181: =IFERROR(AB181*'Inputs & Assumptions'!$P$45,"--") -> 526746.84 | AM181: =IFERROR(AC181*'Inputs & Assumptions'!$P$46,"--") -> 88138
A182: 1908 | B182: Green Township | C182: Sussex | D182: 3403727420 | E182: 179 | F182: 428807200 | G182: 2735278.69 | H182: 0.6378807749 | I182: 541315.98 | J182: 10261.63338 | K182: 3.539866716 | L182: 2740361.66 | M182: 9703563 | N182: 15179203.35 | O182: 0.1801990939 | P182: 0.180533958 | Q182: 0.6392669481 | R182: 3974 | S182: 136.2143885 | T182: 679170 | U182: 68817 | V182: 6898 | W182: 122902 | X182: 797619 | Y182: 5460 | Z182: 0 | AA182: 466518.76 | AB182: 173165 | AC182: 2935 | AD182: =IFERROR(T182*'Inputs & Assumptions'!$P$37,"--") -> 67917 | AE182: =IFERROR(U182*'Inputs & Assumptions'!$P$38,"--") -> 6881.7 | AF182: =IFERROR(V182*'Inputs & Assumptions'!$P$39,"--") -> 3449 | AG182: =IFERROR(W182*'Inputs & Assumptions'!$P$40,"--") -> 61451 | AH182: =IFERROR(X182*'Inputs & Assumptions'!$P$41,"--") -> 79761.9 | AI182: =IFERROR(Y182*'Inputs & Assumptions'!$P$42,"--") -> 546 | AJ182: =IFERROR(Z182*'Inputs & Assumptions'!$P$43,"--") -> 0 | AK182: =IFERROR(AA182*'Inputs & Assumptions'!$P$44,"--") -> 233259.38 | AL182: =IFERROR(AB182*'Inputs & Assumptions'!$P$45,"--") -> 86582.5 | AM182: =IFERROR(AC182*'Inputs & Assumptions'!$P$46,"--") -> 1467.5
A183: 0606 | B183: Greenwich Township | C183: Cumberland | D183: 3401128170 | E183: 180 | F183: 75758623 | G183: 329911.79 | H183: 0.4354775429 | I183: 55739.097 | J183: 11373.84436 | K183: 3.584699804 | L183: 915037.42 | M183: 1470770 | N183: 2715719.21 | O183: 0.1214822905 | P183: 0.3369411008 | Q183: 0.5415766087 | R183: 674 | S183: 82.69895697 | T183: 121180.13 | U183: 7998.84 | V183: 7009.48 | W183: 23580 | X183: 48387.6 | Y183: 7045.2 | Z183: 0 | AA183: 37740 | AB183: 6226.36 | AC183: 0 | AD183: =IFERROR(T183*'Inputs & Assumptions'!$P$37,"--") -> 12118.013 | AE183: =IFERROR(U183*'Inputs & Assumptions'!$P$38,"--") -> 799.884 | AF183: =IFERROR(V183*'Inputs & Assumptions'!$P$39,"--") -> 3504.74 | AG183: =IFERROR(W183*'Inputs & Assumptions'!$P$40,"--") -> 11790 | AH183: =IFERROR(X183*'Inputs & Assumptions'!$P$41,"--") -> 4838.76 | AI183: =IFERROR(Y183*'Inputs & Assumptions'!$P$42,"--") -> 704.52 | AJ183: =IFERROR(Z183*'Inputs & Assumptions'!$P$43,"--") -> 0 | AK183: =IFERROR(AA183*'Inputs & Assumptions'!$P$44,"--") -> 18870 | AL183: =IFERROR(AB183*'Inputs & Assumptions'!$P$45,"--") -> 3113.18 | AM183: =IFERROR(AC183*'Inputs & Assumptions'!$P$46,"--") -> 0
A184: 0807 | B184: Greenwich Township | C184: Gloucester | D184: 3401528185 | E184: 181 | F184: 720241131 | G184: 10723369.9 | H184: 1.488858306 | I184: 2217697.16 | J184: 5748.375534 | K184: 3.27426521 | L184: 2568561.88 | M184: 10290673 | N184: 23582604.78 | O184: 0.4547152446 | P184: 0.1089176494 | Q184: 0.436367106 | R184: 6795 | S184: 326.3719146 | T184: 1627276.6 | U184: 31195 | V184: 159725 | W184: 2352160 | X184: 2019000 | Y184: 21375 | Z184: 0 | AA184: 200000 | AB184: 848940 | AC184: 134800 | AD184: =IFERROR(T184*'Inputs & Assumptions'!$P$37,"--") -> 162727.66 | AE184: =IFERROR(U184*'Inputs & Assumptions'!$P$38,"--") -> 3119.5 | AF184: =IFERROR(V184*'Inputs & Assumptions'!$P$39,"--") -> 79862.5 | AG184: =IFERROR(W184*'Inputs & Assumptions'!$P$40,"--") -> 1176080 | AH184: =IFERROR(X184*'Inputs & Assumptions'!$P$41,"--") -> 201900 | AI184: =IFERROR(Y184*'Inputs & Assumptions'!$P$42,"--") -> 2137.5 | AJ184: =IFERROR(Z184*'Inputs & Assumptions'!$P$43,"--") -> 0 | AK184: =IFERROR(AA184*'Inputs & Assumptions'!$P$44,"--") -> 100000 | AL184: =IFERROR(AB184*'Inputs & Assumptions'!$P$45,"--") -> 424470 | AM184: =IFERROR(AC184*'Inputs & Assumptions'!$P$46,"--") -> 67400
A185: 2107 | B185: Greenwich Township | C185: Warren | D185: 3404128260 | E185: 182 | F185: 595213757 | G185: 3639595.97 | H185: 0.6114771252 | I185: 1299241 | J185: 6771.81419 | K185: 3.33149868 | L185: 4955008.49 | M185: 11234934 | N185: 19829538.46 | O185: 0.1835441595 | P185: 0.2498801725 | Q185: 0.566575668 | R185: 6737 | S185: 192.851566 | T185: 437170 | U185: 36995 | V185: 2110 | W185: 1758012 | X185: 1239865 | Y185: 8135 | Z185: 0 | AA185: 0 | AB185: 491427 | AC185: 2500 | AD185: =IFERROR(T185*'Inputs & Assumptions'!$P$37,"--") -> 43717 | AE185: =IFERROR(U185*'Inputs & Assumptions'!$P$38,"--") -> 3699.5 | AF185: =IFERROR(V185*'Inputs & Assumptions'!$P$39,"--") -> 1055 | AG185: =IFERROR(W185*'Inputs & Assumptions'!$P$40,"--") -> 879006 | AH185: =IFERROR(X185*'Inputs & Assumptions'!$P$41,"--") -> 123986.5 | AI185: =IFERROR(Y185*'Inputs & Assumptions'!$P$42,"--") -> 813.5 | AJ185: =IFERROR(Z185*'Inputs & Assumptions'!$P$43,"--") -> 0 | AK185: =IFERROR(AA185*'Inputs & Assumptions'!$P$44,"--") -> 0 | AL185: =IFERROR(AB185*'Inputs & Assumptions'!$P$45,"--") -> 245713.5 | AM185: =IFERROR(AC185*'Inputs & Assumptions'!$P$46,"--") -> 1250
A186: 0903 | B186: Guttenberg Town | C186: Hudson | D186: 3401728650 | E186: 183 | F186: 785107707 | G186: 14402443.88 | H186: 1.834454528 | I186: 4740189.971 | J186: 123.5294121 | K186: 3.860083048 | L186: 4581543.63 | M186: 11321822 | N186: 30305809.51 | O186: 0.4752370622 | P186: 0.1511770748 | Q186: 0.373585863 | R186: 12361 | S186: 383.4794896 | T186: 2282000 | U186: 28500 | V186: 271500 | W186: 6749000 | X186: 2109534.71 | Y186: 55000 | Z186: 395755 | AA186: 0 | AB186: 1169118 | AC186: 0 | AD186: =IFERROR(T186*'Inputs & Assumptions'!$P$37,"--") -> 228200 | AE186: =IFERROR(U186*'Inputs & Assumptions'!$P$38,"--") -> 2850 | AF186: =IFERROR(V186*'Inputs & Assumptions'!$P$39,"--") -> 135750 | AG186: =IFERROR(W186*'Inputs & Assumptions'!$P$40,"--") -> 3374500 | AH186: =IFERROR(X186*'Inputs & Assumptions'!$P$41,"--") -> 210953.471 | AI186: =IFERROR(Y186*'Inputs & Assumptions'!$P$42,"--") -> 5500 | AJ186: =IFERROR(Z186*'Inputs & Assumptions'!$P$43,"--") -> 197877.5 | AK186: =IFERROR(AA186*'Inputs & Assumptions'!$P$44,"--") -> 0 | AL186: =IFERROR(AB186*'Inputs & Assumptions'!$P$45,"--") -> 584559 | AM186: =IFERROR(AC186*'Inputs & Assumptions'!$P$46,"--") -> 0
A187: 0223 | B187: Hackensack City | C187: Bergen | D187: 3400328680 | E187: 184 | F187: 5645801500 | G187: 87651992.62 | H187: 1.552516372 | I187: 30078155.4 | J187: 2682.426409 | K187: 3.308700437 | L187: 13942204.31 | M187: 85208462 | N187: 186802658.9 | O187: 0.4692224036 | P187: 0.07463600566 | Q187: 0.4561415907 | R187: 77490 | S187: 388.1553156 | T187: 6426060 | U187: 796420 | V187: 989850 | W187: 33034523.45 | X187: 4356271.79 | Y187: 1040050 | Z187: 2704421 | AA187: 9340600 | AB187: 10781056 | AC187: 782100 | AD187: =IFERROR(T187*'Inputs & Assumptions'!$P$37,"--") -> 642606 | AE187: =IFERROR(U187*'Inputs & Assumptions'!$P$38,"--") -> 79642 | AF187: =IFERROR(V187*'Inputs & Assumptions'!$P$39,"--") -> 494925 | AG187: =IFERROR(W187*'Inputs & Assumptions'!$P$40,"--") -> 16517261.72 | AH187: =IFERROR(X187*'Inputs & Assumptions'!$P$41,"--") -> 435627.179 | AI187: =IFERROR(Y187*'Inputs & Assumptions'!$P$42,"--") -> 104005 | AJ187: =IFERROR(Z187*'Inputs & Assumptions'!$P$43,"--") -> 1352210.5 | AK187: =IFERROR(AA187*'Inputs & Assumptions'!$P$44,"--") -> 4670300 | AL187: =IFERROR(AB187*'Inputs & Assumptions'!$P$45,"--") -> 5390528 | AM187: =IFERROR(AC187*'Inputs & Assumptions'!$P$46,"--") -> 391050
A188: 2108 | B188: Hackettstown Town | C188: Warren | D188: 3404128710 | E188: 185 | F188: 1025153600 | G188: 6968659.4 | H188: 0.6797673441 | I188: 2560114.24 | J188: 2311.579948 | K188: 3.128197837 | L188: 6739223.34 | M188: 18360950 | N188: 32068832.74 | O188: 0.2173031821 | P188: 0.2101486947 | Q188: 0.5725481232 | R188: 15240 | S188: 167.9864987 | T188: 843195 | U188: 33475 | V188: 276500 | W188: 2815125.6 | X188: 1005969.4 | Y188: 97695 | Z188: 342800 | AA188: 0 | AB188: 1124346 | AC188: 165390 | AD188: =IFERROR(T188*'Inputs & Assumptions'!$P$37,"--") -> 84319.5 | AE188: =IFERROR(U188*'Inputs & Assumptions'!$P$38,"--") -> 3347.5 | AF188: =IFERROR(V188*'Inputs & Assumptions'!$P$39,"--") -> 138250 | AG188: =IFERROR(W188*'Inputs & Assumptions'!$P$40,"--") -> 1407562.8 | AH188: =IFERROR(X188*'Inputs & Assumptions'!$P$41,"--") -> 100596.94 | AI188: =IFERROR(Y188*'Inputs & Assumptions'!$P$42,"--") -> 9769.5 | AJ188: =IFERROR(Z188*'Inputs & Assumptions'!$P$43,"--") -> 171400 | AK188: =IFERROR(AA188*'Inputs & Assumptions'!$P$44,"--") -> 0 | AL188: =IFERROR(AB188*'Inputs & Assumptions'!$P$45,"--") -> 562173 | AM188: =IFERROR(AC188*'Inputs & Assumptions'!$P$46,"--") -> 82695
A189: 0418 | B189: Haddon Heights Borough | C189: Camden | D189: 3400728800 | E189: 186 | F189: 836106067 | G189: 6415097.41 | H189: 0.767258804 | I189: 1827956.754 | J189: 1002.412715 | K189: 3.329694571 | L189: 6738780.91 | M189: 14685900 | N189: 27839778.32 | O189: 0.2304291843 | P189: 0.2420558394 | Q189: 0.5275149763 | R189: 9801 | S189: 186.507168 | T189: 585450 | U189: 17400 | V189: 98435 | W189: 1913096.83 | X189: 604458.39 | Y189: 11350 | Z189: 280000 | AA189: 299300 | AB189: 672650 | AC189: 148700 | AD189: =IFERROR(T189*'Inputs & Assumptions'!$P$37,"--") -> 58545 | AE189: =IFERROR(U189*'Inputs & Assumptions'!$P$38,"--") -> 1740 | AF189: =IFERROR(V189*'Inputs & Assumptions'!$P$39,"--") -> 49217.5 | AG189: =IFERROR(W189*'Inputs & Assumptions'!$P$40,"--") -> 956548.415 | AH189: =IFERROR(X189*'Inputs & Assumptions'!$P$41,"--") -> 60445.839 | AI189: =IFERROR(Y189*'Inputs & Assumptions'!$P$42,"--") -> 1135 | AJ189: =IFERROR(Z189*'Inputs & Assumptions'!$P$43,"--") -> 140000 | AK189: =IFERROR(AA189*'Inputs & Assumptions'!$P$44,"--") -> 149650 | AL189: =IFERROR(AB189*'Inputs & Assumptions'!$P$45,"--") -> 336325 | AM189: =IFERROR(AC189*'Inputs & Assumptions'!$P$46,"--") -> 74350
